Workbook

Sheet Használat
B2: Siklóernyős célraszálló verseny kiértékelő
B4: Használati utasítás | Q4: © készítette:
Q5: Gyarmati-Szabó István
B6: A helyes működéshez a fájl megnyitása után engedélyezni kell a makrók futtatását! | Q6: gyarmatiszi@gmail.com
B7: (Megnyitáskor megjelenő "Biztonsági figyelmeztetés" sávban a "Tartalom engedélyezését" választani)
B8: A munkalapokat nem szabad átnevezni!
B10: A következő színű cellákra lehet tölteni:
B11: A többi cella képlettel számolódik és írásvédett
B13: Használat rövid leírása (időrendben):
B14: 1. Competition fülön beállítani a verseny jellemzőit
B15: 2. Teams fülön felvinni a csapatok listáját
B16: 3. Pilots fülön felvinni a versenyzők listáját (sorszámuk a kapott rajtszám legyen)
B17: Fontos: az eredményszámításhoz ki kell tölteni a nemet (M/F) és hogy milyen versenyben vesz részt (Overall és/vagy tandem, X-elni)
B18: 4. Rounds fülön beírni a sorozatok eredményét és beállítani, hogy hány befejezett sorozat van
B19: 5. A Rankings és a Teams_results fülön gombnyomással lehet frissíteni az aktuális helyezéseket
B20: (Továbbá a Results fülön érdemes azt is figyelni, milyen rekordok elérhetőek.)
B21: 6. A 4-5. pontot szükség szerint (azaz az újabb befejezett körök végén) ismételni
B22: + Ha a pilóták nevét változtatjuk, akkor az eredmény füleken (Rankings és Team_results) a Frissítés gombokat újra megnyomni
B25: Használat részletes leírása fülek szerint:
B27: Competition | C27: Itt beállítható a verseny neve, és a versenyszabályok - pl. hány körös lesz
C28: igen/nem paraméterrel állítható, hogy a legrosszabb eredmény eldobható-e
B30: Pilots | C30: Itt kell megadni a nevezők listáját, nemüket, országukat, stb., illetve mely csapatban tagjai és a kapott rajtszámot - ez alapján keresődik be a név a többi lapon!
C31: Csapatnevet csak a Teams fülön megadott listából lehet választani (az egyértelműség miatt)
C32: Országot csak az Countries fülön megadott listából lehet választani (szintén az egyértelműség miatt) - kettős állampolgárság esetére van egy második oszlop is
C33: A szűrők segítségével lehet kezelni, ha egy szűkebb kört is szeretnénk kiértékelni (pl. magyar versenyzők - ezzel lehet bevonni a kettős állampolgárságot is)
C34: Az egyéni (összesített) versenyben részt vevőknek az Overall, a tandemeseknek a tandem oszlopba kell X-et tenni.
C35: (Ha a tandem az egyéniben külön indul, akkor két külön névként kell szerepeltetni. Ha a tandemeredmény az egyénibe is beszámít, akkor mindkét oszlopba X kell.)
C36: A lap végén (jobb oldalon) van egy életkor statisztika is, ami figyeli a születésnapokat is, arra az esetre, ha valakit épp meg kell ünnepelni :)
B38: Teams | C38: Ha új csapat jelentkezik, akkor ide kell felvinni
C39: A csapat definíciója (hány fős + hány női / ifjúsági tag lehet) a Competition fülön látható
C40: A csapatok tagjai a Registration fülön beállítottak szerint alakulnak ki
C41: A létszámproblémákat automatikusan jelzi a "megjegyzés" oszlopban (de a többlet létszámot nem tudja szankcionálni, csak a hiányt)
B42: Rounds | C42: Itt kell vezetni az elért eredményeket: | H42: színű cellák
C43: Csak értelmes szám adható meg, vagy DNF (=nem repült), DSQ (=kizárás). A DNF és DSQ (vagy egyéb szöveg) értékek max. pontszámnak fognak számítani.
C44: A következő szín jelzi az olyan üres cellákat, ami már érvényes körben van (max pontnak fog számítani):
B46: Results | C46: Itt csak a rajtszámok változtathatóak, a résztvevők neve rajtszám alapján bekeresődik a Registration fülről, az eredmények pedig a Rounds_#-# fülekről
C47: Fontos! Az Befejezett körök száma (amint befejeződött egy kör) beállítandó, mert az összpontszámba onnantól számít bele az adott futam eredménye
C48: A befejezett (érvényes) körök oszlopait az alábbi ikon jelzi: | I48: þ
C49: A még nem érvényes körök oszlopait az alábbi ikon jelzi: | I49: ¨
C50: Ha valakinél nincs eredmény megadva (üresen marad) egy már befejezett körben, azt max. pontszámnak fog számítani! Ezt a következő színezéssel jelzi: | R50: 1000
C51: A törölt eredményt (a Szabályokban beállított számű kör elérése után) a következő szín jelzi: | L51: 1000
C52: A fájl azonnal kiszámolja az aktuális pontszámot, összesített helyezést és nők közötti helyezést
C53: illetve a következő oszlopokban ugyanezt szűrő segítségével, pl. adott országon belüli versenyzőkre értelmezve is kiszámolja (a Registration fülön állítható be)
C54: Jelzi azt is, ha az adott versenyző elért egy FAIjelvényt, rekordot döntött, vagy ha elérhet még valamilyen rekordot az adott verseny alatt
B56: Rankings | C56: A Frissítés gombra kattintás után frissíti a helyezéslistát (sorba téve), összesített és női kategóriában is. Az első 3 helyezettet színezéssel kiemeli
C57: Frissítéskor megjegyzi az aktuális időt (eredményhirdetés időpontja!)
C58: Illetve szűrő segítségével országonként (vagy bármilyen bontásban) külön is kiszámolható ugyanez - a használt szűrőt a Results fülön kell beállítani
B60: Details | C60: Szükség esetén a Frissítés gombra kattintás után frissíti a helyezéslistát (sorba téve), összesített és női kategóriában is
C61: Frissítéskor megjegyzi az aktuális időt (eredményhirdetés időpontja!)
B63: Team_results | C63: A Frissítés gombra kattintás után frissíti a csapatok eredményét. Az első 3 helyezettet színezéssel kiemeli.
C64: Frissítéskor megjegyzi az aktuális időt (eredményhirdetés időpontja!)
C65: Létszámhiány esetén körök száma * maximális pontszámot számol minden hiányzó főre
C66: Az adott körből figyelembe nem vett eredményeket (X legjobb eredményen kívüli) a következő szín jelzi: | N66: 1000
B68: Egyéb megjegyzések:
B69: - Jelenleg maximum 99 pilóta, 30 csapat (csapatonként max 10 taggal), és 12 körös verseny kezelésére van felkészítve a program - de mindez könnyen bővíthető szükség esetén
B70: - Ha a pilóták nevét változtatjuk (pl. elgépelés miatt) akkor az eredmény füleken (Rankings és Team_results) ne felejtsd el a Frissítés gombokat újra megnyomni

Sheet Competition
B2: Siklóernyős célraszálló verseny kiértékelő / Paragliding accuracy landing competition results calculator
B4: Verseny neve / Name of competition | C4: PG-HG Triathlon
B5: Date | C5: 2015.05.23-24.
B6: Verseny kategóriája / Event category | C6: FAI-2
B7: Verseny helyszíne / Event location | C7: Subotica, Bikovo
B8: Bírók / Judges
B9: Chief Judge: | C9: Ana Pavlov
B10: Event Judge: | C10: Zsuzsanna Kiss
B11: Fichet 1:
B12: Fichet 2:
B14: Verseny szabályainak paraméterei / Competition rule parameters
B16: Tervezett körök száma | C16: Planned no. of rounds: | D16: 8
B18: Maximális pontszám | C18: Maximum point | D18: 500 | F18: - a célkör sugara (cm) / radius of measuring field (cm)
B20: A leggyengébb eredmény törlése | C20: Disregard the result of weakest round | D20: yes
B21: A leggyengébb eredmény törlődik, ha a körök száma | C21: Weakest result cleared if number of rounds reach | D21: 5 | E21: körtől / rounds
B23: Csapatok teljes létszáma | C23: Teams headcount | D23: =+SUM(D24:D26) -> 5 | E23: =IF(D23=SUM(D24:D26)," = "&D24&"+"&SUM(D25:D26)&" fős csapatverseny / "&D24&"+"&SUM(D25:D26)&" teams competition"," -- nem egyezik az alábontással!") -> = 4+1 fős csapatverseny / 4+1 teams competition
B24: általános | C24: general | D24: 4
B25: női | C25: female | D25: 0 | F25: a kettő közül csak az egyik kitöltendő | I25: please fill only one of the two cells | K25: =+IF(AND(D25<>0,D26<>0),"!!!","") -> 
B26: női vagy ifjúsági | C26: female or junior | D26: 1
B28: Csapateredmény számítása | C28: Teams point calculation | D28: 3 | E28: db legjobb eredmény a csapatból körönként / best results from each rounds | M28: =+IF(D28>D24,"???","") -> 
B30: ifjúsági korhatár | C30: Junior (years) | D30: 25 | E30: év / years

Sheet Teams
C1: headcount | D1: =+Paraméterek!$D$3 -> M | E1: =+Paraméterek!$D$4 -> F | F1: =+Paraméterek!$C$3 -> yes | G1: under needed
G2: =+SUM(G9:G38) -> 0 | I2: =30-COUNTBLANK($I$9:$I$38) -> 0
B4: =+"Csapatok listája / Teams list - "&Competition!$C$4 -> Csapatok listája / Teams list - PG-HG Triathlon | F4: Csapatok száma / Nr of teams:
B5: =Competition!D24&"+"&SUM(Competition!D25:D26)&" fős csapatverseny / "&Competition!D24&"+"&SUM(Competition!D25:D26)&" teams competition" -> 4+1 fős csapatverseny / 4+1 teams competition | F5: =+COUNTA($B$8:$B$38) -> 0 | G5: X * max points!
B6: Team names | C6: Headcount | D6: Male | E6: Female | F6: Female / Junior | G6: Shortage
B7: Csapatok neve | C7: Létszám | D7: Férfi | E7: Nő | F7: Nő / Ifjúsági | G7: Létszám-hiány | I7: Megjegyzés
I8: =IF(ISBLANK($B8),"",IF(C8>Competition!#REF!,"túl sokan vannak a csapatban",IF(AND(#REF!="női",D8>0),"férfi van a női csapatban",IF(AND(#REF!="vegyes",E8<Competition!$D$25),"nincs elég nő a vegyes csapatban","")))) -> 
C9: =+IF(ISBLANK($B9),"",COUNTIF(Pilots!$E$8:$E$107,$B9)) ->  | D9: =+IF(ISBLANK($B9),"",COUNTIFS(Pilots!$E$8:$E$107,$B9,Pilots!$D$8:$D$107,Teams!D$1)) ->  | E9: =+IF(ISBLANK($B9),"",COUNTIFS(Pilots!$E$8:$E$107,$B9,Pilots!$D$8:$D$107,Teams!E$1)) ->  | F9: =+IF(ISBLANK($B9),"",COUNTIFS(Pilots!$E$8:$E$107,$B9,Pilots!$Z$8:$Z$107,Teams!F$1)) ->  | G9: =IF(ISBLANK($B9),"",MAX(Competition!$D$28-C9,0)) ->  | I9: =IF(ISBLANK($B9),"",IF(G9>0,G9&" fő még hiányzik!",IF(C9>Competition!$D$23,"túl sokan vannak a csapatban!",IF(AND(Competition!$D$25>0,C9-E9>Competition!$D$24),"nincs (elég) nő a csapatban?",IF(AND(Competition!$D$26>0,C9-(E9+F9)>Competition!$D$24),"nincs (elég) női / ifjúsági tag a csapatban?",""))))) -> 
C10: =+IF(ISBLANK($B10),"",COUNTIF(Pilots!$E$8:$E$107,$B10)) ->  | D10: =+IF(ISBLANK($B10),"",COUNTIFS(Pilots!$E$8:$E$107,$B10,Pilots!$D$8:$D$107,Teams!D$1)) ->  | E10: =+IF(ISBLANK($B10),"",COUNTIFS(Pilots!$E$8:$E$107,$B10,Pilots!$D$8:$D$107,Teams!E$1)) ->  | F10: =+IF(ISBLANK($B10),"",COUNTIFS(Pilots!$E$8:$E$107,$B10,Pilots!$Z$8:$Z$107,Teams!F$1)) ->  | G10: =IF(ISBLANK($B10),"",MAX(Competition!$D$28-C10,0)) ->  | I10: =IF(ISBLANK($B10),"",IF(G10>0,G10&" fő még hiányzik!",IF(C10>Competition!$D$23,"túl sokan vannak a csapatban!",IF(AND(Competition!$D$25>0,C10-E10>Competition!$D$24),"nincs (elég) nő a csapatban?",IF(AND(Competition!$D$26>0,C10-(E10+F10)>Competition!$D$24),"nincs (elég) női / ifjúsági tag a csapatban?",""))))) -> 
C11: =+IF(ISBLANK($B11),"",COUNTIF(Pilots!$E$8:$E$107,$B11)) ->  | D11: =+IF(ISBLANK($B11),"",COUNTIFS(Pilots!$E$8:$E$107,$B11,Pilots!$D$8:$D$107,Teams!D$1)) ->  | E11: =+IF(ISBLANK($B11),"",COUNTIFS(Pilots!$E$8:$E$107,$B11,Pilots!$D$8:$D$107,Teams!E$1)) ->  | F11: =+IF(ISBLANK($B11),"",COUNTIFS(Pilots!$E$8:$E$107,$B11,Pilots!$Z$8:$Z$107,Teams!F$1)) ->  | G11: =IF(ISBLANK($B11),"",MAX(Competition!$D$28-C11,0)) ->  | I11: =IF(ISBLANK($B11),"",IF(G11>0,G11&" fő még hiányzik!",IF(C11>Competition!$D$23,"túl sokan vannak a csapatban!",IF(AND(Competition!$D$25>0,C11-E11>Competition!$D$24),"nincs (elég) nő a csapatban?",IF(AND(Competition!$D$26>0,C11-(E11+F11)>Competition!$D$24),"nincs (elég) női / ifjúsági tag a csapatban?",""))))) -> 
C12: =+IF(ISBLANK($B12),"",COUNTIF(Pilots!$E$8:$E$107,$B12)) ->  | D12: =+IF(ISBLANK($B12),"",COUNTIFS(Pilots!$E$8:$E$107,$B12,Pilots!$D$8:$D$107,Teams!D$1)) ->  | E12: =+IF(ISBLANK($B12),"",COUNTIFS(Pilots!$E$8:$E$107,$B12,Pilots!$D$8:$D$107,Teams!E$1)) ->  | F12: =+IF(ISBLANK($B12),"",COUNTIFS(Pilots!$E$8:$E$107,$B12,Pilots!$Z$8:$Z$107,Teams!F$1)) ->  | G12: =IF(ISBLANK($B12),"",MAX(Competition!$D$28-C12,0)) ->  | I12: =IF(ISBLANK($B12),"",IF(G12>0,G12&" fő még hiányzik!",IF(C12>Competition!$D$23,"túl sokan vannak a csapatban!",IF(AND(Competition!$D$25>0,C12-E12>Competition!$D$24),"nincs (elég) nő a csapatban?",IF(AND(Competition!$D$26>0,C12-(E12+F12)>Competition!$D$24),"nincs (elég) női / ifjúsági tag a csapatban?",""))))) -> 
C13: =+IF(ISBLANK($B13),"",COUNTIF(Pilots!$E$8:$E$107,$B13)) ->  | D13: =+IF(ISBLANK($B13),"",COUNTIFS(Pilots!$E$8:$E$107,$B13,Pilots!$D$8:$D$107,Teams!D$1)) ->  | E13: =+IF(ISBLANK($B13),"",COUNTIFS(Pilots!$E$8:$E$107,$B13,Pilots!$D$8:$D$107,Teams!E$1)) ->  | F13: =+IF(ISBLANK($B13),"",COUNTIFS(Pilots!$E$8:$E$107,$B13,Pilots!$Z$8:$Z$107,Teams!F$1)) ->  | G13: =IF(ISBLANK($B13),"",MAX(Competition!$D$28-C13,0)) ->  | I13: =IF(ISBLANK($B13),"",IF(G13>0,G13&" fő még hiányzik!",IF(C13>Competition!$D$23,"túl sokan vannak a csapatban!",IF(AND(Competition!$D$25>0,C13-E13>Competition!$D$24),"nincs (elég) nő a csapatban?",IF(AND(Competition!$D$26>0,C13-(E13+F13)>Competition!$D$24),"nincs (elég) női / ifjúsági tag a csapatban?",""))))) -> 
C14: =+IF(ISBLANK($B14),"",COUNTIF(Pilots!$E$8:$E$107,$B14)) ->  | D14: =+IF(ISBLANK($B14),"",COUNTIFS(Pilots!$E$8:$E$107,$B14,Pilots!$D$8:$D$107,Teams!D$1)) ->  | E14: =+IF(ISBLANK($B14),"",COUNTIFS(Pilots!$E$8:$E$107,$B14,Pilots!$D$8:$D$107,Teams!E$1)) ->  | F14: =+IF(ISBLANK($B14),"",COUNTIFS(Pilots!$E$8:$E$107,$B14,Pilots!$Z$8:$Z$107,Teams!F$1)) ->  | G14: =IF(ISBLANK($B14),"",MAX(Competition!$D$28-C14,0)) ->  | I14: =IF(ISBLANK($B14),"",IF(G14>0,G14&" fő még hiányzik!",IF(C14>Competition!$D$23,"túl sokan vannak a csapatban!",IF(AND(Competition!$D$25>0,C14-E14>Competition!$D$24),"nincs (elég) nő a csapatban?",IF(AND(Competition!$D$26>0,C14-(E14+F14)>Competition!$D$24),"nincs (elég) női / ifjúsági tag a csapatban?",""))))) -> 
C15: =+IF(ISBLANK($B15),"",COUNTIF(Pilots!$E$8:$E$107,$B15)) ->  | D15: =+IF(ISBLANK($B15),"",COUNTIFS(Pilots!$E$8:$E$107,$B15,Pilots!$D$8:$D$107,Teams!D$1)) ->  | E15: =+IF(ISBLANK($B15),"",COUNTIFS(Pilots!$E$8:$E$107,$B15,Pilots!$D$8:$D$107,Teams!E$1)) ->  | F15: =+IF(ISBLANK($B15),"",COUNTIFS(Pilots!$E$8:$E$107,$B15,Pilots!$Z$8:$Z$107,Teams!F$1)) ->  | G15: =IF(ISBLANK($B15),"",MAX(Competition!$D$28-C15,0)) ->  | I15: =IF(ISBLANK($B15),"",IF(G15>0,G15&" fő még hiányzik!",IF(C15>Competition!$D$23,"túl sokan vannak a csapatban!",IF(AND(Competition!$D$25>0,C15-E15>Competition!$D$24),"nincs (elég) nő a csapatban?",IF(AND(Competition!$D$26>0,C15-(E15+F15)>Competition!$D$24),"nincs (elég) női / ifjúsági tag a csapatban?",""))))) -> 
C16: =+IF(ISBLANK($B16),"",COUNTIF(Pilots!$E$8:$E$107,$B16)) ->  | D16: =+IF(ISBLANK($B16),"",COUNTIFS(Pilots!$E$8:$E$107,$B16,Pilots!$D$8:$D$107,Teams!D$1)) ->  | E16: =+IF(ISBLANK($B16),"",COUNTIFS(Pilots!$E$8:$E$107,$B16,Pilots!$D$8:$D$107,Teams!E$1)) ->  | F16: =+IF(ISBLANK($B16),"",COUNTIFS(Pilots!$E$8:$E$107,$B16,Pilots!$Z$8:$Z$107,Teams!F$1)) ->  | G16: =IF(ISBLANK($B16),"",MAX(Competition!$D$28-C16,0)) ->  | I16: =IF(ISBLANK($B16),"",IF(G16>0,G16&" fő még hiányzik!",IF(C16>Competition!$D$23,"túl sokan vannak a csapatban!",IF(AND(Competition!$D$25>0,C16-E16>Competition!$D$24),"nincs (elég) nő a csapatban?",IF(AND(Competition!$D$26>0,C16-(E16+F16)>Competition!$D$24),"nincs (elég) női / ifjúsági tag a csapatban?",""))))) -> 
C17: =+IF(ISBLANK($B17),"",COUNTIF(Pilots!$E$8:$E$107,$B17)) ->  | D17: =+IF(ISBLANK($B17),"",COUNTIFS(Pilots!$E$8:$E$107,$B17,Pilots!$D$8:$D$107,Teams!D$1)) ->  | E17: =+IF(ISBLANK($B17),"",COUNTIFS(Pilots!$E$8:$E$107,$B17,Pilots!$D$8:$D$107,Teams!E$1)) ->  | F17: =+IF(ISBLANK($B17),"",COUNTIFS(Pilots!$E$8:$E$107,$B17,Pilots!$Z$8:$Z$107,Teams!F$1)) ->  | G17: =IF(ISBLANK($B17),"",MAX(Competition!$D$28-C17,0)) ->  | I17: =IF(ISBLANK($B17),"",IF(G17>0,G17&" fő még hiányzik!",IF(C17>Competition!$D$23,"túl sokan vannak a csapatban!",IF(AND(Competition!$D$25>0,C17-E17>Competition!$D$24),"nincs (elég) nő a csapatban?",IF(AND(Competition!$D$26>0,C17-(E17+F17)>Competition!$D$24),"nincs (elég) női / ifjúsági tag a csapatban?",""))))) -> 
C18: =+IF(ISBLANK($B18),"",COUNTIF(Pilots!$E$8:$E$107,$B18)) ->  | D18: =+IF(ISBLANK($B18),"",COUNTIFS(Pilots!$E$8:$E$107,$B18,Pilots!$D$8:$D$107,Teams!D$1)) ->  | E18: =+IF(ISBLANK($B18),"",COUNTIFS(Pilots!$E$8:$E$107,$B18,Pilots!$D$8:$D$107,Teams!E$1)) ->  | F18: =+IF(ISBLANK($B18),"",COUNTIFS(Pilots!$E$8:$E$107,$B18,Pilots!$Z$8:$Z$107,Teams!F$1)) ->  | G18: =IF(ISBLANK($B18),"",MAX(Competition!$D$28-C18,0)) ->  | I18: =IF(ISBLANK($B18),"",IF(G18>0,G18&" fő még hiányzik!",IF(C18>Competition!$D$23,"túl sokan vannak a csapatban!",IF(AND(Competition!$D$25>0,C18-E18>Competition!$D$24),"nincs (elég) nő a csapatban?",IF(AND(Competition!$D$26>0,C18-(E18+F18)>Competition!$D$24),"nincs (elég) női / ifjúsági tag a csapatban?",""))))) -> 
C19: =+IF(ISBLANK($B19),"",COUNTIF(Pilots!$E$8:$E$107,$B19)) ->  | D19: =+IF(ISBLANK($B19),"",COUNTIFS(Pilots!$E$8:$E$107,$B19,Pilots!$D$8:$D$107,Teams!D$1)) ->  | E19: =+IF(ISBLANK($B19),"",COUNTIFS(Pilots!$E$8:$E$107,$B19,Pilots!$D$8:$D$107,Teams!E$1)) ->  | F19: =+IF(ISBLANK($B19),"",COUNTIFS(Pilots!$E$8:$E$107,$B19,Pilots!$Z$8:$Z$107,Teams!F$1)) ->  | G19: =IF(ISBLANK($B19),"",MAX(Competition!$D$28-C19,0)) ->  | I19: =IF(ISBLANK($B19),"",IF(G19>0,G19&" fő még hiányzik!",IF(C19>Competition!$D$23,"túl sokan vannak a csapatban!",IF(AND(Competition!$D$25>0,C19-E19>Competition!$D$24),"nincs (elég) nő a csapatban?",IF(AND(Competition!$D$26>0,C19-(E19+F19)>Competition!$D$24),"nincs (elég) női / ifjúsági tag a csapatban?",""))))) -> 
C20: =+IF(ISBLANK($B20),"",COUNTIF(Pilots!$E$8:$E$107,$B20)) ->  | D20: =+IF(ISBLANK($B20),"",COUNTIFS(Pilots!$E$8:$E$107,$B20,Pilots!$D$8:$D$107,Teams!D$1)) ->  | E20: =+IF(ISBLANK($B20),"",COUNTIFS(Pilots!$E$8:$E$107,$B20,Pilots!$D$8:$D$107,Teams!E$1)) ->  | F20: =+IF(ISBLANK($B20),"",COUNTIFS(Pilots!$E$8:$E$107,$B20,Pilots!$Z$8:$Z$107,Teams!F$1)) ->  | G20: =IF(ISBLANK($B20),"",MAX(Competition!$D$28-C20,0)) ->  | I20: =IF(ISBLANK($B20),"",IF(G20>0,G20&" fő még hiányzik!",IF(C20>Competition!$D$23,"túl sokan vannak a csapatban!",IF(AND(Competition!$D$25>0,C20-E20>Competition!$D$24),"nincs (elég) nő a csapatban?",IF(AND(Competition!$D$26>0,C20-(E20+F20)>Competition!$D$24),"nincs (elég) női / ifjúsági tag a csapatban?",""))))) -> 
C21: =+IF(ISBLANK($B21),"",COUNTIF(Pilots!$E$8:$E$107,$B21)) ->  | D21: =+IF(ISBLANK($B21),"",COUNTIFS(Pilots!$E$8:$E$107,$B21,Pilots!$D$8:$D$107,Teams!D$1)) ->  | E21: =+IF(ISBLANK($B21),"",COUNTIFS(Pilots!$E$8:$E$107,$B21,Pilots!$D$8:$D$107,Teams!E$1)) ->  | F21: =+IF(ISBLANK($B21),"",COUNTIFS(Pilots!$E$8:$E$107,$B21,Pilots!$Z$8:$Z$107,Teams!F$1)) ->  | G21: =IF(ISBLANK($B21),"",MAX(Competition!$D$28-C21,0)) ->  | I21: =IF(ISBLANK($B21),"",IF(G21>0,G21&" fő még hiányzik!",IF(C21>Competition!$D$23,"túl sokan vannak a csapatban!",IF(AND(Competition!$D$25>0,C21-E21>Competition!$D$24),"nincs (elég) nő a csapatban?",IF(AND(Competition!$D$26>0,C21-(E21+F21)>Competition!$D$24),"nincs (elég) női / ifjúsági tag a csapatban?",""))))) -> 
C22: =+IF(ISBLANK($B22),"",COUNTIF(Pilots!$E$8:$E$107,$B22)) ->  | D22: =+IF(ISBLANK($B22),"",COUNTIFS(Pilots!$E$8:$E$107,$B22,Pilots!$D$8:$D$107,Teams!D$1)) ->  | E22: =+IF(ISBLANK($B22),"",COUNTIFS(Pilots!$E$8:$E$107,$B22,Pilots!$D$8:$D$107,Teams!E$1)) ->  | F22: =+IF(ISBLANK($B22),"",COUNTIFS(Pilots!$E$8:$E$107,$B22,Pilots!$Z$8:$Z$107,Teams!F$1)) ->  | G22: =IF(ISBLANK($B22),"",MAX(Competition!$D$28-C22,0)) ->  | I22: =IF(ISBLANK($B22),"",IF(G22>0,G22&" fő még hiányzik!",IF(C22>Competition!$D$23,"túl sokan vannak a csapatban!",IF(AND(Competition!$D$25>0,C22-E22>Competition!$D$24),"nincs (elég) nő a csapatban?",IF(AND(Competition!$D$26>0,C22-(E22+F22)>Competition!$D$24),"nincs (elég) női / ifjúsági tag a csapatban?",""))))) -> 
C23: =+IF(ISBLANK($B23),"",COUNTIF(Pilots!$E$8:$E$107,$B23)) ->  | D23: =+IF(ISBLANK($B23),"",COUNTIFS(Pilots!$E$8:$E$107,$B23,Pilots!$D$8:$D$107,Teams!D$1)) ->  | E23: =+IF(ISBLANK($B23),"",COUNTIFS(Pilots!$E$8:$E$107,$B23,Pilots!$D$8:$D$107,Teams!E$1)) ->  | F23: =+IF(ISBLANK($B23),"",COUNTIFS(Pilots!$E$8:$E$107,$B23,Pilots!$Z$8:$Z$107,Teams!F$1)) ->  | G23: =IF(ISBLANK($B23),"",MAX(Competition!$D$28-C23,0)) ->  | I23: =IF(ISBLANK($B23),"",IF(G23>0,G23&" fő még hiányzik!",IF(C23>Competition!$D$23,"túl sokan vannak a csapatban!",IF(AND(Competition!$D$25>0,C23-E23>Competition!$D$24),"nincs (elég) nő a csapatban?",IF(AND(Competition!$D$26>0,C23-(E23+F23)>Competition!$D$24),"nincs (elég) női / ifjúsági tag a csapatban?",""))))) -> 
C24: =+IF(ISBLANK($B24),"",COUNTIF(Pilots!$E$8:$E$107,$B24)) ->  | D24: =+IF(ISBLANK($B24),"",COUNTIFS(Pilots!$E$8:$E$107,$B24,Pilots!$D$8:$D$107,Teams!D$1)) ->  | E24: =+IF(ISBLANK($B24),"",COUNTIFS(Pilots!$E$8:$E$107,$B24,Pilots!$D$8:$D$107,Teams!E$1)) ->  | F24: =+IF(ISBLANK($B24),"",COUNTIFS(Pilots!$E$8:$E$107,$B24,Pilots!$Z$8:$Z$107,Teams!F$1)) ->  | G24: =IF(ISBLANK($B24),"",MAX(Competition!$D$28-C24,0)) ->  | I24: =IF(ISBLANK($B24),"",IF(G24>0,G24&" fő még hiányzik!",IF(C24>Competition!$D$23,"túl sokan vannak a csapatban!",IF(AND(Competition!$D$25>0,C24-E24>Competition!$D$24),"nincs (elég) nő a csapatban?",IF(AND(Competition!$D$26>0,C24-(E24+F24)>Competition!$D$24),"nincs (elég) női / ifjúsági tag a csapatban?",""))))) -> 
C25: =+IF(ISBLANK($B25),"",COUNTIF(Pilots!$E$8:$E$107,$B25)) ->  | D25: =+IF(ISBLANK($B25),"",COUNTIFS(Pilots!$E$8:$E$107,$B25,Pilots!$D$8:$D$107,Teams!D$1)) ->  | E25: =+IF(ISBLANK($B25),"",COUNTIFS(Pilots!$E$8:$E$107,$B25,Pilots!$D$8:$D$107,Teams!E$1)) ->  | F25: =+IF(ISBLANK($B25),"",COUNTIFS(Pilots!$E$8:$E$107,$B25,Pilots!$Z$8:$Z$107,Teams!F$1)) ->  | G25: =IF(ISBLANK($B25),"",MAX(Competition!$D$28-C25,0)) ->  | I25: =IF(ISBLANK($B25),"",IF(G25>0,G25&" fő még hiányzik!",IF(C25>Competition!$D$23,"túl sokan vannak a csapatban!",IF(AND(Competition!$D$25>0,C25-E25>Competition!$D$24),"nincs (elég) nő a csapatban?",IF(AND(Competition!$D$26>0,C25-(E25+F25)>Competition!$D$24),"nincs (elég) női / ifjúsági tag a csapatban?",""))))) -> 
C26: =+IF(ISBLANK($B26),"",COUNTIF(Pilots!$E$8:$E$107,$B26)) ->  | D26: =+IF(ISBLANK($B26),"",COUNTIFS(Pilots!$E$8:$E$107,$B26,Pilots!$D$8:$D$107,Teams!D$1)) ->  | E26: =+IF(ISBLANK($B26),"",COUNTIFS(Pilots!$E$8:$E$107,$B26,Pilots!$D$8:$D$107,Teams!E$1)) ->  | F26: =+IF(ISBLANK($B26),"",COUNTIFS(Pilots!$E$8:$E$107,$B26,Pilots!$Z$8:$Z$107,Teams!F$1)) ->  | G26: =IF(ISBLANK($B26),"",MAX(Competition!$D$28-C26,0)) ->  | I26: =IF(ISBLANK($B26),"",IF(G26>0,G26&" fő még hiányzik!",IF(C26>Competition!$D$23,"túl sokan vannak a csapatban!",IF(AND(Competition!$D$25>0,C26-E26>Competition!$D$24),"nincs (elég) nő a csapatban?",IF(AND(Competition!$D$26>0,C26-(E26+F26)>Competition!$D$24),"nincs (elég) női / ifjúsági tag a csapatban?",""))))) -> 
C27: =+IF(ISBLANK($B27),"",COUNTIF(Pilots!$E$8:$E$107,$B27)) ->  | D27: =+IF(ISBLANK($B27),"",COUNTIFS(Pilots!$E$8:$E$107,$B27,Pilots!$D$8:$D$107,Teams!D$1)) ->  | E27: =+IF(ISBLANK($B27),"",COUNTIFS(Pilots!$E$8:$E$107,$B27,Pilots!$D$8:$D$107,Teams!E$1)) ->  | F27: =+IF(ISBLANK($B27),"",COUNTIFS(Pilots!$E$8:$E$107,$B27,Pilots!$Z$8:$Z$107,Teams!F$1)) ->  | G27: =IF(ISBLANK($B27),"",MAX(Competition!$D$28-C27,0)) ->  | I27: =IF(ISBLANK($B27),"",IF(G27>0,G27&" fő még hiányzik!",IF(C27>Competition!$D$23,"túl sokan vannak a csapatban!",IF(AND(Competition!$D$25>0,C27-E27>Competition!$D$24),"nincs (elég) nő a csapatban?",IF(AND(Competition!$D$26>0,C27-(E27+F27)>Competition!$D$24),"nincs (elég) női / ifjúsági tag a csapatban?",""))))) -> 
C28: =+IF(ISBLANK($B28),"",COUNTIF(Pilots!$E$8:$E$107,$B28)) ->  | D28: =+IF(ISBLANK($B28),"",COUNTIFS(Pilots!$E$8:$E$107,$B28,Pilots!$D$8:$D$107,Teams!D$1)) ->  | E28: =+IF(ISBLANK($B28),"",COUNTIFS(Pilots!$E$8:$E$107,$B28,Pilots!$D$8:$D$107,Teams!E$1)) ->  | F28: =+IF(ISBLANK($B28),"",COUNTIFS(Pilots!$E$8:$E$107,$B28,Pilots!$Z$8:$Z$107,Teams!F$1)) ->  | G28: =IF(ISBLANK($B28),"",MAX(Competition!$D$28-C28,0)) ->  | I28: =IF(ISBLANK($B28),"",IF(G28>0,G28&" fő még hiányzik!",IF(C28>Competition!$D$23,"túl sokan vannak a csapatban!",IF(AND(Competition!$D$25>0,C28-E28>Competition!$D$24),"nincs (elég) nő a csapatban?",IF(AND(Competition!$D$26>0,C28-(E28+F28)>Competition!$D$24),"nincs (elég) női / ifjúsági tag a csapatban?",""))))) -> 
C29: =+IF(ISBLANK($B29),"",COUNTIF(Pilots!$E$8:$E$107,$B29)) ->  | D29: =+IF(ISBLANK($B29),"",COUNTIFS(Pilots!$E$8:$E$107,$B29,Pilots!$D$8:$D$107,Teams!D$1)) ->  | E29: =+IF(ISBLANK($B29),"",COUNTIFS(Pilots!$E$8:$E$107,$B29,Pilots!$D$8:$D$107,Teams!E$1)) ->  | F29: =+IF(ISBLANK($B29),"",COUNTIFS(Pilots!$E$8:$E$107,$B29,Pilots!$Z$8:$Z$107,Teams!F$1)) ->  | G29: =IF(ISBLANK($B29),"",MAX(Competition!$D$28-C29,0)) ->  | I29: =IF(ISBLANK($B29),"",IF(G29>0,G29&" fő még hiányzik!",IF(C29>Competition!$D$23,"túl sokan vannak a csapatban!",IF(AND(Competition!$D$25>0,C29-E29>Competition!$D$24),"nincs (elég) nő a csapatban?",IF(AND(Competition!$D$26>0,C29-(E29+F29)>Competition!$D$24),"nincs (elég) női / ifjúsági tag a csapatban?",""))))) -> 
C30: =+IF(ISBLANK($B30),"",COUNTIF(Pilots!$E$8:$E$107,$B30)) ->  | D30: =+IF(ISBLANK($B30),"",COUNTIFS(Pilots!$E$8:$E$107,$B30,Pilots!$D$8:$D$107,Teams!D$1)) ->  | E30: =+IF(ISBLANK($B30),"",COUNTIFS(Pilots!$E$8:$E$107,$B30,Pilots!$D$8:$D$107,Teams!E$1)) ->  | F30: =+IF(ISBLANK($B30),"",COUNTIFS(Pilots!$E$8:$E$107,$B30,Pilots!$Z$8:$Z$107,Teams!F$1)) ->  | G30: =IF(ISBLANK($B30),"",MAX(Competition!$D$28-C30,0)) ->  | I30: =IF(ISBLANK($B30),"",IF(G30>0,G30&" fő még hiányzik!",IF(C30>Competition!$D$23,"túl sokan vannak a csapatban!",IF(AND(Competition!$D$25>0,C30-E30>Competition!$D$24),"nincs (elég) nő a csapatban?",IF(AND(Competition!$D$26>0,C30-(E30+F30)>Competition!$D$24),"nincs (elég) női / ifjúsági tag a csapatban?",""))))) -> 
C31: =+IF(ISBLANK($B31),"",COUNTIF(Pilots!$E$8:$E$107,$B31)) ->  | D31: =+IF(ISBLANK($B31),"",COUNTIFS(Pilots!$E$8:$E$107,$B31,Pilots!$D$8:$D$107,Teams!D$1)) ->  | E31: =+IF(ISBLANK($B31),"",COUNTIFS(Pilots!$E$8:$E$107,$B31,Pilots!$D$8:$D$107,Teams!E$1)) ->  | F31: =+IF(ISBLANK($B31),"",COUNTIFS(Pilots!$E$8:$E$107,$B31,Pilots!$Z$8:$Z$107,Teams!F$1)) ->  | G31: =IF(ISBLANK($B31),"",MAX(Competition!$D$28-C31,0)) ->  | I31: =IF(ISBLANK($B31),"",IF(G31>0,G31&" fő még hiányzik!",IF(C31>Competition!$D$23,"túl sokan vannak a csapatban!",IF(AND(Competition!$D$25>0,C31-E31>Competition!$D$24),"nincs (elég) nő a csapatban?",IF(AND(Competition!$D$26>0,C31-(E31+F31)>Competition!$D$24),"nincs (elég) női / ifjúsági tag a csapatban?",""))))) -> 
C32: =+IF(ISBLANK($B32),"",COUNTIF(Pilots!$E$8:$E$107,$B32)) ->  | D32: =+IF(ISBLANK($B32),"",COUNTIFS(Pilots!$E$8:$E$107,$B32,Pilots!$D$8:$D$107,Teams!D$1)) ->  | E32: =+IF(ISBLANK($B32),"",COUNTIFS(Pilots!$E$8:$E$107,$B32,Pilots!$D$8:$D$107,Teams!E$1)) ->  | F32: =+IF(ISBLANK($B32),"",COUNTIFS(Pilots!$E$8:$E$107,$B32,Pilots!$Z$8:$Z$107,Teams!F$1)) ->  | G32: =IF(ISBLANK($B32),"",MAX(Competition!$D$28-C32,0)) ->  | I32: =IF(ISBLANK($B32),"",IF(G32>0,G32&" fő még hiányzik!",IF(C32>Competition!$D$23,"túl sokan vannak a csapatban!",IF(AND(Competition!$D$25>0,C32-E32>Competition!$D$24),"nincs (elég) nő a csapatban?",IF(AND(Competition!$D$26>0,C32-(E32+F32)>Competition!$D$24),"nincs (elég) női / ifjúsági tag a csapatban?",""))))) -> 
C33: =+IF(ISBLANK($B33),"",COUNTIF(Pilots!$E$8:$E$107,$B33)) ->  | D33: =+IF(ISBLANK($B33),"",COUNTIFS(Pilots!$E$8:$E$107,$B33,Pilots!$D$8:$D$107,Teams!D$1)) ->  | E33: =+IF(ISBLANK($B33),"",COUNTIFS(Pilots!$E$8:$E$107,$B33,Pilots!$D$8:$D$107,Teams!E$1)) ->  | F33: =+IF(ISBLANK($B33),"",COUNTIFS(Pilots!$E$8:$E$107,$B33,Pilots!$Z$8:$Z$107,Teams!F$1)) ->  | G33: =IF(ISBLANK($B33),"",MAX(Competition!$D$28-C33,0)) ->  | I33: =IF(ISBLANK($B33),"",IF(G33>0,G33&" fő még hiányzik!",IF(C33>Competition!$D$23,"túl sokan vannak a csapatban!",IF(AND(Competition!$D$25>0,C33-E33>Competition!$D$24),"nincs (elég) nő a csapatban?",IF(AND(Competition!$D$26>0,C33-(E33+F33)>Competition!$D$24),"nincs (elég) női / ifjúsági tag a csapatban?",""))))) -> 
C34: =+IF(ISBLANK($B34),"",COUNTIF(Pilots!$E$8:$E$107,$B34)) ->  | D34: =+IF(ISBLANK($B34),"",COUNTIFS(Pilots!$E$8:$E$107,$B34,Pilots!$D$8:$D$107,Teams!D$1)) ->  | E34: =+IF(ISBLANK($B34),"",COUNTIFS(Pilots!$E$8:$E$107,$B34,Pilots!$D$8:$D$107,Teams!E$1)) ->  | F34: =+IF(ISBLANK($B34),"",COUNTIFS(Pilots!$E$8:$E$107,$B34,Pilots!$Z$8:$Z$107,Teams!F$1)) ->  | G34: =IF(ISBLANK($B34),"",MAX(Competition!$D$28-C34,0)) ->  | I34: =IF(ISBLANK($B34),"",IF(G34>0,G34&" fő még hiányzik!",IF(C34>Competition!$D$23,"túl sokan vannak a csapatban!",IF(AND(Competition!$D$25>0,C34-E34>Competition!$D$24),"nincs (elég) nő a csapatban?",IF(AND(Competition!$D$26>0,C34-(E34+F34)>Competition!$D$24),"nincs (elég) női / ifjúsági tag a csapatban?",""))))) -> 
C35: =+IF(ISBLANK($B35),"",COUNTIF(Pilots!$E$8:$E$107,$B35)) ->  | D35: =+IF(ISBLANK($B35),"",COUNTIFS(Pilots!$E$8:$E$107,$B35,Pilots!$D$8:$D$107,Teams!D$1)) ->  | E35: =+IF(ISBLANK($B35),"",COUNTIFS(Pilots!$E$8:$E$107,$B35,Pilots!$D$8:$D$107,Teams!E$1)) ->  | F35: =+IF(ISBLANK($B35),"",COUNTIFS(Pilots!$E$8:$E$107,$B35,Pilots!$Z$8:$Z$107,Teams!F$1)) ->  | G35: =IF(ISBLANK($B35),"",MAX(Competition!$D$28-C35,0)) ->  | I35: =IF(ISBLANK($B35),"",IF(G35>0,G35&" fő még hiányzik!",IF(C35>Competition!$D$23,"túl sokan vannak a csapatban!",IF(AND(Competition!$D$25>0,C35-E35>Competition!$D$24),"nincs (elég) nő a csapatban?",IF(AND(Competition!$D$26>0,C35-(E35+F35)>Competition!$D$24),"nincs (elég) női / ifjúsági tag a csapatban?",""))))) -> 
C36: =+IF(ISBLANK($B36),"",COUNTIF(Pilots!$E$8:$E$107,$B36)) ->  | D36: =+IF(ISBLANK($B36),"",COUNTIFS(Pilots!$E$8:$E$107,$B36,Pilots!$D$8:$D$107,Teams!D$1)) ->  | E36: =+IF(ISBLANK($B36),"",COUNTIFS(Pilots!$E$8:$E$107,$B36,Pilots!$D$8:$D$107,Teams!E$1)) ->  | F36: =+IF(ISBLANK($B36),"",COUNTIFS(Pilots!$E$8:$E$107,$B36,Pilots!$Z$8:$Z$107,Teams!F$1)) ->  | G36: =IF(ISBLANK($B36),"",MAX(Competition!$D$28-C36,0)) ->  | I36: =IF(ISBLANK($B36),"",IF(G36>0,G36&" fő még hiányzik!",IF(C36>Competition!$D$23,"túl sokan vannak a csapatban!",IF(AND(Competition!$D$25>0,C36-E36>Competition!$D$24),"nincs (elég) nő a csapatban?",IF(AND(Competition!$D$26>0,C36-(E36+F36)>Competition!$D$24),"nincs (elég) női / ifjúsági tag a csapatban?",""))))) -> 
C37: =+IF(ISBLANK($B37),"",COUNTIF(Pilots!$E$8:$E$107,$B37)) ->  | D37: =+IF(ISBLANK($B37),"",COUNTIFS(Pilots!$E$8:$E$107,$B37,Pilots!$D$8:$D$107,Teams!D$1)) ->  | E37: =+IF(ISBLANK($B37),"",COUNTIFS(Pilots!$E$8:$E$107,$B37,Pilots!$D$8:$D$107,Teams!E$1)) ->  | F37: =+IF(ISBLANK($B37),"",COUNTIFS(Pilots!$E$8:$E$107,$B37,Pilots!$Z$8:$Z$107,Teams!F$1)) ->  | G37: =IF(ISBLANK($B37),"",MAX(Competition!$D$28-C37,0)) ->  | I37: =IF(ISBLANK($B37),"",IF(G37>0,G37&" fő még hiányzik!",IF(C37>Competition!$D$23,"túl sokan vannak a csapatban!",IF(AND(Competition!$D$25>0,C37-E37>Competition!$D$24),"nincs (elég) nő a csapatban?",IF(AND(Competition!$D$26>0,C37-(E37+F37)>Competition!$D$24),"nincs (elég) női / ifjúsági tag a csapatban?",""))))) -> 
C38: =+IF(ISBLANK($B38),"",COUNTIF(Pilots!$E$8:$E$107,$B38)) ->  | D38: =+IF(ISBLANK($B38),"",COUNTIFS(Pilots!$E$8:$E$107,$B38,Pilots!$D$8:$D$107,Teams!D$1)) ->  | E38: =+IF(ISBLANK($B38),"",COUNTIFS(Pilots!$E$8:$E$107,$B38,Pilots!$D$8:$D$107,Teams!E$1)) ->  | F38: =+IF(ISBLANK($B38),"",COUNTIFS(Pilots!$E$8:$E$107,$B38,Pilots!$Z$8:$Z$107,Teams!F$1)) ->  | G38: =IF(ISBLANK($B38),"",MAX(Competition!$D$28-C38,0)) ->  | I38: =IF(ISBLANK($B38),"",IF(G38>0,G38&" fő még hiányzik!",IF(C38>Competition!$D$23,"túl sokan vannak a csapatban!",IF(AND(Competition!$D$25>0,C38-E38>Competition!$D$24),"nincs (elég) nő a csapatban?",IF(AND(Competition!$D$26>0,C38-(E38+F38)>Competition!$D$24),"nincs (elég) női / ifjúsági tag a csapatban?",""))))) -> 

Sheet Pilots
B1: # | C1: Name | D1: Gender | E1: Team | F1: . | G1: =+G7 -> Overall | H1: =+H7 -> tandem | I1: =+I7 -> HG | J1: . | K1: Country | L1: 2nd nat | M1: . | N1: Club | O1: NAC | P1: Licence | Q1: FAI ID | R1: CIVL_ID | S1: Birthday | T1: Junior | U1: Glider | V1: Sponsor | W1: email | X1: mobile | Y1: vega | Z1: Female/Junior | AA1: . | AB1: . | AC1: . | AD1: . | AE1: . | AF1: . | AG1: . | AH1: . | AI1: Overrall | AJ1: Female | AK1: Tandem | AL1: Team | AM1: No medal
D2: Female | E2: Team | K2: NAT | P2: Valid FAI licence | Q2: FAI ID | R2: CIVL ID | S2: Birthday | U2: Glider | V2: Sponsor | Z2: Female/Junior
B4: =+"Nevezett pilóták listája / Registered pilots - "&Competition!$C$4 -> Nevezett pilóták listája / Registered pilots - PG-HG Triathlon | G4: Jelöld "X"-szel / Sign with mark "X" | K4: Nemzetiség | N4: Statisztikai adatok | AB4: Név | AC4: Szülinap? | AD4: Életkor | AE4: Átlagéletkor | AF4: Legfiatalabb | AG4: Legidősebb | AI4: Overrall | AJ4: Female | AK4: Tandem | AL4: Team | AM4: No medal
B6: # | C6: Name | D6: Gender | E6: Team | G6: Verseny típusa / Competition type | H6: Verseny típusa / Competition type | I6: Verseny típusa / Competition type | K6: Country | L6: 2nd nat. | N6: Club | O6: NAC licence | P6: Valid FAI licence | Q6: FAI ID | R6: CIVL ID | S6: Birthday | T6: Junior | U6: Glider | V6: Sponsor | W6: Email | X6: Mobile phone | Y6: Vegetarian | Z6: Female/Junior | AF6: =+VLOOKUP(MAX($S$8:$S$107),$S:$AB,COLUMN($AB$4)-COLUMN($S$6)+1,0) -> Ivan Pavlov | AG6: =+VLOOKUP(MIN($S$8:$S$107),$S:$AB,COLUMN($AB$4)-COLUMN($S$6)+1,0) -> Jurica Katalinić | AI6: Medal won? | AJ6: Medal won? | AK6: Medal won? | AL6: Medal won? | AM6: No medal
B7: Ssz. | C7: Név | D7: Nem | E7: Csapat | G7: Overall | H7: tandem | I7: HG | K7: Ország | L7: Másik nemz. | N7: Klub | O7: Nemzeti licenc | P7: Érvényes FAI licence | Q7: FAI ID | R7: CIVL ID | S7: Születési idő | T7: Ifjúsági | U7: Ernyő | V7: Szponzor | W7: Email | X7: Mobilszám | Y7: Vega | Z7: Női / ifjúsági | AE7: =+AVERAGE($AD$8:$AD$107) -> 39.25 | AF7: =+MIN($AD$8:$AD$107) -> 19 | AG7: =+MAX($AD$8:$AD$107) -> 61 | AI7: Érmet nyert? | AJ7: Érmet nyert? | AK7: Érmet nyert? | AL7: Érmet nyert? | AM7: Nincs érem
B8: 9 | C8: Sándor Kaszás | D8: M | E8: Felhőút SE | G8: X | K8: HUN | N8: Szoboszlói Darazsak | P8: =+IF(OR(ISBLANK($C8),$C8=""),"",IF(OR(ISBLANK($Q8),$Q8="",$Q8=0),Paraméterek!$C$4,Paraméterek!$C$3)) -> yes | Q8: x | S8: 1973-10-12 | T8: =+IF(ISBLANK($C8),"",IF(IF(ISERROR(YEAR(TODAY())-YEAR(S8)),100,(YEAR(TODAY())-YEAR(S8)))<Competition!$D$30+1,Paraméterek!$C$3,Paraméterek!$C$4)) -> no | U8: BDG Adam | Z8: =+IF(OR(D8=Paraméterek!$D$4,T8=Paraméterek!$C$3),Paraméterek!$C$3,Paraméterek!$C$4) -> no | AB8: =+IF(C8="","",C8) -> Sándor Kaszás | AC8: =+IF(ISERROR(MONTH($S8)),"",IF(MONTH($S8)=MONTH(TODAY()),IF(DAY($S8)=DAY(TODAY()),"szülinapos!",IF(DAY($S8)-DAY(TODAY())=1,"holnap lesz",IF(DAY($S8)-DAY(TODAY())=-1,"tegnap volt","-"))),"-")) -> - | AD8: =IF(OR(ISERROR(YEAR($S8)),$S8=""),"",ROUNDDOWN((TODAY()-$S8)/365,0)) -> 41 | AI8: =IFERROR(IF(VLOOKUP($C8,Rankings!$C:$AA,MATCH("Helyezettek",Rankings!$C$1:$AA$1,0),0)="X","X",""),"") -> X | AJ8: =IFERROR(IF(VLOOKUP($C8,Rankings!$G:$AA,MATCH("Helyezettek",Rankings!$G$1:$AA$1,0),0)="X","X",""),"") ->  | AK8: =IFERROR(IF(VLOOKUP($C8,Rankings!$K:$AA,MATCH("Helyezettek",Rankings!$K$1:$AA$1,0),0)="X","X",""),"") ->  | AL8: =IFERROR(IF(VLOOKUP($C8,Team_results!$E:$AN,MATCH("Helyezettek",Team_results!$E$5:$AN$5,0),0)="X","X",""),"") ->  | AM8: =+IF(C8="","",IF(COUNTIF(AI8:AL8,"X")>0,"","X")) -> 
B9: 22 | C9: Sándor Kaszás tandem | D9: M | E9: tandem | H9: X | K9: HUN | P9: =+IF(OR(ISBLANK($C9),$C9=""),"",IF(OR(ISBLANK($Q9),$Q9="",$Q9=0),Paraméterek!$C$4,Paraméterek!$C$3)) -> no | T9: =+IF(ISBLANK($C9),"",IF(IF(ISERROR(YEAR(TODAY())-YEAR(S9)),100,(YEAR(TODAY())-YEAR(S9)))<Competition!$D$30+1,Paraméterek!$C$3,Paraméterek!$C$4)) -> no | Z9: =+IF(OR(D9=Paraméterek!$D$4,T9=Paraméterek!$C$3),Paraméterek!$C$3,Paraméterek!$C$4) -> no | AB9: Sándor Kaszás tandem | AC9: =+IF(ISERROR(MONTH($S9)),"",IF(MONTH($S9)=MONTH(TODAY()),IF(DAY($S9)=DAY(TODAY()),"szülinapos!",IF(DAY($S9)-DAY(TODAY())=1,"holnap lesz",IF(DAY($S9)-DAY(TODAY())=-1,"tegnap volt","-"))),"-")) -> - | AD9: =IF(OR(ISERROR(YEAR($S9)),$S9=""),"",ROUNDDOWN((TODAY()-$S9)/365,0)) ->  | AI9: =IFERROR(IF(VLOOKUP($C9,Rankings!$C:$AA,MATCH("Helyezettek",Rankings!$C$1:$AA$1,0),0)="X","X",""),"") ->  | AJ9: =IFERROR(IF(VLOOKUP($C9,Rankings!$G:$AA,MATCH("Helyezettek",Rankings!$G$1:$AA$1,0),0)="X","X",""),"") ->  | AK9: =IFERROR(IF(VLOOKUP($C9,Rankings!$K:$AA,MATCH("Helyezettek",Rankings!$K$1:$AA$1,0),0)="X","X",""),"") -> X | AL9: =IFERROR(IF(VLOOKUP($C9,Team_results!$E:$AN,MATCH("Helyezettek",Team_results!$E$5:$AN$5,0),0)="X","X",""),"") ->  | AM9: =+IF(C9="","",IF(COUNTIF(AI9:AL9,"X")>0,"","X")) -> 
B10: 21 | C10: Viola Vass | D10: F | E10: a Házisárkány | I10: X | K10: HUN | N10: MSE | P10: =+IF(OR(ISBLANK($C10),$C10=""),"",IF(OR(ISBLANK($Q10),$Q10="",$Q10=0),Paraméterek!$C$4,Paraméterek!$C$3)) -> no | S10: 1982-01-23 | T10: =+IF(ISBLANK($C10),"",IF(IF(ISERROR(YEAR(TODAY())-YEAR(S10)),100,(YEAR(TODAY())-YEAR(S10)))<Competition!$D$30+1,Paraméterek!$C$3,Paraméterek!$C$4)) -> no | Z10: =+IF(OR(D10=Paraméterek!$D$4,T10=Paraméterek!$C$3),Paraméterek!$C$3,Paraméterek!$C$4) -> yes | AB10: Viola Vass | AC10: - | AD10: 33 | AI10: =IFERROR(IF(VLOOKUP($C10,Rankings!$C:$AA,MATCH("Helyezettek",Rankings!$C$1:$AA$1,0),0)="X","X",""),"") ->  | AJ10: =IFERROR(IF(VLOOKUP($C10,Rankings!$G:$AA,MATCH("Helyezettek",Rankings!$G$1:$AA$1,0),0)="X","X",""),"") ->  | AK10: =IFERROR(IF(VLOOKUP($C10,Rankings!$K:$AA,MATCH("Helyezettek",Rankings!$K$1:$AA$1,0),0)="X","X",""),"") ->  | AL10: =IFERROR(IF(VLOOKUP($C10,Team_results!$E:$AN,MATCH("Helyezettek",Team_results!$E$5:$AN$5,0),0)="X","X",""),"") ->  | AM10: X
B11: 15 | C11: József Nagy | D11: M | E11: a Házisárkány | I11: X | K11: HUN | N11: MSE | P11: =+IF(OR(ISBLANK($C11),$C11=""),"",IF(OR(ISBLANK($Q11),$Q11="",$Q11=0),Paraméterek!$C$4,Paraméterek!$C$3)) -> no | S11: 1972-04-11 | T11: =+IF(ISBLANK($C11),"",IF(IF(ISERROR(YEAR(TODAY())-YEAR(S11)),100,(YEAR(TODAY())-YEAR(S11)))<Competition!$D$30+1,Paraméterek!$C$3,Paraméterek!$C$4)) -> no | Z11: =+IF(OR(D11=Paraméterek!$D$4,T11=Paraméterek!$C$3),Paraméterek!$C$3,Paraméterek!$C$4) -> no | AB11: József Nagy | AC11: - | AD11: 43 | AI11: =IFERROR(IF(VLOOKUP($C11,Rankings!$C:$AA,MATCH("Helyezettek",Rankings!$C$1:$AA$1,0),0)="X","X",""),"") ->  | AJ11: =IFERROR(IF(VLOOKUP($C11,Rankings!$G:$AA,MATCH("Helyezettek",Rankings!$G$1:$AA$1,0),0)="X","X",""),"") ->  | AK11: =IFERROR(IF(VLOOKUP($C11,Rankings!$K:$AA,MATCH("Helyezettek",Rankings!$K$1:$AA$1,0),0)="X","X",""),"") ->  | AL11: =IFERROR(IF(VLOOKUP($C11,Team_results!$E:$AN,MATCH("Helyezettek",Team_results!$E$5:$AN$5,0),0)="X","X",""),"") ->  | AM11: X
B12: 3 | C12: Jurica Katalinić | D12: M | E12: Ivan Sarić | K12: SRB | N12: Ivan Saric | P12: =+IF(OR(ISBLANK($C12),$C12=""),"",IF(OR(ISBLANK($Q12),$Q12="",$Q12=0),Paraméterek!$C$4,Paraméterek!$C$3)) -> no | S12: 1954-03-20 | T12: =+IF(ISBLANK($C12),"",IF(IF(ISERROR(YEAR(TODAY())-YEAR(S12)),100,(YEAR(TODAY())-YEAR(S12)))<Competition!$D$30+1,Paraméterek!$C$3,Paraméterek!$C$4)) -> no | Z12: =+IF(OR(D12=Paraméterek!$D$4,T12=Paraméterek!$C$3),Paraméterek!$C$3,Paraméterek!$C$4) -> no | AB12: Jurica Katalinić | AC12: - | AD12: 61 | AI12: =IFERROR(IF(VLOOKUP($C12,Rankings!$C:$AA,MATCH("Helyezettek",Rankings!$C$1:$AA$1,0),0)="X","X",""),"") ->  | AJ12: =IFERROR(IF(VLOOKUP($C12,Rankings!$G:$AA,MATCH("Helyezettek",Rankings!$G$1:$AA$1,0),0)="X","X",""),"") ->  | AK12: =IFERROR(IF(VLOOKUP($C12,Rankings!$K:$AA,MATCH("Helyezettek",Rankings!$K$1:$AA$1,0),0)="X","X",""),"") ->  | AL12: =IFERROR(IF(VLOOKUP($C12,Team_results!$E:$AN,MATCH("Helyezettek",Team_results!$E$5:$AN$5,0),0)="X","X",""),"") ->  | AM12: X
B13: 20 | C13: Miklós Ónódi | D13: M | E13: Delta | G13: X | K13: SRB | L13: HUN | N13: Delta | P13: =+IF(OR(ISBLANK($C13),$C13=""),"",IF(OR(ISBLANK($Q13),$Q13="",$Q13=0),Paraméterek!$C$4,Paraméterek!$C$3)) -> yes | Q13: x | S13: 1960-06-12 | T13: =+IF(ISBLANK($C13),"",IF(IF(ISERROR(YEAR(TODAY())-YEAR(S13)),100,(YEAR(TODAY())-YEAR(S13)))<Competition!$D$30+1,Paraméterek!$C$3,Paraméterek!$C$4)) -> no | U13: Gradient Taurni | Z13: =+IF(OR(D13=Paraméterek!$D$4,T13=Paraméterek!$C$3),Paraméterek!$C$3,Paraméterek!$C$4) -> no | AB13: Miklós Ónódi | AC13: - | AD13: 54 | AI13: =IFERROR(IF(VLOOKUP($C13,Rankings!$C:$AA,MATCH("Helyezettek",Rankings!$C$1:$AA$1,0),0)="X","X",""),"") ->  | AJ13: =IFERROR(IF(VLOOKUP($C13,Rankings!$G:$AA,MATCH("Helyezettek",Rankings!$G$1:$AA$1,0),0)="X","X",""),"") ->  | AK13: =IFERROR(IF(VLOOKUP($C13,Rankings!$K:$AA,MATCH("Helyezettek",Rankings!$K$1:$AA$1,0),0)="X","X",""),"") ->  | AL13: =IFERROR(IF(VLOOKUP($C13,Team_results!$E:$AN,MATCH("Helyezettek",Team_results!$E$5:$AN$5,0),0)="X","X",""),"") ->  | AM13: X
B14: 19 | C14: Srđan Kesić | D14: M | E14: Delta | G14: X | K14: SRB | N14: Delta | P14: =+IF(OR(ISBLANK($C14),$C14=""),"",IF(OR(ISBLANK($Q14),$Q14="",$Q14=0),Paraméterek!$C$4,Paraméterek!$C$3)) -> yes | Q14: x | S14: 1979-03-11 | T14: =+IF(ISBLANK($C14),"",IF(IF(ISERROR(YEAR(TODAY())-YEAR(S14)),100,(YEAR(TODAY())-YEAR(S14)))<Competition!$D$30+1,Paraméterek!$C$3,Paraméterek!$C$4)) -> no | U14: Skywalk Chili 3 | Z14: =+IF(OR(D14=Paraméterek!$D$4,T14=Paraméterek!$C$3),Paraméterek!$C$3,Paraméterek!$C$4) -> no | AB14: Srđan Kesić | AC14: - | AD14: 36 | AI14: =IFERROR(IF(VLOOKUP($C14,Rankings!$C:$AA,MATCH("Helyezettek",Rankings!$C$1:$AA$1,0),0)="X","X",""),"") ->  | AJ14: =IFERROR(IF(VLOOKUP($C14,Rankings!$G:$AA,MATCH("Helyezettek",Rankings!$G$1:$AA$1,0),0)="X","X",""),"") ->  | AK14: =IFERROR(IF(VLOOKUP($C14,Rankings!$K:$AA,MATCH("Helyezettek",Rankings!$K$1:$AA$1,0),0)="X","X",""),"") ->  | AL14: =IFERROR(IF(VLOOKUP($C14,Team_results!$E:$AN,MATCH("Helyezettek",Team_results!$E$5:$AN$5,0),0)="X","X",""),"") ->  | AM14: X
B15: 17 | C15: Josip File | D15: M | E15: Ivan Sarić | K15: SRB | N15: Ivan Saric | P15: =+IF(OR(ISBLANK($C15),$C15=""),"",IF(OR(ISBLANK($Q15),$Q15="",$Q15=0),Paraméterek!$C$4,Paraméterek!$C$3)) -> no | S15: 1968-08-07 | T15: =+IF(ISBLANK($C15),"",IF(IF(ISERROR(YEAR(TODAY())-YEAR(S15)),100,(YEAR(TODAY())-YEAR(S15)))<Competition!$D$30+1,Paraméterek!$C$3,Paraméterek!$C$4)) -> no | U15: Compact II | Z15: =+IF(OR(D15=Paraméterek!$D$4,T15=Paraméterek!$C$3),Paraméterek!$C$3,Paraméterek!$C$4) -> no | AB15: Josip File | AC15: - | AD15: 46 | AI15: =IFERROR(IF(VLOOKUP($C15,Rankings!$C:$AA,MATCH("Helyezettek",Rankings!$C$1:$AA$1,0),0)="X","X",""),"") ->  | AJ15: =IFERROR(IF(VLOOKUP($C15,Rankings!$G:$AA,MATCH("Helyezettek",Rankings!$G$1:$AA$1,0),0)="X","X",""),"") ->  | AK15: =IFERROR(IF(VLOOKUP($C15,Rankings!$K:$AA,MATCH("Helyezettek",Rankings!$K$1:$AA$1,0),0)="X","X",""),"") ->  | AL15: =IFERROR(IF(VLOOKUP($C15,Team_results!$E:$AN,MATCH("Helyezettek",Team_results!$E$5:$AN$5,0),0)="X","X",""),"") ->  | AM15: X
B16: 7 | C16: Dejan Valek | D16: M | E16: Delta | G16: X | K16: SRB | N16: Kosava | P16: =+IF(OR(ISBLANK($C16),$C16=""),"",IF(OR(ISBLANK($Q16),$Q16="",$Q16=0),Paraméterek!$C$4,Paraméterek!$C$3)) -> yes | Q16: x | S16: 1983-10-12 | T16: =+IF(ISBLANK($C16),"",IF(IF(ISERROR(YEAR(TODAY())-YEAR(S16)),100,(YEAR(TODAY())-YEAR(S16)))<Competition!$D$30+1,Paraméterek!$C$3,Paraméterek!$C$4)) -> no | U16: Skywalk Mescal 4 | Z16: =+IF(OR(D16=Paraméterek!$D$4,T16=Paraméterek!$C$3),Paraméterek!$C$3,Paraméterek!$C$4) -> no | AB16: Dejan Valek | AC16: - | AD16: 31 | AI16: =IFERROR(IF(VLOOKUP($C16,Rankings!$C:$AA,MATCH("Helyezettek",Rankings!$C$1:$AA$1,0),0)="X","X",""),"") -> X | AJ16: =IFERROR(IF(VLOOKUP($C16,Rankings!$G:$AA,MATCH("Helyezettek",Rankings!$G$1:$AA$1,0),0)="X","X",""),"") ->  | AK16: =IFERROR(IF(VLOOKUP($C16,Rankings!$K:$AA,MATCH("Helyezettek",Rankings!$K$1:$AA$1,0),0)="X","X",""),"") ->  | AL16: =IFERROR(IF(VLOOKUP($C16,Team_results!$E:$AN,MATCH("Helyezettek",Team_results!$E$5:$AN$5,0),0)="X","X",""),"") -> 
B17: 1 | C17: Ivan Pavlov | D17: M | E17: Delta | G17: X | K17: SRB | N17: Delta | P17: =+IF(OR(ISBLANK($C17),$C17=""),"",IF(OR(ISBLANK($Q17),$Q17="",$Q17=0),Paraméterek!$C$4,Paraméterek!$C$3)) -> yes | Q17: x | S17: 1995-08-24 | T17: =+IF(ISBLANK($C17),"",IF(IF(ISERROR(YEAR(TODAY())-YEAR(S17)),100,(YEAR(TODAY())-YEAR(S17)))<Competition!$D$30+1,Paraméterek!$C$3,Paraméterek!$C$4)) -> yes | U17: Gradient Bright | Z17: =+IF(OR(D17=Paraméterek!$D$4,T17=Paraméterek!$C$3),Paraméterek!$C$3,Paraméterek!$C$4) -> yes | AB17: Ivan Pavlov | AC17: - | AD17: 19 | AI17: =IFERROR(IF(VLOOKUP($C17,Rankings!$C:$AA,MATCH("Helyezettek",Rankings!$C$1:$AA$1,0),0)="X","X",""),"") -> X | AJ17: =IFERROR(IF(VLOOKUP($C17,Rankings!$G:$AA,MATCH("Helyezettek",Rankings!$G$1:$AA$1,0),0)="X","X",""),"") ->  | AK17: =IFERROR(IF(VLOOKUP($C17,Rankings!$K:$AA,MATCH("Helyezettek",Rankings!$K$1:$AA$1,0),0)="X","X",""),"") ->  | AL17: =IFERROR(IF(VLOOKUP($C17,Team_results!$E:$AN,MATCH("Helyezettek",Team_results!$E$5:$AN$5,0),0)="X","X",""),"") -> 
B18: 18 | C18: Ivan Pavlov tandem | D18: M | E18: tandem | H18: X | K18: SRB | P18: =+IF(OR(ISBLANK($C18),$C18=""),"",IF(OR(ISBLANK($Q18),$Q18="",$Q18=0),Paraméterek!$C$4,Paraméterek!$C$3)) -> yes | Q18: x | T18: =+IF(ISBLANK($C18),"",IF(IF(ISERROR(YEAR(TODAY())-YEAR(S18)),100,(YEAR(TODAY())-YEAR(S18)))<Competition!$D$30+1,Paraméterek!$C$3,Paraméterek!$C$4)) -> no | Z18: =+IF(OR(D18=Paraméterek!$D$4,T18=Paraméterek!$C$3),Paraméterek!$C$3,Paraméterek!$C$4) -> no | AB18: Ivan Pavlov tandem | AC18: - | AI18: =IFERROR(IF(VLOOKUP($C18,Rankings!$C:$AA,MATCH("Helyezettek",Rankings!$C$1:$AA$1,0),0)="X","X",""),"") ->  | AJ18: =IFERROR(IF(VLOOKUP($C18,Rankings!$G:$AA,MATCH("Helyezettek",Rankings!$G$1:$AA$1,0),0)="X","X",""),"") ->  | AK18: =IFERROR(IF(VLOOKUP($C18,Rankings!$K:$AA,MATCH("Helyezettek",Rankings!$K$1:$AA$1,0),0)="X","X",""),"") -> X | AL18: =IFERROR(IF(VLOOKUP($C18,Team_results!$E:$AN,MATCH("Helyezettek",Team_results!$E$5:$AN$5,0),0)="X","X",""),"") -> 
B19: 4 | C19: István Gyarmati-Szabó | D19: M | E19: Delta | G19: X | K19: HUN | N19: FreeAir | P19: =+IF(OR(ISBLANK($C19),$C19=""),"",IF(OR(ISBLANK($Q19),$Q19="",$Q19=0),Paraméterek!$C$4,Paraméterek!$C$3)) -> yes | Q19: x | S19: 1981-09-22 | T19: =+IF(ISBLANK($C19),"",IF(IF(ISERROR(YEAR(TODAY())-YEAR(S19)),100,(YEAR(TODAY())-YEAR(S19)))<Competition!$D$30+1,Paraméterek!$C$3,Paraméterek!$C$4)) -> no | U19: Gin Sprint | Z19: =+IF(OR(D19=Paraméterek!$D$4,T19=Paraméterek!$C$3),Paraméterek!$C$3,Paraméterek!$C$4) -> no | AB19: István Gyarmati-Szabó | AC19: - | AD19: 33 | AI19: =IFERROR(IF(VLOOKUP($C19,Rankings!$C:$AA,MATCH("Helyezettek",Rankings!$C$1:$AA$1,0),0)="X","X",""),"") ->  | AJ19: =IFERROR(IF(VLOOKUP($C19,Rankings!$G:$AA,MATCH("Helyezettek",Rankings!$G$1:$AA$1,0),0)="X","X",""),"") ->  | AK19: =IFERROR(IF(VLOOKUP($C19,Rankings!$K:$AA,MATCH("Helyezettek",Rankings!$K$1:$AA$1,0),0)="X","X",""),"") ->  | AL19: =IFERROR(IF(VLOOKUP($C19,Team_results!$E:$AN,MATCH("Helyezettek",Team_results!$E$5:$AN$5,0),0)="X","X",""),"") ->  | AM19: X
B20: 11 | C20: Richárd Nagy | D20: M | E20: a Házisárkány | I20: X | K20: HUN | N20: MSE / PiSE | P20: =+IF(OR(ISBLANK($C20),$C20=""),"",IF(OR(ISBLANK($Q20),$Q20="",$Q20=0),Paraméterek!$C$4,Paraméterek!$C$3)) -> no | S20: 1979-12-18 | T20: =+IF(ISBLANK($C20),"",IF(IF(ISERROR(YEAR(TODAY())-YEAR(S20)),100,(YEAR(TODAY())-YEAR(S20)))<Competition!$D$30+1,Paraméterek!$C$3,Paraméterek!$C$4)) -> no | U20: Star | Z20: =+IF(OR(D20=Paraméterek!$D$4,T20=Paraméterek!$C$3),Paraméterek!$C$3,Paraméterek!$C$4) -> no | AB20: Richárd Nagy | AC20: - | AD20: 35 | AI20: =IFERROR(IF(VLOOKUP($C20,Rankings!$C:$AA,MATCH("Helyezettek",Rankings!$C$1:$AA$1,0),0)="X","X",""),"") ->  | AJ20: =IFERROR(IF(VLOOKUP($C20,Rankings!$G:$AA,MATCH("Helyezettek",Rankings!$G$1:$AA$1,0),0)="X","X",""),"") ->  | AK20: =IFERROR(IF(VLOOKUP($C20,Rankings!$K:$AA,MATCH("Helyezettek",Rankings!$K$1:$AA$1,0),0)="X","X",""),"") ->  | AL20: =IFERROR(IF(VLOOKUP($C20,Team_results!$E:$AN,MATCH("Helyezettek",Team_results!$E$5:$AN$5,0),0)="X","X",""),"") ->  | AM20: X
B21: 10 | C21: Edina Szabóné Koleszár | D21: F | E21: Felhőút SE | G21: X | K21: HUN | N21: Felhőút SE | P21: =+IF(OR(ISBLANK($C21),$C21=""),"",IF(OR(ISBLANK($Q21),$Q21="",$Q21=0),Paraméterek!$C$4,Paraméterek!$C$3)) -> yes | Q21: x | S21: 1974-12-03 | T21: =+IF(ISBLANK($C21),"",IF(IF(ISERROR(YEAR(TODAY())-YEAR(S21)),100,(YEAR(TODAY())-YEAR(S21)))<Competition!$D$30+1,Paraméterek!$C$3,Paraméterek!$C$4)) -> no | U21: BDG Adam | Z21: =+IF(OR(D21=Paraméterek!$D$4,T21=Paraméterek!$C$3),Paraméterek!$C$3,Paraméterek!$C$4) -> yes | AB21: Edina Szabóné Koleszár | AC21: - | AD21: 40 | AI21: =IFERROR(IF(VLOOKUP($C21,Rankings!$C:$AA,MATCH("Helyezettek",Rankings!$C$1:$AA$1,0),0)="X","X",""),"") ->  | AJ21: =IFERROR(IF(VLOOKUP($C21,Rankings!$G:$AA,MATCH("Helyezettek",Rankings!$G$1:$AA$1,0),0)="X","X",""),"") -> X | AK21: =IFERROR(IF(VLOOKUP($C21,Rankings!$K:$AA,MATCH("Helyezettek",Rankings!$K$1:$AA$1,0),0)="X","X",""),"") ->  | AL21: =IFERROR(IF(VLOOKUP($C21,Team_results!$E:$AN,MATCH("Helyezettek",Team_results!$E$5:$AN$5,0),0)="X","X",""),"") -> 
B22: 5 | C22: Dániel Hartmann | D22: M | E22: Felhőút SE | G22: X | K22: HUN | N22: Felhőút SE | P22: =+IF(OR(ISBLANK($C22),$C22=""),"",IF(OR(ISBLANK($Q22),$Q22="",$Q22=0),Paraméterek!$C$4,Paraméterek!$C$3)) -> yes | Q22: x | S22: 1992-07-03 | T22: =+IF(ISBLANK($C22),"",IF(IF(ISERROR(YEAR(TODAY())-YEAR(S22)),100,(YEAR(TODAY())-YEAR(S22)))<Competition!$D$30+1,Paraméterek!$C$3,Paraméterek!$C$4)) -> yes | U22: Skywalk Chili 2 | Z22: =+IF(OR(D22=Paraméterek!$D$4,T22=Paraméterek!$C$3),Paraméterek!$C$3,Paraméterek!$C$4) -> yes | AB22: Dániel Hartmann | AC22: - | AD22: 22 | AI22: =IFERROR(IF(VLOOKUP($C22,Rankings!$C:$AA,MATCH("Helyezettek",Rankings!$C$1:$AA$1,0),0)="X","X",""),"") ->  | AJ22: =IFERROR(IF(VLOOKUP($C22,Rankings!$G:$AA,MATCH("Helyezettek",Rankings!$G$1:$AA$1,0),0)="X","X",""),"") ->  | AK22: =IFERROR(IF(VLOOKUP($C22,Rankings!$K:$AA,MATCH("Helyezettek",Rankings!$K$1:$AA$1,0),0)="X","X",""),"") ->  | AL22: =IFERROR(IF(VLOOKUP($C22,Team_results!$E:$AN,MATCH("Helyezettek",Team_results!$E$5:$AN$5,0),0)="X","X",""),"") ->  | AM22: X
B23: 13 | C23: Márkó Mihály | D23: M | E23: Felhőút SE | G23: X | K23: HUN | N23: Felhőút SE | P23: =+IF(OR(ISBLANK($C23),$C23=""),"",IF(OR(ISBLANK($Q23),$Q23="",$Q23=0),Paraméterek!$C$4,Paraméterek!$C$3)) -> yes | Q23: x | S23: 1977-07-16 | T23: =+IF(ISBLANK($C23),"",IF(IF(ISERROR(YEAR(TODAY())-YEAR(S23)),100,(YEAR(TODAY())-YEAR(S23)))<Competition!$D$30+1,Paraméterek!$C$3,Paraméterek!$C$4)) -> no | U23: BDG Adam | Z23: =+IF(OR(D23=Paraméterek!$D$4,T23=Paraméterek!$C$3),Paraméterek!$C$3,Paraméterek!$C$4) -> no | AB23: Márkó Mihály | AC23: - | AD23: 37 | AI23: =IFERROR(IF(VLOOKUP($C23,Rankings!$C:$AA,MATCH("Helyezettek",Rankings!$C$1:$AA$1,0),0)="X","X",""),"") ->  | AJ23: =IFERROR(IF(VLOOKUP($C23,Rankings!$G:$AA,MATCH("Helyezettek",Rankings!$G$1:$AA$1,0),0)="X","X",""),"") ->  | AK23: =IFERROR(IF(VLOOKUP($C23,Rankings!$K:$AA,MATCH("Helyezettek",Rankings!$K$1:$AA$1,0),0)="X","X",""),"") ->  | AL23: =IFERROR(IF(VLOOKUP($C23,Team_results!$E:$AN,MATCH("Helyezettek",Team_results!$E$5:$AN$5,0),0)="X","X",""),"") ->  | AM23: X
B24: 8 | C24: Amade Auner | D24: M | G24: X | K24: HUN | P24: =+IF(OR(ISBLANK($C24),$C24=""),"",IF(OR(ISBLANK($Q24),$Q24="",$Q24=0),Paraméterek!$C$4,Paraméterek!$C$3)) -> yes | Q24: x | T24: =+IF(ISBLANK($C24),"",IF(IF(ISERROR(YEAR(TODAY())-YEAR(S24)),100,(YEAR(TODAY())-YEAR(S24)))<Competition!$D$30+1,Paraméterek!$C$3,Paraméterek!$C$4)) -> no | Z24: =+IF(OR(D24=Paraméterek!$D$4,T24=Paraméterek!$C$3),Paraméterek!$C$3,Paraméterek!$C$4) -> no | AB24: Amade Auner | AC24: - | AI24: =IFERROR(IF(VLOOKUP($C24,Rankings!$C:$AA,MATCH("Helyezettek",Rankings!$C$1:$AA$1,0),0)="X","X",""),"") ->  | AJ24: =IFERROR(IF(VLOOKUP($C24,Rankings!$G:$AA,MATCH("Helyezettek",Rankings!$G$1:$AA$1,0),0)="X","X",""),"") ->  | AK24: =IFERROR(IF(VLOOKUP($C24,Rankings!$K:$AA,MATCH("Helyezettek",Rankings!$K$1:$AA$1,0),0)="X","X",""),"") ->  | AL24: =IFERROR(IF(VLOOKUP($C24,Team_results!$E:$AN,MATCH("Helyezettek",Team_results!$E$5:$AN$5,0),0)="X","X",""),"") ->  | AM24: X
B25: 23 | C25: Amade Auner tandem | D25: M | E25: tandem | H25: X | K25: HUN | P25: =+IF(OR(ISBLANK($C25),$C25=""),"",IF(OR(ISBLANK($Q25),$Q25="",$Q25=0),Paraméterek!$C$4,Paraméterek!$C$3)) -> yes | Q25: x | T25: =+IF(ISBLANK($C25),"",IF(IF(ISERROR(YEAR(TODAY())-YEAR(S25)),100,(YEAR(TODAY())-YEAR(S25)))<Competition!$D$30+1,Paraméterek!$C$3,Paraméterek!$C$4)) -> no | Z25: =+IF(OR(D25=Paraméterek!$D$4,T25=Paraméterek!$C$3),Paraméterek!$C$3,Paraméterek!$C$4) -> no | AB25: Amade Auner tandem | AC25: - | AI25: =IFERROR(IF(VLOOKUP($C25,Rankings!$C:$AA,MATCH("Helyezettek",Rankings!$C$1:$AA$1,0),0)="X","X",""),"") ->  | AJ25: =IFERROR(IF(VLOOKUP($C25,Rankings!$G:$AA,MATCH("Helyezettek",Rankings!$G$1:$AA$1,0),0)="X","X",""),"") ->  | AK25: =IFERROR(IF(VLOOKUP($C25,Rankings!$K:$AA,MATCH("Helyezettek",Rankings!$K$1:$AA$1,0),0)="X","X",""),"") -> X | AL25: =IFERROR(IF(VLOOKUP($C25,Team_results!$E:$AN,MATCH("Helyezettek",Team_results!$E$5:$AN$5,0),0)="X","X",""),"") -> 
B26: 14 | C26: Zoltán Körmöczi | D26: M | E26: Felhőút SE | K26: HUN | P26: =+IF(OR(ISBLANK($C26),$C26=""),"",IF(OR(ISBLANK($Q26),$Q26="",$Q26=0),Paraméterek!$C$4,Paraméterek!$C$3)) -> yes | Q26: x | T26: =+IF(ISBLANK($C26),"",IF(IF(ISERROR(YEAR(TODAY())-YEAR(S26)),100,(YEAR(TODAY())-YEAR(S26)))<Competition!$D$30+1,Paraméterek!$C$3,Paraméterek!$C$4)) -> no | Z26: =+IF(OR(D26=Paraméterek!$D$4,T26=Paraméterek!$C$3),Paraméterek!$C$3,Paraméterek!$C$4) -> no | AB26: Zoltán Körmöczi | AC26: - | AI26: =IFERROR(IF(VLOOKUP($C26,Rankings!$C:$AA,MATCH("Helyezettek",Rankings!$C$1:$AA$1,0),0)="X","X",""),"") ->  | AJ26: =IFERROR(IF(VLOOKUP($C26,Rankings!$G:$AA,MATCH("Helyezettek",Rankings!$G$1:$AA$1,0),0)="X","X",""),"") ->  | AK26: =IFERROR(IF(VLOOKUP($C26,Rankings!$K:$AA,MATCH("Helyezettek",Rankings!$K$1:$AA$1,0),0)="X","X",""),"") ->  | AL26: =IFERROR(IF(VLOOKUP($C26,Team_results!$E:$AN,MATCH("Helyezettek",Team_results!$E$5:$AN$5,0),0)="X","X",""),"") ->  | AM26: X
B27: 16 | C27: Róbert Exner | D27: M | E27: a Házisárkány | I27: X | K27: HUN | P27: =+IF(OR(ISBLANK($C27),$C27=""),"",IF(OR(ISBLANK($Q27),$Q27="",$Q27=0),Paraméterek!$C$4,Paraméterek!$C$3)) -> no | T27: =+IF(ISBLANK($C27),"",IF(IF(ISERROR(YEAR(TODAY())-YEAR(S27)),100,(YEAR(TODAY())-YEAR(S27)))<Competition!$D$30+1,Paraméterek!$C$3,Paraméterek!$C$4)) -> no | Z27: =+IF(OR(D27=Paraméterek!$D$4,T27=Paraméterek!$C$3),Paraméterek!$C$3,Paraméterek!$C$4) -> no | AB27: Róbert Exner | AC27: - | AI27: =IFERROR(IF(VLOOKUP($C27,Rankings!$C:$AA,MATCH("Helyezettek",Rankings!$C$1:$AA$1,0),0)="X","X",""),"") ->  | AJ27: =IFERROR(IF(VLOOKUP($C27,Rankings!$G:$AA,MATCH("Helyezettek",Rankings!$G$1:$AA$1,0),0)="X","X",""),"") ->  | AK27: =IFERROR(IF(VLOOKUP($C27,Rankings!$K:$AA,MATCH("Helyezettek",Rankings!$K$1:$AA$1,0),0)="X","X",""),"") ->  | AL27: =IFERROR(IF(VLOOKUP($C27,Team_results!$E:$AN,MATCH("Helyezettek",Team_results!$E$5:$AN$5,0),0)="X","X",""),"") ->  | AM27: X
B28: 2 | C28: Goran Milojković | D28: M | E28: Ivan Sarić | G28: X | K28: SRB | P28: =+IF(OR(ISBLANK($C28),$C28=""),"",IF(OR(ISBLANK($Q28),$Q28="",$Q28=0),Paraméterek!$C$4,Paraméterek!$C$3)) -> yes | Q28: x | S28: 1962-06-22 | T28: =+IF(ISBLANK($C28),"",IF(IF(ISERROR(YEAR(TODAY())-YEAR(S28)),100,(YEAR(TODAY())-YEAR(S28)))<Competition!$D$30+1,Paraméterek!$C$3,Paraméterek!$C$4)) -> no | U28: Skywalk Chili | Z28: =+IF(OR(D28=Paraméterek!$D$4,T28=Paraméterek!$C$3),Paraméterek!$C$3,Paraméterek!$C$4) -> no | AB28: Goran Milojković | AC28: - | AD28: 52 | AI28: =IFERROR(IF(VLOOKUP($C28,Rankings!$C:$AA,MATCH("Helyezettek",Rankings!$C$1:$AA$1,0),0)="X","X",""),"") ->  | AJ28: =IFERROR(IF(VLOOKUP($C28,Rankings!$G:$AA,MATCH("Helyezettek",Rankings!$G$1:$AA$1,0),0)="X","X",""),"") ->  | AK28: =IFERROR(IF(VLOOKUP($C28,Rankings!$K:$AA,MATCH("Helyezettek",Rankings!$K$1:$AA$1,0),0)="X","X",""),"") ->  | AL28: =IFERROR(IF(VLOOKUP($C28,Team_results!$E:$AN,MATCH("Helyezettek",Team_results!$E$5:$AN$5,0),0)="X","X",""),"") ->  | AM28: X
B29: 6 | C29: Miljan Zeković | D29: M | E29: Ivan Sarić | G29: X | K29: SRB | N29: Delta | P29: =+IF(OR(ISBLANK($C29),$C29=""),"",IF(OR(ISBLANK($Q29),$Q29="",$Q29=0),Paraméterek!$C$4,Paraméterek!$C$3)) -> yes | Q29: x | S29: 1969-12-29 | T29: =+IF(ISBLANK($C29),"",IF(IF(ISERROR(YEAR(TODAY())-YEAR(S29)),100,(YEAR(TODAY())-YEAR(S29)))<Competition!$D$30+1,Paraméterek!$C$3,Paraméterek!$C$4)) -> no | U29: Ozone Rush | Z29: =+IF(OR(D29=Paraméterek!$D$4,T29=Paraméterek!$C$3),Paraméterek!$C$3,Paraméterek!$C$4) -> no | AB29: Miljan Zeković | AC29: - | AD29: 45 | AI29: =IFERROR(IF(VLOOKUP($C29,Rankings!$C:$AA,MATCH("Helyezettek",Rankings!$C$1:$AA$1,0),0)="X","X",""),"") ->  | AJ29: =IFERROR(IF(VLOOKUP($C29,Rankings!$G:$AA,MATCH("Helyezettek",Rankings!$G$1:$AA$1,0),0)="X","X",""),"") ->  | AK29: =IFERROR(IF(VLOOKUP($C29,Rankings!$K:$AA,MATCH("Helyezettek",Rankings!$K$1:$AA$1,0),0)="X","X",""),"") ->  | AL29: =IFERROR(IF(VLOOKUP($C29,Team_results!$E:$AN,MATCH("Helyezettek",Team_results!$E$5:$AN$5,0),0)="X","X",""),"") ->  | AM29: X
B30: 12 | C30: Zeljko Šarčević | D30: M | E30: Ivan Sarić | K30: SRB | P30: =+IF(OR(ISBLANK($C30),$C30=""),"",IF(OR(ISBLANK($Q30),$Q30="",$Q30=0),Paraméterek!$C$4,Paraméterek!$C$3)) -> no | T30: =+IF(ISBLANK($C30),"",IF(IF(ISERROR(YEAR(TODAY())-YEAR(S30)),100,(YEAR(TODAY())-YEAR(S30)))<Competition!$D$30+1,Paraméterek!$C$3,Paraméterek!$C$4)) -> no | Z30: =+IF(OR(D30=Paraméterek!$D$4,T30=Paraméterek!$C$3),Paraméterek!$C$3,Paraméterek!$C$4) -> no | AB30: Zeljko Šarčević | AC30: - | AI30: =IFERROR(IF(VLOOKUP($C30,Rankings!$C:$AA,MATCH("Helyezettek",Rankings!$C$1:$AA$1,0),0)="X","X",""),"") ->  | AJ30: =IFERROR(IF(VLOOKUP($C30,Rankings!$G:$AA,MATCH("Helyezettek",Rankings!$G$1:$AA$1,0),0)="X","X",""),"") ->  | AK30: =IFERROR(IF(VLOOKUP($C30,Rankings!$K:$AA,MATCH("Helyezettek",Rankings!$K$1:$AA$1,0),0)="X","X",""),"") ->  | AL30: =IFERROR(IF(VLOOKUP($C30,Team_results!$E:$AN,MATCH("Helyezettek",Team_results!$E$5:$AN$5,0),0)="X","X",""),"") ->  | AM30: X
B31: 24 | C31: Ana Pavlov | D31: F | K31: SRB | P31: =+IF(OR(ISBLANK($C31),$C31=""),"",IF(OR(ISBLANK($Q31),$Q31="",$Q31=0),Paraméterek!$C$4,Paraméterek!$C$3)) -> no | T31: =+IF(ISBLANK($C31),"",IF(IF(ISERROR(YEAR(TODAY())-YEAR(S31)),100,(YEAR(TODAY())-YEAR(S31)))<Competition!$D$30+1,Paraméterek!$C$3,Paraméterek!$C$4)) -> no | Z31: =+IF(OR(D31=Paraméterek!$D$4,T31=Paraméterek!$C$3),Paraméterek!$C$3,Paraméterek!$C$4) -> yes | AB31: Ana Pavlov | AC31: - | AI31: =IFERROR(IF(VLOOKUP($C31,Rankings!$C:$AA,MATCH("Helyezettek",Rankings!$C$1:$AA$1,0),0)="X","X",""),"") ->  | AJ31: =IFERROR(IF(VLOOKUP($C31,Rankings!$G:$AA,MATCH("Helyezettek",Rankings!$G$1:$AA$1,0),0)="X","X",""),"") ->  | AK31: =IFERROR(IF(VLOOKUP($C31,Rankings!$K:$AA,MATCH("Helyezettek",Rankings!$K$1:$AA$1,0),0)="X","X",""),"") ->  | AL31: =IFERROR(IF(VLOOKUP($C31,Team_results!$E:$AN,MATCH("Helyezettek",Team_results!$E$5:$AN$5,0),0)="X","X",""),"") ->  | AM31: X
B32: 25 | P32: =+IF(OR(ISBLANK($C32),$C32=""),"",IF(OR(ISBLANK($Q32),$Q32="",$Q32=0),Paraméterek!$C$4,Paraméterek!$C$3)) ->  | T32: =+IF(ISBLANK($C32),"",IF(IF(ISERROR(YEAR(TODAY())-YEAR(S32)),100,(YEAR(TODAY())-YEAR(S32)))<Competition!$D$30+1,Paraméterek!$C$3,Paraméterek!$C$4)) ->  | Z32: =+IF(OR(D32=Paraméterek!$D$4,T32=Paraméterek!$C$3),Paraméterek!$C$3,Paraméterek!$C$4) -> no | AC32: - | AI32: =IFERROR(IF(VLOOKUP($C32,Rankings!$C:$AA,MATCH("Helyezettek",Rankings!$C$1:$AA$1,0),0)="X","X",""),"") ->  | AJ32: =IFERROR(IF(VLOOKUP($C32,Rankings!$G:$AA,MATCH("Helyezettek",Rankings!$G$1:$AA$1,0),0)="X","X",""),"") ->  | AK32: =IFERROR(IF(VLOOKUP($C32,Rankings!$K:$AA,MATCH("Helyezettek",Rankings!$K$1:$AA$1,0),0)="X","X",""),"") ->  | AL32: =IFERROR(IF(VLOOKUP($C32,Team_results!$E:$AN,MATCH("Helyezettek",Team_results!$E$5:$AN$5,0),0)="X","X",""),"") -> 
B33: 26 | P33: =+IF(OR(ISBLANK($C33),$C33=""),"",IF(OR(ISBLANK($Q33),$Q33="",$Q33=0),Paraméterek!$C$4,Paraméterek!$C$3)) ->  | T33: =+IF(ISBLANK($C33),"",IF(IF(ISERROR(YEAR(TODAY())-YEAR(S33)),100,(YEAR(TODAY())-YEAR(S33)))<Competition!$D$30+1,Paraméterek!$C$3,Paraméterek!$C$4)) ->  | Z33: =+IF(OR(D33=Paraméterek!$D$4,T33=Paraméterek!$C$3),Paraméterek!$C$3,Paraméterek!$C$4) -> no | AC33: - | AI33: =IFERROR(IF(VLOOKUP($C33,Rankings!$C:$AA,MATCH("Helyezettek",Rankings!$C$1:$AA$1,0),0)="X","X",""),"") ->  | AJ33: =IFERROR(IF(VLOOKUP($C33,Rankings!$G:$AA,MATCH("Helyezettek",Rankings!$G$1:$AA$1,0),0)="X","X",""),"") ->  | AK33: =IFERROR(IF(VLOOKUP($C33,Rankings!$K:$AA,MATCH("Helyezettek",Rankings!$K$1:$AA$1,0),0)="X","X",""),"") ->  | AL33: =IFERROR(IF(VLOOKUP($C33,Team_results!$E:$AN,MATCH("Helyezettek",Team_results!$E$5:$AN$5,0),0)="X","X",""),"") -> 
B34: 27 | P34: =+IF(OR(ISBLANK($C34),$C34=""),"",IF(OR(ISBLANK($Q34),$Q34="",$Q34=0),Paraméterek!$C$4,Paraméterek!$C$3)) ->  | T34: =+IF(ISBLANK($C34),"",IF(IF(ISERROR(YEAR(TODAY())-YEAR(S34)),100,(YEAR(TODAY())-YEAR(S34)))<Competition!$D$30+1,Paraméterek!$C$3,Paraméterek!$C$4)) ->  | Z34: =+IF(OR(D34=Paraméterek!$D$4,T34=Paraméterek!$C$3),Paraméterek!$C$3,Paraméterek!$C$4) -> no | AC34: - | AI34: =IFERROR(IF(VLOOKUP($C34,Rankings!$C:$AA,MATCH("Helyezettek",Rankings!$C$1:$AA$1,0),0)="X","X",""),"") ->  | AJ34: =IFERROR(IF(VLOOKUP($C34,Rankings!$G:$AA,MATCH("Helyezettek",Rankings!$G$1:$AA$1,0),0)="X","X",""),"") ->  | AK34: =IFERROR(IF(VLOOKUP($C34,Rankings!$K:$AA,MATCH("Helyezettek",Rankings!$K$1:$AA$1,0),0)="X","X",""),"") ->  | AL34: =IFERROR(IF(VLOOKUP($C34,Team_results!$E:$AN,MATCH("Helyezettek",Team_results!$E$5:$AN$5,0),0)="X","X",""),"") -> 
B35: 28 | P35: =+IF(OR(ISBLANK($C35),$C35=""),"",IF(OR(ISBLANK($Q35),$Q35="",$Q35=0),Paraméterek!$C$4,Paraméterek!$C$3)) ->  | T35: =+IF(ISBLANK($C35),"",IF(IF(ISERROR(YEAR(TODAY())-YEAR(S35)),100,(YEAR(TODAY())-YEAR(S35)))<Competition!$D$30+1,Paraméterek!$C$3,Paraméterek!$C$4)) ->  | Z35: =+IF(OR(D35=Paraméterek!$D$4,T35=Paraméterek!$C$3),Paraméterek!$C$3,Paraméterek!$C$4) -> no | AC35: - | AI35: =IFERROR(IF(VLOOKUP($C35,Rankings!$C:$AA,MATCH("Helyezettek",Rankings!$C$1:$AA$1,0),0)="X","X",""),"") ->  | AJ35: =IFERROR(IF(VLOOKUP($C35,Rankings!$G:$AA,MATCH("Helyezettek",Rankings!$G$1:$AA$1,0),0)="X","X",""),"") ->  | AK35: =IFERROR(IF(VLOOKUP($C35,Rankings!$K:$AA,MATCH("Helyezettek",Rankings!$K$1:$AA$1,0),0)="X","X",""),"") ->  | AL35: =IFERROR(IF(VLOOKUP($C35,Team_results!$E:$AN,MATCH("Helyezettek",Team_results!$E$5:$AN$5,0),0)="X","X",""),"") -> 
B36: 29 | P36: =+IF(OR(ISBLANK($C36),$C36=""),"",IF(OR(ISBLANK($Q36),$Q36="",$Q36=0),Paraméterek!$C$4,Paraméterek!$C$3)) ->  | T36: =+IF(ISBLANK($C36),"",IF(IF(ISERROR(YEAR(TODAY())-YEAR(S36)),100,(YEAR(TODAY())-YEAR(S36)))<Competition!$D$30+1,Paraméterek!$C$3,Paraméterek!$C$4)) ->  | Z36: =+IF(OR(D36=Paraméterek!$D$4,T36=Paraméterek!$C$3),Paraméterek!$C$3,Paraméterek!$C$4) -> no | AC36: - | AI36: =IFERROR(IF(VLOOKUP($C36,Rankings!$C:$AA,MATCH("Helyezettek",Rankings!$C$1:$AA$1,0),0)="X","X",""),"") ->  | AJ36: =IFERROR(IF(VLOOKUP($C36,Rankings!$G:$AA,MATCH("Helyezettek",Rankings!$G$1:$AA$1,0),0)="X","X",""),"") ->  | AK36: =IFERROR(IF(VLOOKUP($C36,Rankings!$K:$AA,MATCH("Helyezettek",Rankings!$K$1:$AA$1,0),0)="X","X",""),"") ->  | AL36: =IFERROR(IF(VLOOKUP($C36,Team_results!$E:$AN,MATCH("Helyezettek",Team_results!$E$5:$AN$5,0),0)="X","X",""),"") -> 
B37: 30 | P37: =+IF(OR(ISBLANK($C37),$C37=""),"",IF(OR(ISBLANK($Q37),$Q37="",$Q37=0),Paraméterek!$C$4,Paraméterek!$C$3)) ->  | T37: =+IF(ISBLANK($C37),"",IF(IF(ISERROR(YEAR(TODAY())-YEAR(S37)),100,(YEAR(TODAY())-YEAR(S37)))<Competition!$D$30+1,Paraméterek!$C$3,Paraméterek!$C$4)) ->  | Z37: =+IF(OR(D37=Paraméterek!$D$4,T37=Paraméterek!$C$3),Paraméterek!$C$3,Paraméterek!$C$4) -> no | AC37: - | AI37: =IFERROR(IF(VLOOKUP($C37,Rankings!$C:$AA,MATCH("Helyezettek",Rankings!$C$1:$AA$1,0),0)="X","X",""),"") ->  | AJ37: =IFERROR(IF(VLOOKUP($C37,Rankings!$G:$AA,MATCH("Helyezettek",Rankings!$G$1:$AA$1,0),0)="X","X",""),"") ->  | AK37: =IFERROR(IF(VLOOKUP($C37,Rankings!$K:$AA,MATCH("Helyezettek",Rankings!$K$1:$AA$1,0),0)="X","X",""),"") ->  | AL37: =IFERROR(IF(VLOOKUP($C37,Team_results!$E:$AN,MATCH("Helyezettek",Team_results!$E$5:$AN$5,0),0)="X","X",""),"") -> 
B38: 31 | P38: =+IF(OR(ISBLANK($C38),$C38=""),"",IF(OR(ISBLANK($Q38),$Q38="",$Q38=0),Paraméterek!$C$4,Paraméterek!$C$3)) ->  | T38: =+IF(ISBLANK($C38),"",IF(IF(ISERROR(YEAR(TODAY())-YEAR(S38)),100,(YEAR(TODAY())-YEAR(S38)))<Competition!$D$30+1,Paraméterek!$C$3,Paraméterek!$C$4)) ->  | Z38: =+IF(OR(D38=Paraméterek!$D$4,T38=Paraméterek!$C$3),Paraméterek!$C$3,Paraméterek!$C$4) -> no | AC38: - | AI38: =IFERROR(IF(VLOOKUP($C38,Rankings!$C:$AA,MATCH("Helyezettek",Rankings!$C$1:$AA$1,0),0)="X","X",""),"") ->  | AJ38: =IFERROR(IF(VLOOKUP($C38,Rankings!$G:$AA,MATCH("Helyezettek",Rankings!$G$1:$AA$1,0),0)="X","X",""),"") ->  | AK38: =IFERROR(IF(VLOOKUP($C38,Rankings!$K:$AA,MATCH("Helyezettek",Rankings!$K$1:$AA$1,0),0)="X","X",""),"") ->  | AL38: =IFERROR(IF(VLOOKUP($C38,Team_results!$E:$AN,MATCH("Helyezettek",Team_results!$E$5:$AN$5,0),0)="X","X",""),"") -> 
B39: 32 | P39: =+IF(OR(ISBLANK($C39),$C39=""),"",IF(OR(ISBLANK($Q39),$Q39="",$Q39=0),Paraméterek!$C$4,Paraméterek!$C$3)) ->  | T39: =+IF(ISBLANK($C39),"",IF(IF(ISERROR(YEAR(TODAY())-YEAR(S39)),100,(YEAR(TODAY())-YEAR(S39)))<Competition!$D$30+1,Paraméterek!$C$3,Paraméterek!$C$4)) ->  | Z39: =+IF(OR(D39=Paraméterek!$D$4,T39=Paraméterek!$C$3),Paraméterek!$C$3,Paraméterek!$C$4) -> no | AC39: - | AI39: =IFERROR(IF(VLOOKUP($C39,Rankings!$C:$AA,MATCH("Helyezettek",Rankings!$C$1:$AA$1,0),0)="X","X",""),"") ->  | AJ39: =IFERROR(IF(VLOOKUP($C39,Rankings!$G:$AA,MATCH("Helyezettek",Rankings!$G$1:$AA$1,0),0)="X","X",""),"") ->  | AK39: =IFERROR(IF(VLOOKUP($C39,Rankings!$K:$AA,MATCH("Helyezettek",Rankings!$K$1:$AA$1,0),0)="X","X",""),"") ->  | AL39: =IFERROR(IF(VLOOKUP($C39,Team_results!$E:$AN,MATCH("Helyezettek",Team_results!$E$5:$AN$5,0),0)="X","X",""),"") -> 
B40: 33 | P40: =+IF(OR(ISBLANK($C40),$C40=""),"",IF(OR(ISBLANK($Q40),$Q40="",$Q40=0),Paraméterek!$C$4,Paraméterek!$C$3)) ->  | T40: =+IF(ISBLANK($C40),"",IF(IF(ISERROR(YEAR(TODAY())-YEAR(S40)),100,(YEAR(TODAY())-YEAR(S40)))<Competition!$D$30+1,Paraméterek!$C$3,Paraméterek!$C$4)) ->  | Z40: =+IF(OR(D40=Paraméterek!$D$4,T40=Paraméterek!$C$3),Paraméterek!$C$3,Paraméterek!$C$4) -> no | AB40: =+IF(C40="","",C40) ->  | AC40: - | AI40: =IFERROR(IF(VLOOKUP($C40,Rankings!$C:$AA,MATCH("Helyezettek",Rankings!$C$1:$AA$1,0),0)="X","X",""),"") ->  | AJ40: =IFERROR(IF(VLOOKUP($C40,Rankings!$G:$AA,MATCH("Helyezettek",Rankings!$G$1:$AA$1,0),0)="X","X",""),"") ->  | AK40: =IFERROR(IF(VLOOKUP($C40,Rankings!$K:$AA,MATCH("Helyezettek",Rankings!$K$1:$AA$1,0),0)="X","X",""),"") ->  | AL40: =IFERROR(IF(VLOOKUP($C40,Team_results!$E:$AN,MATCH("Helyezettek",Team_results!$E$5:$AN$5,0),0)="X","X",""),"") -> 
B41: 34 | P41: =+IF(OR(ISBLANK($C41),$C41=""),"",IF(OR(ISBLANK($Q41),$Q41="",$Q41=0),Paraméterek!$C$4,Paraméterek!$C$3)) ->  | T41: =+IF(ISBLANK($C41),"",IF(IF(ISERROR(YEAR(TODAY())-YEAR(S41)),100,(YEAR(TODAY())-YEAR(S41)))<Competition!$D$30+1,Paraméterek!$C$3,Paraméterek!$C$4)) ->  | Z41: =+IF(OR(D41=Paraméterek!$D$4,T41=Paraméterek!$C$3),Paraméterek!$C$3,Paraméterek!$C$4) -> no | AC41: - | AI41: =IFERROR(IF(VLOOKUP($C41,Rankings!$C:$AA,MATCH("Helyezettek",Rankings!$C$1:$AA$1,0),0)="X","X",""),"") ->  | AJ41: =IFERROR(IF(VLOOKUP($C41,Rankings!$G:$AA,MATCH("Helyezettek",Rankings!$G$1:$AA$1,0),0)="X","X",""),"") ->  | AK41: =IFERROR(IF(VLOOKUP($C41,Rankings!$K:$AA,MATCH("Helyezettek",Rankings!$K$1:$AA$1,0),0)="X","X",""),"") ->  | AL41: =IFERROR(IF(VLOOKUP($C41,Team_results!$E:$AN,MATCH("Helyezettek",Team_results!$E$5:$AN$5,0),0)="X","X",""),"") -> 
B42: 35 | P42: =+IF(OR(ISBLANK($C42),$C42=""),"",IF(OR(ISBLANK($Q42),$Q42="",$Q42=0),Paraméterek!$C$4,Paraméterek!$C$3)) ->  | T42: =+IF(ISBLANK($C42),"",IF(IF(ISERROR(YEAR(TODAY())-YEAR(S42)),100,(YEAR(TODAY())-YEAR(S42)))<Competition!$D$30+1,Paraméterek!$C$3,Paraméterek!$C$4)) ->  | Z42: =+IF(OR(D42=Paraméterek!$D$4,T42=Paraméterek!$C$3),Paraméterek!$C$3,Paraméterek!$C$4) -> no | AC42: - | AI42: =IFERROR(IF(VLOOKUP($C42,Rankings!$C:$AA,MATCH("Helyezettek",Rankings!$C$1:$AA$1,0),0)="X","X",""),"") ->  | AJ42: =IFERROR(IF(VLOOKUP($C42,Rankings!$G:$AA,MATCH("Helyezettek",Rankings!$G$1:$AA$1,0),0)="X","X",""),"") ->  | AK42: =IFERROR(IF(VLOOKUP($C42,Rankings!$K:$AA,MATCH("Helyezettek",Rankings!$K$1:$AA$1,0),0)="X","X",""),"") ->  | AL42: =IFERROR(IF(VLOOKUP($C42,Team_results!$E:$AN,MATCH("Helyezettek",Team_results!$E$5:$AN$5,0),0)="X","X",""),"") -> 
B43: 36 | P43: =+IF(OR(ISBLANK($C43),$C43=""),"",IF(OR(ISBLANK($Q43),$Q43="",$Q43=0),Paraméterek!$C$4,Paraméterek!$C$3)) ->  | T43: =+IF(ISBLANK($C43),"",IF(IF(ISERROR(YEAR(TODAY())-YEAR(S43)),100,(YEAR(TODAY())-YEAR(S43)))<Competition!$D$30+1,Paraméterek!$C$3,Paraméterek!$C$4)) ->  | Z43: =+IF(OR(D43=Paraméterek!$D$4,T43=Paraméterek!$C$3),Paraméterek!$C$3,Paraméterek!$C$4) -> no | AC43: - | AI43: =IFERROR(IF(VLOOKUP($C43,Rankings!$C:$AA,MATCH("Helyezettek",Rankings!$C$1:$AA$1,0),0)="X","X",""),"") ->  | AJ43: =IFERROR(IF(VLOOKUP($C43,Rankings!$G:$AA,MATCH("Helyezettek",Rankings!$G$1:$AA$1,0),0)="X","X",""),"") ->  | AK43: =IFERROR(IF(VLOOKUP($C43,Rankings!$K:$AA,MATCH("Helyezettek",Rankings!$K$1:$AA$1,0),0)="X","X",""),"") ->  | AL43: =IFERROR(IF(VLOOKUP($C43,Team_results!$E:$AN,MATCH("Helyezettek",Team_results!$E$5:$AN$5,0),0)="X","X",""),"") -> 
B44: 37 | P44: =+IF(OR(ISBLANK($C44),$C44=""),"",IF(OR(ISBLANK($Q44),$Q44="",$Q44=0),Paraméterek!$C$4,Paraméterek!$C$3)) ->  | T44: =+IF(ISBLANK($C44),"",IF(IF(ISERROR(YEAR(TODAY())-YEAR(S44)),100,(YEAR(TODAY())-YEAR(S44)))<Competition!$D$30+1,Paraméterek!$C$3,Paraméterek!$C$4)) ->  | Z44: =+IF(OR(D44=Paraméterek!$D$4,T44=Paraméterek!$C$3),Paraméterek!$C$3,Paraméterek!$C$4) -> no | AC44: - | AI44: =IFERROR(IF(VLOOKUP($C44,Rankings!$C:$AA,MATCH("Helyezettek",Rankings!$C$1:$AA$1,0),0)="X","X",""),"") ->  | AJ44: =IFERROR(IF(VLOOKUP($C44,Rankings!$G:$AA,MATCH("Helyezettek",Rankings!$G$1:$AA$1,0),0)="X","X",""),"") ->  | AK44: =IFERROR(IF(VLOOKUP($C44,Rankings!$K:$AA,MATCH("Helyezettek",Rankings!$K$1:$AA$1,0),0)="X","X",""),"") ->  | AL44: =IFERROR(IF(VLOOKUP($C44,Team_results!$E:$AN,MATCH("Helyezettek",Team_results!$E$5:$AN$5,0),0)="X","X",""),"") -> 
B45: 38 | P45: =+IF(OR(ISBLANK($C45),$C45=""),"",IF(OR(ISBLANK($Q45),$Q45="",$Q45=0),Paraméterek!$C$4,Paraméterek!$C$3)) ->  | T45: =+IF(ISBLANK($C45),"",IF(IF(ISERROR(YEAR(TODAY())-YEAR(S45)),100,(YEAR(TODAY())-YEAR(S45)))<Competition!$D$30+1,Paraméterek!$C$3,Paraméterek!$C$4)) ->  | Z45: =+IF(OR(D45=Paraméterek!$D$4,T45=Paraméterek!$C$3),Paraméterek!$C$3,Paraméterek!$C$4) -> no | AC45: - | AI45: =IFERROR(IF(VLOOKUP($C45,Rankings!$C:$AA,MATCH("Helyezettek",Rankings!$C$1:$AA$1,0),0)="X","X",""),"") ->  | AJ45: =IFERROR(IF(VLOOKUP($C45,Rankings!$G:$AA,MATCH("Helyezettek",Rankings!$G$1:$AA$1,0),0)="X","X",""),"") ->  | AK45: =IFERROR(IF(VLOOKUP($C45,Rankings!$K:$AA,MATCH("Helyezettek",Rankings!$K$1:$AA$1,0),0)="X","X",""),"") ->  | AL45: =IFERROR(IF(VLOOKUP($C45,Team_results!$E:$AN,MATCH("Helyezettek",Team_results!$E$5:$AN$5,0),0)="X","X",""),"") -> 
B46: 39 | P46: =+IF(OR(ISBLANK($C46),$C46=""),"",IF(OR(ISBLANK($Q46),$Q46="",$Q46=0),Paraméterek!$C$4,Paraméterek!$C$3)) ->  | T46: =+IF(ISBLANK($C46),"",IF(IF(ISERROR(YEAR(TODAY())-YEAR(S46)),100,(YEAR(TODAY())-YEAR(S46)))<Competition!$D$30+1,Paraméterek!$C$3,Paraméterek!$C$4)) ->  | Z46: =+IF(OR(D46=Paraméterek!$D$4,T46=Paraméterek!$C$3),Paraméterek!$C$3,Paraméterek!$C$4) -> no | AC46: - | AI46: =IFERROR(IF(VLOOKUP($C46,Rankings!$C:$AA,MATCH("Helyezettek",Rankings!$C$1:$AA$1,0),0)="X","X",""),"") ->  | AJ46: =IFERROR(IF(VLOOKUP($C46,Rankings!$G:$AA,MATCH("Helyezettek",Rankings!$G$1:$AA$1,0),0)="X","X",""),"") ->  | AK46: =IFERROR(IF(VLOOKUP($C46,Rankings!$K:$AA,MATCH("Helyezettek",Rankings!$K$1:$AA$1,0),0)="X","X",""),"") ->  | AL46: =IFERROR(IF(VLOOKUP($C46,Team_results!$E:$AN,MATCH("Helyezettek",Team_results!$E$5:$AN$5,0),0)="X","X",""),"") -> 
B47: 40 | P47: =+IF(OR(ISBLANK($C47),$C47=""),"",IF(OR(ISBLANK($Q47),$Q47="",$Q47=0),Paraméterek!$C$4,Paraméterek!$C$3)) ->  | T47: =+IF(ISBLANK($C47),"",IF(IF(ISERROR(YEAR(TODAY())-YEAR(S47)),100,(YEAR(TODAY())-YEAR(S47)))<Competition!$D$30+1,Paraméterek!$C$3,Paraméterek!$C$4)) ->  | Z47: =+IF(OR(D47=Paraméterek!$D$4,T47=Paraméterek!$C$3),Paraméterek!$C$3,Paraméterek!$C$4) -> no | AC47: - | AI47: =IFERROR(IF(VLOOKUP($C47,Rankings!$C:$AA,MATCH("Helyezettek",Rankings!$C$1:$AA$1,0),0)="X","X",""),"") ->  | AJ47: =IFERROR(IF(VLOOKUP($C47,Rankings!$G:$AA,MATCH("Helyezettek",Rankings!$G$1:$AA$1,0),0)="X","X",""),"") ->  | AK47: =IFERROR(IF(VLOOKUP($C47,Rankings!$K:$AA,MATCH("Helyezettek",Rankings!$K$1:$AA$1,0),0)="X","X",""),"") ->  | AL47: =IFERROR(IF(VLOOKUP($C47,Team_results!$E:$AN,MATCH("Helyezettek",Team_results!$E$5:$AN$5,0),0)="X","X",""),"") -> 
B48: 41 | P48: =+IF(OR(ISBLANK($C48),$C48=""),"",IF(OR(ISBLANK($Q48),$Q48="",$Q48=0),Paraméterek!$C$4,Paraméterek!$C$3)) ->  | T48: =+IF(ISBLANK($C48),"",IF(IF(ISERROR(YEAR(TODAY())-YEAR(S48)),100,(YEAR(TODAY())-YEAR(S48)))<Competition!$D$30+1,Paraméterek!$C$3,Paraméterek!$C$4)) ->  | Z48: =+IF(OR(D48=Paraméterek!$D$4,T48=Paraméterek!$C$3),Paraméterek!$C$3,Paraméterek!$C$4) -> no | AC48: - | AI48: =IFERROR(IF(VLOOKUP($C48,Rankings!$C:$AA,MATCH("Helyezettek",Rankings!$C$1:$AA$1,0),0)="X","X",""),"") ->  | AJ48: =IFERROR(IF(VLOOKUP($C48,Rankings!$G:$AA,MATCH("Helyezettek",Rankings!$G$1:$AA$1,0),0)="X","X",""),"") ->  | AK48: =IFERROR(IF(VLOOKUP($C48,Rankings!$K:$AA,MATCH("Helyezettek",Rankings!$K$1:$AA$1,0),0)="X","X",""),"") ->  | AL48: =IFERROR(IF(VLOOKUP($C48,Team_results!$E:$AN,MATCH("Helyezettek",Team_results!$E$5:$AN$5,0),0)="X","X",""),"") -> 
B49: 42 | P49: =+IF(OR(ISBLANK($C49),$C49=""),"",IF(OR(ISBLANK($Q49),$Q49="",$Q49=0),Paraméterek!$C$4,Paraméterek!$C$3)) ->  | T49: =+IF(ISBLANK($C49),"",IF(IF(ISERROR(YEAR(TODAY())-YEAR(S49)),100,(YEAR(TODAY())-YEAR(S49)))<Competition!$D$30+1,Paraméterek!$C$3,Paraméterek!$C$4)) ->  | Z49: =+IF(OR(D49=Paraméterek!$D$4,T49=Paraméterek!$C$3),Paraméterek!$C$3,Paraméterek!$C$4) -> no | AC49: - | AI49: =IFERROR(IF(VLOOKUP($C49,Rankings!$C:$AA,MATCH("Helyezettek",Rankings!$C$1:$AA$1,0),0)="X","X",""),"") ->  | AJ49: =IFERROR(IF(VLOOKUP($C49,Rankings!$G:$AA,MATCH("Helyezettek",Rankings!$G$1:$AA$1,0),0)="X","X",""),"") ->  | AK49: =IFERROR(IF(VLOOKUP($C49,Rankings!$K:$AA,MATCH("Helyezettek",Rankings!$K$1:$AA$1,0),0)="X","X",""),"") ->  | AL49: =IFERROR(IF(VLOOKUP($C49,Team_results!$E:$AN,MATCH("Helyezettek",Team_results!$E$5:$AN$5,0),0)="X","X",""),"") -> 
B50: 43 | P50: =+IF(OR(ISBLANK($C50),$C50=""),"",IF(OR(ISBLANK($Q50),$Q50="",$Q50=0),Paraméterek!$C$4,Paraméterek!$C$3)) ->  | T50: =+IF(ISBLANK($C50),"",IF(IF(ISERROR(YEAR(TODAY())-YEAR(S50)),100,(YEAR(TODAY())-YEAR(S50)))<Competition!$D$30+1,Paraméterek!$C$3,Paraméterek!$C$4)) ->  | Z50: =+IF(OR(D50=Paraméterek!$D$4,T50=Paraméterek!$C$3),Paraméterek!$C$3,Paraméterek!$C$4) -> no | AC50: - | AI50: =IFERROR(IF(VLOOKUP($C50,Rankings!$C:$AA,MATCH("Helyezettek",Rankings!$C$1:$AA$1,0),0)="X","X",""),"") ->  | AJ50: =IFERROR(IF(VLOOKUP($C50,Rankings!$G:$AA,MATCH("Helyezettek",Rankings!$G$1:$AA$1,0),0)="X","X",""),"") ->  | AK50: =IFERROR(IF(VLOOKUP($C50,Rankings!$K:$AA,MATCH("Helyezettek",Rankings!$K$1:$AA$1,0),0)="X","X",""),"") ->  | AL50: =IFERROR(IF(VLOOKUP($C50,Team_results!$E:$AN,MATCH("Helyezettek",Team_results!$E$5:$AN$5,0),0)="X","X",""),"") -> 
B51: 44 | P51: =+IF(OR(ISBLANK($C51),$C51=""),"",IF(OR(ISBLANK($Q51),$Q51="",$Q51=0),Paraméterek!$C$4,Paraméterek!$C$3)) ->  | T51: =+IF(ISBLANK($C51),"",IF(IF(ISERROR(YEAR(TODAY())-YEAR(S51)),100,(YEAR(TODAY())-YEAR(S51)))<Competition!$D$30+1,Paraméterek!$C$3,Paraméterek!$C$4)) ->  | Z51: =+IF(OR(D51=Paraméterek!$D$4,T51=Paraméterek!$C$3),Paraméterek!$C$3,Paraméterek!$C$4) -> no | AC51: - | AI51: =IFERROR(IF(VLOOKUP($C51,Rankings!$C:$AA,MATCH("Helyezettek",Rankings!$C$1:$AA$1,0),0)="X","X",""),"") ->  | AJ51: =IFERROR(IF(VLOOKUP($C51,Rankings!$G:$AA,MATCH("Helyezettek",Rankings!$G$1:$AA$1,0),0)="X","X",""),"") ->  | AK51: =IFERROR(IF(VLOOKUP($C51,Rankings!$K:$AA,MATCH("Helyezettek",Rankings!$K$1:$AA$1,0),0)="X","X",""),"") ->  | AL51: =IFERROR(IF(VLOOKUP($C51,Team_results!$E:$AN,MATCH("Helyezettek",Team_results!$E$5:$AN$5,0),0)="X","X",""),"") -> 
B52: 45 | P52: =+IF(OR(ISBLANK($C52),$C52=""),"",IF(OR(ISBLANK($Q52),$Q52="",$Q52=0),Paraméterek!$C$4,Paraméterek!$C$3)) ->  | T52: =+IF(ISBLANK($C52),"",IF(IF(ISERROR(YEAR(TODAY())-YEAR(S52)),100,(YEAR(TODAY())-YEAR(S52)))<Competition!$D$30+1,Paraméterek!$C$3,Paraméterek!$C$4)) ->  | Z52: =+IF(OR(D52=Paraméterek!$D$4,T52=Paraméterek!$C$3),Paraméterek!$C$3,Paraméterek!$C$4) -> no | AC52: - | AI52: =IFERROR(IF(VLOOKUP($C52,Rankings!$C:$AA,MATCH("Helyezettek",Rankings!$C$1:$AA$1,0),0)="X","X",""),"") ->  | AJ52: =IFERROR(IF(VLOOKUP($C52,Rankings!$G:$AA,MATCH("Helyezettek",Rankings!$G$1:$AA$1,0),0)="X","X",""),"") ->  | AK52: =IFERROR(IF(VLOOKUP($C52,Rankings!$K:$AA,MATCH("Helyezettek",Rankings!$K$1:$AA$1,0),0)="X","X",""),"") ->  | AL52: =IFERROR(IF(VLOOKUP($C52,Team_results!$E:$AN,MATCH("Helyezettek",Team_results!$E$5:$AN$5,0),0)="X","X",""),"") -> 
B53: 46 | P53: =+IF(OR(ISBLANK($C53),$C53=""),"",IF(OR(ISBLANK($Q53),$Q53="",$Q53=0),Paraméterek!$C$4,Paraméterek!$C$3)) ->  | T53: =+IF(ISBLANK($C53),"",IF(IF(ISERROR(YEAR(TODAY())-YEAR(S53)),100,(YEAR(TODAY())-YEAR(S53)))<Competition!$D$30+1,Paraméterek!$C$3,Paraméterek!$C$4)) ->  | Z53: =+IF(OR(D53=Paraméterek!$D$4,T53=Paraméterek!$C$3),Paraméterek!$C$3,Paraméterek!$C$4) -> no | AC53: - | AI53: =IFERROR(IF(VLOOKUP($C53,Rankings!$C:$AA,MATCH("Helyezettek",Rankings!$C$1:$AA$1,0),0)="X","X",""),"") ->  | AJ53: =IFERROR(IF(VLOOKUP($C53,Rankings!$G:$AA,MATCH("Helyezettek",Rankings!$G$1:$AA$1,0),0)="X","X",""),"") ->  | AK53: =IFERROR(IF(VLOOKUP($C53,Rankings!$K:$AA,MATCH("Helyezettek",Rankings!$K$1:$AA$1,0),0)="X","X",""),"") ->  | AL53: =IFERROR(IF(VLOOKUP($C53,Team_results!$E:$AN,MATCH("Helyezettek",Team_results!$E$5:$AN$5,0),0)="X","X",""),"") -> 
B54: 47 | P54: =+IF(OR(ISBLANK($C54),$C54=""),"",IF(OR(ISBLANK($Q54),$Q54="",$Q54=0),Paraméterek!$C$4,Paraméterek!$C$3)) ->  | T54: =+IF(ISBLANK($C54),"",IF(IF(ISERROR(YEAR(TODAY())-YEAR(S54)),100,(YEAR(TODAY())-YEAR(S54)))<Competition!$D$30+1,Paraméterek!$C$3,Paraméterek!$C$4)) ->  | Z54: =+IF(OR(D54=Paraméterek!$D$4,T54=Paraméterek!$C$3),Paraméterek!$C$3,Paraméterek!$C$4) -> no | AC54: - | AI54: =IFERROR(IF(VLOOKUP($C54,Rankings!$C:$AA,MATCH("Helyezettek",Rankings!$C$1:$AA$1,0),0)="X","X",""),"") ->  | AJ54: =IFERROR(IF(VLOOKUP($C54,Rankings!$G:$AA,MATCH("Helyezettek",Rankings!$G$1:$AA$1,0),0)="X","X",""),"") ->  | AK54: =IFERROR(IF(VLOOKUP($C54,Rankings!$K:$AA,MATCH("Helyezettek",Rankings!$K$1:$AA$1,0),0)="X","X",""),"") ->  | AL54: =IFERROR(IF(VLOOKUP($C54,Team_results!$E:$AN,MATCH("Helyezettek",Team_results!$E$5:$AN$5,0),0)="X","X",""),"") -> 
B55: 48 | P55: =+IF(OR(ISBLANK($C55),$C55=""),"",IF(OR(ISBLANK($Q55),$Q55="",$Q55=0),Paraméterek!$C$4,Paraméterek!$C$3)) ->  | T55: =+IF(ISBLANK($C55),"",IF(IF(ISERROR(YEAR(TODAY())-YEAR(S55)),100,(YEAR(TODAY())-YEAR(S55)))<Competition!$D$30+1,Paraméterek!$C$3,Paraméterek!$C$4)) ->  | Z55: =+IF(OR(D55=Paraméterek!$D$4,T55=Paraméterek!$C$3),Paraméterek!$C$3,Paraméterek!$C$4) -> no | AC55: - | AI55: =IFERROR(IF(VLOOKUP($C55,Rankings!$C:$AA,MATCH("Helyezettek",Rankings!$C$1:$AA$1,0),0)="X","X",""),"") ->  | AJ55: =IFERROR(IF(VLOOKUP($C55,Rankings!$G:$AA,MATCH("Helyezettek",Rankings!$G$1:$AA$1,0),0)="X","X",""),"") ->  | AK55: =IFERROR(IF(VLOOKUP($C55,Rankings!$K:$AA,MATCH("Helyezettek",Rankings!$K$1:$AA$1,0),0)="X","X",""),"") ->  | AL55: =IFERROR(IF(VLOOKUP($C55,Team_results!$E:$AN,MATCH("Helyezettek",Team_results!$E$5:$AN$5,0),0)="X","X",""),"") -> 
B56: 49 | P56: =+IF(OR(ISBLANK($C56),$C56=""),"",IF(OR(ISBLANK($Q56),$Q56="",$Q56=0),Paraméterek!$C$4,Paraméterek!$C$3)) ->  | T56: =+IF(ISBLANK($C56),"",IF(IF(ISERROR(YEAR(TODAY())-YEAR(S56)),100,(YEAR(TODAY())-YEAR(S56)))<Competition!$D$30+1,Paraméterek!$C$3,Paraméterek!$C$4)) ->  | Z56: =+IF(OR(D56=Paraméterek!$D$4,T56=Paraméterek!$C$3),Paraméterek!$C$3,Paraméterek!$C$4) -> no | AC56: - | AI56: =IFERROR(IF(VLOOKUP($C56,Rankings!$C:$AA,MATCH("Helyezettek",Rankings!$C$1:$AA$1,0),0)="X","X",""),"") ->  | AJ56: =IFERROR(IF(VLOOKUP($C56,Rankings!$G:$AA,MATCH("Helyezettek",Rankings!$G$1:$AA$1,0),0)="X","X",""),"") ->  | AK56: =IFERROR(IF(VLOOKUP($C56,Rankings!$K:$AA,MATCH("Helyezettek",Rankings!$K$1:$AA$1,0),0)="X","X",""),"") ->  | AL56: =IFERROR(IF(VLOOKUP($C56,Team_results!$E:$AN,MATCH("Helyezettek",Team_results!$E$5:$AN$5,0),0)="X","X",""),"") -> 
B57: 50 | P57: =+IF(OR(ISBLANK($C57),$C57=""),"",IF(OR(ISBLANK($Q57),$Q57="",$Q57=0),Paraméterek!$C$4,Paraméterek!$C$3)) ->  | T57: =+IF(ISBLANK($C57),"",IF(IF(ISERROR(YEAR(TODAY())-YEAR(S57)),100,(YEAR(TODAY())-YEAR(S57)))<Competition!$D$30+1,Paraméterek!$C$3,Paraméterek!$C$4)) ->  | Z57: =+IF(OR(D57=Paraméterek!$D$4,T57=Paraméterek!$C$3),Paraméterek!$C$3,Paraméterek!$C$4) -> no | AC57: - | AI57: =IFERROR(IF(VLOOKUP($C57,Rankings!$C:$AA,MATCH("Helyezettek",Rankings!$C$1:$AA$1,0),0)="X","X",""),"") ->  | AJ57: =IFERROR(IF(VLOOKUP($C57,Rankings!$G:$AA,MATCH("Helyezettek",Rankings!$G$1:$AA$1,0),0)="X","X",""),"") ->  | AK57: =IFERROR(IF(VLOOKUP($C57,Rankings!$K:$AA,MATCH("Helyezettek",Rankings!$K$1:$AA$1,0),0)="X","X",""),"") ->  | AL57: =IFERROR(IF(VLOOKUP($C57,Team_results!$E:$AN,MATCH("Helyezettek",Team_results!$E$5:$AN$5,0),0)="X","X",""),"") -> 
B58: 51 | P58: =+IF(OR(ISBLANK($C58),$C58=""),"",IF(OR(ISBLANK($Q58),$Q58="",$Q58=0),Paraméterek!$C$4,Paraméterek!$C$3)) ->  | T58: =+IF(ISBLANK($C58),"",IF(IF(ISERROR(YEAR(TODAY())-YEAR(S58)),100,(YEAR(TODAY())-YEAR(S58)))<Competition!$D$30+1,Paraméterek!$C$3,Paraméterek!$C$4)) ->  | Z58: =+IF(OR(D58=Paraméterek!$D$4,T58=Paraméterek!$C$3),Paraméterek!$C$3,Paraméterek!$C$4) -> no | AC58: - | AI58: =IFERROR(IF(VLOOKUP($C58,Rankings!$C:$AA,MATCH("Helyezettek",Rankings!$C$1:$AA$1,0),0)="X","X",""),"") ->  | AJ58: =IFERROR(IF(VLOOKUP($C58,Rankings!$G:$AA,MATCH("Helyezettek",Rankings!$G$1:$AA$1,0),0)="X","X",""),"") ->  | AK58: =IFERROR(IF(VLOOKUP($C58,Rankings!$K:$AA,MATCH("Helyezettek",Rankings!$K$1:$AA$1,0),0)="X","X",""),"") ->  | AL58: =IFERROR(IF(VLOOKUP($C58,Team_results!$E:$AN,MATCH("Helyezettek",Team_results!$E$5:$AN$5,0),0)="X","X",""),"") -> 
B59: 52 | P59: =+IF(OR(ISBLANK($C59),$C59=""),"",IF(OR(ISBLANK($Q59),$Q59="",$Q59=0),Paraméterek!$C$4,Paraméterek!$C$3)) ->  | T59: =+IF(ISBLANK($C59),"",IF(IF(ISERROR(YEAR(TODAY())-YEAR(S59)),100,(YEAR(TODAY())-YEAR(S59)))<Competition!$D$30+1,Paraméterek!$C$3,Paraméterek!$C$4)) ->  | Z59: =+IF(OR(D59=Paraméterek!$D$4,T59=Paraméterek!$C$3),Paraméterek!$C$3,Paraméterek!$C$4) -> no | AC59: - | AI59: =IFERROR(IF(VLOOKUP($C59,Rankings!$C:$AA,MATCH("Helyezettek",Rankings!$C$1:$AA$1,0),0)="X","X",""),"") ->  | AJ59: =IFERROR(IF(VLOOKUP($C59,Rankings!$G:$AA,MATCH("Helyezettek",Rankings!$G$1:$AA$1,0),0)="X","X",""),"") ->  | AK59: =IFERROR(IF(VLOOKUP($C59,Rankings!$K:$AA,MATCH("Helyezettek",Rankings!$K$1:$AA$1,0),0)="X","X",""),"") ->  | AL59: =IFERROR(IF(VLOOKUP($C59,Team_results!$E:$AN,MATCH("Helyezettek",Team_results!$E$5:$AN$5,0),0)="X","X",""),"") -> 
B60: 53 | H60: X | P60: =+IF(OR(ISBLANK($C60),$C60=""),"",IF(OR(ISBLANK($Q60),$Q60="",$Q60=0),Paraméterek!$C$4,Paraméterek!$C$3)) ->  | T60: =+IF(ISBLANK($C60),"",IF(IF(ISERROR(YEAR(TODAY())-YEAR(S60)),100,(YEAR(TODAY())-YEAR(S60)))<Competition!$D$30+1,Paraméterek!$C$3,Paraméterek!$C$4)) ->  | Z60: =+IF(OR(D60=Paraméterek!$D$4,T60=Paraméterek!$C$3),Paraméterek!$C$3,Paraméterek!$C$4) -> no | AC60: - | AI60: =IFERROR(IF(VLOOKUP($C60,Rankings!$C:$AA,MATCH("Helyezettek",Rankings!$C$1:$AA$1,0),0)="X","X",""),"") ->  | AJ60: =IFERROR(IF(VLOOKUP($C60,Rankings!$G:$AA,MATCH("Helyezettek",Rankings!$G$1:$AA$1,0),0)="X","X",""),"") ->  | AK60: =IFERROR(IF(VLOOKUP($C60,Rankings!$K:$AA,MATCH("Helyezettek",Rankings!$K$1:$AA$1,0),0)="X","X",""),"") ->  | AL60: =IFERROR(IF(VLOOKUP($C60,Team_results!$E:$AN,MATCH("Helyezettek",Team_results!$E$5:$AN$5,0),0)="X","X",""),"") -> 
B61: 54 | H61: X | P61: =+IF(OR(ISBLANK($C61),$C61=""),"",IF(OR(ISBLANK($Q61),$Q61="",$Q61=0),Paraméterek!$C$4,Paraméterek!$C$3)) ->  | T61: =+IF(ISBLANK($C61),"",IF(IF(ISERROR(YEAR(TODAY())-YEAR(S61)),100,(YEAR(TODAY())-YEAR(S61)))<Competition!$D$30+1,Paraméterek!$C$3,Paraméterek!$C$4)) ->  | Z61: =+IF(OR(D61=Paraméterek!$D$4,T61=Paraméterek!$C$3),Paraméterek!$C$3,Paraméterek!$C$4) -> no | AC61: - | AI61: =IFERROR(IF(VLOOKUP($C61,Rankings!$C:$AA,MATCH("Helyezettek",Rankings!$C$1:$AA$1,0),0)="X","X",""),"") ->  | AJ61: =IFERROR(IF(VLOOKUP($C61,Rankings!$G:$AA,MATCH("Helyezettek",Rankings!$G$1:$AA$1,0),0)="X","X",""),"") ->  | AK61: =IFERROR(IF(VLOOKUP($C61,Rankings!$K:$AA,MATCH("Helyezettek",Rankings!$K$1:$AA$1,0),0)="X","X",""),"") ->  | AL61: =IFERROR(IF(VLOOKUP($C61,Team_results!$E:$AN,MATCH("Helyezettek",Team_results!$E$5:$AN$5,0),0)="X","X",""),"") -> 
B62: 55 | P62: =+IF(OR(ISBLANK($C62),$C62=""),"",IF(OR(ISBLANK($Q62),$Q62="",$Q62=0),Paraméterek!$C$4,Paraméterek!$C$3)) ->  | T62: =+IF(ISBLANK($C62),"",IF(IF(ISERROR(YEAR(TODAY())-YEAR(S62)),100,(YEAR(TODAY())-YEAR(S62)))<Competition!$D$30+1,Paraméterek!$C$3,Paraméterek!$C$4)) ->  | Z62: =+IF(OR(D62=Paraméterek!$D$4,T62=Paraméterek!$C$3),Paraméterek!$C$3,Paraméterek!$C$4) -> no | AC62: - | AI62: =IFERROR(IF(VLOOKUP($C62,Rankings!$C:$AA,MATCH("Helyezettek",Rankings!$C$1:$AA$1,0),0)="X","X",""),"") ->  | AJ62: =IFERROR(IF(VLOOKUP($C62,Rankings!$G:$AA,MATCH("Helyezettek",Rankings!$G$1:$AA$1,0),0)="X","X",""),"") ->  | AK62: =IFERROR(IF(VLOOKUP($C62,Rankings!$K:$AA,MATCH("Helyezettek",Rankings!$K$1:$AA$1,0),0)="X","X",""),"") ->  | AL62: =IFERROR(IF(VLOOKUP($C62,Team_results!$E:$AN,MATCH("Helyezettek",Team_results!$E$5:$AN$5,0),0)="X","X",""),"") -> 
B63: 56 | P63: =+IF(OR(ISBLANK($C63),$C63=""),"",IF(OR(ISBLANK($Q63),$Q63="",$Q63=0),Paraméterek!$C$4,Paraméterek!$C$3)) ->  | T63: =+IF(ISBLANK($C63),"",IF(IF(ISERROR(YEAR(TODAY())-YEAR(S63)),100,(YEAR(TODAY())-YEAR(S63)))<Competition!$D$30+1,Paraméterek!$C$3,Paraméterek!$C$4)) ->  | Z63: =+IF(OR(D63=Paraméterek!$D$4,T63=Paraméterek!$C$3),Paraméterek!$C$3,Paraméterek!$C$4) -> no | AC63: - | AI63: =IFERROR(IF(VLOOKUP($C63,Rankings!$C:$AA,MATCH("Helyezettek",Rankings!$C$1:$AA$1,0),0)="X","X",""),"") ->  | AJ63: =IFERROR(IF(VLOOKUP($C63,Rankings!$G:$AA,MATCH("Helyezettek",Rankings!$G$1:$AA$1,0),0)="X","X",""),"") ->  | AK63: =IFERROR(IF(VLOOKUP($C63,Rankings!$K:$AA,MATCH("Helyezettek",Rankings!$K$1:$AA$1,0),0)="X","X",""),"") ->  | AL63: =IFERROR(IF(VLOOKUP($C63,Team_results!$E:$AN,MATCH("Helyezettek",Team_results!$E$5:$AN$5,0),0)="X","X",""),"") -> 
B64: 57 | P64: =+IF(OR(ISBLANK($C64),$C64=""),"",IF(OR(ISBLANK($Q64),$Q64="",$Q64=0),Paraméterek!$C$4,Paraméterek!$C$3)) ->  | T64: =+IF(ISBLANK($C64),"",IF(IF(ISERROR(YEAR(TODAY())-YEAR(S64)),100,(YEAR(TODAY())-YEAR(S64)))<Competition!$D$30+1,Paraméterek!$C$3,Paraméterek!$C$4)) ->  | AC64: - | AI64: =IFERROR(IF(VLOOKUP($C64,Rankings!$C:$AA,MATCH("Helyezettek",Rankings!$C$1:$AA$1,0),0)="X","X",""),"") ->  | AJ64: =IFERROR(IF(VLOOKUP($C64,Rankings!$G:$AA,MATCH("Helyezettek",Rankings!$G$1:$AA$1,0),0)="X","X",""),"") ->  | AK64: =IFERROR(IF(VLOOKUP($C64,Rankings!$K:$AA,MATCH("Helyezettek",Rankings!$K$1:$AA$1,0),0)="X","X",""),"") ->  | AL64: =IFERROR(IF(VLOOKUP($C64,Team_results!$E:$AN,MATCH("Helyezettek",Team_results!$E$5:$AN$5,0),0)="X","X",""),"") -> 
B65: 58 | P65: =+IF(OR(ISBLANK($C65),$C65=""),"",IF(OR(ISBLANK($Q65),$Q65="",$Q65=0),Paraméterek!$C$4,Paraméterek!$C$3)) ->  | T65: =+IF(ISBLANK($C65),"",IF(IF(ISERROR(YEAR(TODAY())-YEAR(S65)),100,(YEAR(TODAY())-YEAR(S65)))<Competition!$D$30+1,Paraméterek!$C$3,Paraméterek!$C$4)) ->  | AC65: - | AI65: =IFERROR(IF(VLOOKUP($C65,Rankings!$C:$AA,MATCH("Helyezettek",Rankings!$C$1:$AA$1,0),0)="X","X",""),"") ->  | AJ65: =IFERROR(IF(VLOOKUP($C65,Rankings!$G:$AA,MATCH("Helyezettek",Rankings!$G$1:$AA$1,0),0)="X","X",""),"") ->  | AK65: =IFERROR(IF(VLOOKUP($C65,Rankings!$K:$AA,MATCH("Helyezettek",Rankings!$K$1:$AA$1,0),0)="X","X",""),"") ->  | AL65: =IFERROR(IF(VLOOKUP($C65,Team_results!$E:$AN,MATCH("Helyezettek",Team_results!$E$5:$AN$5,0),0)="X","X",""),"") -> 
B66: 59 | P66: =+IF(OR(ISBLANK($C66),$C66=""),"",IF(OR(ISBLANK($Q66),$Q66="",$Q66=0),Paraméterek!$C$4,Paraméterek!$C$3)) ->  | T66: =+IF(ISBLANK($C66),"",IF(IF(ISERROR(YEAR(TODAY())-YEAR(S66)),100,(YEAR(TODAY())-YEAR(S66)))<Competition!$D$30+1,Paraméterek!$C$3,Paraméterek!$C$4)) ->  | AC66: - | AI66: =IFERROR(IF(VLOOKUP($C66,Rankings!$C:$AA,MATCH("Helyezettek",Rankings!$C$1:$AA$1,0),0)="X","X",""),"") ->  | AJ66: =IFERROR(IF(VLOOKUP($C66,Rankings!$G:$AA,MATCH("Helyezettek",Rankings!$G$1:$AA$1,0),0)="X","X",""),"") ->  | AK66: =IFERROR(IF(VLOOKUP($C66,Rankings!$K:$AA,MATCH("Helyezettek",Rankings!$K$1:$AA$1,0),0)="X","X",""),"") ->  | AL66: =IFERROR(IF(VLOOKUP($C66,Team_results!$E:$AN,MATCH("Helyezettek",Team_results!$E$5:$AN$5,0),0)="X","X",""),"") -> 
B67: 60 | P67: =+IF(OR(ISBLANK($C67),$C67=""),"",IF(OR(ISBLANK($Q67),$Q67="",$Q67=0),Paraméterek!$C$4,Paraméterek!$C$3)) ->  | T67: =+IF(ISBLANK($C67),"",IF(IF(ISERROR(YEAR(TODAY())-YEAR(S67)),100,(YEAR(TODAY())-YEAR(S67)))<Competition!$D$30+1,Paraméterek!$C$3,Paraméterek!$C$4)) ->  | AC67: - | AI67: =IFERROR(IF(VLOOKUP($C67,Rankings!$C:$AA,MATCH("Helyezettek",Rankings!$C$1:$AA$1,0),0)="X","X",""),"") ->  | AJ67: =IFERROR(IF(VLOOKUP($C67,Rankings!$G:$AA,MATCH("Helyezettek",Rankings!$G$1:$AA$1,0),0)="X","X",""),"") ->  | AK67: =IFERROR(IF(VLOOKUP($C67,Rankings!$K:$AA,MATCH("Helyezettek",Rankings!$K$1:$AA$1,0),0)="X","X",""),"") ->  | AL67: =IFERROR(IF(VLOOKUP($C67,Team_results!$E:$AN,MATCH("Helyezettek",Team_results!$E$5:$AN$5,0),0)="X","X",""),"") -> 
B68: 61 | P68: =+IF(OR(ISBLANK($C68),$C68=""),"",IF(OR(ISBLANK($Q68),$Q68="",$Q68=0),Paraméterek!$C$4,Paraméterek!$C$3)) ->  | T68: =+IF(ISBLANK($C68),"",IF(IF(ISERROR(YEAR(TODAY())-YEAR(S68)),100,(YEAR(TODAY())-YEAR(S68)))<Competition!$D$30+1,Paraméterek!$C$3,Paraméterek!$C$4)) ->  | AC68: - | AI68: =IFERROR(IF(VLOOKUP($C68,Rankings!$C:$AA,MATCH("Helyezettek",Rankings!$C$1:$AA$1,0),0)="X","X",""),"") ->  | AJ68: =IFERROR(IF(VLOOKUP($C68,Rankings!$G:$AA,MATCH("Helyezettek",Rankings!$G$1:$AA$1,0),0)="X","X",""),"") ->  | AK68: =IFERROR(IF(VLOOKUP($C68,Rankings!$K:$AA,MATCH("Helyezettek",Rankings!$K$1:$AA$1,0),0)="X","X",""),"") ->  | AL68: =IFERROR(IF(VLOOKUP($C68,Team_results!$E:$AN,MATCH("Helyezettek",Team_results!$E$5:$AN$5,0),0)="X","X",""),"") -> 
B69: 62 | P69: =+IF(OR(ISBLANK($C69),$C69=""),"",IF(OR(ISBLANK($Q69),$Q69="",$Q69=0),Paraméterek!$C$4,Paraméterek!$C$3)) ->  | T69: =+IF(ISBLANK($C69),"",IF(IF(ISERROR(YEAR(TODAY())-YEAR(S69)),100,(YEAR(TODAY())-YEAR(S69)))<Competition!$D$30+1,Paraméterek!$C$3,Paraméterek!$C$4)) ->  | AC69: - | AI69: =IFERROR(IF(VLOOKUP($C69,Rankings!$C:$AA,MATCH("Helyezettek",Rankings!$C$1:$AA$1,0),0)="X","X",""),"") ->  | AJ69: =IFERROR(IF(VLOOKUP($C69,Rankings!$G:$AA,MATCH("Helyezettek",Rankings!$G$1:$AA$1,0),0)="X","X",""),"") ->  | AK69: =IFERROR(IF(VLOOKUP($C69,Rankings!$K:$AA,MATCH("Helyezettek",Rankings!$K$1:$AA$1,0),0)="X","X",""),"") ->  | AL69: =IFERROR(IF(VLOOKUP($C69,Team_results!$E:$AN,MATCH("Helyezettek",Team_results!$E$5:$AN$5,0),0)="X","X",""),"") -> 
B70: 63 | P70: =+IF(OR(ISBLANK($C70),$C70=""),"",IF(OR(ISBLANK($Q70),$Q70="",$Q70=0),Paraméterek!$C$4,Paraméterek!$C$3)) ->  | T70: =+IF(ISBLANK($C70),"",IF(IF(ISERROR(YEAR(TODAY())-YEAR(S70)),100,(YEAR(TODAY())-YEAR(S70)))<Competition!$D$30+1,Paraméterek!$C$3,Paraméterek!$C$4)) ->  | AC70: - | AI70: =IFERROR(IF(VLOOKUP($C70,Rankings!$C:$AA,MATCH("Helyezettek",Rankings!$C$1:$AA$1,0),0)="X","X",""),"") ->  | AJ70: =IFERROR(IF(VLOOKUP($C70,Rankings!$G:$AA,MATCH("Helyezettek",Rankings!$G$1:$AA$1,0),0)="X","X",""),"") ->  | AK70: =IFERROR(IF(VLOOKUP($C70,Rankings!$K:$AA,MATCH("Helyezettek",Rankings!$K$1:$AA$1,0),0)="X","X",""),"") ->  | AL70: =IFERROR(IF(VLOOKUP($C70,Team_results!$E:$AN,MATCH("Helyezettek",Team_results!$E$5:$AN$5,0),0)="X","X",""),"") -> 
B71: 64 | P71: =+IF(OR(ISBLANK($C71),$C71=""),"",IF(OR(ISBLANK($Q71),$Q71="",$Q71=0),Paraméterek!$C$4,Paraméterek!$C$3)) ->  | T71: =+IF(ISBLANK($C71),"",IF(IF(ISERROR(YEAR(TODAY())-YEAR(S71)),100,(YEAR(TODAY())-YEAR(S71)))<Competition!$D$30+1,Paraméterek!$C$3,Paraméterek!$C$4)) ->  | AC71: - | AI71: =IFERROR(IF(VLOOKUP($C71,Rankings!$C:$AA,MATCH("Helyezettek",Rankings!$C$1:$AA$1,0),0)="X","X",""),"") ->  | AJ71: =IFERROR(IF(VLOOKUP($C71,Rankings!$G:$AA,MATCH("Helyezettek",Rankings!$G$1:$AA$1,0),0)="X","X",""),"") ->  | AK71: =IFERROR(IF(VLOOKUP($C71,Rankings!$K:$AA,MATCH("Helyezettek",Rankings!$K$1:$AA$1,0),0)="X","X",""),"") ->  | AL71: =IFERROR(IF(VLOOKUP($C71,Team_results!$E:$AN,MATCH("Helyezettek",Team_results!$E$5:$AN$5,0),0)="X","X",""),"") -> 
B72: 65 | P72: =+IF(OR(ISBLANK($C72),$C72=""),"",IF(OR(ISBLANK($Q72),$Q72="",$Q72=0),Paraméterek!$C$4,Paraméterek!$C$3)) ->  | T72: =+IF(ISBLANK($C72),"",IF(IF(ISERROR(YEAR(TODAY())-YEAR(S72)),100,(YEAR(TODAY())-YEAR(S72)))<Competition!$D$30+1,Paraméterek!$C$3,Paraméterek!$C$4)) ->  | AB72: =+IF(C72="","",C72) ->  | AC72: - | AI72: =IFERROR(IF(VLOOKUP($C72,Rankings!$C:$AA,MATCH("Helyezettek",Rankings!$C$1:$AA$1,0),0)="X","X",""),"") ->  | AJ72: =IFERROR(IF(VLOOKUP($C72,Rankings!$G:$AA,MATCH("Helyezettek",Rankings!$G$1:$AA$1,0),0)="X","X",""),"") ->  | AK72: =IFERROR(IF(VLOOKUP($C72,Rankings!$K:$AA,MATCH("Helyezettek",Rankings!$K$1:$AA$1,0),0)="X","X",""),"") ->  | AL72: =IFERROR(IF(VLOOKUP($C72,Team_results!$E:$AN,MATCH("Helyezettek",Team_results!$E$5:$AN$5,0),0)="X","X",""),"") -> 
B73: 66 | P73: =+IF(OR(ISBLANK($C73),$C73=""),"",IF(OR(ISBLANK($Q73),$Q73="",$Q73=0),Paraméterek!$C$4,Paraméterek!$C$3)) ->  | T73: =+IF(ISBLANK($C73),"",IF(IF(ISERROR(YEAR(TODAY())-YEAR(S73)),100,(YEAR(TODAY())-YEAR(S73)))<Competition!$D$30+1,Paraméterek!$C$3,Paraméterek!$C$4)) ->  | AC73: =+IF(ISERROR(MONTH($S73)),"",IF(MONTH($S73)=MONTH(TODAY()),IF(DAY($S73)=DAY(TODAY()),"szülinapos!",IF(DAY($S73)-DAY(TODAY())=1,"holnap lesz",IF(DAY($S73)-DAY(TODAY())=-1,"tegnap volt","-"))),"-")) -> - | AD73: =IF(OR(ISERROR(YEAR($S73)),$S73=""),"",ROUNDDOWN((TODAY()-$S73)/365,0)) ->  | AI73: =IFERROR(IF(VLOOKUP($C73,Rankings!$C:$AA,MATCH("Helyezettek",Rankings!$C$1:$AA$1,0),0)="X","X",""),"") ->  | AJ73: =IFERROR(IF(VLOOKUP($C73,Rankings!$G:$AA,MATCH("Helyezettek",Rankings!$G$1:$AA$1,0),0)="X","X",""),"") ->  | AK73: =IFERROR(IF(VLOOKUP($C73,Rankings!$K:$AA,MATCH("Helyezettek",Rankings!$K$1:$AA$1,0),0)="X","X",""),"") ->  | AL73: =IFERROR(IF(VLOOKUP($C73,Team_results!$E:$AN,MATCH("Helyezettek",Team_results!$E$5:$AN$5,0),0)="X","X",""),"") ->  | AM73: =+IF(C73="","",IF(COUNTIF(AI73:AL73,"X")>0,"","X")) -> 
B74: 67 | P74: =+IF(OR(ISBLANK($C74),$C74=""),"",IF(OR(ISBLANK($Q74),$Q74="",$Q74=0),Paraméterek!$C$4,Paraméterek!$C$3)) ->  | T74: =+IF(ISBLANK($C74),"",IF(IF(ISERROR(YEAR(TODAY())-YEAR(S74)),100,(YEAR(TODAY())-YEAR(S74)))<Competition!$D$30+1,Paraméterek!$C$3,Paraméterek!$C$4)) ->  | AC74: - | AI74: =IFERROR(IF(VLOOKUP($C74,Rankings!$C:$AA,MATCH("Helyezettek",Rankings!$C$1:$AA$1,0),0)="X","X",""),"") ->  | AJ74: =IFERROR(IF(VLOOKUP($C74,Rankings!$G:$AA,MATCH("Helyezettek",Rankings!$G$1:$AA$1,0),0)="X","X",""),"") ->  | AK74: =IFERROR(IF(VLOOKUP($C74,Rankings!$K:$AA,MATCH("Helyezettek",Rankings!$K$1:$AA$1,0),0)="X","X",""),"") ->  | AL74: =IFERROR(IF(VLOOKUP($C74,Team_results!$E:$AN,MATCH("Helyezettek",Team_results!$E$5:$AN$5,0),0)="X","X",""),"") -> 
B75: 68 | P75: =+IF(OR(ISBLANK($C75),$C75=""),"",IF(OR(ISBLANK($Q75),$Q75="",$Q75=0),Paraméterek!$C$4,Paraméterek!$C$3)) ->  | T75: =+IF(ISBLANK($C75),"",IF(IF(ISERROR(YEAR(TODAY())-YEAR(S75)),100,(YEAR(TODAY())-YEAR(S75)))<Competition!$D$30+1,Paraméterek!$C$3,Paraméterek!$C$4)) ->  | AC75: - | AI75: =IFERROR(IF(VLOOKUP($C75,Rankings!$C:$AA,MATCH("Helyezettek",Rankings!$C$1:$AA$1,0),0)="X","X",""),"") ->  | AJ75: =IFERROR(IF(VLOOKUP($C75,Rankings!$G:$AA,MATCH("Helyezettek",Rankings!$G$1:$AA$1,0),0)="X","X",""),"") ->  | AK75: =IFERROR(IF(VLOOKUP($C75,Rankings!$K:$AA,MATCH("Helyezettek",Rankings!$K$1:$AA$1,0),0)="X","X",""),"") ->  | AL75: =IFERROR(IF(VLOOKUP($C75,Team_results!$E:$AN,MATCH("Helyezettek",Team_results!$E$5:$AN$5,0),0)="X","X",""),"") -> 
B76: 69 | P76: =+IF(OR(ISBLANK($C76),$C76=""),"",IF(OR(ISBLANK($Q76),$Q76="",$Q76=0),Paraméterek!$C$4,Paraméterek!$C$3)) ->  | T76: =+IF(ISBLANK($C76),"",IF(IF(ISERROR(YEAR(TODAY())-YEAR(S76)),100,(YEAR(TODAY())-YEAR(S76)))<Competition!$D$30+1,Paraméterek!$C$3,Paraméterek!$C$4)) ->  | AC76: - | AI76: =IFERROR(IF(VLOOKUP($C76,Rankings!$C:$AA,MATCH("Helyezettek",Rankings!$C$1:$AA$1,0),0)="X","X",""),"") ->  | AJ76: =IFERROR(IF(VLOOKUP($C76,Rankings!$G:$AA,MATCH("Helyezettek",Rankings!$G$1:$AA$1,0),0)="X","X",""),"") ->  | AK76: =IFERROR(IF(VLOOKUP($C76,Rankings!$K:$AA,MATCH("Helyezettek",Rankings!$K$1:$AA$1,0),0)="X","X",""),"") ->  | AL76: =IFERROR(IF(VLOOKUP($C76,Team_results!$E:$AN,MATCH("Helyezettek",Team_results!$E$5:$AN$5,0),0)="X","X",""),"") -> 
B77: 70 | P77: =+IF(OR(ISBLANK($C77),$C77=""),"",IF(OR(ISBLANK($Q77),$Q77="",$Q77=0),Paraméterek!$C$4,Paraméterek!$C$3)) ->  | T77: =+IF(ISBLANK($C77),"",IF(IF(ISERROR(YEAR(TODAY())-YEAR(S77)),100,(YEAR(TODAY())-YEAR(S77)))<Competition!$D$30+1,Paraméterek!$C$3,Paraméterek!$C$4)) ->  | AC77: - | AI77: =IFERROR(IF(VLOOKUP($C77,Rankings!$C:$AA,MATCH("Helyezettek",Rankings!$C$1:$AA$1,0),0)="X","X",""),"") ->  | AJ77: =IFERROR(IF(VLOOKUP($C77,Rankings!$G:$AA,MATCH("Helyezettek",Rankings!$G$1:$AA$1,0),0)="X","X",""),"") ->  | AK77: =IFERROR(IF(VLOOKUP($C77,Rankings!$K:$AA,MATCH("Helyezettek",Rankings!$K$1:$AA$1,0),0)="X","X",""),"") ->  | AL77: =IFERROR(IF(VLOOKUP($C77,Team_results!$E:$AN,MATCH("Helyezettek",Team_results!$E$5:$AN$5,0),0)="X","X",""),"") -> 
B78: 71 | P78: =+IF(OR(ISBLANK($C78),$C78=""),"",IF(OR(ISBLANK($Q78),$Q78="",$Q78=0),Paraméterek!$C$4,Paraméterek!$C$3)) ->  | T78: =+IF(ISBLANK($C78),"",IF(IF(ISERROR(YEAR(TODAY())-YEAR(S78)),100,(YEAR(TODAY())-YEAR(S78)))<Competition!$D$30+1,Paraméterek!$C$3,Paraméterek!$C$4)) ->  | AC78: - | AI78: =IFERROR(IF(VLOOKUP($C78,Rankings!$C:$AA,MATCH("Helyezettek",Rankings!$C$1:$AA$1,0),0)="X","X",""),"") ->  | AJ78: =IFERROR(IF(VLOOKUP($C78,Rankings!$G:$AA,MATCH("Helyezettek",Rankings!$G$1:$AA$1,0),0)="X","X",""),"") ->  | AK78: =IFERROR(IF(VLOOKUP($C78,Rankings!$K:$AA,MATCH("Helyezettek",Rankings!$K$1:$AA$1,0),0)="X","X",""),"") ->  | AL78: =IFERROR(IF(VLOOKUP($C78,Team_results!$E:$AN,MATCH("Helyezettek",Team_results!$E$5:$AN$5,0),0)="X","X",""),"") -> 
B79: 72 | P79: =+IF(OR(ISBLANK($C79),$C79=""),"",IF(OR(ISBLANK($Q79),$Q79="",$Q79=0),Paraméterek!$C$4,Paraméterek!$C$3)) ->  | T79: =+IF(ISBLANK($C79),"",IF(IF(ISERROR(YEAR(TODAY())-YEAR(S79)),100,(YEAR(TODAY())-YEAR(S79)))<Competition!$D$30+1,Paraméterek!$C$3,Paraméterek!$C$4)) ->  | AC79: - | AI79: =IFERROR(IF(VLOOKUP($C79,Rankings!$C:$AA,MATCH("Helyezettek",Rankings!$C$1:$AA$1,0),0)="X","X",""),"") ->  | AJ79: =IFERROR(IF(VLOOKUP($C79,Rankings!$G:$AA,MATCH("Helyezettek",Rankings!$G$1:$AA$1,0),0)="X","X",""),"") ->  | AK79: =IFERROR(IF(VLOOKUP($C79,Rankings!$K:$AA,MATCH("Helyezettek",Rankings!$K$1:$AA$1,0),0)="X","X",""),"") ->  | AL79: =IFERROR(IF(VLOOKUP($C79,Team_results!$E:$AN,MATCH("Helyezettek",Team_results!$E$5:$AN$5,0),0)="X","X",""),"") -> 
B80: 73 | P80: =+IF(OR(ISBLANK($C80),$C80=""),"",IF(OR(ISBLANK($Q80),$Q80="",$Q80=0),Paraméterek!$C$4,Paraméterek!$C$3)) ->  | T80: =+IF(ISBLANK($C80),"",IF(IF(ISERROR(YEAR(TODAY())-YEAR(S80)),100,(YEAR(TODAY())-YEAR(S80)))<Competition!$D$30+1,Paraméterek!$C$3,Paraméterek!$C$4)) ->  | AC80: - | AI80: =IFERROR(IF(VLOOKUP($C80,Rankings!$C:$AA,MATCH("Helyezettek",Rankings!$C$1:$AA$1,0),0)="X","X",""),"") ->  | AJ80: =IFERROR(IF(VLOOKUP($C80,Rankings!$G:$AA,MATCH("Helyezettek",Rankings!$G$1:$AA$1,0),0)="X","X",""),"") ->  | AK80: =IFERROR(IF(VLOOKUP($C80,Rankings!$K:$AA,MATCH("Helyezettek",Rankings!$K$1:$AA$1,0),0)="X","X",""),"") ->  | AL80: =IFERROR(IF(VLOOKUP($C80,Team_results!$E:$AN,MATCH("Helyezettek",Team_results!$E$5:$AN$5,0),0)="X","X",""),"") -> 
B81: 74 | P81: =+IF(OR(ISBLANK($C81),$C81=""),"",IF(OR(ISBLANK($Q81),$Q81="",$Q81=0),Paraméterek!$C$4,Paraméterek!$C$3)) ->  | T81: =+IF(ISBLANK($C81),"",IF(IF(ISERROR(YEAR(TODAY())-YEAR(S81)),100,(YEAR(TODAY())-YEAR(S81)))<Competition!$D$30+1,Paraméterek!$C$3,Paraméterek!$C$4)) ->  | AC81: - | AI81: =IFERROR(IF(VLOOKUP($C81,Rankings!$C:$AA,MATCH("Helyezettek",Rankings!$C$1:$AA$1,0),0)="X","X",""),"") ->  | AJ81: =IFERROR(IF(VLOOKUP($C81,Rankings!$G:$AA,MATCH("Helyezettek",Rankings!$G$1:$AA$1,0),0)="X","X",""),"") ->  | AK81: =IFERROR(IF(VLOOKUP($C81,Rankings!$K:$AA,MATCH("Helyezettek",Rankings!$K$1:$AA$1,0),0)="X","X",""),"") ->  | AL81: =IFERROR(IF(VLOOKUP($C81,Team_results!$E:$AN,MATCH("Helyezettek",Team_results!$E$5:$AN$5,0),0)="X","X",""),"") -> 
B82: 75 | P82: =+IF(OR(ISBLANK($C82),$C82=""),"",IF(OR(ISBLANK($Q82),$Q82="",$Q82=0),Paraméterek!$C$4,Paraméterek!$C$3)) ->  | T82: =+IF(ISBLANK($C82),"",IF(IF(ISERROR(YEAR(TODAY())-YEAR(S82)),100,(YEAR(TODAY())-YEAR(S82)))<Competition!$D$30+1,Paraméterek!$C$3,Paraméterek!$C$4)) ->  | AC82: - | AI82: =IFERROR(IF(VLOOKUP($C82,Rankings!$C:$AA,MATCH("Helyezettek",Rankings!$C$1:$AA$1,0),0)="X","X",""),"") ->  | AJ82: =IFERROR(IF(VLOOKUP($C82,Rankings!$G:$AA,MATCH("Helyezettek",Rankings!$G$1:$AA$1,0),0)="X","X",""),"") ->  | AK82: =IFERROR(IF(VLOOKUP($C82,Rankings!$K:$AA,MATCH("Helyezettek",Rankings!$K$1:$AA$1,0),0)="X","X",""),"") ->  | AL82: =IFERROR(IF(VLOOKUP($C82,Team_results!$E:$AN,MATCH("Helyezettek",Team_results!$E$5:$AN$5,0),0)="X","X",""),"") -> 
B83: 76 | P83: =+IF(OR(ISBLANK($C83),$C83=""),"",IF(OR(ISBLANK($Q83),$Q83="",$Q83=0),Paraméterek!$C$4,Paraméterek!$C$3)) ->  | T83: =+IF(ISBLANK($C83),"",IF(IF(ISERROR(YEAR(TODAY())-YEAR(S83)),100,(YEAR(TODAY())-YEAR(S83)))<Competition!$D$30+1,Paraméterek!$C$3,Paraméterek!$C$4)) ->  | AC83: - | AI83: =IFERROR(IF(VLOOKUP($C83,Rankings!$C:$AA,MATCH("Helyezettek",Rankings!$C$1:$AA$1,0),0)="X","X",""),"") ->  | AJ83: =IFERROR(IF(VLOOKUP($C83,Rankings!$G:$AA,MATCH("Helyezettek",Rankings!$G$1:$AA$1,0),0)="X","X",""),"") ->  | AK83: =IFERROR(IF(VLOOKUP($C83,Rankings!$K:$AA,MATCH("Helyezettek",Rankings!$K$1:$AA$1,0),0)="X","X",""),"") ->  | AL83: =IFERROR(IF(VLOOKUP($C83,Team_results!$E:$AN,MATCH("Helyezettek",Team_results!$E$5:$AN$5,0),0)="X","X",""),"") -> 
B84: 77 | P84: =+IF(OR(ISBLANK($C84),$C84=""),"",IF(OR(ISBLANK($Q84),$Q84="",$Q84=0),Paraméterek!$C$4,Paraméterek!$C$3)) ->  | T84: =+IF(ISBLANK($C84),"",IF(IF(ISERROR(YEAR(TODAY())-YEAR(S84)),100,(YEAR(TODAY())-YEAR(S84)))<Competition!$D$30+1,Paraméterek!$C$3,Paraméterek!$C$4)) ->  | AC84: - | AI84: =IFERROR(IF(VLOOKUP($C84,Rankings!$C:$AA,MATCH("Helyezettek",Rankings!$C$1:$AA$1,0),0)="X","X",""),"") ->  | AJ84: =IFERROR(IF(VLOOKUP($C84,Rankings!$G:$AA,MATCH("Helyezettek",Rankings!$G$1:$AA$1,0),0)="X","X",""),"") ->  | AK84: =IFERROR(IF(VLOOKUP($C84,Rankings!$K:$AA,MATCH("Helyezettek",Rankings!$K$1:$AA$1,0),0)="X","X",""),"") ->  | AL84: =IFERROR(IF(VLOOKUP($C84,Team_results!$E:$AN,MATCH("Helyezettek",Team_results!$E$5:$AN$5,0),0)="X","X",""),"") -> 
B85: 78 | P85: =+IF(OR(ISBLANK($C85),$C85=""),"",IF(OR(ISBLANK($Q85),$Q85="",$Q85=0),Paraméterek!$C$4,Paraméterek!$C$3)) ->  | T85: =+IF(ISBLANK($C85),"",IF(IF(ISERROR(YEAR(TODAY())-YEAR(S85)),100,(YEAR(TODAY())-YEAR(S85)))<Competition!$D$30+1,Paraméterek!$C$3,Paraméterek!$C$4)) ->  | AC85: - | AI85: =IFERROR(IF(VLOOKUP($C85,Rankings!$C:$AA,MATCH("Helyezettek",Rankings!$C$1:$AA$1,0),0)="X","X",""),"") ->  | AJ85: =IFERROR(IF(VLOOKUP($C85,Rankings!$G:$AA,MATCH("Helyezettek",Rankings!$G$1:$AA$1,0),0)="X","X",""),"") ->  | AK85: =IFERROR(IF(VLOOKUP($C85,Rankings!$K:$AA,MATCH("Helyezettek",Rankings!$K$1:$AA$1,0),0)="X","X",""),"") ->  | AL85: =IFERROR(IF(VLOOKUP($C85,Team_results!$E:$AN,MATCH("Helyezettek",Team_results!$E$5:$AN$5,0),0)="X","X",""),"") -> 
B86: 79 | P86: =+IF(OR(ISBLANK($C86),$C86=""),"",IF(OR(ISBLANK($Q86),$Q86="",$Q86=0),Paraméterek!$C$4,Paraméterek!$C$3)) ->  | T86: =+IF(ISBLANK($C86),"",IF(IF(ISERROR(YEAR(TODAY())-YEAR(S86)),100,(YEAR(TODAY())-YEAR(S86)))<Competition!$D$30+1,Paraméterek!$C$3,Paraméterek!$C$4)) ->  | AC86: - | AI86: =IFERROR(IF(VLOOKUP($C86,Rankings!$C:$AA,MATCH("Helyezettek",Rankings!$C$1:$AA$1,0),0)="X","X",""),"") ->  | AJ86: =IFERROR(IF(VLOOKUP($C86,Rankings!$G:$AA,MATCH("Helyezettek",Rankings!$G$1:$AA$1,0),0)="X","X",""),"") ->  | AK86: =IFERROR(IF(VLOOKUP($C86,Rankings!$K:$AA,MATCH("Helyezettek",Rankings!$K$1:$AA$1,0),0)="X","X",""),"") ->  | AL86: =IFERROR(IF(VLOOKUP($C86,Team_results!$E:$AN,MATCH("Helyezettek",Team_results!$E$5:$AN$5,0),0)="X","X",""),"") -> 
B87: 80 | P87: =+IF(OR(ISBLANK($C87),$C87=""),"",IF(OR(ISBLANK($Q87),$Q87="",$Q87=0),Paraméterek!$C$4,Paraméterek!$C$3)) ->  | T87: =+IF(ISBLANK($C87),"",IF(IF(ISERROR(YEAR(TODAY())-YEAR(S87)),100,(YEAR(TODAY())-YEAR(S87)))<Competition!$D$30+1,Paraméterek!$C$3,Paraméterek!$C$4)) ->  | AC87: - | AI87: =IFERROR(IF(VLOOKUP($C87,Rankings!$C:$AA,MATCH("Helyezettek",Rankings!$C$1:$AA$1,0),0)="X","X",""),"") ->  | AJ87: =IFERROR(IF(VLOOKUP($C87,Rankings!$G:$AA,MATCH("Helyezettek",Rankings!$G$1:$AA$1,0),0)="X","X",""),"") ->  | AK87: =IFERROR(IF(VLOOKUP($C87,Rankings!$K:$AA,MATCH("Helyezettek",Rankings!$K$1:$AA$1,0),0)="X","X",""),"") ->  | AL87: =IFERROR(IF(VLOOKUP($C87,Team_results!$E:$AN,MATCH("Helyezettek",Team_results!$E$5:$AN$5,0),0)="X","X",""),"") -> 
B88: 81 | P88: =+IF(OR(ISBLANK($C88),$C88=""),"",IF(OR(ISBLANK($Q88),$Q88="",$Q88=0),Paraméterek!$C$4,Paraméterek!$C$3)) ->  | T88: =+IF(ISBLANK($C88),"",IF(IF(ISERROR(YEAR(TODAY())-YEAR(S88)),100,(YEAR(TODAY())-YEAR(S88)))<Competition!$D$30+1,Paraméterek!$C$3,Paraméterek!$C$4)) ->  | AC88: - | AI88: =IFERROR(IF(VLOOKUP($C88,Rankings!$C:$AA,MATCH("Helyezettek",Rankings!$C$1:$AA$1,0),0)="X","X",""),"") ->  | AJ88: =IFERROR(IF(VLOOKUP($C88,Rankings!$G:$AA,MATCH("Helyezettek",Rankings!$G$1:$AA$1,0),0)="X","X",""),"") ->  | AK88: =IFERROR(IF(VLOOKUP($C88,Rankings!$K:$AA,MATCH("Helyezettek",Rankings!$K$1:$AA$1,0),0)="X","X",""),"") ->  | AL88: =IFERROR(IF(VLOOKUP($C88,Team_results!$E:$AN,MATCH("Helyezettek",Team_results!$E$5:$AN$5,0),0)="X","X",""),"") -> 
B89: 82 | P89: =+IF(OR(ISBLANK($C89),$C89=""),"",IF(OR(ISBLANK($Q89),$Q89="",$Q89=0),Paraméterek!$C$4,Paraméterek!$C$3)) ->  | T89: =+IF(ISBLANK($C89),"",IF(IF(ISERROR(YEAR(TODAY())-YEAR(S89)),100,(YEAR(TODAY())-YEAR(S89)))<Competition!$D$30+1,Paraméterek!$C$3,Paraméterek!$C$4)) ->  | AC89: - | AI89: =IFERROR(IF(VLOOKUP($C89,Rankings!$C:$AA,MATCH("Helyezettek",Rankings!$C$1:$AA$1,0),0)="X","X",""),"") ->  | AJ89: =IFERROR(IF(VLOOKUP($C89,Rankings!$G:$AA,MATCH("Helyezettek",Rankings!$G$1:$AA$1,0),0)="X","X",""),"") ->  | AK89: =IFERROR(IF(VLOOKUP($C89,Rankings!$K:$AA,MATCH("Helyezettek",Rankings!$K$1:$AA$1,0),0)="X","X",""),"") ->  | AL89: =IFERROR(IF(VLOOKUP($C89,Team_results!$E:$AN,MATCH("Helyezettek",Team_results!$E$5:$AN$5,0),0)="X","X",""),"") -> 
B90: 83 | P90: =+IF(OR(ISBLANK($C90),$C90=""),"",IF(OR(ISBLANK($Q90),$Q90="",$Q90=0),Paraméterek!$C$4,Paraméterek!$C$3)) ->  | T90: =+IF(ISBLANK($C90),"",IF(IF(ISERROR(YEAR(TODAY())-YEAR(S90)),100,(YEAR(TODAY())-YEAR(S90)))<Competition!$D$30+1,Paraméterek!$C$3,Paraméterek!$C$4)) ->  | AC90: - | AI90: =IFERROR(IF(VLOOKUP($C90,Rankings!$C:$AA,MATCH("Helyezettek",Rankings!$C$1:$AA$1,0),0)="X","X",""),"") ->  | AJ90: =IFERROR(IF(VLOOKUP($C90,Rankings!$G:$AA,MATCH("Helyezettek",Rankings!$G$1:$AA$1,0),0)="X","X",""),"") ->  | AK90: =IFERROR(IF(VLOOKUP($C90,Rankings!$K:$AA,MATCH("Helyezettek",Rankings!$K$1:$AA$1,0),0)="X","X",""),"") ->  | AL90: =IFERROR(IF(VLOOKUP($C90,Team_results!$E:$AN,MATCH("Helyezettek",Team_results!$E$5:$AN$5,0),0)="X","X",""),"") -> 
B91: 84 | P91: =+IF(OR(ISBLANK($C91),$C91=""),"",IF(OR(ISBLANK($Q91),$Q91="",$Q91=0),Paraméterek!$C$4,Paraméterek!$C$3)) ->  | T91: =+IF(ISBLANK($C91),"",IF(IF(ISERROR(YEAR(TODAY())-YEAR(S91)),100,(YEAR(TODAY())-YEAR(S91)))<Competition!$D$30+1,Paraméterek!$C$3,Paraméterek!$C$4)) ->  | AC91: - | AI91: =IFERROR(IF(VLOOKUP($C91,Rankings!$C:$AA,MATCH("Helyezettek",Rankings!$C$1:$AA$1,0),0)="X","X",""),"") ->  | AJ91: =IFERROR(IF(VLOOKUP($C91,Rankings!$G:$AA,MATCH("Helyezettek",Rankings!$G$1:$AA$1,0),0)="X","X",""),"") ->  | AK91: =IFERROR(IF(VLOOKUP($C91,Rankings!$K:$AA,MATCH("Helyezettek",Rankings!$K$1:$AA$1,0),0)="X","X",""),"") ->  | AL91: =IFERROR(IF(VLOOKUP($C91,Team_results!$E:$AN,MATCH("Helyezettek",Team_results!$E$5:$AN$5,0),0)="X","X",""),"") -> 
B92: 85 | P92: =+IF(OR(ISBLANK($C92),$C92=""),"",IF(OR(ISBLANK($Q92),$Q92="",$Q92=0),Paraméterek!$C$4,Paraméterek!$C$3)) ->  | T92: =+IF(ISBLANK($C92),"",IF(IF(ISERROR(YEAR(TODAY())-YEAR(S92)),100,(YEAR(TODAY())-YEAR(S92)))<Competition!$D$30+1,Paraméterek!$C$3,Paraméterek!$C$4)) ->  | AC92: - | AI92: =IFERROR(IF(VLOOKUP($C92,Rankings!$C:$AA,MATCH("Helyezettek",Rankings!$C$1:$AA$1,0),0)="X","X",""),"") ->  | AJ92: =IFERROR(IF(VLOOKUP($C92,Rankings!$G:$AA,MATCH("Helyezettek",Rankings!$G$1:$AA$1,0),0)="X","X",""),"") ->  | AK92: =IFERROR(IF(VLOOKUP($C92,Rankings!$K:$AA,MATCH("Helyezettek",Rankings!$K$1:$AA$1,0),0)="X","X",""),"") ->  | AL92: =IFERROR(IF(VLOOKUP($C92,Team_results!$E:$AN,MATCH("Helyezettek",Team_results!$E$5:$AN$5,0),0)="X","X",""),"") -> 
B93: 86 | P93: =+IF(OR(ISBLANK($C93),$C93=""),"",IF(OR(ISBLANK($Q93),$Q93="",$Q93=0),Paraméterek!$C$4,Paraméterek!$C$3)) ->  | T93: =+IF(ISBLANK($C93),"",IF(IF(ISERROR(YEAR(TODAY())-YEAR(S93)),100,(YEAR(TODAY())-YEAR(S93)))<Competition!$D$30+1,Paraméterek!$C$3,Paraméterek!$C$4)) ->  | AC93: - | AI93: =IFERROR(IF(VLOOKUP($C93,Rankings!$C:$AA,MATCH("Helyezettek",Rankings!$C$1:$AA$1,0),0)="X","X",""),"") ->  | AJ93: =IFERROR(IF(VLOOKUP($C93,Rankings!$G:$AA,MATCH("Helyezettek",Rankings!$G$1:$AA$1,0),0)="X","X",""),"") ->  | AK93: =IFERROR(IF(VLOOKUP($C93,Rankings!$K:$AA,MATCH("Helyezettek",Rankings!$K$1:$AA$1,0),0)="X","X",""),"") ->  | AL93: =IFERROR(IF(VLOOKUP($C93,Team_results!$E:$AN,MATCH("Helyezettek",Team_results!$E$5:$AN$5,0),0)="X","X",""),"") -> 
B94: 87 | P94: =+IF(OR(ISBLANK($C94),$C94=""),"",IF(OR(ISBLANK($Q94),$Q94="",$Q94=0),Paraméterek!$C$4,Paraméterek!$C$3)) ->  | T94: =+IF(ISBLANK($C94),"",IF(IF(ISERROR(YEAR(TODAY())-YEAR(S94)),100,(YEAR(TODAY())-YEAR(S94)))<Competition!$D$30+1,Paraméterek!$C$3,Paraméterek!$C$4)) ->  | AC94: - | AI94: =IFERROR(IF(VLOOKUP($C94,Rankings!$C:$AA,MATCH("Helyezettek",Rankings!$C$1:$AA$1,0),0)="X","X",""),"") ->  | AJ94: =IFERROR(IF(VLOOKUP($C94,Rankings!$G:$AA,MATCH("Helyezettek",Rankings!$G$1:$AA$1,0),0)="X","X",""),"") ->  | AK94: =IFERROR(IF(VLOOKUP($C94,Rankings!$K:$AA,MATCH("Helyezettek",Rankings!$K$1:$AA$1,0),0)="X","X",""),"") ->  | AL94: =IFERROR(IF(VLOOKUP($C94,Team_results!$E:$AN,MATCH("Helyezettek",Team_results!$E$5:$AN$5,0),0)="X","X",""),"") -> 
B95: 88 | P95: =+IF(OR(ISBLANK($C95),$C95=""),"",IF(OR(ISBLANK($Q95),$Q95="",$Q95=0),Paraméterek!$C$4,Paraméterek!$C$3)) ->  | T95: =+IF(ISBLANK($C95),"",IF(IF(ISERROR(YEAR(TODAY())-YEAR(S95)),100,(YEAR(TODAY())-YEAR(S95)))<Competition!$D$30+1,Paraméterek!$C$3,Paraméterek!$C$4)) ->  | AC95: - | AI95: =IFERROR(IF(VLOOKUP($C95,Rankings!$C:$AA,MATCH("Helyezettek",Rankings!$C$1:$AA$1,0),0)="X","X",""),"") ->  | AJ95: =IFERROR(IF(VLOOKUP($C95,Rankings!$G:$AA,MATCH("Helyezettek",Rankings!$G$1:$AA$1,0),0)="X","X",""),"") ->  | AK95: =IFERROR(IF(VLOOKUP($C95,Rankings!$K:$AA,MATCH("Helyezettek",Rankings!$K$1:$AA$1,0),0)="X","X",""),"") ->  | AL95: =IFERROR(IF(VLOOKUP($C95,Team_results!$E:$AN,MATCH("Helyezettek",Team_results!$E$5:$AN$5,0),0)="X","X",""),"") -> 
B96: 89 | P96: =+IF(OR(ISBLANK($C96),$C96=""),"",IF(OR(ISBLANK($Q96),$Q96="",$Q96=0),Paraméterek!$C$4,Paraméterek!$C$3)) ->  | T96: =+IF(ISBLANK($C96),"",IF(IF(ISERROR(YEAR(TODAY())-YEAR(S96)),100,(YEAR(TODAY())-YEAR(S96)))<Competition!$D$30+1,Paraméterek!$C$3,Paraméterek!$C$4)) ->  | AC96: - | AI96: =IFERROR(IF(VLOOKUP($C96,Rankings!$C:$AA,MATCH("Helyezettek",Rankings!$C$1:$AA$1,0),0)="X","X",""),"") ->  | AJ96: =IFERROR(IF(VLOOKUP($C96,Rankings!$G:$AA,MATCH("Helyezettek",Rankings!$G$1:$AA$1,0),0)="X","X",""),"") ->  | AK96: =IFERROR(IF(VLOOKUP($C96,Rankings!$K:$AA,MATCH("Helyezettek",Rankings!$K$1:$AA$1,0),0)="X","X",""),"") ->  | AL96: =IFERROR(IF(VLOOKUP($C96,Team_results!$E:$AN,MATCH("Helyezettek",Team_results!$E$5:$AN$5,0),0)="X","X",""),"") -> 
B97: 90 | P97: =+IF(OR(ISBLANK($C97),$C97=""),"",IF(OR(ISBLANK($Q97),$Q97="",$Q97=0),Paraméterek!$C$4,Paraméterek!$C$3)) ->  | T97: =+IF(ISBLANK($C97),"",IF(IF(ISERROR(YEAR(TODAY())-YEAR(S97)),100,(YEAR(TODAY())-YEAR(S97)))<Competition!$D$30+1,Paraméterek!$C$3,Paraméterek!$C$4)) ->  | AC97: - | AI97: =IFERROR(IF(VLOOKUP($C97,Rankings!$C:$AA,MATCH("Helyezettek",Rankings!$C$1:$AA$1,0),0)="X","X",""),"") ->  | AJ97: =IFERROR(IF(VLOOKUP($C97,Rankings!$G:$AA,MATCH("Helyezettek",Rankings!$G$1:$AA$1,0),0)="X","X",""),"") ->  | AK97: =IFERROR(IF(VLOOKUP($C97,Rankings!$K:$AA,MATCH("Helyezettek",Rankings!$K$1:$AA$1,0),0)="X","X",""),"") ->  | AL97: =IFERROR(IF(VLOOKUP($C97,Team_results!$E:$AN,MATCH("Helyezettek",Team_results!$E$5:$AN$5,0),0)="X","X",""),"") -> 
B98: 91 | P98: =+IF(OR(ISBLANK($C98),$C98=""),"",IF(OR(ISBLANK($Q98),$Q98="",$Q98=0),Paraméterek!$C$4,Paraméterek!$C$3)) ->  | T98: =+IF(ISBLANK($C98),"",IF(IF(ISERROR(YEAR(TODAY())-YEAR(S98)),100,(YEAR(TODAY())-YEAR(S98)))<Competition!$D$30+1,Paraméterek!$C$3,Paraméterek!$C$4)) ->  | AC98: - | AI98: =IFERROR(IF(VLOOKUP($C98,Rankings!$C:$AA,MATCH("Helyezettek",Rankings!$C$1:$AA$1,0),0)="X","X",""),"") ->  | AJ98: =IFERROR(IF(VLOOKUP($C98,Rankings!$G:$AA,MATCH("Helyezettek",Rankings!$G$1:$AA$1,0),0)="X","X",""),"") ->  | AK98: =IFERROR(IF(VLOOKUP($C98,Rankings!$K:$AA,MATCH("Helyezettek",Rankings!$K$1:$AA$1,0),0)="X","X",""),"") ->  | AL98: =IFERROR(IF(VLOOKUP($C98,Team_results!$E:$AN,MATCH("Helyezettek",Team_results!$E$5:$AN$5,0),0)="X","X",""),"") -> 
B99: 92 | P99: =+IF(OR(ISBLANK($C99),$C99=""),"",IF(OR(ISBLANK($Q99),$Q99="",$Q99=0),Paraméterek!$C$4,Paraméterek!$C$3)) ->  | T99: =+IF(ISBLANK($C99),"",IF(IF(ISERROR(YEAR(TODAY())-YEAR(S99)),100,(YEAR(TODAY())-YEAR(S99)))<Competition!$D$30+1,Paraméterek!$C$3,Paraméterek!$C$4)) ->  | AC99: - | AI99: =IFERROR(IF(VLOOKUP($C99,Rankings!$C:$AA,MATCH("Helyezettek",Rankings!$C$1:$AA$1,0),0)="X","X",""),"") ->  | AJ99: =IFERROR(IF(VLOOKUP($C99,Rankings!$G:$AA,MATCH("Helyezettek",Rankings!$G$1:$AA$1,0),0)="X","X",""),"") ->  | AK99: =IFERROR(IF(VLOOKUP($C99,Rankings!$K:$AA,MATCH("Helyezettek",Rankings!$K$1:$AA$1,0),0)="X","X",""),"") ->  | AL99: =IFERROR(IF(VLOOKUP($C99,Team_results!$E:$AN,MATCH("Helyezettek",Team_results!$E$5:$AN$5,0),0)="X","X",""),"") -> 
B100: 93 | P100: =+IF(OR(ISBLANK($C100),$C100=""),"",IF(OR(ISBLANK($Q100),$Q100="",$Q100=0),Paraméterek!$C$4,Paraméterek!$C$3)) ->  | T100: =+IF(ISBLANK($C100),"",IF(IF(ISERROR(YEAR(TODAY())-YEAR(S100)),100,(YEAR(TODAY())-YEAR(S100)))<Competition!$D$30+1,Paraméterek!$C$3,Paraméterek!$C$4)) ->  | AC100: - | AI100: =IFERROR(IF(VLOOKUP($C100,Rankings!$C:$AA,MATCH("Helyezettek",Rankings!$C$1:$AA$1,0),0)="X","X",""),"") ->  | AJ100: =IFERROR(IF(VLOOKUP($C100,Rankings!$G:$AA,MATCH("Helyezettek",Rankings!$G$1:$AA$1,0),0)="X","X",""),"") ->  | AK100: =IFERROR(IF(VLOOKUP($C100,Rankings!$K:$AA,MATCH("Helyezettek",Rankings!$K$1:$AA$1,0),0)="X","X",""),"") ->  | AL100: =IFERROR(IF(VLOOKUP($C100,Team_results!$E:$AN,MATCH("Helyezettek",Team_results!$E$5:$AN$5,0),0)="X","X",""),"") -> 
B101: 94 | P101: =+IF(OR(ISBLANK($C101),$C101=""),"",IF(OR(ISBLANK($Q101),$Q101="",$Q101=0),Paraméterek!$C$4,Paraméterek!$C$3)) ->  | T101: =+IF(ISBLANK($C101),"",IF(IF(ISERROR(YEAR(TODAY())-YEAR(S101)),100,(YEAR(TODAY())-YEAR(S101)))<Competition!$D$30+1,Paraméterek!$C$3,Paraméterek!$C$4)) ->  | AC101: - | AI101: =IFERROR(IF(VLOOKUP($C101,Rankings!$C:$AA,MATCH("Helyezettek",Rankings!$C$1:$AA$1,0),0)="X","X",""),"") ->  | AJ101: =IFERROR(IF(VLOOKUP($C101,Rankings!$G:$AA,MATCH("Helyezettek",Rankings!$G$1:$AA$1,0),0)="X","X",""),"") ->  | AK101: =IFERROR(IF(VLOOKUP($C101,Rankings!$K:$AA,MATCH("Helyezettek",Rankings!$K$1:$AA$1,0),0)="X","X",""),"") ->  | AL101: =IFERROR(IF(VLOOKUP($C101,Team_results!$E:$AN,MATCH("Helyezettek",Team_results!$E$5:$AN$5,0),0)="X","X",""),"") -> 
B102: 95 | P102: =+IF(OR(ISBLANK($C102),$C102=""),"",IF(OR(ISBLANK($Q102),$Q102="",$Q102=0),Paraméterek!$C$4,Paraméterek!$C$3)) ->  | T102: =+IF(ISBLANK($C102),"",IF(IF(ISERROR(YEAR(TODAY())-YEAR(S102)),100,(YEAR(TODAY())-YEAR(S102)))<Competition!$D$30+1,Paraméterek!$C$3,Paraméterek!$C$4)) ->  | AC102: - | AI102: =IFERROR(IF(VLOOKUP($C102,Rankings!$C:$AA,MATCH("Helyezettek",Rankings!$C$1:$AA$1,0),0)="X","X",""),"") ->  | AJ102: =IFERROR(IF(VLOOKUP($C102,Rankings!$G:$AA,MATCH("Helyezettek",Rankings!$G$1:$AA$1,0),0)="X","X",""),"") ->  | AK102: =IFERROR(IF(VLOOKUP($C102,Rankings!$K:$AA,MATCH("Helyezettek",Rankings!$K$1:$AA$1,0),0)="X","X",""),"") ->  | AL102: =IFERROR(IF(VLOOKUP($C102,Team_results!$E:$AN,MATCH("Helyezettek",Team_results!$E$5:$AN$5,0),0)="X","X",""),"") -> 
B103: 96 | P103: =+IF(OR(ISBLANK($C103),$C103=""),"",IF(OR(ISBLANK($Q103),$Q103="",$Q103=0),Paraméterek!$C$4,Paraméterek!$C$3)) ->  | T103: =+IF(ISBLANK($C103),"",IF(IF(ISERROR(YEAR(TODAY())-YEAR(S103)),100,(YEAR(TODAY())-YEAR(S103)))<Competition!$D$30+1,Paraméterek!$C$3,Paraméterek!$C$4)) ->  | AC103: - | AI103: =IFERROR(IF(VLOOKUP($C103,Rankings!$C:$AA,MATCH("Helyezettek",Rankings!$C$1:$AA$1,0),0)="X","X",""),"") ->  | AJ103: =IFERROR(IF(VLOOKUP($C103,Rankings!$G:$AA,MATCH("Helyezettek",Rankings!$G$1:$AA$1,0),0)="X","X",""),"") ->  | AK103: =IFERROR(IF(VLOOKUP($C103,Rankings!$K:$AA,MATCH("Helyezettek",Rankings!$K$1:$AA$1,0),0)="X","X",""),"") ->  | AL103: =IFERROR(IF(VLOOKUP($C103,Team_results!$E:$AN,MATCH("Helyezettek",Team_results!$E$5:$AN$5,0),0)="X","X",""),"") -> 
B104: 97 | P104: =+IF(OR(ISBLANK($C104),$C104=""),"",IF(OR(ISBLANK($Q104),$Q104="",$Q104=0),Paraméterek!$C$4,Paraméterek!$C$3)) ->  | T104: =+IF(ISBLANK($C104),"",IF(IF(ISERROR(YEAR(TODAY())-YEAR(S104)),100,(YEAR(TODAY())-YEAR(S104)))<Competition!$D$30+1,Paraméterek!$C$3,Paraméterek!$C$4)) ->  | AC104: - | AI104: =IFERROR(IF(VLOOKUP($C104,Rankings!$C:$AA,MATCH("Helyezettek",Rankings!$C$1:$AA$1,0),0)="X","X",""),"") ->  | AJ104: =IFERROR(IF(VLOOKUP($C104,Rankings!$G:$AA,MATCH("Helyezettek",Rankings!$G$1:$AA$1,0),0)="X","X",""),"") ->  | AK104: =IFERROR(IF(VLOOKUP($C104,Rankings!$K:$AA,MATCH("Helyezettek",Rankings!$K$1:$AA$1,0),0)="X","X",""),"") ->  | AL104: =IFERROR(IF(VLOOKUP($C104,Team_results!$E:$AN,MATCH("Helyezettek",Team_results!$E$5:$AN$5,0),0)="X","X",""),"") -> 
B105: 98 | P105: =+IF(OR(ISBLANK($C105),$C105=""),"",IF(OR(ISBLANK($Q105),$Q105="",$Q105=0),Paraméterek!$C$4,Paraméterek!$C$3)) ->  | T105: =+IF(ISBLANK($C105),"",IF(IF(ISERROR(YEAR(TODAY())-YEAR(S105)),100,(YEAR(TODAY())-YEAR(S105)))<Competition!$D$30+1,Paraméterek!$C$3,Paraméterek!$C$4)) ->  | AC105: - | AI105: =IFERROR(IF(VLOOKUP($C105,Rankings!$C:$AA,MATCH("Helyezettek",Rankings!$C$1:$AA$1,0),0)="X","X",""),"") ->  | AJ105: =IFERROR(IF(VLOOKUP($C105,Rankings!$G:$AA,MATCH("Helyezettek",Rankings!$G$1:$AA$1,0),0)="X","X",""),"") ->  | AK105: =IFERROR(IF(VLOOKUP($C105,Rankings!$K:$AA,MATCH("Helyezettek",Rankings!$K$1:$AA$1,0),0)="X","X",""),"") ->  | AL105: =IFERROR(IF(VLOOKUP($C105,Team_results!$E:$AN,MATCH("Helyezettek",Team_results!$E$5:$AN$5,0),0)="X","X",""),"") -> 
B106: 99 | P106: =+IF(OR(ISBLANK($C106),$C106=""),"",IF(OR(ISBLANK($Q106),$Q106="",$Q106=0),Paraméterek!$C$4,Paraméterek!$C$3)) ->  | T106: =+IF(ISBLANK($C106),"",IF(IF(ISERROR(YEAR(TODAY())-YEAR(S106)),100,(YEAR(TODAY())-YEAR(S106)))<Competition!$D$30+1,Paraméterek!$C$3,Paraméterek!$C$4)) ->  | AC106: - | AI106: =IFERROR(IF(VLOOKUP($C106,Rankings!$C:$AA,MATCH("Helyezettek",Rankings!$C$1:$AA$1,0),0)="X","X",""),"") ->  | AJ106: =IFERROR(IF(VLOOKUP($C106,Rankings!$G:$AA,MATCH("Helyezettek",Rankings!$G$1:$AA$1,0),0)="X","X",""),"") ->  | AK106: =IFERROR(IF(VLOOKUP($C106,Rankings!$K:$AA,MATCH("Helyezettek",Rankings!$K$1:$AA$1,0),0)="X","X",""),"") ->  | AL106: =IFERROR(IF(VLOOKUP($C106,Team_results!$E:$AN,MATCH("Helyezettek",Team_results!$E$5:$AN$5,0),0)="X","X",""),"") -> 
B107: 100 | D107: F | G107: X | H107: X | I107: X | P107: =+IF(OR(ISBLANK($C107),$C107=""),"",IF(OR(ISBLANK($Q107),$Q107="",$Q107=0),Paraméterek!$C$4,Paraméterek!$C$3)) ->  | T107: =+IF(ISBLANK($C107),"",IF(IF(ISERROR(YEAR(TODAY())-YEAR(S107)),100,(YEAR(TODAY())-YEAR(S107)))<Competition!$D$30+1,Paraméterek!$C$3,Paraméterek!$C$4)) ->  | AC107: - | AI107: =IFERROR(IF(VLOOKUP($C107,Rankings!$C:$AA,MATCH("Helyezettek",Rankings!$C$1:$AA$1,0),0)="X","X",""),"") ->  | AJ107: =IFERROR(IF(VLOOKUP($C107,Rankings!$G:$AA,MATCH("Helyezettek",Rankings!$G$1:$AA$1,0),0)="X","X",""),"") ->  | AK107: =IFERROR(IF(VLOOKUP($C107,Rankings!$K:$AA,MATCH("Helyezettek",Rankings!$K$1:$AA$1,0),0)="X","X",""),"") ->  | AL107: =IFERROR(IF(VLOOKUP($C107,Team_results!$E:$AN,MATCH("Helyezettek",Team_results!$E$5:$AN$5,0),0)="X","X",""),"") -> 
AI108: =IFERROR(IF(VLOOKUP($C108,Rankings!$C:$AA,MATCH("Helyezettek",Rankings!$C$1:$AA$1,0),0)="X","X",""),"") ->  | AJ108: =IFERROR(IF(VLOOKUP($C108,Rankings!$G:$AA,MATCH("Helyezettek",Rankings!$G$1:$AA$1,0),0)="X","X",""),"") ->  | AK108: =IFERROR(IF(VLOOKUP($C108,Rankings!$K:$AA,MATCH("Helyezettek",Rankings!$K$1:$AA$1,0),0)="X","X",""),"") ->  | AL108: =IFERROR(IF(VLOOKUP($C108,Team_results!$E:$AN,MATCH("Helyezettek",Team_results!$E$5:$AN$5,0),0)="X","X",""),"") -> 

Sheet Rounds
A1: No. | B1: Name | C1: 1.round | D1: 2.round | E1: 3.round | F1: 4.round | G1: 5.round | H1: 6.round | I1: 7.round | J1: 8.round | K1: 9.round | L1: 10.round | M1: 11.round | N1: 12.round
C2: 1 | D2: 2 | E2: 3 | F2: 4 | G2: 5 | H2: 6 | I2: 7 | J2: 8 | K2: 9 | L2: 10 | M2: 11 | N2: 12
C3: =+IF(C2>MAX(Competition!$D$16,$C$8),0,1) -> 1 | D3: =+IF(D2>MAX(Competition!$D$16,$C$8),0,1) -> 1 | E3: =+IF(E2>MAX(Competition!$D$16,$C$8),0,1) -> 1 | F3: =+IF(F2>MAX(Competition!$D$16,$C$8),0,1) -> 1 | G3: =+IF(G2>MAX(Competition!$D$16,$C$8),0,1) -> 1 | H3: =+IF(H2>MAX(Competition!$D$16,$C$8),0,1) -> 1 | I3: =+IF(I2>MAX(Competition!$D$16,$C$8),0,1) -> 1 | J3: =+IF(J2>MAX(Competition!$D$16,$C$8),0,1) -> 1 | K3: =+IF(K2>MAX(Competition!$D$16,$C$8),0,1) -> 0 | L3: =+IF(L2>MAX(Competition!$D$16,$C$8),0,1) -> 0 | M3: =+IF(M2>MAX(Competition!$D$16,$C$8),0,1) -> 0 | N3: =+IF(N2>MAX(Competition!$D$16,$C$8),0,1) -> 0
A4: Accuracy Landings - Eredmények / Results | C4: =+Competition!$C$4 -> PG-HG Triathlon
A5: Chief Judge: | B5: =+IF(Competition!$C$9="","",Competition!$C$9) -> Ana Pavlov | C5: Fichet 1: | D5: =+IF(Competition!$C$11="","",Competition!$C$11) -> 
A6: Event Judge: | B6: =+IF(Competition!$C$10="","",Competition!$C$10) -> Zsuzsanna Kiss | C6: Fichet 2: | D6: =+IF(Competition!$C$12="","",Competition!$C$12) -> 
A8: Befejezett körök / Completed rounds: | C8: 8
A10: Ssz | B10: Keresztnév, Családnév | C10: 1. kör | D10: 2. kör | E10: 3. kör | F10: 4. kör | G10: 5. kör | H10: 6. kör | I10: 7. kör | J10: 8. kör | K10: 9. kör | L10: 10. kör | M10: 11. kör | N10: 12. kör
A11: No. | B11: Name, Family Name | C11: 1. round | D11: 2. round | E11: 3. round | F11: 4. round | G11: 5. round | H11: 6. round | I11: 7. round | J11: 8. round | K11: 9. round | L11: 10. round | M11: 11. round | N11: 12. round | AC11: 1 | AD11: 2 | AE11: 3 | AF11: 4 | AG11: 5 | AH11: 6 | AI11: 7 | AJ11: 8 | AK11: 9 | AL11: 10 | AM11: 11 | AN11: 12
A12: 1 | B12: =+IF(OR(ISERROR(VLOOKUP($A12,Pilots!$B:$U,MATCH(B$1,Pilots!$B$1:$U$1,0),0)),VLOOKUP($A12,Pilots!$B:$U,MATCH(B$1,Pilots!$B$1:$U$1,0),0)=0),"",VLOOKUP($A12,Pilots!$B:$U,MATCH(B$1,Pilots!$B$1:$U$1,0),0)) -> Ivan Pavlov | C12: 41 | D12: 500 | E12: 1 | F12: 16 | G12: 6 | H12: 218 | I12: 2 | J12: 2 | AC12: =IF($B12="","",IF(AND(AC$11<($C$8+1),OR(C12="",ISBLANK(C12))),"X","")) ->  | AD12: =IF($B12="","",IF(AND(AD$11<($C$8+1),OR(D12="",ISBLANK(D12))),"X","")) ->  | AE12: =IF($B12="","",IF(AND(AE$11<($C$8+1),OR(E12="",ISBLANK(E12))),"X","")) ->  | AF12: =IF($B12="","",IF(AND(AF$11<($C$8+1),OR(F12="",ISBLANK(F12))),"X","")) ->  | AG12: =IF($B12="","",IF(AND(AG$11<($C$8+1),OR(G12="",ISBLANK(G12))),"X","")) ->  | AH12: =IF($B12="","",IF(AND(AH$11<($C$8+1),OR(H12="",ISBLANK(H12))),"X","")) ->  | AI12: =IF($B12="","",IF(AND(AI$11<($C$8+1),OR(I12="",ISBLANK(I12))),"X","")) ->  | AJ12: =IF($B12="","",IF(AND(AJ$11<($C$8+1),OR(J12="",ISBLANK(J12))),"X","")) ->  | AK12: =IF($B12="","",IF(AND(AK$11<($C$8+1),OR(K12="",ISBLANK(K12))),"X","")) ->  | AL12: =IF($B12="","",IF(AND(AL$11<($C$8+1),OR(L12="",ISBLANK(L12))),"X","")) ->  | AM12: =IF($B12="","",IF(AND(AM$11<($C$8+1),OR(M12="",ISBLANK(M12))),"X","")) ->  | AN12: =IF($B12="","",IF(AND(AN$11<($C$8+1),OR(N12="",ISBLANK(N12))),"X","")) -> 
A13: 2 | B13: =+IF(OR(ISERROR(VLOOKUP($A13,Pilots!$B:$U,MATCH(B$1,Pilots!$B$1:$U$1,0),0)),VLOOKUP($A13,Pilots!$B:$U,MATCH(B$1,Pilots!$B$1:$U$1,0),0)=0),"",VLOOKUP($A13,Pilots!$B:$U,MATCH(B$1,Pilots!$B$1:$U$1,0),0)) -> Goran Milojković | C13: 333 | D13: 338 | E13: 500 | F13: 500 | G13: 13 | H13: 97 | I13: 101 | J13: 137
A14: 3 | B14: =+IF(OR(ISERROR(VLOOKUP($A14,Pilots!$B:$U,MATCH(B$1,Pilots!$B$1:$U$1,0),0)),VLOOKUP($A14,Pilots!$B:$U,MATCH(B$1,Pilots!$B$1:$U$1,0),0)=0),"",VLOOKUP($A14,Pilots!$B:$U,MATCH(B$1,Pilots!$B$1:$U$1,0),0)) -> Jurica Katalinić | C14: 500 | D14: 150 | E14: 500 | F14: 123 | G14: 500 | AH14: X | AI14: X | AJ14: X
A15: 4 | B15: =+IF(OR(ISERROR(VLOOKUP($A15,Pilots!$B:$U,MATCH(B$1,Pilots!$B$1:$U$1,0),0)),VLOOKUP($A15,Pilots!$B:$U,MATCH(B$1,Pilots!$B$1:$U$1,0),0)=0),"",VLOOKUP($A15,Pilots!$B:$U,MATCH(B$1,Pilots!$B$1:$U$1,0),0)) -> István Gyarmati-Szabó | C15: 385 | D15: 500 | E15: 236 | F15: 500 | G15: 500 | H15: 193 | I15: 248 | J15: 500
A16: 5 | B16: =+IF(OR(ISERROR(VLOOKUP($A16,Pilots!$B:$U,MATCH(B$1,Pilots!$B$1:$U$1,0),0)),VLOOKUP($A16,Pilots!$B:$U,MATCH(B$1,Pilots!$B$1:$U$1,0),0)=0),"",VLOOKUP($A16,Pilots!$B:$U,MATCH(B$1,Pilots!$B$1:$U$1,0),0)) -> Dániel Hartmann | C16: 500 | D16: 31 | E16: 500 | F16: 500 | G16: 137 | H16: 217 | I16: 500 | J16: 500
A17: 6 | B17: =+IF(OR(ISERROR(VLOOKUP($A17,Pilots!$B:$U,MATCH(B$1,Pilots!$B$1:$U$1,0),0)),VLOOKUP($A17,Pilots!$B:$U,MATCH(B$1,Pilots!$B$1:$U$1,0),0)=0),"",VLOOKUP($A17,Pilots!$B:$U,MATCH(B$1,Pilots!$B$1:$U$1,0),0)) -> Miljan Zeković | C17: 500 | D17: 500 | E17: 500 | F17: 500 | G17: 46 | AH17: X | AI17: X | AJ17: X
A18: 7 | B18: =+IF(OR(ISERROR(VLOOKUP($A18,Pilots!$B:$U,MATCH(B$1,Pilots!$B$1:$U$1,0),0)),VLOOKUP($A18,Pilots!$B:$U,MATCH(B$1,Pilots!$B$1:$U$1,0),0)=0),"",VLOOKUP($A18,Pilots!$B:$U,MATCH(B$1,Pilots!$B$1:$U$1,0),0)) -> Dejan Valek | C18: 65 | D18: 3 | E18: 1 | F18: 95 | G18: 4 | H18: 0 | I18: 18 | J18: 1
A19: 8 | B19: =+IF(OR(ISERROR(VLOOKUP($A19,Pilots!$B:$U,MATCH(B$1,Pilots!$B$1:$U$1,0),0)),VLOOKUP($A19,Pilots!$B:$U,MATCH(B$1,Pilots!$B$1:$U$1,0),0)=0),"",VLOOKUP($A19,Pilots!$B:$U,MATCH(B$1,Pilots!$B$1:$U$1,0),0)) -> Amade Auner | C19: 500 | D19: 500 | E19: 500 | F19: 296 | AG19: X | AH19: X | AI19: X | AJ19: X
A20: 9 | B20: =+IF(OR(ISERROR(VLOOKUP($A20,Pilots!$B:$U,MATCH(B$1,Pilots!$B$1:$U$1,0),0)),VLOOKUP($A20,Pilots!$B:$U,MATCH(B$1,Pilots!$B$1:$U$1,0),0)=0),"",VLOOKUP($A20,Pilots!$B:$U,MATCH(B$1,Pilots!$B$1:$U$1,0),0)) -> Sándor Kaszás | C20: 1 | D20: 1 | E20: 2 | F20: 12 | G20: 3 | H20: 5 | I20: 8 | J20: 180
A21: 10 | B21: =+IF(OR(ISERROR(VLOOKUP($A21,Pilots!$B:$U,MATCH(B$1,Pilots!$B$1:$U$1,0),0)),VLOOKUP($A21,Pilots!$B:$U,MATCH(B$1,Pilots!$B$1:$U$1,0),0)=0),"",VLOOKUP($A21,Pilots!$B:$U,MATCH(B$1,Pilots!$B$1:$U$1,0),0)) -> Edina Szabóné Koleszár | C21: 129 | D21: 287 | E21: 414 | F21: 500 | G21: 339 | H21: 5 | I21: 105 | J21: 500
A22: 11 | B22: =+IF(OR(ISERROR(VLOOKUP($A22,Pilots!$B:$U,MATCH(B$1,Pilots!$B$1:$U$1,0),0)),VLOOKUP($A22,Pilots!$B:$U,MATCH(B$1,Pilots!$B$1:$U$1,0),0)=0),"",VLOOKUP($A22,Pilots!$B:$U,MATCH(B$1,Pilots!$B$1:$U$1,0),0)) -> Richárd Nagy | C22: 500 | D22: 500 | E22: 500 | F22: 500 | G22: 500 | AH22: X | AI22: X | AJ22: X
A23: 12 | B23: =+IF(OR(ISERROR(VLOOKUP($A23,Pilots!$B:$U,MATCH(B$1,Pilots!$B$1:$U$1,0),0)),VLOOKUP($A23,Pilots!$B:$U,MATCH(B$1,Pilots!$B$1:$U$1,0),0)=0),"",VLOOKUP($A23,Pilots!$B:$U,MATCH(B$1,Pilots!$B$1:$U$1,0),0)) -> Zeljko Šarčević | C23: 500 | D23: 500 | E23: 500 | AF23: X | AG23: X | AH23: X | AI23: X | AJ23: X
A24: 13 | B24: =+IF(OR(ISERROR(VLOOKUP($A24,Pilots!$B:$U,MATCH(B$1,Pilots!$B$1:$U$1,0),0)),VLOOKUP($A24,Pilots!$B:$U,MATCH(B$1,Pilots!$B$1:$U$1,0),0)=0),"",VLOOKUP($A24,Pilots!$B:$U,MATCH(B$1,Pilots!$B$1:$U$1,0),0)) -> Márkó Mihály | C24: 175 | D24: 500 | E24: 500 | F24: 13 | G24: 500 | H24: 156 | I24: 263 | J24: 500
A25: 14 | B25: =+IF(OR(ISERROR(VLOOKUP($A25,Pilots!$B:$U,MATCH(B$1,Pilots!$B$1:$U$1,0),0)),VLOOKUP($A25,Pilots!$B:$U,MATCH(B$1,Pilots!$B$1:$U$1,0),0)=0),"",VLOOKUP($A25,Pilots!$B:$U,MATCH(B$1,Pilots!$B$1:$U$1,0),0)) -> Zoltán Körmöczi | AC25: X | AD25: X | AE25: X | AF25: X | AG25: X | AH25: X | AI25: X | AJ25: X
A26: 15 | B26: =+IF(OR(ISERROR(VLOOKUP($A26,Pilots!$B:$U,MATCH(B$1,Pilots!$B$1:$U$1,0),0)),VLOOKUP($A26,Pilots!$B:$U,MATCH(B$1,Pilots!$B$1:$U$1,0),0)=0),"",VLOOKUP($A26,Pilots!$B:$U,MATCH(B$1,Pilots!$B$1:$U$1,0),0)) -> József Nagy | C26: 500 | D26: 417 | E26: 500 | F26: 500 | G26: 500 | AH26: X | AI26: X | AJ26: X
A27: 16 | B27: =+IF(OR(ISERROR(VLOOKUP($A27,Pilots!$B:$U,MATCH(B$1,Pilots!$B$1:$U$1,0),0)),VLOOKUP($A27,Pilots!$B:$U,MATCH(B$1,Pilots!$B$1:$U$1,0),0)=0),"",VLOOKUP($A27,Pilots!$B:$U,MATCH(B$1,Pilots!$B$1:$U$1,0),0)) -> Róbert Exner | C27: 500 | AD27: X | AE27: X | AF27: X | AG27: X | AH27: X | AI27: X | AJ27: X
A28: 17 | B28: =+IF(OR(ISERROR(VLOOKUP($A28,Pilots!$B:$U,MATCH(B$1,Pilots!$B$1:$U$1,0),0)),VLOOKUP($A28,Pilots!$B:$U,MATCH(B$1,Pilots!$B$1:$U$1,0),0)=0),"",VLOOKUP($A28,Pilots!$B:$U,MATCH(B$1,Pilots!$B$1:$U$1,0),0)) -> Josip File | C28: 500 | D28: 500 | E28: 500 | F28: 500 | AG28: X | AH28: X | AI28: X | AJ28: X
A29: 18 | B29: =+IF(OR(ISERROR(VLOOKUP($A29,Pilots!$B:$U,MATCH(B$1,Pilots!$B$1:$U$1,0),0)),VLOOKUP($A29,Pilots!$B:$U,MATCH(B$1,Pilots!$B$1:$U$1,0),0)=0),"",VLOOKUP($A29,Pilots!$B:$U,MATCH(B$1,Pilots!$B$1:$U$1,0),0)) -> Ivan Pavlov tandem | C29: 500 | D29: 13 | E29: 436 | F29: 6 | G29: 217 | AH29: X | AI29: X | AJ29: X
A30: 19 | B30: =+IF(OR(ISERROR(VLOOKUP($A30,Pilots!$B:$U,MATCH(B$1,Pilots!$B$1:$U$1,0),0)),VLOOKUP($A30,Pilots!$B:$U,MATCH(B$1,Pilots!$B$1:$U$1,0),0)=0),"",VLOOKUP($A30,Pilots!$B:$U,MATCH(B$1,Pilots!$B$1:$U$1,0),0)) -> Srđan Kesić | C30: 226 | D30: 500 | E30: 500 | F30: 13 | G30: 350 | H30: 2 | I30: 500 | J30: 29
A31: 20 | B31: =+IF(OR(ISERROR(VLOOKUP($A31,Pilots!$B:$U,MATCH(B$1,Pilots!$B$1:$U$1,0),0)),VLOOKUP($A31,Pilots!$B:$U,MATCH(B$1,Pilots!$B$1:$U$1,0),0)=0),"",VLOOKUP($A31,Pilots!$B:$U,MATCH(B$1,Pilots!$B$1:$U$1,0),0)) -> Miklós Ónódi | AC31: X | AD31: X | AE31: X | AF31: X | AG31: X | AH31: X | AI31: X | AJ31: X
A32: 21 | B32: =+IF(OR(ISERROR(VLOOKUP($A32,Pilots!$B:$U,MATCH(B$1,Pilots!$B$1:$U$1,0),0)),VLOOKUP($A32,Pilots!$B:$U,MATCH(B$1,Pilots!$B$1:$U$1,0),0)=0),"",VLOOKUP($A32,Pilots!$B:$U,MATCH(B$1,Pilots!$B$1:$U$1,0),0)) -> Viola Vass | C32: 500 | D32: 500 | E32: 500 | F32: 500 | AG32: X | AH32: X | AI32: X | AJ32: X
A33: 22 | B33: =+IF(OR(ISERROR(VLOOKUP($A33,Pilots!$B:$U,MATCH(B$1,Pilots!$B$1:$U$1,0),0)),VLOOKUP($A33,Pilots!$B:$U,MATCH(B$1,Pilots!$B$1:$U$1,0),0)=0),"",VLOOKUP($A33,Pilots!$B:$U,MATCH(B$1,Pilots!$B$1:$U$1,0),0)) -> Sándor Kaszás tandem | C33: 500 | D33: 387 | E33: 52 | F33: 176 | G33: 205 | AH33: X | AI33: X | AJ33: X
A34: 23 | B34: =+IF(OR(ISERROR(VLOOKUP($A34,Pilots!$B:$U,MATCH(B$1,Pilots!$B$1:$U$1,0),0)),VLOOKUP($A34,Pilots!$B:$U,MATCH(B$1,Pilots!$B$1:$U$1,0),0)=0),"",VLOOKUP($A34,Pilots!$B:$U,MATCH(B$1,Pilots!$B$1:$U$1,0),0)) -> Amade Auner tandem | C34: 500 | D34: 500 | E34: 425 | F34: 500 | G34: 500 | AH34: X | AI34: X | AJ34: X
A35: 24 | B35: =+IF(OR(ISERROR(VLOOKUP($A35,Pilots!$B:$U,MATCH(B$1,Pilots!$B$1:$U$1,0),0)),VLOOKUP($A35,Pilots!$B:$U,MATCH(B$1,Pilots!$B$1:$U$1,0),0)=0),"",VLOOKUP($A35,Pilots!$B:$U,MATCH(B$1,Pilots!$B$1:$U$1,0),0)) -> Ana Pavlov | G35: 500 | AC35: X | AD35: X | AE35: X | AF35: X | AH35: X | AI35: X | AJ35: X
A36: 25 | B36: =+IF(OR(ISERROR(VLOOKUP($A36,Pilots!$B:$U,MATCH(B$1,Pilots!$B$1:$U$1,0),0)),VLOOKUP($A36,Pilots!$B:$U,MATCH(B$1,Pilots!$B$1:$U$1,0),0)=0),"",VLOOKUP($A36,Pilots!$B:$U,MATCH(B$1,Pilots!$B$1:$U$1,0),0)) -> 
A37: 26 | B37: =+IF(OR(ISERROR(VLOOKUP($A37,Pilots!$B:$U,MATCH(B$1,Pilots!$B$1:$U$1,0),0)),VLOOKUP($A37,Pilots!$B:$U,MATCH(B$1,Pilots!$B$1:$U$1,0),0)=0),"",VLOOKUP($A37,Pilots!$B:$U,MATCH(B$1,Pilots!$B$1:$U$1,0),0)) -> 
A38: 27 | B38: =+IF(OR(ISERROR(VLOOKUP($A38,Pilots!$B:$U,MATCH(B$1,Pilots!$B$1:$U$1,0),0)),VLOOKUP($A38,Pilots!$B:$U,MATCH(B$1,Pilots!$B$1:$U$1,0),0)=0),"",VLOOKUP($A38,Pilots!$B:$U,MATCH(B$1,Pilots!$B$1:$U$1,0),0)) -> 
A39: 28 | B39: =+IF(OR(ISERROR(VLOOKUP($A39,Pilots!$B:$U,MATCH(B$1,Pilots!$B$1:$U$1,0),0)),VLOOKUP($A39,Pilots!$B:$U,MATCH(B$1,Pilots!$B$1:$U$1,0),0)=0),"",VLOOKUP($A39,Pilots!$B:$U,MATCH(B$1,Pilots!$B$1:$U$1,0),0)) -> 
A40: 29 | B40: =+IF(OR(ISERROR(VLOOKUP($A40,Pilots!$B:$U,MATCH(B$1,Pilots!$B$1:$U$1,0),0)),VLOOKUP($A40,Pilots!$B:$U,MATCH(B$1,Pilots!$B$1:$U$1,0),0)=0),"",VLOOKUP($A40,Pilots!$B:$U,MATCH(B$1,Pilots!$B$1:$U$1,0),0)) -> 
A41: 30 | B41: =+IF(OR(ISERROR(VLOOKUP($A41,Pilots!$B:$U,MATCH(B$1,Pilots!$B$1:$U$1,0),0)),VLOOKUP($A41,Pilots!$B:$U,MATCH(B$1,Pilots!$B$1:$U$1,0),0)=0),"",VLOOKUP($A41,Pilots!$B:$U,MATCH(B$1,Pilots!$B$1:$U$1,0),0)) -> 
A42: 31 | B42: =+IF(OR(ISERROR(VLOOKUP($A42,Pilots!$B:$U,MATCH(B$1,Pilots!$B$1:$U$1,0),0)),VLOOKUP($A42,Pilots!$B:$U,MATCH(B$1,Pilots!$B$1:$U$1,0),0)=0),"",VLOOKUP($A42,Pilots!$B:$U,MATCH(B$1,Pilots!$B$1:$U$1,0),0)) -> 
A43: 32 | B43: =+IF(OR(ISERROR(VLOOKUP($A43,Pilots!$B:$U,MATCH(B$1,Pilots!$B$1:$U$1,0),0)),VLOOKUP($A43,Pilots!$B:$U,MATCH(B$1,Pilots!$B$1:$U$1,0),0)=0),"",VLOOKUP($A43,Pilots!$B:$U,MATCH(B$1,Pilots!$B$1:$U$1,0),0)) -> 
A44: 33 | B44: =+IF(OR(ISERROR(VLOOKUP($A44,Pilots!$B:$U,MATCH(B$1,Pilots!$B$1:$U$1,0),0)),VLOOKUP($A44,Pilots!$B:$U,MATCH(B$1,Pilots!$B$1:$U$1,0),0)=0),"",VLOOKUP($A44,Pilots!$B:$U,MATCH(B$1,Pilots!$B$1:$U$1,0),0)) ->  | AC44: =IF($B44="","",IF(AND(AC$11<($C$8+1),OR(C44="",ISBLANK(C44))),"X","")) ->  | AD44: =IF($B44="","",IF(AND(AD$11<($C$8+1),OR(D44="",ISBLANK(D44))),"X","")) ->  | AE44: =IF($B44="","",IF(AND(AE$11<($C$8+1),OR(E44="",ISBLANK(E44))),"X","")) ->  | AF44: =IF($B44="","",IF(AND(AF$11<($C$8+1),OR(F44="",ISBLANK(F44))),"X","")) ->  | AG44: =IF($B44="","",IF(AND(AG$11<($C$8+1),OR(G44="",ISBLANK(G44))),"X","")) ->  | AH44: =IF($B44="","",IF(AND(AH$11<($C$8+1),OR(H44="",ISBLANK(H44))),"X","")) ->  | AI44: =IF($B44="","",IF(AND(AI$11<($C$8+1),OR(I44="",ISBLANK(I44))),"X","")) ->  | AJ44: =IF($B44="","",IF(AND(AJ$11<($C$8+1),OR(J44="",ISBLANK(J44))),"X","")) ->  | AK44: =IF($B44="","",IF(AND(AK$11<($C$8+1),OR(K44="",ISBLANK(K44))),"X","")) ->  | AL44: =IF($B44="","",IF(AND(AL$11<($C$8+1),OR(L44="",ISBLANK(L44))),"X","")) ->  | AM44: =IF($B44="","",IF(AND(AM$11<($C$8+1),OR(M44="",ISBLANK(M44))),"X","")) ->  | AN44: =IF($B44="","",IF(AND(AN$11<($C$8+1),OR(N44="",ISBLANK(N44))),"X","")) -> 
A45: 34 | B45: =+IF(OR(ISERROR(VLOOKUP($A45,Pilots!$B:$U,MATCH(B$1,Pilots!$B$1:$U$1,0),0)),VLOOKUP($A45,Pilots!$B:$U,MATCH(B$1,Pilots!$B$1:$U$1,0),0)=0),"",VLOOKUP($A45,Pilots!$B:$U,MATCH(B$1,Pilots!$B$1:$U$1,0),0)) -> 
A46: 35 | B46: =+IF(OR(ISERROR(VLOOKUP($A46,Pilots!$B:$U,MATCH(B$1,Pilots!$B$1:$U$1,0),0)),VLOOKUP($A46,Pilots!$B:$U,MATCH(B$1,Pilots!$B$1:$U$1,0),0)=0),"",VLOOKUP($A46,Pilots!$B:$U,MATCH(B$1,Pilots!$B$1:$U$1,0),0)) -> 
A47: 36 | B47: =+IF(OR(ISERROR(VLOOKUP($A47,Pilots!$B:$U,MATCH(B$1,Pilots!$B$1:$U$1,0),0)),VLOOKUP($A47,Pilots!$B:$U,MATCH(B$1,Pilots!$B$1:$U$1,0),0)=0),"",VLOOKUP($A47,Pilots!$B:$U,MATCH(B$1,Pilots!$B$1:$U$1,0),0)) -> 
A48: 37 | B48: =+IF(OR(ISERROR(VLOOKUP($A48,Pilots!$B:$U,MATCH(B$1,Pilots!$B$1:$U$1,0),0)),VLOOKUP($A48,Pilots!$B:$U,MATCH(B$1,Pilots!$B$1:$U$1,0),0)=0),"",VLOOKUP($A48,Pilots!$B:$U,MATCH(B$1,Pilots!$B$1:$U$1,0),0)) -> 
A49: 38 | B49: =+IF(OR(ISERROR(VLOOKUP($A49,Pilots!$B:$U,MATCH(B$1,Pilots!$B$1:$U$1,0),0)),VLOOKUP($A49,Pilots!$B:$U,MATCH(B$1,Pilots!$B$1:$U$1,0),0)=0),"",VLOOKUP($A49,Pilots!$B:$U,MATCH(B$1,Pilots!$B$1:$U$1,0),0)) -> 
A50: 39 | B50: =+IF(OR(ISERROR(VLOOKUP($A50,Pilots!$B:$U,MATCH(B$1,Pilots!$B$1:$U$1,0),0)),VLOOKUP($A50,Pilots!$B:$U,MATCH(B$1,Pilots!$B$1:$U$1,0),0)=0),"",VLOOKUP($A50,Pilots!$B:$U,MATCH(B$1,Pilots!$B$1:$U$1,0),0)) -> 
A51: 40 | B51: =+IF(OR(ISERROR(VLOOKUP($A51,Pilots!$B:$U,MATCH(B$1,Pilots!$B$1:$U$1,0),0)),VLOOKUP($A51,Pilots!$B:$U,MATCH(B$1,Pilots!$B$1:$U$1,0),0)=0),"",VLOOKUP($A51,Pilots!$B:$U,MATCH(B$1,Pilots!$B$1:$U$1,0),0)) -> 
A52: 41 | B52: =+IF(OR(ISERROR(VLOOKUP($A52,Pilots!$B:$U,MATCH(B$1,Pilots!$B$1:$U$1,0),0)),VLOOKUP($A52,Pilots!$B:$U,MATCH(B$1,Pilots!$B$1:$U$1,0),0)=0),"",VLOOKUP($A52,Pilots!$B:$U,MATCH(B$1,Pilots!$B$1:$U$1,0),0)) -> 
A53: 42 | B53: =+IF(OR(ISERROR(VLOOKUP($A53,Pilots!$B:$U,MATCH(B$1,Pilots!$B$1:$U$1,0),0)),VLOOKUP($A53,Pilots!$B:$U,MATCH(B$1,Pilots!$B$1:$U$1,0),0)=0),"",VLOOKUP($A53,Pilots!$B:$U,MATCH(B$1,Pilots!$B$1:$U$1,0),0)) -> 
A54: 43 | B54: =+IF(OR(ISERROR(VLOOKUP($A54,Pilots!$B:$U,MATCH(B$1,Pilots!$B$1:$U$1,0),0)),VLOOKUP($A54,Pilots!$B:$U,MATCH(B$1,Pilots!$B$1:$U$1,0),0)=0),"",VLOOKUP($A54,Pilots!$B:$U,MATCH(B$1,Pilots!$B$1:$U$1,0),0)) -> 
A55: 44 | B55: =+IF(OR(ISERROR(VLOOKUP($A55,Pilots!$B:$U,MATCH(B$1,Pilots!$B$1:$U$1,0),0)),VLOOKUP($A55,Pilots!$B:$U,MATCH(B$1,Pilots!$B$1:$U$1,0),0)=0),"",VLOOKUP($A55,Pilots!$B:$U,MATCH(B$1,Pilots!$B$1:$U$1,0),0)) -> 
A56: 45 | B56: =+IF(OR(ISERROR(VLOOKUP($A56,Pilots!$B:$U,MATCH(B$1,Pilots!$B$1:$U$1,0),0)),VLOOKUP($A56,Pilots!$B:$U,MATCH(B$1,Pilots!$B$1:$U$1,0),0)=0),"",VLOOKUP($A56,Pilots!$B:$U,MATCH(B$1,Pilots!$B$1:$U$1,0),0)) -> 
A57: 46 | B57: =+IF(OR(ISERROR(VLOOKUP($A57,Pilots!$B:$U,MATCH(B$1,Pilots!$B$1:$U$1,0),0)),VLOOKUP($A57,Pilots!$B:$U,MATCH(B$1,Pilots!$B$1:$U$1,0),0)=0),"",VLOOKUP($A57,Pilots!$B:$U,MATCH(B$1,Pilots!$B$1:$U$1,0),0)) -> 
A58: 47 | B58: =+IF(OR(ISERROR(VLOOKUP($A58,Pilots!$B:$U,MATCH(B$1,Pilots!$B$1:$U$1,0),0)),VLOOKUP($A58,Pilots!$B:$U,MATCH(B$1,Pilots!$B$1:$U$1,0),0)=0),"",VLOOKUP($A58,Pilots!$B:$U,MATCH(B$1,Pilots!$B$1:$U$1,0),0)) -> 
A59: 48 | B59: =+IF(OR(ISERROR(VLOOKUP($A59,Pilots!$B:$U,MATCH(B$1,Pilots!$B$1:$U$1,0),0)),VLOOKUP($A59,Pilots!$B:$U,MATCH(B$1,Pilots!$B$1:$U$1,0),0)=0),"",VLOOKUP($A59,Pilots!$B:$U,MATCH(B$1,Pilots!$B$1:$U$1,0),0)) -> 
A60: 49 | B60: =+IF(OR(ISERROR(VLOOKUP($A60,Pilots!$B:$U,MATCH(B$1,Pilots!$B$1:$U$1,0),0)),VLOOKUP($A60,Pilots!$B:$U,MATCH(B$1,Pilots!$B$1:$U$1,0),0)=0),"",VLOOKUP($A60,Pilots!$B:$U,MATCH(B$1,Pilots!$B$1:$U$1,0),0)) -> 
A61: 50 | B61: =+IF(OR(ISERROR(VLOOKUP($A61,Pilots!$B:$U,MATCH(B$1,Pilots!$B$1:$U$1,0),0)),VLOOKUP($A61,Pilots!$B:$U,MATCH(B$1,Pilots!$B$1:$U$1,0),0)=0),"",VLOOKUP($A61,Pilots!$B:$U,MATCH(B$1,Pilots!$B$1:$U$1,0),0)) -> 
A62: 51 | B62: =+IF(OR(ISERROR(VLOOKUP($A62,Pilots!$B:$U,MATCH(B$1,Pilots!$B$1:$U$1,0),0)),VLOOKUP($A62,Pilots!$B:$U,MATCH(B$1,Pilots!$B$1:$U$1,0),0)=0),"",VLOOKUP($A62,Pilots!$B:$U,MATCH(B$1,Pilots!$B$1:$U$1,0),0)) -> 
A63: 52 | B63: =+IF(OR(ISERROR(VLOOKUP($A63,Pilots!$B:$U,MATCH(B$1,Pilots!$B$1:$U$1,0),0)),VLOOKUP($A63,Pilots!$B:$U,MATCH(B$1,Pilots!$B$1:$U$1,0),0)=0),"",VLOOKUP($A63,Pilots!$B:$U,MATCH(B$1,Pilots!$B$1:$U$1,0),0)) -> 
A64: 53 | B64: =+IF(OR(ISERROR(VLOOKUP($A64,Pilots!$B:$U,MATCH(B$1,Pilots!$B$1:$U$1,0),0)),VLOOKUP($A64,Pilots!$B:$U,MATCH(B$1,Pilots!$B$1:$U$1,0),0)=0),"",VLOOKUP($A64,Pilots!$B:$U,MATCH(B$1,Pilots!$B$1:$U$1,0),0)) -> 
A65: 54 | B65: =+IF(OR(ISERROR(VLOOKUP($A65,Pilots!$B:$U,MATCH(B$1,Pilots!$B$1:$U$1,0),0)),VLOOKUP($A65,Pilots!$B:$U,MATCH(B$1,Pilots!$B$1:$U$1,0),0)=0),"",VLOOKUP($A65,Pilots!$B:$U,MATCH(B$1,Pilots!$B$1:$U$1,0),0)) -> 
A66: 55 | B66: =+IF(OR(ISERROR(VLOOKUP($A66,Pilots!$B:$U,MATCH(B$1,Pilots!$B$1:$U$1,0),0)),VLOOKUP($A66,Pilots!$B:$U,MATCH(B$1,Pilots!$B$1:$U$1,0),0)=0),"",VLOOKUP($A66,Pilots!$B:$U,MATCH(B$1,Pilots!$B$1:$U$1,0),0)) -> 
A67: 56 | B67: =+IF(OR(ISERROR(VLOOKUP($A67,Pilots!$B:$U,MATCH(B$1,Pilots!$B$1:$U$1,0),0)),VLOOKUP($A67,Pilots!$B:$U,MATCH(B$1,Pilots!$B$1:$U$1,0),0)=0),"",VLOOKUP($A67,Pilots!$B:$U,MATCH(B$1,Pilots!$B$1:$U$1,0),0)) -> 
A68: 57 | B68: =+IF(OR(ISERROR(VLOOKUP($A68,Pilots!$B:$U,MATCH(B$1,Pilots!$B$1:$U$1,0),0)),VLOOKUP($A68,Pilots!$B:$U,MATCH(B$1,Pilots!$B$1:$U$1,0),0)=0),"",VLOOKUP($A68,Pilots!$B:$U,MATCH(B$1,Pilots!$B$1:$U$1,0),0)) -> 
A69: 58 | B69: =+IF(OR(ISERROR(VLOOKUP($A69,Pilots!$B:$U,MATCH(B$1,Pilots!$B$1:$U$1,0),0)),VLOOKUP($A69,Pilots!$B:$U,MATCH(B$1,Pilots!$B$1:$U$1,0),0)=0),"",VLOOKUP($A69,Pilots!$B:$U,MATCH(B$1,Pilots!$B$1:$U$1,0),0)) -> 
A70: 59 | B70: =+IF(OR(ISERROR(VLOOKUP($A70,Pilots!$B:$U,MATCH(B$1,Pilots!$B$1:$U$1,0),0)),VLOOKUP($A70,Pilots!$B:$U,MATCH(B$1,Pilots!$B$1:$U$1,0),0)=0),"",VLOOKUP($A70,Pilots!$B:$U,MATCH(B$1,Pilots!$B$1:$U$1,0),0)) -> 
A71: 60 | B71: =+IF(OR(ISERROR(VLOOKUP($A71,Pilots!$B:$U,MATCH(B$1,Pilots!$B$1:$U$1,0),0)),VLOOKUP($A71,Pilots!$B:$U,MATCH(B$1,Pilots!$B$1:$U$1,0),0)=0),"",VLOOKUP($A71,Pilots!$B:$U,MATCH(B$1,Pilots!$B$1:$U$1,0),0)) -> 
A72: 61 | B72: =+IF(OR(ISERROR(VLOOKUP($A72,Pilots!$B:$U,MATCH(B$1,Pilots!$B$1:$U$1,0),0)),VLOOKUP($A72,Pilots!$B:$U,MATCH(B$1,Pilots!$B$1:$U$1,0),0)=0),"",VLOOKUP($A72,Pilots!$B:$U,MATCH(B$1,Pilots!$B$1:$U$1,0),0)) -> 
A73: 62 | B73: =+IF(OR(ISERROR(VLOOKUP($A73,Pilots!$B:$U,MATCH(B$1,Pilots!$B$1:$U$1,0),0)),VLOOKUP($A73,Pilots!$B:$U,MATCH(B$1,Pilots!$B$1:$U$1,0),0)=0),"",VLOOKUP($A73,Pilots!$B:$U,MATCH(B$1,Pilots!$B$1:$U$1,0),0)) -> 
A74: 63 | B74: =+IF(OR(ISERROR(VLOOKUP($A74,Pilots!$B:$U,MATCH(B$1,Pilots!$B$1:$U$1,0),0)),VLOOKUP($A74,Pilots!$B:$U,MATCH(B$1,Pilots!$B$1:$U$1,0),0)=0),"",VLOOKUP($A74,Pilots!$B:$U,MATCH(B$1,Pilots!$B$1:$U$1,0),0)) -> 
A75: 64 | B75: =+IF(OR(ISERROR(VLOOKUP($A75,Pilots!$B:$U,MATCH(B$1,Pilots!$B$1:$U$1,0),0)),VLOOKUP($A75,Pilots!$B:$U,MATCH(B$1,Pilots!$B$1:$U$1,0),0)=0),"",VLOOKUP($A75,Pilots!$B:$U,MATCH(B$1,Pilots!$B$1:$U$1,0),0)) -> 
A76: 65 | B76: =+IF(OR(ISERROR(VLOOKUP($A76,Pilots!$B:$U,MATCH(B$1,Pilots!$B$1:$U$1,0),0)),VLOOKUP($A76,Pilots!$B:$U,MATCH(B$1,Pilots!$B$1:$U$1,0),0)=0),"",VLOOKUP($A76,Pilots!$B:$U,MATCH(B$1,Pilots!$B$1:$U$1,0),0)) ->  | AC76: =IF($B76="","",IF(AND(AC$11<($C$8+1),OR(C76="",ISBLANK(C76))),"X","")) ->  | AD76: =IF($B76="","",IF(AND(AD$11<($C$8+1),OR(D76="",ISBLANK(D76))),"X","")) ->  | AE76: =IF($B76="","",IF(AND(AE$11<($C$8+1),OR(E76="",ISBLANK(E76))),"X","")) ->  | AF76: =IF($B76="","",IF(AND(AF$11<($C$8+1),OR(F76="",ISBLANK(F76))),"X","")) ->  | AG76: =IF($B76="","",IF(AND(AG$11<($C$8+1),OR(G76="",ISBLANK(G76))),"X","")) ->  | AH76: =IF($B76="","",IF(AND(AH$11<($C$8+1),OR(H76="",ISBLANK(H76))),"X","")) ->  | AI76: =IF($B76="","",IF(AND(AI$11<($C$8+1),OR(I76="",ISBLANK(I76))),"X","")) ->  | AJ76: =IF($B76="","",IF(AND(AJ$11<($C$8+1),OR(J76="",ISBLANK(J76))),"X","")) ->  | AK76: =IF($B76="","",IF(AND(AK$11<($C$8+1),OR(K76="",ISBLANK(K76))),"X","")) ->  | AL76: =IF($B76="","",IF(AND(AL$11<($C$8+1),OR(L76="",ISBLANK(L76))),"X","")) ->  | AM76: =IF($B76="","",IF(AND(AM$11<($C$8+1),OR(M76="",ISBLANK(M76))),"X","")) ->  | AN76: =IF($B76="","",IF(AND(AN$11<($C$8+1),OR(N76="",ISBLANK(N76))),"X","")) -> 
A77: 66 | B77: =+IF(OR(ISERROR(VLOOKUP($A77,Pilots!$B:$U,MATCH(B$1,Pilots!$B$1:$U$1,0),0)),VLOOKUP($A77,Pilots!$B:$U,MATCH(B$1,Pilots!$B$1:$U$1,0),0)=0),"",VLOOKUP($A77,Pilots!$B:$U,MATCH(B$1,Pilots!$B$1:$U$1,0),0)) -> 
A78: 67 | B78: =+IF(OR(ISERROR(VLOOKUP($A78,Pilots!$B:$U,MATCH(B$1,Pilots!$B$1:$U$1,0),0)),VLOOKUP($A78,Pilots!$B:$U,MATCH(B$1,Pilots!$B$1:$U$1,0),0)=0),"",VLOOKUP($A78,Pilots!$B:$U,MATCH(B$1,Pilots!$B$1:$U$1,0),0)) -> 
A79: 68 | B79: =+IF(OR(ISERROR(VLOOKUP($A79,Pilots!$B:$U,MATCH(B$1,Pilots!$B$1:$U$1,0),0)),VLOOKUP($A79,Pilots!$B:$U,MATCH(B$1,Pilots!$B$1:$U$1,0),0)=0),"",VLOOKUP($A79,Pilots!$B:$U,MATCH(B$1,Pilots!$B$1:$U$1,0),0)) -> 
A80: 69 | B80: =+IF(OR(ISERROR(VLOOKUP($A80,Pilots!$B:$U,MATCH(B$1,Pilots!$B$1:$U$1,0),0)),VLOOKUP($A80,Pilots!$B:$U,MATCH(B$1,Pilots!$B$1:$U$1,0),0)=0),"",VLOOKUP($A80,Pilots!$B:$U,MATCH(B$1,Pilots!$B$1:$U$1,0),0)) -> 
A81: 70 | B81: =+IF(OR(ISERROR(VLOOKUP($A81,Pilots!$B:$U,MATCH(B$1,Pilots!$B$1:$U$1,0),0)),VLOOKUP($A81,Pilots!$B:$U,MATCH(B$1,Pilots!$B$1:$U$1,0),0)=0),"",VLOOKUP($A81,Pilots!$B:$U,MATCH(B$1,Pilots!$B$1:$U$1,0),0)) -> 
A82: 71 | B82: =+IF(OR(ISERROR(VLOOKUP($A82,Pilots!$B:$U,MATCH(B$1,Pilots!$B$1:$U$1,0),0)),VLOOKUP($A82,Pilots!$B:$U,MATCH(B$1,Pilots!$B$1:$U$1,0),0)=0),"",VLOOKUP($A82,Pilots!$B:$U,MATCH(B$1,Pilots!$B$1:$U$1,0),0)) -> 
A83: 72 | B83: =+IF(OR(ISERROR(VLOOKUP($A83,Pilots!$B:$U,MATCH(B$1,Pilots!$B$1:$U$1,0),0)),VLOOKUP($A83,Pilots!$B:$U,MATCH(B$1,Pilots!$B$1:$U$1,0),0)=0),"",VLOOKUP($A83,Pilots!$B:$U,MATCH(B$1,Pilots!$B$1:$U$1,0),0)) -> 
A84: 73 | B84: =+IF(OR(ISERROR(VLOOKUP($A84,Pilots!$B:$U,MATCH(B$1,Pilots!$B$1:$U$1,0),0)),VLOOKUP($A84,Pilots!$B:$U,MATCH(B$1,Pilots!$B$1:$U$1,0),0)=0),"",VLOOKUP($A84,Pilots!$B:$U,MATCH(B$1,Pilots!$B$1:$U$1,0),0)) -> 
A85: 74 | B85: =+IF(OR(ISERROR(VLOOKUP($A85,Pilots!$B:$U,MATCH(B$1,Pilots!$B$1:$U$1,0),0)),VLOOKUP($A85,Pilots!$B:$U,MATCH(B$1,Pilots!$B$1:$U$1,0),0)=0),"",VLOOKUP($A85,Pilots!$B:$U,MATCH(B$1,Pilots!$B$1:$U$1,0),0)) -> 
A86: 75 | B86: =+IF(OR(ISERROR(VLOOKUP($A86,Pilots!$B:$U,MATCH(B$1,Pilots!$B$1:$U$1,0),0)),VLOOKUP($A86,Pilots!$B:$U,MATCH(B$1,Pilots!$B$1:$U$1,0),0)=0),"",VLOOKUP($A86,Pilots!$B:$U,MATCH(B$1,Pilots!$B$1:$U$1,0),0)) -> 
A87: 76 | B87: =+IF(OR(ISERROR(VLOOKUP($A87,Pilots!$B:$U,MATCH(B$1,Pilots!$B$1:$U$1,0),0)),VLOOKUP($A87,Pilots!$B:$U,MATCH(B$1,Pilots!$B$1:$U$1,0),0)=0),"",VLOOKUP($A87,Pilots!$B:$U,MATCH(B$1,Pilots!$B$1:$U$1,0),0)) -> 
A88: 77 | B88: =+IF(OR(ISERROR(VLOOKUP($A88,Pilots!$B:$U,MATCH(B$1,Pilots!$B$1:$U$1,0),0)),VLOOKUP($A88,Pilots!$B:$U,MATCH(B$1,Pilots!$B$1:$U$1,0),0)=0),"",VLOOKUP($A88,Pilots!$B:$U,MATCH(B$1,Pilots!$B$1:$U$1,0),0)) -> 
A89: 78 | B89: =+IF(OR(ISERROR(VLOOKUP($A89,Pilots!$B:$U,MATCH(B$1,Pilots!$B$1:$U$1,0),0)),VLOOKUP($A89,Pilots!$B:$U,MATCH(B$1,Pilots!$B$1:$U$1,0),0)=0),"",VLOOKUP($A89,Pilots!$B:$U,MATCH(B$1,Pilots!$B$1:$U$1,0),0)) -> 
A90: 79 | B90: =+IF(OR(ISERROR(VLOOKUP($A90,Pilots!$B:$U,MATCH(B$1,Pilots!$B$1:$U$1,0),0)),VLOOKUP($A90,Pilots!$B:$U,MATCH(B$1,Pilots!$B$1:$U$1,0),0)=0),"",VLOOKUP($A90,Pilots!$B:$U,MATCH(B$1,Pilots!$B$1:$U$1,0),0)) -> 
A91: 80 | B91: =+IF(OR(ISERROR(VLOOKUP($A91,Pilots!$B:$U,MATCH(B$1,Pilots!$B$1:$U$1,0),0)),VLOOKUP($A91,Pilots!$B:$U,MATCH(B$1,Pilots!$B$1:$U$1,0),0)=0),"",VLOOKUP($A91,Pilots!$B:$U,MATCH(B$1,Pilots!$B$1:$U$1,0),0)) -> 
A92: 81 | B92: =+IF(OR(ISERROR(VLOOKUP($A92,Pilots!$B:$U,MATCH(B$1,Pilots!$B$1:$U$1,0),0)),VLOOKUP($A92,Pilots!$B:$U,MATCH(B$1,Pilots!$B$1:$U$1,0),0)=0),"",VLOOKUP($A92,Pilots!$B:$U,MATCH(B$1,Pilots!$B$1:$U$1,0),0)) -> 
A93: 82 | B93: =+IF(OR(ISERROR(VLOOKUP($A93,Pilots!$B:$U,MATCH(B$1,Pilots!$B$1:$U$1,0),0)),VLOOKUP($A93,Pilots!$B:$U,MATCH(B$1,Pilots!$B$1:$U$1,0),0)=0),"",VLOOKUP($A93,Pilots!$B:$U,MATCH(B$1,Pilots!$B$1:$U$1,0),0)) -> 
A94: 83 | B94: =+IF(OR(ISERROR(VLOOKUP($A94,Pilots!$B:$U,MATCH(B$1,Pilots!$B$1:$U$1,0),0)),VLOOKUP($A94,Pilots!$B:$U,MATCH(B$1,Pilots!$B$1:$U$1,0),0)=0),"",VLOOKUP($A94,Pilots!$B:$U,MATCH(B$1,Pilots!$B$1:$U$1,0),0)) -> 
A95: 84 | B95: =+IF(OR(ISERROR(VLOOKUP($A95,Pilots!$B:$U,MATCH(B$1,Pilots!$B$1:$U$1,0),0)),VLOOKUP($A95,Pilots!$B:$U,MATCH(B$1,Pilots!$B$1:$U$1,0),0)=0),"",VLOOKUP($A95,Pilots!$B:$U,MATCH(B$1,Pilots!$B$1:$U$1,0),0)) -> 
A96: 85 | B96: =+IF(OR(ISERROR(VLOOKUP($A96,Pilots!$B:$U,MATCH(B$1,Pilots!$B$1:$U$1,0),0)),VLOOKUP($A96,Pilots!$B:$U,MATCH(B$1,Pilots!$B$1:$U$1,0),0)=0),"",VLOOKUP($A96,Pilots!$B:$U,MATCH(B$1,Pilots!$B$1:$U$1,0),0)) -> 
A97: 86 | B97: =+IF(OR(ISERROR(VLOOKUP($A97,Pilots!$B:$U,MATCH(B$1,Pilots!$B$1:$U$1,0),0)),VLOOKUP($A97,Pilots!$B:$U,MATCH(B$1,Pilots!$B$1:$U$1,0),0)=0),"",VLOOKUP($A97,Pilots!$B:$U,MATCH(B$1,Pilots!$B$1:$U$1,0),0)) -> 
A98: 87 | B98: =+IF(OR(ISERROR(VLOOKUP($A98,Pilots!$B:$U,MATCH(B$1,Pilots!$B$1:$U$1,0),0)),VLOOKUP($A98,Pilots!$B:$U,MATCH(B$1,Pilots!$B$1:$U$1,0),0)=0),"",VLOOKUP($A98,Pilots!$B:$U,MATCH(B$1,Pilots!$B$1:$U$1,0),0)) -> 
A99: 88 | B99: =+IF(OR(ISERROR(VLOOKUP($A99,Pilots!$B:$U,MATCH(B$1,Pilots!$B$1:$U$1,0),0)),VLOOKUP($A99,Pilots!$B:$U,MATCH(B$1,Pilots!$B$1:$U$1,0),0)=0),"",VLOOKUP($A99,Pilots!$B:$U,MATCH(B$1,Pilots!$B$1:$U$1,0),0)) -> 
A100: 89 | B100: =+IF(OR(ISERROR(VLOOKUP($A100,Pilots!$B:$U,MATCH(B$1,Pilots!$B$1:$U$1,0),0)),VLOOKUP($A100,Pilots!$B:$U,MATCH(B$1,Pilots!$B$1:$U$1,0),0)=0),"",VLOOKUP($A100,Pilots!$B:$U,MATCH(B$1,Pilots!$B$1:$U$1,0),0)) -> 
A101: 90 | B101: =+IF(OR(ISERROR(VLOOKUP($A101,Pilots!$B:$U,MATCH(B$1,Pilots!$B$1:$U$1,0),0)),VLOOKUP($A101,Pilots!$B:$U,MATCH(B$1,Pilots!$B$1:$U$1,0),0)=0),"",VLOOKUP($A101,Pilots!$B:$U,MATCH(B$1,Pilots!$B$1:$U$1,0),0)) -> 
A102: 91 | B102: =+IF(OR(ISERROR(VLOOKUP($A102,Pilots!$B:$U,MATCH(B$1,Pilots!$B$1:$U$1,0),0)),VLOOKUP($A102,Pilots!$B:$U,MATCH(B$1,Pilots!$B$1:$U$1,0),0)=0),"",VLOOKUP($A102,Pilots!$B:$U,MATCH(B$1,Pilots!$B$1:$U$1,0),0)) -> 
A103: 92 | B103: =+IF(OR(ISERROR(VLOOKUP($A103,Pilots!$B:$U,MATCH(B$1,Pilots!$B$1:$U$1,0),0)),VLOOKUP($A103,Pilots!$B:$U,MATCH(B$1,Pilots!$B$1:$U$1,0),0)=0),"",VLOOKUP($A103,Pilots!$B:$U,MATCH(B$1,Pilots!$B$1:$U$1,0),0)) -> 
A104: 93 | B104: =+IF(OR(ISERROR(VLOOKUP($A104,Pilots!$B:$U,MATCH(B$1,Pilots!$B$1:$U$1,0),0)),VLOOKUP($A104,Pilots!$B:$U,MATCH(B$1,Pilots!$B$1:$U$1,0),0)=0),"",VLOOKUP($A104,Pilots!$B:$U,MATCH(B$1,Pilots!$B$1:$U$1,0),0)) -> 
A105: 94 | B105: =+IF(OR(ISERROR(VLOOKUP($A105,Pilots!$B:$U,MATCH(B$1,Pilots!$B$1:$U$1,0),0)),VLOOKUP($A105,Pilots!$B:$U,MATCH(B$1,Pilots!$B$1:$U$1,0),0)=0),"",VLOOKUP($A105,Pilots!$B:$U,MATCH(B$1,Pilots!$B$1:$U$1,0),0)) -> 
A106: 95 | B106: =+IF(OR(ISERROR(VLOOKUP($A106,Pilots!$B:$U,MATCH(B$1,Pilots!$B$1:$U$1,0),0)),VLOOKUP($A106,Pilots!$B:$U,MATCH(B$1,Pilots!$B$1:$U$1,0),0)=0),"",VLOOKUP($A106,Pilots!$B:$U,MATCH(B$1,Pilots!$B$1:$U$1,0),0)) -> 
A107: 96 | B107: =+IF(OR(ISERROR(VLOOKUP($A107,Pilots!$B:$U,MATCH(B$1,Pilots!$B$1:$U$1,0),0)),VLOOKUP($A107,Pilots!$B:$U,MATCH(B$1,Pilots!$B$1:$U$1,0),0)=0),"",VLOOKUP($A107,Pilots!$B:$U,MATCH(B$1,Pilots!$B$1:$U$1,0),0)) -> 
A108: 97 | B108: =+IF(OR(ISERROR(VLOOKUP($A108,Pilots!$B:$U,MATCH(B$1,Pilots!$B$1:$U$1,0),0)),VLOOKUP($A108,Pilots!$B:$U,MATCH(B$1,Pilots!$B$1:$U$1,0),0)=0),"",VLOOKUP($A108,Pilots!$B:$U,MATCH(B$1,Pilots!$B$1:$U$1,0),0)) -> 
A109: 98 | B109: =+IF(OR(ISERROR(VLOOKUP($A109,Pilots!$B:$U,MATCH(B$1,Pilots!$B$1:$U$1,0),0)),VLOOKUP($A109,Pilots!$B:$U,MATCH(B$1,Pilots!$B$1:$U$1,0),0)=0),"",VLOOKUP($A109,Pilots!$B:$U,MATCH(B$1,Pilots!$B$1:$U$1,0),0)) -> 
A110: 99 | B110: =+IF(OR(ISERROR(VLOOKUP($A110,Pilots!$B:$U,MATCH(B$1,Pilots!$B$1:$U$1,0),0)),VLOOKUP($A110,Pilots!$B:$U,MATCH(B$1,Pilots!$B$1:$U$1,0),0)=0),"",VLOOKUP($A110,Pilots!$B:$U,MATCH(B$1,Pilots!$B$1:$U$1,0),0)) -> 

Sheet Results
A1: - | D1: =+Pilots!C1 -> Name | E1: =+Pilots!D1 -> Gender | F1: =+Pilots!K1 -> Country | G1: =+Pilots!E1 -> Team | I1: =+I8&".round" -> 1.round | J1: =+J8&".round" -> 2.round | K1: 3.round | L1: 4.round | M1: 5.round | N1: 6.round | O1: 7.round | P1: 8.round | Q1: 9.round | R1: 10.round | S1: 11.round | T1: 12.round | V1: R1 | W1: R2 | X1: R3 | Y1: R4 | Z1: R5 | AA1: R6 | AB1: R7 | AC1: R8 | AD1: R9 | AE1: R10 | AF1: R11 | AG1: R12 | AI1: Cleared | AK1: Total
A2: - | H2: 1 | I2: 0 | J2: 0 | K2: 0 | L2: 0 | M2: 0 | N2: 0 | O2: 0 | P2: 0 | Q2: 0 | R2: 0 | S2: 0 | T2: 0 | U2: 0 | V2: =+IF(V8>Competition!$D$16,0,1) -> 1 | W2: =+IF(W8>Competition!$D$16,0,1) -> 1 | X2: =+IF(X8>Competition!$D$16,0,1) -> 1 | Y2: =+IF(Y8>Competition!$D$16,0,1) -> 1 | Z2: =+IF(Z8>Competition!$D$16,0,1) -> 1 | AA2: =+IF(AA8>Competition!$D$16,0,1) -> 1 | AB2: =+IF(AB8>Competition!$D$16,0,1) -> 1 | AC2: =+IF(AC8>Competition!$D$16,0,1) -> 1 | AD2: =+IF(AD8>Competition!$D$16,0,1) -> 0 | AE2: =+IF(AE8>Competition!$D$16,0,1) -> 0 | AF2: =+IF(AF8>Competition!$D$16,0,1) -> 0 | AG2: =+IF(AG8>Competition!$D$16,0,1) -> 0 | AH2: =+AI2 -> 1 | AI2: =+IF(Competition!$D$20=Paraméterek!$C$3,1,0) -> 1 | AJ2: 1 | AK2: 1 | AL2: 0 | AM2: 1 | AN2: 1 | AO2: 1 | AP2: 1 | AQ2: 0 | AR2: =IF($F$6+1>AR8,IF(COUNTIFS(AR$12:AR$112,"X")>0,1,0),IF(COUNTIFS(AR$12:AR$112,"X")+COUNTIFS(AR$12:AR$112,"elérhető")>0,1,0)) -> 0 | AS2: 1 | AT2: 0 | AU2: 0 | AV2: 0 | AW2: 0 | AX2: 0 | AY2: 0 | AZ2: 0 | BA2: 0 | BB2: 0 | BC2: 0 | BD2: 0 | BE2: 1 | BF2: 0 | BG2: 1 | BH2: 0 | BI2: 1 | BJ2: 1 | BK2: 0 | BL2: 0 | BM2: 0 | BN2: 0 | BO2: 0 | BP2: 0 | BQ2: 0 | BR2: 0 | BS2: 0 | BT2: =+AR2 -> 0 | BU2: 1 | BV2: =+BW2 -> 1 | BW2: =+IF(SUM(AR2:BS2)>0,1,0) -> 1 | BX2: 0 | BY2: 0 | BZ2: 0 | CA2: 0 | CB2: 0 | CC2: 0 | CD2: 0 | CE2: 0 | CF2: 0 | CG2: 0 | CH2: 0 | CI2: 0 | CJ2: 0 | CK2: 0 | CL2: 0 | CM2: 0 | CN2: 1 | CO2: 0 | CP2: 0 | CQ2: 0 | CR2: 0 | CS2: 0 | CT2: 1 | CU2: 1 | CV2: 1 | CW2: 0 | CX2: 0 | CY2: 0 | CZ2: 0 | DA2: 0 | DB2: 1 | DC2: 1 | DD2: 1 | DE2: 0 | DF2: 0 | DG2: 0 | DH2: 0 | DI2: 0 | DJ2: 1 | DK2: 1 | DL2: 1 | DM2: =+IF(DM8>$F$6,0,1) -> 1 | DN2: =+IF(DN8>$F$6,0,1) -> 1 | DO2: 1 | DP2: 1 | DQ2: 1 | DR2: 1 | DS2: 1 | DT2: 1 | DU2: 0 | DV2: 0 | DW2: 0 | DX2: 0 | DY2: 0 | EL2: 0 | EM2: 0 | EN2: 0 | EO2: 0 | EP2: 0 | EQ2: 0 | ER2: 0 | ES2: 0 | ET2: 0 | EU2: 0 | EV2: 0 | EW2: 0 | EX2: 0 | EY2: 0 | EZ2: 0 | FA2: 0 | FB2: 0 | FC2: 0 | FD2: 0 | FE2: 0 | FF2: 0 | FG2: 0 | FH2: 0 | FI2: 0 | FJ2: 0 | FK2: 0 | FL2: 0 | FM2: 0 | FO2: 0 | FP2: 0 | FQ2: 0 | FR2: 0 | FS2: 0 | FT2: 0 | FU2: 0 | FV2: 0 | FW2: 0 | FX2: 0 | FY2: 0 | FZ2: 0 | GA2: 0 | GB2: 0 | GC2: 0 | GD2: 0 | GE2: 0 | GF2: 0 | GG2: 0 | GH2: 0 | GI2: 0 | GJ2: 0 | GK2: 0 | GL2: 0 | GM2: 0 | GN2: 0 | GO2: 0 | GP2: 0 | GQ2: 0 | GR2: 0 | GS2: 0 | GT2: 0 | GU2: 0 | GV2: 0 | GW2: 0 | GX2: 0 | GY2: 0 | GZ2: 0 | HA2: 0 | HB2: 0 | HC2: 0 | HD2: 0 | HE2: 0 | HF2: 0 | HG2: 0 | HH2: 0 | HI2: 0 | HJ2: 0 | HK2: 0 | HL2: 0 | HM2: 0 | HN2: 0 | HO2: 0 | HP2: 0 | HQ2: 0 | HR2: 0 | HS2: 0 | HT2: 0 | HU2: 0 | HV2: 0 | HW2: 0 | HX2: 0 | HY2: 0 | HZ2: 0 | IA2: 0 | IB2: 0 | IC2: 0 | ID2: 0 | IE2: 0
A3: - | AT3: =+fem -> F | AW3: =+fem -> F | AZ3: =+fem -> F | BC3: =+fem -> F | BF3: =+fem -> F | BH3: =+fem -> F | BJ3: =+fem -> F | BL3: =+fem -> F | BN3: =+fem -> F | BP3: =+fem -> F | BS3: =+fem -> F | EN3: =+fem -> F | EQ3: =+fem -> F | ET3: =+fem -> F | EW3: =+fem -> F | EZ3: =+fem -> F | FB3: =+fem -> F | FD3: =+fem -> F | FF3: =+fem -> F | FH3: =+fem -> F | FJ3: =+fem -> F | FM3: =+fem -> F | FQ3: =+fem -> F | FT3: =+fem -> F | FW3: =+fem -> F | FZ3: =+fem -> F | GC3: =+fem -> F | GE3: =+fem -> F | GG3: =+fem -> F | GI3: =+fem -> F | GK3: =+fem -> F | GM3: =+fem -> F | GP3: =+fem -> F
A4: X | C4: =+Competition!C4 -> PG-HG Triathlon | V4: =+"hibapontok / results (DNF, DSQ = "&Competition!$D$18&")" -> hibapontok / results (DNF, DSQ = 500) | AI4: =IF(OR(Competition!$D$20=Paraméterek!$C$4,$F$6<Competition!$D$21),"nincs / none","max. pont") -> max. pont | AP4: Rekordok / Records | BY4: Helyezések / Rankings | CB4: melyik eredmény törlődik | DM4: Helyezések a körökön belül / Ranking within rounds | EM4: HUN | EN4: HUN | EP4: HUN | EQ4: HUN | ES4: HUN | ET4: HUN | EV4: HUN | EW4: HUN | EY4: HUN | EZ4: HUN | FA4: HUN | FB4: HUN | FC4: HUN | FD4: HUN | FE4: HUN | FF4: HUN | FG4: HUN | FH4: HUN | FI4: HUN | FJ4: HUN | FL4: HUN | FM4: HUN | FP4: HUN | FQ4: HUN | FS4: HUN | FT4: HUN | FV4: HUN | FW4: HUN | FY4: HUN | FZ4: HUN | GB4: HUN | GC4: HUN | GD4: HUN | GE4: HUN | GF4: HUN | GG4: HUN | GH4: HUN | GI4: HUN | GJ4: HUN | GK4: HUN | GL4: HUN | GM4: HUN | GO4: HUN | GP4: HUN
A5: X
A6: X | C6: Befejezett körök / Completed rounds: | F6: =+Rounds!C8 -> 8 | I6: =+IF(I8>$F$6,Paraméterek!$E$4,Paraméterek!$E$3) -> þ | J6: =+IF(J8>$F$6,Paraméterek!$E$4,Paraméterek!$E$3) -> þ | K6: =+IF(K8>$F$6,Paraméterek!$E$4,Paraméterek!$E$3) -> þ | L6: =+IF(L8>$F$6,Paraméterek!$E$4,Paraméterek!$E$3) -> þ | M6: =+IF(M8>$F$6,Paraméterek!$E$4,Paraméterek!$E$3) -> þ | N6: =+IF(N8>$F$6,Paraméterek!$E$4,Paraméterek!$E$3) -> þ | O6: =+IF(O8>$F$6,Paraméterek!$E$4,Paraméterek!$E$3) -> þ | P6: =+IF(P8>$F$6,Paraméterek!$E$4,Paraméterek!$E$3) -> þ | Q6: =+IF(Q8>$F$6,Paraméterek!$E$4,Paraméterek!$E$3) -> ¨ | R6: =+IF(R8>$F$6,Paraméterek!$E$4,Paraméterek!$E$3) -> ¨ | S6: =+IF(S8>$F$6,Paraméterek!$E$4,Paraméterek!$E$3) -> ¨ | T6: =+IF(T8>$F$6,Paraméterek!$E$4,Paraméterek!$E$3) -> ¨ | V6: =+IF(V8>$F$6,Paraméterek!$E$4,Paraméterek!$E$3) -> þ | W6: =+IF(W8>$F$6,Paraméterek!$E$4,Paraméterek!$E$3) -> þ | X6: =+IF(X8>$F$6,Paraméterek!$E$4,Paraméterek!$E$3) -> þ | Y6: =+IF(Y8>$F$6,Paraméterek!$E$4,Paraméterek!$E$3) -> þ | Z6: =+IF(Z8>$F$6,Paraméterek!$E$4,Paraméterek!$E$3) -> þ | AA6: =+IF(AA8>$F$6,Paraméterek!$E$4,Paraméterek!$E$3) -> þ | AB6: =+IF(AB8>$F$6,Paraméterek!$E$4,Paraméterek!$E$3) -> þ | AC6: =+IF(AC8>$F$6,Paraméterek!$E$4,Paraméterek!$E$3) -> þ | AD6: =+IF(AD8>$F$6,Paraméterek!$E$4,Paraméterek!$E$3) -> ¨ | AE6: =+IF(AE8>$F$6,Paraméterek!$E$4,Paraméterek!$E$3) -> ¨ | AF6: =+IF(AF8>$F$6,Paraméterek!$E$4,Paraméterek!$E$3) -> ¨ | AG6: =+IF(AG8>$F$6,Paraméterek!$E$4,Paraméterek!$E$3) -> ¨ | AQ6: még nem jó a képlet, a legutolsó kellene… | AR6: World | AS6: HUN | AT6: HUN | AU6: World | AV6: HUN | AW6: HUN | AX6: World | AY6: HUN | AZ6: HUN | BA6: World | BB6: HUN | BC6: HUN | BD6: World | BE6: HUN | BF6: HUN | BG6: HUN | BH6: HUN | BI6: HUN | BJ6: HUN | BK6: HUN | BL6: HUN | BM6: HUN | BN6: HUN | BO6: HUN | BP6: HUN | BQ6: World | BR6: HUN | BS6: HUN | CO6: Competition: | CU6: Overall | CW6: Competition: | DC6: tandem | DE6: Competition: | DK6: =+Pilots!$I$7 -> HG | EL6: rekord? | EM6: rekord? | EN6: rekord? | EO6: rekord? | EP6: rekord? | EQ6: rekord? | ER6: rekord? | ES6: rekord? | ET6: rekord? | EU6: rekord? | EV6: rekord? | EW6: rekord? | EX6: rekord? | EY6: rekord? | EZ6: rekord? | FA6: rekord? | FB6: rekord? | FC6: rekord? | FD6: rekord? | FE6: rekord? | FF6: rekord? | FG6: rekord? | FH6: rekord? | FI6: rekord? | FJ6: rekord? | FK6: rekord? | FL6: rekord? | FM6: rekord? | FO6: elérhető? | FP6: elérhető? | FQ6: elérhető? | FR6: elérhető? | FS6: elérhető? | FT6: elérhető? | FU6: elérhető? | FV6: elérhető? | FW6: elérhető? | FX6: elérhető? | FY6: elérhető? | FZ6: elérhető? | GA6: elérhető? | GB6: elérhető? | GC6: elérhető? | GD6: elérhető? | GE6: elérhető? | GF6: elérhető? | GG6: elérhető? | GH6: elérhető? | GI6: elérhető? | GJ6: elérhető? | GK6: elérhető? | GL6: elérhető? | GM6: elérhető? | GN6: elérhető? | GO6: elérhető? | GP6: elérhető? | GW6: =+IF($F$6>GW8-1,1,0) -> 1 | GX6: =+IF($F$6>GX8-1,1,0) -> 1 | GY6: 1 | GZ6: 1 | HA6: 1 | HB6: 0 | HC6: 0 | HD6: 0 | HE6: 0 | HG6: =+IF($F$6>HG8-1,1,0) -> 1 | HH6: =+IF($F$6>HH8-1,1,0) -> 1 | HI6: =+IF($F$6>HI8-1,1,0) -> 1 | HJ6: =+IF($F$6>HJ8-1,1,0) -> 1 | HK6: =+IF($F$6>HK8-1,1,0) -> 1 | HL6: 1 | HM6: 1 | HN6: 1 | HO6: 0 | HP6: 0 | HQ6: 0 | HR6: 0 | HT6: =+IF($F$6>HT8-1,1,0) -> 1 | HU6: 1 | HV6: 1 | HW6: 1 | HX6: 1 | HY6: 1 | HZ6: 1 | IA6: 1 | IB6: 0 | IC6: 0 | ID6: 0 | IE6: 0
A7: X
A8: - | I8: 1 | J8: 2 | K8: 3 | L8: 4 | M8: 5 | N8: 6 | O8: 7 | P8: 8 | Q8: 9 | R8: 10 | S8: 11 | T8: 12 | V8: 1 | W8: 2 | X8: 3 | Y8: 4 | Z8: 5 | AA8: 6 | AB8: 7 | AC8: 8 | AD8: 9 | AE8: 10 | AF8: 11 | AG8: 12 | AR8: 2 | AS8: 2 | AT8: 2 | AU8: 3 | AV8: 3 | AW8: 3 | AX8: 4 | AY8: 4 | AZ8: 4 | BA8: 5 | BB8: 5 | BC8: 5 | BD8: 6 | BE8: 6 | BF8: 6 | BG8: 7 | BH8: 7 | BI8: 8 | BJ8: 8 | BK8: 9 | BL8: 9 | BM8: 10 | BN8: 10 | BO8: 11 | BP8: 11 | BQ8: 12 | BR8: 12 | BS8: 12 | CB8: 1 | CC8: 2 | CD8: 3 | CE8: 4 | CF8: 5 | CG8: 6 | CH8: 7 | CI8: 8 | CJ8: 9 | CK8: 10 | CL8: 11 | CM8: 12 | DM8: 1 | DN8: 2 | DO8: 3 | DP8: 4 | DQ8: 5 | DR8: 6 | DS8: 7 | DT8: 8 | DU8: 9 | DV8: 10 | DW8: 11 | DX8: 12 | EL8: =+AR8 -> 2 | EM8: 2 | EN8: 2 | EO8: =+AU8 -> 3 | EP8: 3 | EQ8: 3 | ER8: =+AX8 -> 4 | ES8: 4 | ET8: 4 | EU8: =+BA8 -> 5 | EV8: 5 | EW8: 5 | EX8: =+BD8 -> 6 | EY8: 6 | EZ8: 6 | FA8: 7 | FB8: 7 | FC8: 8 | FD8: 8 | FE8: 9 | FF8: 9 | FG8: 10 | FH8: 10 | FI8: 11 | FJ8: 11 | FK8: =+BQ8 -> 12 | FL8: 12 | FM8: 12 | FO8: =+AR8 -> 2 | FP8: 2 | FQ8: 2 | FR8: =+AU8 -> 3 | FS8: 3 | FT8: 3 | FU8: =+AX8 -> 4 | FV8: 4 | FW8: 4 | FX8: =+BA8 -> 5 | FY8: 5 | FZ8: 5 | GA8: =+BD8 -> 6 | GB8: 6 | GC8: 6 | GD8: 7 | GE8: 7 | GF8: 8 | GG8: 8 | GH8: 9 | GI8: 9 | GJ8: 10 | GK8: 10 | GL8: 11 | GM8: 11 | GN8: =+BQ8 -> 12 | GO8: 12 | GP8: 12 | GW8: 4 | GX8: 5 | GY8: 6 | GZ8: 7 | HA8: 8 | HB8: 9 | HC8: 10 | HD8: 11 | HE8: 12 | HG8: 1 | HH8: 2 | HI8: 3 | HJ8: 4 | HK8: 5 | HL8: 6 | HM8: 7 | HN8: 8 | HO8: 9 | HP8: 10 | HQ8: 11 | HR8: 12 | HT8: 4 | HU8: 4 | HV8: 4 | HW8: 4 | HX8: 5 | HY8: 6 | HZ8: 7 | IA8: 8 | IB8: 9 | IC8: 10 | ID8: 11 | IE8: 12
A9: X | C9: # | D9: Name | E9: Gender | F9: NAT | G9: Team | H9: . | I9: 1. round | J9: 2. round | K9: 3. round | L9: 4. round | M9: 5. round | N9: 6. round | O9: 7. round | P9: 8. round | Q9: 9. round | R9: 10. round | S9: 11. round | T9: 12. round | U9: . | V9: =+I9 -> 1. round | W9: 2. round | X9: 3. round | Y9: 4. round | Z9: 5. round | AA9: 6. round | AB9: 7. round | AC9: 8. round | AD9: 9. round | AE9: 10. round | AF9: 11. round | AG9: 12. round | AH9: . | AI9: Cleared round result | AJ9: . | AK9: Total points | AL9: Össz pontszám (női) | AN9: Achieved FAI badge | AP9: record | AQ9: reached | AR9: =+W9&" record" -> 2. round record | AS9: =+W9&" rekord" -> 2. round rekord | AT9: =+W9&" női rekord" -> 2. round női rekord | AU9: =+X9&" record" -> 3. round record | AV9: =+X9&" rekord" -> 3. round rekord | AW9: =+X9&" női rekord" -> 3. round női rekord | AX9: =+Y9&" record" -> 4. round record | AY9: =+Y9&" rekord" -> 4. round rekord | AZ9: =+Y9&" női rekord" -> 4. round női rekord | BA9: =+Z9&" record" -> 5. round record | BB9: =+Z9&" rekord" -> 5. round rekord | BC9: =+Z9&" női rekord" -> 5. round női rekord | BD9: =+AA9&" record" -> 6. round record | BE9: =+AA9&" rekord" -> 6. round rekord | BF9: =+AA9&" női rekord" -> 6. round női rekord | BG9: =+AB9&" rekord" -> 7. round rekord | BH9: =+AB9&" női rekord" -> 7. round női rekord | BI9: =+AC9&" rekord" -> 8. round rekord | BJ9: =+AC9&" női rekord" -> 8. round női rekord | BK9: =+AD9&" rekord" -> 9. round rekord | BL9: =+AD9&" női rekord" -> 9. round női rekord | BM9: =+AE9&" rekord" -> 10. round rekord | BN9: =+AE9&" női rekord" -> 10. round női rekord | BO9: =+AF9&" rekord" -> 11. round rekord | BP9: =+AF9&" női rekord" -> 11. round női rekord | BQ9: =+AG9&" record" -> 12. round record | BR9: =+AG9&" rekord" -> 12. round rekord | BS9: =+AG9&" női rekord" -> 12. round női rekord | BU9: next reachable record | BW9: Actual result (for records) | BX9: . | BY9: Overall ranking | BZ9: Female ranking | CA9: . | CB9: =+I9&"*" -> 1. round* | CC9: 2. round* | CD9: 3. round* | CE9: 4. round* | CF9: 5. round* | CG9: 6. round* | CH9: 7. round* | CI9: 8. round* | CJ9: 9. round* | CK9: 10. round* | CL9: 11. round* | CM9: 12. round* | CO9: Filter | CP9: . | CQ9: =+"Overall points ("&$CU$6&")" -> Overall points (Overall) | CR9: =+"Female points ("&$CU$6&")" -> Female points (Overall) | CS9: . | CT9: =+"Overall rank ("&$CU$6&")" -> Overall rank (Overall) | CU9: =+"Female rank ("&$CU$6&")" -> Female rank (Overall) | CW9: Filter | CX9: . | CY9: =+"Overall points ("&$CU$6&")" -> Overall points (Overall) | CZ9: =+"Female points ("&$CU$6&")" -> Female points (Overall) | DA9: . | DB9: =+"Overall rank ("&$DC$6&")" -> Overall rank (tandem) | DC9: =+"Female rank ("&$DC$6&")" -> Female rank (tandem) | DE9: Filter | DF9: . | DG9: =+"Overall points ("&$CU$6&")" -> Overall points (Overall) | DH9: =+"Female points ("&$CU$6&")" -> Female points (Overall) | DI9: . | DJ9: =+"Overall rank ("&$DK$6&")" -> Overall rank (HG) | DK9: =+"Female rank ("&$DK$6&")" -> Female rank (HG) | DM9: =+V9&" ranking" -> 1. round ranking | DN9: 2. round ranking | DO9: 3. round ranking | DP9: 4. round ranking | DQ9: 5. round ranking | DR9: 6. round ranking | DS9: 7. round ranking | DT9: 8. round ranking | DU9: 9. round ranking | DV9: 10. round ranking | DW9: 11. round ranking | DX9: 12. round ranking | EL9: =+AR9 -> 2. round record | EM9: =+AS9 -> 2. round rekord | EN9: =+AT9 -> 2. round női rekord | EO9: =+AU9 -> 3. round record | EP9: =+AV9 -> 3. round rekord | EQ9: =+AW9 -> 3. round női rekord | ER9: =+AX9 -> 4. round record | ES9: =+AY9 -> 4. round rekord | ET9: =+AZ9 -> 4. round női rekord | EU9: =+BA9 -> 5. round record | EV9: =+BB9 -> 5. round rekord | EW9: =+BC9 -> 5. round női rekord | EX9: =+BD9 -> 6. round record | EY9: =+BE9 -> 6. round rekord | EZ9: 6. round női rekord | FA9: 7. round rekord | FB9: 7. round női rekord | FC9: 8. round rekord | FD9: 8. round női rekord | FE9: 9. round rekord | FF9: 9. round női rekord | FG9: 10. round rekord | FH9: 10. round női rekord | FI9: 11. round rekord | FJ9: 11. round női rekord | FK9: =+BQ9 -> 12. round record | FL9: =+BR9 -> 12. round rekord | FM9: =+BS9 -> 12. round női rekord | FO9: =+AR9 -> 2. round record | FP9: =+W10&" rekord" -> 2. kör rekord | FQ9: =+EN9 -> 2. round női rekord | FR9: =+AU9 -> 3. round record | FS9: =+X10&" rekord" -> 3. kör rekord | FT9: =+EQ9 -> 3. round női rekord | FU9: =+AX9 -> 4. round record | FV9: =+Y10&" rekord" -> 4. kör rekord | FW9: =+ET9 -> 4. round női rekord | FX9: =+BA9 -> 5. round record | FY9: =+Z10&" rekord" -> 5. kör rekord | FZ9: =+EW9 -> 5. round női rekord | GA9: =+BD9 -> 6. round record | GB9: =+AA10&" rekord" -> 6. kör rekord | GC9: =+EZ9 -> 6. round női rekord | GD9: =+AB10&" rekord" -> 7. kör rekord | GE9: =+FB9 -> 7. round női rekord | GF9: =+AC10&" rekord" -> 8. kör rekord | GG9: =+FD9 -> 8. round női rekord | GH9: =+AD10&" rekord" -> 9. kör rekord | GI9: =+FF9 -> 9. round női rekord | GJ9: =+AE10&" rekord" -> 10. kör rekord | GK9: =+FH9 -> 10. round női rekord | GL9: =+AF10&" rekord" -> 11. kör rekord | GM9: =+FJ9 -> 11. round női rekord | GN9: =+BQ9 -> 12. round record | GO9: =+AG10&" rekord" -> 12. kör rekord | GP9: =+FM9 -> 12. round női rekord | GR9: FAI Gyémánt | GS9: FAI Arany | GT9: FAI Ezüst | GU9: FAI Bronz | GW9: =+L9&" (sum 4X)" -> 4. round (sum 4X) | GX9: 5. round (sum 4X) | GY9: 6. round (sum 4X) | GZ9: 7. round (sum 4X) | HA9: 8. round (sum 4X) | HB9: 9. round (sum 4X) | HC9: 10. round (sum 4X) | HD9: 11. round (sum 4X) | HE9: 12. round (sum 4X) | HG9: =+V9&" 1m" -> 1. round 1m | HH9: 2. round 1m | HI9: 3. round 1m | HJ9: 4. round 1m | HK9: 5. round 1m | HL9: 6. round 1m | HM9: 7. round 1m | HN9: 8. round 1m | HO9: 9. round 1m | HP9: 10. round 1m | HQ9: 11. round 1m | HR9: 12. round 1m | HT9: =+V9&" 10cm" -> 1. round 10cm | HU9: 2. round 10cm | HV9: 3. round 10cm | HW9: 4. round 10cm | HX9: 5. round 10cm | HY9: 6. round 10cm | HZ9: 7. round 10cm | IA9: 8. round 10cm | IB9: 9. round 10cm | IC9: 10. round 10cm | ID9: 11. round 10cm | IE9: 12. round 10cm
A10: X | C10: Ssz. | D10: Név | E10: Nem | F10: Orsz. | G10: Csapat | H10: . | I10: 1. kör | J10: 2. kör | K10: 3. kör | L10: 4. kör | M10: 5. kör | N10: 6. kör | O10: 7. kör | P10: 8. kör | Q10: 9. kör | R10: 10. kör | S10: 11. kör | T10: 12. kör | U10: . | V10: 1. kör | W10: 2. kör | X10: 3. kör | Y10: 4. kör | Z10: 5. kör | AA10: 6. kör | AB10: 7. kör | AC10: 8. kör | AD10: 9. kör | AE10: 10. kör | AF10: 11. kör | AG10: 12. kör | AH10: . | AI10: Törölt kör hibapont | AJ10: . | AK10: Összes hibapont | AL10: Össz pontszám (női) | AN10: Elért FAI jelvény | AP10: rekord | AQ10: elérve | AR10: =+VLOOKUP(AR$8,Records!$B$3:$H$15,3,0) -> 0 | AS10: =+VLOOKUP(AS$8,Records!$B$17:$H$29,3,0) -> 3 | AT10: =+VLOOKUP(AT$8,Records!$B$30:$H$42,3,0) -> 21 | AU10: =+VLOOKUP(AU$8,Records!$B$3:$H$15,3,0) -> 1 | AV10: =+VLOOKUP(AV$8,Records!$B$17:$H$29,3,0) -> 3 | AW10: =+VLOOKUP(AW$8,Records!$B$30:$H$42,3,0) -> 28 | AX10: =+VLOOKUP(AX$8,Records!$B$3:$H$15,3,0) -> 2 | AY10: =+VLOOKUP(AY$8,Records!$B$17:$H$29,3,0) -> 9 | AZ10: =+VLOOKUP(AZ$8,Records!$B$30:$H$42,3,0) -> 37 | BA10: =+VLOOKUP(BA$8,Records!$B$3:$H$15,3,0) -> 4 | BB10: =+VLOOKUP(BB$8,Records!$B$17:$H$29,3,0) -> 17 | BC10: =+VLOOKUP(BC$8,Records!$B$30:$H$42,3,0) -> 45 | BD10: =+VLOOKUP(BD$8,Records!$B$3:$H$15,3,0) -> 9 | BE10: =+VLOOKUP(BE$8,Records!$B$17:$H$29,3,0) -> 47 | BF10: =+VLOOKUP(BF$8,Records!$B$30:$H$42,3,0) -> 470 | BG10: =+VLOOKUP(BG$8,Records!$B$17:$H$29,3,0) -> 703 | BH10: =+VLOOKUP(BH$8,Records!$B$30:$H$42,3,0) -> 916 | BI10: =+VLOOKUP(BI$8,Records!$B$17:$H$29,3,0) -> 713 | BJ10: =+VLOOKUP(BJ$8,Records!$B$30:$H$42,3,0) -> 2809 | BK10: =+VLOOKUP(BK$8,Records!$B$17:$H$29,3,0) -> 774 | BL10: =+VLOOKUP(BL$8,Records!$B$30:$H$42,3,0) -> 2905 | BM10: =+VLOOKUP(BM$8,Records!$B$17:$H$29,3,0) -> 976 | BN10: =+VLOOKUP(BN$8,Records!$B$30:$H$42,3,0) -> 2905 | BO10: =+VLOOKUP(BO$8,Records!$B$17:$H$29,3,0) -> 980 | BP10: =+VLOOKUP(BP$8,Records!$B$30:$H$42,3,0) -> 3431 | BQ10: =+VLOOKUP(BQ$8,Records!$B$3:$H$15,3,0) -> 91 | BR10: =+VLOOKUP(BR$8,Records!$B$17:$H$29,3,0) -> 980 | BS10: =+VLOOKUP(BS$8,Records!$B$30:$H$42,3,0) -> 3688 | BU10: következő elérhető rekord | BW10: Aktuális pontszám | BX10: . | BY10: Összesített helyezés | BZ10: Női helyezés | CA10: . | CB10: 1. kör* | CC10: 2. kör* | CD10: 3. kör* | CE10: 4. kör* | CF10: 5. kör* | CG10: 6. kör* | CH10: 7. kör* | CI10: 8. kör* | CJ10: 9. kör* | CK10: 10. kör* | CL10: 11. kör* | CM10: 12. kör* | CO10: Szűrő | CP10: . | CQ10: =+"Össz pont ("&$CU$6&")" -> Össz pont (Overall) | CR10: =+"Női pont ("&$CU$6&")" -> Női pont (Overall) | CS10: . | CT10: =+"Helyezés ("&$CU$6&")" -> Helyezés (Overall) | CU10: =+"Női helyezés ("&$CU$6&")" -> Női helyezés (Overall) | CW10: Szűrő | CX10: . | CY10: =+"Össz pont ("&$CU$6&")" -> Össz pont (Overall) | CZ10: =+"Női pont ("&$CU$6&")" -> Női pont (Overall) | DA10: . | DB10: =+"Helyezés ("&$DC$6&")" -> Helyezés (tandem) | DC10: =+"Női helyezés ("&$DC$6&")" -> Női helyezés (tandem) | DE10: Szűrő | DF10: . | DG10: =+"Össz pont ("&$CU$6&")" -> Össz pont (Overall) | DH10: =+"Női pont ("&$CU$6&")" -> Női pont (Overall) | DI10: . | DJ10: =+"Helyezés ("&$DK$6&")" -> Helyezés (HG) | DK10: =+"Női helyezés ("&$DK$6&")" -> Női helyezés (HG) | DM10: =+V10&" helyezés" -> 1. kör helyezés | DN10: 2. kör helyezés | DO10: 3. kör helyezés | DP10: 4. kör helyezés | DQ10: 5. kör helyezés | DR10: 6. kör helyezés | DS10: 7. kör helyezés | DT10: 8. kör helyezés | DU10: 9. kör helyezés | DV10: 10. kör helyezés | DW10: 11. kör helyezés | DX10: 12. kör helyezés | EL10: =+VLOOKUP(EL$8,Records!$B$3:$H$15,3,0) -> 0 | EM10: =+VLOOKUP(EM$8,Records!$B$17:$H$29,3,0) -> 3 | EN10: =+VLOOKUP(EN$8,Records!$B$30:$H$42,3,0) -> 21 | EO10: =+VLOOKUP(EO$8,Records!$B$3:$H$15,3,0) -> 1 | EP10: =+VLOOKUP(EP$8,Records!$B$17:$H$29,3,0) -> 3 | EQ10: =+VLOOKUP(EQ$8,Records!$B$30:$H$42,3,0) -> 28 | ER10: =+VLOOKUP(ER$8,Records!$B$3:$H$15,3,0) -> 2 | ES10: =+VLOOKUP(ES$8,Records!$B$17:$H$29,3,0) -> 9 | ET10: =+VLOOKUP(ET$8,Records!$B$30:$H$42,3,0) -> 37 | EU10: =+VLOOKUP(EU$8,Records!$B$3:$H$15,3,0) -> 4 | EV10: =+VLOOKUP(EV$8,Records!$B$17:$H$29,3,0) -> 17 | EW10: =+VLOOKUP(EW$8,Records!$B$30:$H$42,3,0) -> 45 | EX10: =+VLOOKUP(EX$8,Records!$B$3:$H$15,3,0) -> 9 | EY10: =+VLOOKUP(EY$8,Records!$B$17:$H$29,3,0) -> 47 | EZ10: =+VLOOKUP(EZ$8,Records!$B$30:$H$42,3,0) -> 470 | FA10: =+VLOOKUP(FA$8,Records!$B$17:$H$29,3,0) -> 703 | FB10: =+VLOOKUP(FB$8,Records!$B$30:$H$42,3,0) -> 916 | FC10: =+VLOOKUP(FC$8,Records!$B$17:$H$29,3,0) -> 713 | FD10: =+VLOOKUP(FD$8,Records!$B$30:$H$42,3,0) -> 2809 | FE10: =+VLOOKUP(FE$8,Records!$B$17:$H$29,3,0) -> 774 | FF10: =+VLOOKUP(FF$8,Records!$B$30:$H$42,3,0) -> 2905 | FG10: =+VLOOKUP(FG$8,Records!$B$17:$H$29,3,0) -> 976 | FH10: =+VLOOKUP(FH$8,Records!$B$30:$H$42,3,0) -> 2905 | FI10: =+VLOOKUP(FI$8,Records!$B$17:$H$29,3,0) -> 980 | FJ10: =+VLOOKUP(FJ$8,Records!$B$30:$H$42,3,0) -> 3431 | FK10: =+VLOOKUP(FK$8,Records!$B$3:$H$15,3,0) -> 91 | FL10: =+VLOOKUP(FL$8,Records!$B$17:$H$29,3,0) -> 980 | FM10: =+VLOOKUP(FM$8,Records!$B$30:$H$42,3,0) -> 3688 | FO10: =+VLOOKUP(FO$8,Records!$B$3:$H$15,3,0) -> 0 | FP10: =+VLOOKUP(FP$8,Records!$B$17:$H$29,3,0) -> 3 | FQ10: =+VLOOKUP(FQ$8,Records!$B$30:$H$42,3,0) -> 21 | FR10: =+VLOOKUP(FR$8,Records!$B$3:$H$15,3,0) -> 1 | FS10: =+VLOOKUP(FS$8,Records!$B$17:$H$29,3,0) -> 3 | FT10: =+VLOOKUP(FT$8,Records!$B$30:$H$42,3,0) -> 28 | FU10: =+VLOOKUP(FU$8,Records!$B$3:$H$15,3,0) -> 2 | FV10: =+VLOOKUP(FV$8,Records!$B$17:$H$29,3,0) -> 9 | FW10: =+VLOOKUP(FW$8,Records!$B$30:$H$42,3,0) -> 37 | FX10: =+VLOOKUP(FX$8,Records!$B$3:$H$15,3,0) -> 4 | FY10: =+VLOOKUP(FY$8,Records!$B$17:$H$29,3,0) -> 17 | FZ10: =+VLOOKUP(FZ$8,Records!$B$30:$H$42,3,0) -> 45 | GA10: =+VLOOKUP(GA$8,Records!$B$3:$H$15,3,0) -> 9 | GB10: =+VLOOKUP(GB$8,Records!$B$17:$H$29,3,0) -> 47 | GC10: =+VLOOKUP(GC$8,Records!$B$30:$H$42,3,0) -> 470 | GD10: =+VLOOKUP(GD$8,Records!$B$17:$H$29,3,0) -> 703 | GE10: =+VLOOKUP(GE$8,Records!$B$30:$H$42,3,0) -> 916 | GF10: =+VLOOKUP(GF$8,Records!$B$17:$H$29,3,0) -> 713 | GG10: =+VLOOKUP(GG$8,Records!$B$30:$H$42,3,0) -> 2809 | GH10: =+VLOOKUP(GH$8,Records!$B$17:$H$29,3,0) -> 774 | GI10: =+VLOOKUP(GI$8,Records!$B$30:$H$42,3,0) -> 2905 | GJ10: =+VLOOKUP(GJ$8,Records!$B$17:$H$29,3,0) -> 976 | GK10: =+VLOOKUP(GK$8,Records!$B$30:$H$42,3,0) -> 2905 | GL10: =+VLOOKUP(GL$8,Records!$B$17:$H$29,3,0) -> 980 | GM10: =+VLOOKUP(GM$8,Records!$B$30:$H$42,3,0) -> 3431 | GN10: =+VLOOKUP(GN$8,Records!$B$3:$H$15,3,0) -> 91 | GO10: =+VLOOKUP(GO$8,Records!$B$17:$H$29,3,0) -> 980 | GP10: =+VLOOKUP(GP$8,Records!$B$30:$H$42,3,0) -> 3688 | GR10: FAI Diamond | GS10: FAI Gold | GT10: FAI Silver | GU10: FAI Bronze | GW10: =L10&" (szum4X)" -> 4. kör (szum4X) | GX10: 5. kör (szum4X) | GY10: 6. kör (szum4X) | GZ10: 7. kör (szum4X) | HA10: 8. kör (szum4X) | HB10: 9. kör (szum4X) | HC10: 10. kör (szum4X) | HD10: 11. kör (szum4X) | HE10: 12. kör (szum4X) | HG10: =V10&" 1m" -> 1. kör 1m | HH10: 2. kör 1m | HI10: 3. kör 1m | HJ10: 4. kör 1m | HK10: 5. kör 1m | HL10: 6. kör 1m | HM10: 7. kör 1m | HN10: 8. kör 1m | HO10: 9. kör 1m | HP10: 10. kör 1m | HQ10: 11. kör 1m | HR10: 12. kör 1m | HT10: =V10&" 10cm" -> 1. kör 10cm | HU10: 2. kör 10cm | HV10: 3. kör 10cm | HW10: 4. kör 10cm | HX10: 5. kör 10cm | HY10: 6. kör 10cm | HZ10: 7. kör 10cm | IA10: 8. kör 10cm | IB10: 9. kör 10cm | IC10: 10. kör 10cm | ID10: 11. kör 10cm | IE10: 12. kör 10cm
A11: - | B11: Ne töröld! | C11: Sorszám | D11: Név | E11: Nem | F11: Ország | G11: Csapat | H11: . | I11: 1. kör | J11: 2. kör | K11: 3. kör | L11: 4. kör | M11: 5. kör | N11: 6. kör | O11: 7. kör | P11: 8. kör | Q11: 9. kör | R11: 10. kör | S11: 11. kör | T11: 12. kör | U11: . | V11: =+I11&" (korr)" -> 1. kör (korr) | W11: 2. kör (korr) | X11: 3. kör (korr) | Y11: 4. kör (korr) | Z11: 5. kör (korr) | AA11: 6. kör (korr) | AB11: 7. kör (korr) | AC11: 8. kör (korr) | AD11: 9. kör (korr) | AE11: 10. kör (korr) | AF11: 11. kör (korr) | AG11: 12. kör (korr) | AH11: . | AI11: Törölt eredmény | AJ11: . | AK11: Össz pontszám | AL11: Össz pontszám (női) | AM11: . | AN11: =+AN9 -> Achieved FAI badge | AO11: . | AP11: record | AQ11: reached | AR11: =+AR9 -> 2. round record | AS11: =+AS9 -> 2. round rekord | AT11: 2. round női rekord | AU11: 3. round record | AV11: 3. round rekord | AW11: 3. round női rekord | AX11: 4. round record | AY11: 4. round rekord | AZ11: 4. round női rekord | BA11: 5. round record | BB11: 5. round rekord | BC11: 5. round női rekord | BD11: 6. round record | BE11: 6. round rekord | BF11: 6. round női rekord | BG11: 7. round rekord | BH11: 7. round női rekord | BI11: 8. round rekord | BJ11: 8. round női rekord | BK11: 9. round rekord | BL11: 9. round női rekord | BM11: 10. round rekord | BN11: 10. round női rekord | BO11: 11. round rekord | BP11: 11. round női rekord | BQ11: 12. round record | BR11: 12. round rekord | BS11: 12. round női rekord | BT11: . | BU11: =+BU9 -> next reachable record | BV11: . | BW11: =+BW9 -> Actual result (for records) | BX11: . | BY11: Összesített helyezés | BZ11: Női helyezés | CA11: . | CB11: 1. kör* | CC11: 2. kör* | CD11: 3. kör* | CE11: 4. kör* | CF11: 5. kör* | CG11: 6. kör* | CH11: 7. kör* | CI11: 8. kör* | CJ11: 9. kör* | CK11: 10. kör* | CL11: 11. kör* | CM11: 12. kör* | CN11: . | CO11: Szűrő 1 | CP11: . | CQ11: =+AK11&" ("&CQ6&")" -> Össz pontszám () | CR11: =+AL11&" ("&CR6&")" -> Össz pontszám (női) () | CS11: . | CT11: =+BY11&" ("&$CU$6&")" -> Összesített helyezés (Overall) | CU11: =+BZ11&" ("&$CU$6&")" -> Női helyezés (Overall) | CV11: . | CW11: Szűrő 3 | CX11: . | CY11: =+CD11&" ("&CY6&")" -> 3. kör* () | CZ11: =+CE11&" ("&CZ6&")" -> 4. kör* () | DA11: . | DB11: =+CG11&" ("&$CU$6&")" -> 6. kör* (Overall) | DC11: =+CH11&" ("&$CU$6&")" -> 7. kör* (Overall) | DD11: . | DE11: Szűrő 2 | DF11: . | DG11: =+AK11&" ("&DG6&")" -> Össz pontszám () | DH11: =+AL11&" ("&DH6&")" -> Össz pontszám (női) () | DI11: . | DJ11: =+BY11&" ("&$CU$6&")" -> Összesített helyezés (Overall) | DK11: =+BZ11&" ("&$CU$6&")" -> Női helyezés (Overall) | DL11: . | DM11: 1. kör helyezés | DN11: 2. kör helyezés | DO11: 3. kör helyezés | DP11: 4. kör helyezés | DQ11: 5. kör helyezés | DR11: 6. kör helyezés | DS11: 7. kör helyezés | DT11: 8. kör helyezés | DU11: 9. kör helyezés | DV11: 10. kör helyezés | DW11: 11. kör helyezés | DX11: 12. kör helyezés | GW11: =+GW10 -> 4. kör (szum4X) | GX11: 5. kör (szum4X) | GY11: 6. kör (szum4X) | GZ11: 7. kör (szum4X) | HA11: 8. kör (szum4X) | HB11: 9. kör (szum4X) | HC11: 10. kör (szum4X) | HD11: 11. kör (szum4X) | HE11: 12. kör (szum4X) | HG11: =+HG10 -> 1. kör 1m | HH11: =+HH10 -> 2. kör 1m | HI11: =+HI10 -> 3. kör 1m | HJ11: =+HJ10 -> 4. kör 1m | HK11: =+HK10 -> 5. kör 1m | HL11: 6. kör 1m | HM11: 7. kör 1m | HN11: 8. kör 1m | HO11: 9. kör 1m | HP11: 10. kör 1m | HQ11: 11. kör 1m | HR11: 12. kör 1m | HT11: =+HT10 -> 1. kör 10cm | HU11: 2. kör 10cm | HV11: 3. kör 10cm | HW11: 4. kör 10cm | HX11: 5. kör 10cm | HY11: 6. kör 10cm | HZ11: 7. kör 10cm | IA11: 8. kör 10cm | IB11: 9. kör 10cm | IC11: 10. kör 10cm | ID11: 11. kör 10cm | IE11: 12. kör 10cm
A12: X | C12: 1 | D12: =+IF(OR(ISERROR(VLOOKUP($C12,Pilots!$B:$U,MATCH(Results!D$1,Pilots!$B$1:$U$1,0),0)),VLOOKUP($C12,Pilots!$B:$U,MATCH(Results!D$1,Pilots!$B$1:$U$1,0),0)=0),"",VLOOKUP($C12,Pilots!$B:$U,MATCH(Results!D$1,Pilots!$B$1:$U$1,0),0)) -> Ivan Pavlov | E12: =+IF(OR(ISERROR(VLOOKUP($C12,Pilots!$B:$U,MATCH(Results!E$1,Pilots!$B$1:$U$1,0),0)),VLOOKUP($C12,Pilots!$B:$U,MATCH(Results!E$1,Pilots!$B$1:$U$1,0),0)=0),"",VLOOKUP($C12,Pilots!$B:$U,MATCH(Results!E$1,Pilots!$B$1:$U$1,0),0)) -> M | F12: =+IF(OR(ISERROR(VLOOKUP($C12,Pilots!$B:$U,MATCH(Results!F$1,Pilots!$B$1:$U$1,0),0)),VLOOKUP($C12,Pilots!$B:$U,MATCH(Results!F$1,Pilots!$B$1:$U$1,0),0)=0),"",VLOOKUP($C12,Pilots!$B:$U,MATCH(Results!F$1,Pilots!$B$1:$U$1,0),0)) -> SRB | G12: =+IF(OR(ISERROR(VLOOKUP($C12,Pilots!$B:$U,MATCH(Results!G$1,Pilots!$B$1:$U$1,0),0)),VLOOKUP($C12,Pilots!$B:$U,MATCH(Results!G$1,Pilots!$B$1:$U$1,0),0)=0),"",VLOOKUP($C12,Pilots!$B:$U,MATCH(Results!G$1,Pilots!$B$1:$U$1,0),0)) -> Delta | I12: =+IF(ISERROR(VLOOKUP($C12,Rounds!$A:$Z,MATCH(Results!I$1,Rounds!$1:$1,0),0)),"",IF(VLOOKUP($C12,Rounds!$A:$Z,MATCH(Results!I$1,Rounds!$1:$1,0),0)="","",VLOOKUP($C12,Rounds!$A:$Z,MATCH(Results!I$1,Rounds!$1:$1,0),0))) -> 41 | J12: =+IF(ISERROR(VLOOKUP($C12,Rounds!$A:$Z,MATCH(Results!J$1,Rounds!$1:$1,0),0)),"",IF(VLOOKUP($C12,Rounds!$A:$Z,MATCH(Results!J$1,Rounds!$1:$1,0),0)="","",VLOOKUP($C12,Rounds!$A:$Z,MATCH(Results!J$1,Rounds!$1:$1,0),0))) -> 500 | K12: =+IF(ISERROR(VLOOKUP($C12,Rounds!$A:$Z,MATCH(Results!K$1,Rounds!$1:$1,0),0)),"",IF(VLOOKUP($C12,Rounds!$A:$Z,MATCH(Results!K$1,Rounds!$1:$1,0),0)="","",VLOOKUP($C12,Rounds!$A:$Z,MATCH(Results!K$1,Rounds!$1:$1,0),0))) -> 1 | L12: =+IF(ISERROR(VLOOKUP($C12,Rounds!$A:$Z,MATCH(Results!L$1,Rounds!$1:$1,0),0)),"",IF(VLOOKUP($C12,Rounds!$A:$Z,MATCH(Results!L$1,Rounds!$1:$1,0),0)="","",VLOOKUP($C12,Rounds!$A:$Z,MATCH(Results!L$1,Rounds!$1:$1,0),0))) -> 16 | M12: =+IF(ISERROR(VLOOKUP($C12,Rounds!$A:$Z,MATCH(Results!M$1,Rounds!$1:$1,0),0)),"",IF(VLOOKUP($C12,Rounds!$A:$Z,MATCH(Results!M$1,Rounds!$1:$1,0),0)="","",VLOOKUP($C12,Rounds!$A:$Z,MATCH(Results!M$1,Rounds!$1:$1,0),0))) -> 6 | N12: =+IF(ISERROR(VLOOKUP($C12,Rounds!$A:$Z,MATCH(Results!N$1,Rounds!$1:$1,0),0)),"",IF(VLOOKUP($C12,Rounds!$A:$Z,MATCH(Results!N$1,Rounds!$1:$1,0),0)="","",VLOOKUP($C12,Rounds!$A:$Z,MATCH(Results!N$1,Rounds!$1:$1,0),0))) -> 218 | O12: =+IF(ISERROR(VLOOKUP($C12,Rounds!$A:$Z,MATCH(Results!O$1,Rounds!$1:$1,0),0)),"",IF(VLOOKUP($C12,Rounds!$A:$Z,MATCH(Results!O$1,Rounds!$1:$1,0),0)="","",VLOOKUP($C12,Rounds!$A:$Z,MATCH(Results!O$1,Rounds!$1:$1,0),0))) -> 2 | P12: =+IF(ISERROR(VLOOKUP($C12,Rounds!$A:$Z,MATCH(Results!P$1,Rounds!$1:$1,0),0)),"",IF(VLOOKUP($C12,Rounds!$A:$Z,MATCH(Results!P$1,Rounds!$1:$1,0),0)="","",VLOOKUP($C12,Rounds!$A:$Z,MATCH(Results!P$1,Rounds!$1:$1,0),0))) -> 2 | Q12: =+IF(ISERROR(VLOOKUP($C12,Rounds!$A:$Z,MATCH(Results!Q$1,Rounds!$1:$1,0),0)),"",IF(VLOOKUP($C12,Rounds!$A:$Z,MATCH(Results!Q$1,Rounds!$1:$1,0),0)="","",VLOOKUP($C12,Rounds!$A:$Z,MATCH(Results!Q$1,Rounds!$1:$1,0),0))) ->  | R12: =+IF(ISERROR(VLOOKUP($C12,Rounds!$A:$Z,MATCH(Results!R$1,Rounds!$1:$1,0),0)),"",IF(VLOOKUP($C12,Rounds!$A:$Z,MATCH(Results!R$1,Rounds!$1:$1,0),0)="","",VLOOKUP($C12,Rounds!$A:$Z,MATCH(Results!R$1,Rounds!$1:$1,0),0))) ->  | S12: =+IF(ISERROR(VLOOKUP($C12,Rounds!$A:$Z,MATCH(Results!S$1,Rounds!$1:$1,0),0)),"",IF(VLOOKUP($C12,Rounds!$A:$Z,MATCH(Results!S$1,Rounds!$1:$1,0),0)="","",VLOOKUP($C12,Rounds!$A:$Z,MATCH(Results!S$1,Rounds!$1:$1,0),0))) ->  | T12: =+IF(ISERROR(VLOOKUP($C12,Rounds!$A:$Z,MATCH(Results!T$1,Rounds!$1:$1,0),0)),"",IF(VLOOKUP($C12,Rounds!$A:$Z,MATCH(Results!T$1,Rounds!$1:$1,0),0)="","",VLOOKUP($C12,Rounds!$A:$Z,MATCH(Results!T$1,Rounds!$1:$1,0),0))) ->  | V12: =+IF(OR($D12="",ISBLANK($D12)),"",IF(V$8>$F$6,0,IF(OR(ISBLANK(I12),I12="DNF",I12="DSQ",I12>Competition!$D$18),Competition!$D$18,I12))) -> 41 | W12: =+IF(OR($D12="",ISBLANK($D12)),"",IF(W$8>$F$6,0,IF(OR(ISBLANK(J12),J12="DNF",J12="DSQ",J12>Competition!$D$18),Competition!$D$18,J12))) -> 500 | X12: =+IF(OR($D12="",ISBLANK($D12)),"",IF(X$8>$F$6,0,IF(OR(ISBLANK(K12),K12="DNF",K12="DSQ",K12>Competition!$D$18),Competition!$D$18,K12))) -> 1 | Y12: =+IF(OR($D12="",ISBLANK($D12)),"",IF(Y$8>$F$6,0,IF(OR(ISBLANK(L12),L12="DNF",L12="DSQ",L12>Competition!$D$18),Competition!$D$18,L12))) -> 16 | Z12: =+IF(OR($D12="",ISBLANK($D12)),"",IF(Z$8>$F$6,0,IF(OR(ISBLANK(M12),M12="DNF",M12="DSQ",M12>Competition!$D$18),Competition!$D$18,M12))) -> 6 | AA12: =+IF(OR($D12="",ISBLANK($D12)),"",IF(AA$8>$F$6,0,IF(OR(ISBLANK(N12),N12="DNF",N12="DSQ",N12>Competition!$D$18),Competition!$D$18,N12))) -> 218 | AB12: =+IF(OR($D12="",ISBLANK($D12)),"",IF(AB$8>$F$6,0,IF(OR(ISBLANK(O12),O12="DNF",O12="DSQ",O12>Competition!$D$18),Competition!$D$18,O12))) -> 2 | AC12: =+IF(OR($D12="",ISBLANK($D12)),"",IF(AC$8>$F$6,0,IF(OR(ISBLANK(P12),P12="DNF",P12="DSQ",P12>Competition!$D$18),Competition!$D$18,P12))) -> 2 | AD12: =+IF(OR($D12="",ISBLANK($D12)),"",IF(AD$8>$F$6,0,IF(OR(ISBLANK(Q12),Q12="DNF",Q12="DSQ",Q12>Competition!$D$18),Competition!$D$18,Q12))) -> 0 | AE12: =+IF(OR($D12="",ISBLANK($D12)),"",IF(AE$8>$F$6,0,IF(OR(ISBLANK(R12),R12="DNF",R12="DSQ",R12>Competition!$D$18),Competition!$D$18,R12))) -> 0 | AF12: =+IF(OR($D12="",ISBLANK($D12)),"",IF(AF$8>$F$6,0,IF(OR(ISBLANK(S12),S12="DNF",S12="DSQ",S12>Competition!$D$18),Competition!$D$18,S12))) -> 0 | AG12: =+IF(OR($D12="",ISBLANK($D12)),"",IF(AG$8>$F$6,0,IF(OR(ISBLANK(T12),T12="DNF",T12="DSQ",T12>Competition!$D$18),Competition!$D$18,T12))) -> 0 | AI12: =+IF(Competition!$D$20=Paraméterek!$C$4,0,IF($F$6<Competition!$D$21,0,MAX($V12:$AG12))) -> 500 | AK12: =+IF(OR(ISBLANK($D12),$D12=""),"",SUM($V12:$AG12)-$AI12) -> 286 | AL12: =+IF(E12=Paraméterek!$D$4,Results!AK12,"") ->  | AN12: =+IF(ISERROR(HLOOKUP(1,$GR12:$GU$113,ROW($GR$113)-ROW()+1,0)),"-",HLOOKUP(1,$GR12:$GU$113,ROW($GR$113)-ROW()+1,0)) -> - | AP12: =+IF(COUNTIF($AR12:$BS12,"X")>0,"új rekord!","-") -> - | AQ12: =+IF(ISERROR(HLOOKUP("X",$AR12:$BS$113,ROW($FO$113)-ROW()+1,0)),"-",HLOOKUP("X",$AR12:$BS$113,ROW($FO$113)-ROW()+1,0)) -> - | AR12: =+IF(EL12<AR$10+1,"X",IF(FO12="elérhető","elérhető","")) ->  | AS12: =+IF(EM12<AS$10+1,"X",IF(FP12="elérhető","elérhető","")) ->  | AT12: =+IF(EN12<AT$10+1,"X",IF(FQ12="elérhető","elérhető","")) ->  | AU12: =+IF(EO12<AU$10+1,"X",IF(FR12="elérhető","elérhető","")) ->  | AV12: =+IF(EP12<AV$10+1,"X",IF(FS12="elérhető","elérhető","")) ->  | AW12: =+IF(EQ12<AW$10+1,"X",IF(FT12="elérhető","elérhető","")) ->  | AX12: =+IF(ER12<AX$10+1,"X",IF(FU12="elérhető","elérhető","")) ->  | AY12: =+IF(ES12<AY$10+1,"X",IF(FV12="elérhető","elérhető","")) ->  | AZ12: =+IF(ET12<AZ$10+1,"X",IF(FW12="elérhető","elérhető","")) ->  | BA12: =+IF(EU12<BA$10+1,"X",IF(FX12="elérhető","elérhető","")) ->  | BB12: =+IF(EV12<BB$10+1,"X",IF(FY12="elérhető","elérhető","")) ->  | BC12: =+IF(EW12<BC$10+1,"X",IF(FZ12="elérhető","elérhető","")) ->  | BD12: =+IF(EX12<BD$10+1,"X",IF(GA12="elérhető","elérhető","")) ->  | BE12: =+IF(EY12<BE$10+1,"X",IF(GB12="elérhető","elérhető","")) ->  | BF12: =+IF(EZ12<BF$10+1,"X",IF(GC12="elérhető","elérhető","")) ->  | BG12: =+IF(FA12<BG$10+1,"X",IF(GD12="elérhető","elérhető","")) ->  | BH12: =+IF(FB12<BH$10+1,"X",IF(GE12="elérhető","elérhető","")) ->  | BI12: =+IF(FC12<BI$10+1,"X",IF(GF12="elérhető","elérhető","")) ->  | BJ12: =+IF(FD12<BJ$10+1,"X",IF(GG12="elérhető","elérhető","")) ->  | BK12: =+IF(FE12<BK$10+1,"X",IF(GH12="elérhető","elérhető","")) ->  | BL12: =+IF(FF12<BL$10+1,"X",IF(GI12="elérhető","elérhető","")) ->  | BM12: =+IF(FG12<BM$10+1,"X",IF(GJ12="elérhető","elérhető","")) ->  | BN12: =+IF(FH12<BN$10+1,"X",IF(GK12="elérhető","elérhető","")) ->  | BO12: =+IF(FI12<BO$10+1,"X",IF(GL12="elérhető","elérhető","")) ->  | BP12: =+IF(FJ12<BP$10+1,"X",IF(GM12="elérhető","elérhető","")) ->  | BQ12: =+IF(FK12<BQ$10+1,"X",IF(GN12="elérhető","elérhető","")) ->  | BR12: =+IF(FL12<BR$10+1,"X",IF(GO12="elérhető","elérhető","")) ->  | BS12: =+IF(FM12<BS$10+1,"X",IF(GP12="elérhető","elérhető","")) ->  | BU12: =+IF(ISERROR(HLOOKUP("elérhető",$FO12:$GP$113,ROW($FO$113)-ROW()+1,0)),"-",HLOOKUP("elérhető",$FO12:$GP$113,ROW($FO$113)-ROW()+1,0)) -> - | BW12: =+IF(OR(ISBLANK($D12),$D12=""),"",SUM($V12:$AG12)) -> 786 | BY12: =+IF(AK12="","",RANK($AK12,$AK$12:$AK$112,1)) -> 3 | BZ12: =+IF(AL12="","-",RANK($AL12,$AL$12:$AL$112,1)) -> - | CB12: =IF($D12="","",IF(AND(CB$8<($F$6+1),OR(I12="",ISBLANK(I12))),IF(CB$8=1,IF($AI12=0,"X",IF(V12=$AI12,1,"X")),IF($AI12=0,"X",IF(SUM(CA12:$CB12)>0,"X",IF(V12=$AI12,1,"X")))),IF(CB$8=1,IF($AI12=0,0,IF(V12=$AI12,1,0)),IF($AI12=0,0,IF(SUM(CA12:$CB12)>0,0,IF(V12=$AI12,1,0)))))) -> 0 | CC12: =IF($D12="","",IF(AND(CC$8<($F$6+1),OR(J12="",ISBLANK(J12))),IF(CC$8=1,IF($AI12=0,"X",IF(W12=$AI12,1,"X")),IF($AI12=0,"X",IF(SUM(CB12:$CB12)>0,"X",IF(W12=$AI12,1,"X")))),IF(CC$8=1,IF($AI12=0,0,IF(W12=$AI12,1,0)),IF($AI12=0,0,IF(SUM(CB12:$CB12)>0,0,IF(W12=$AI12,1,0)))))) -> 1 | CD12: =IF($D12="","",IF(AND(CD$8<($F$6+1),OR(K12="",ISBLANK(K12))),IF(CD$8=1,IF($AI12=0,"X",IF(X12=$AI12,1,"X")),IF($AI12=0,"X",IF(SUM($CB12:CC12)>0,"X",IF(X12=$AI12,1,"X")))),IF(CD$8=1,IF($AI12=0,0,IF(X12=$AI12,1,0)),IF($AI12=0,0,IF(SUM($CB12:CC12)>0,0,IF(X12=$AI12,1,0)))))) -> 0 | CE12: =IF($D12="","",IF(AND(CE$8<($F$6+1),OR(L12="",ISBLANK(L12))),IF(CE$8=1,IF($AI12=0,"X",IF(Y12=$AI12,1,"X")),IF($AI12=0,"X",IF(SUM($CB12:CD12)>0,"X",IF(Y12=$AI12,1,"X")))),IF(CE$8=1,IF($AI12=0,0,IF(Y12=$AI12,1,0)),IF($AI12=0,0,IF(SUM($CB12:CD12)>0,0,IF(Y12=$AI12,1,0)))))) -> 0 | CF12: =IF($D12="","",IF(AND(CF$8<($F$6+1),OR(M12="",ISBLANK(M12))),IF(CF$8=1,IF($AI12=0,"X",IF(Z12=$AI12,1,"X")),IF($AI12=0,"X",IF(SUM($CB12:CE12)>0,"X",IF(Z12=$AI12,1,"X")))),IF(CF$8=1,IF($AI12=0,0,IF(Z12=$AI12,1,0)),IF($AI12=0,0,IF(SUM($CB12:CE12)>0,0,IF(Z12=$AI12,1,0)))))) -> 0 | CG12: =IF($D12="","",IF(AND(CG$8<($F$6+1),OR(N12="",ISBLANK(N12))),IF(CG$8=1,IF($AI12=0,"X",IF(AA12=$AI12,1,"X")),IF($AI12=0,"X",IF(SUM($CB12:CF12)>0,"X",IF(AA12=$AI12,1,"X")))),IF(CG$8=1,IF($AI12=0,0,IF(AA12=$AI12,1,0)),IF($AI12=0,0,IF(SUM($CB12:CF12)>0,0,IF(AA12=$AI12,1,0)))))) -> 0 | CH12: =IF($D12="","",IF(AND(CH$8<($F$6+1),OR(O12="",ISBLANK(O12))),IF(CH$8=1,IF($AI12=0,"X",IF(AB12=$AI12,1,"X")),IF($AI12=0,"X",IF(SUM($CB12:CG12)>0,"X",IF(AB12=$AI12,1,"X")))),IF(CH$8=1,IF($AI12=0,0,IF(AB12=$AI12,1,0)),IF($AI12=0,0,IF(SUM($CB12:CG12)>0,0,IF(AB12=$AI12,1,0)))))) -> 0 | CI12: =IF($D12="","",IF(AND(CI$8<($F$6+1),OR(P12="",ISBLANK(P12))),IF(CI$8=1,IF($AI12=0,"X",IF(AC12=$AI12,1,"X")),IF($AI12=0,"X",IF(SUM($CB12:CH12)>0,"X",IF(AC12=$AI12,1,"X")))),IF(CI$8=1,IF($AI12=0,0,IF(AC12=$AI12,1,0)),IF($AI12=0,0,IF(SUM($CB12:CH12)>0,0,IF(AC12=$AI12,1,0)))))) -> 0 | CJ12: =IF($D12="","",IF(AND(CJ$8<($F$6+1),OR(Q12="",ISBLANK(Q12))),IF(CJ$8=1,IF($AI12=0,"X",IF(AD12=$AI12,1,"X")),IF($AI12=0,"X",IF(SUM($CB12:CI12)>0,"X",IF(AD12=$AI12,1,"X")))),IF(CJ$8=1,IF($AI12=0,0,IF(AD12=$AI12,1,0)),IF($AI12=0,0,IF(SUM($CB12:CI12)>0,0,IF(AD12=$AI12,1,0)))))) -> 0 | CK12: =IF($D12="","",IF(AND(CK$8<($F$6+1),OR(R12="",ISBLANK(R12))),IF(CK$8=1,IF($AI12=0,"X",IF(AE12=$AI12,1,"X")),IF($AI12=0,"X",IF(SUM($CB12:CJ12)>0,"X",IF(AE12=$AI12,1,"X")))),IF(CK$8=1,IF($AI12=0,0,IF(AE12=$AI12,1,0)),IF($AI12=0,0,IF(SUM($CB12:CJ12)>0,0,IF(AE12=$AI12,1,0)))))) -> 0 | CL12: =IF($D12="","",IF(AND(CL$8<($F$6+1),OR(S12="",ISBLANK(S12))),IF(CL$8=1,IF($AI12=0,"X",IF(AF12=$AI12,1,"X")),IF($AI12=0,"X",IF(SUM($CB12:CK12)>0,"X",IF(AF12=$AI12,1,"X")))),IF(CL$8=1,IF($AI12=0,0,IF(AF12=$AI12,1,0)),IF($AI12=0,0,IF(SUM($CB12:CK12)>0,0,IF(AF12=$AI12,1,0)))))) -> 0 | CM12: =IF($D12="","",IF(AND(CM$8<($F$6+1),OR(T12="",ISBLANK(T12))),IF(CM$8=1,IF($AI12=0,"X",IF(AG12=$AI12,1,"X")),IF($AI12=0,"X",IF(SUM($CB12:CL12)>0,"X",IF(AG12=$AI12,1,"X")))),IF(CM$8=1,IF($AI12=0,0,IF(AG12=$AI12,1,0)),IF($AI12=0,0,IF(SUM($CB12:CL12)>0,0,IF(AG12=$AI12,1,0)))))) -> 0 | CO12: =+IF(ISERROR(VLOOKUP($C12,Pilots!$B:$AG,MATCH(Results!CU$6,Pilots!$B$1:$AG$1,0),0)),"",VLOOKUP($C12,Pilots!$B:$AG,MATCH(Results!CU$6,Pilots!$B$1:$AG$1,0),0)) -> X | CQ12: =+IF($CO12="X",$AK12,"") -> 286 | CR12: =+IF($CO12="X",$AL12,"") ->  | CT12: =+IF($CQ12="","-",RANK($CQ12,$CQ$12:$CQ$112,1)) -> 3 | CU12: =+IF($CR12="","-",RANK($CR12,$CR$12:$CR$112,1)) -> - | CW12: =+IF(ISERROR(VLOOKUP($C12,Pilots!$B:$AG,MATCH(Results!DC$6,Pilots!$B$1:$AG$1,0),0)),"",VLOOKUP($C12,Pilots!$B:$AG,MATCH(Results!DC$6,Pilots!$B$1:$AG$1,0),0)) -> 0 | CY12: =+IF($CW12="X",$AK12,"") ->  | CZ12: =+IF($CW12="X",$AL12,"") ->  | DB12: =+IF($CY12="","-",RANK($CY12,$CY$11:$CY$111,1)) -> - | DC12: =+IF($CZ12="","-",RANK($CZ12,$CZ$11:$CZ$111,1)) -> - | DE12: =+IF(ISERROR(VLOOKUP($C12,Pilots!$B:$AG,MATCH(Results!DK$6,Pilots!$B$1:$AG$1,0),0)),"",VLOOKUP($C12,Pilots!$B:$AG,MATCH(Results!DK$6,Pilots!$B$1:$AG$1,0),0)) -> 0 | DG12: =+IF($DE12="X",$AK12,"") ->  | DH12: =+IF($DE12="X",$AL12,"") ->  | DJ12: =+IF($DG12="","-",RANK($DG12,$DG$12:$DG$112,1)) -> - | DK12: =+IF($DH12="","-",RANK($DH12,$DH$11:$DH$111,1)) -> - | DM12: =+IF(OR(V$6=Paraméterek!$E$4,$D12="",CB12="X"),"",RANK(V12,V$12:V$112,1)) -> 2 | DN12: =+IF(OR(W$6=Paraméterek!$E$4,$D12="",CC12="X"),"",RANK(W12,W$12:W$112,1)) -> 10 | DO12: =+IF(OR(X$6=Paraméterek!$E$4,$D12="",CD12="X"),"",RANK(X12,X$12:X$112,1)) -> 1 | DP12: =+IF(OR(Y$6=Paraméterek!$E$4,$D12="",CE12="X"),"",RANK(Y12,Y$12:Y$112,1)) -> 5 | DQ12: =+IF(OR(Z$6=Paraméterek!$E$4,$D12="",CF12="X"),"",RANK(Z12,Z$12:Z$112,1)) -> 3 | DR12: =+IF(OR(AA$6=Paraméterek!$E$4,$D12="",CG12="X"),"",RANK(AA12,AA$12:AA$112,1)) -> 9 | DS12: =+IF(OR(AB$6=Paraméterek!$E$4,$D12="",CH12="X"),"",RANK(AB12,AB$12:AB$112,1)) -> 1 | DT12: =+IF(OR(AC$6=Paraméterek!$E$4,$D12="",CI12="X"),"",RANK(AC12,AC$12:AC$112,1)) -> 2 | DU12: =+IF(OR(AD$6=Paraméterek!$E$4,$D12="",CJ12="X"),"",RANK(AD12,AD$12:AD$112,1)) ->  | DV12: =+IF(OR(AE$6=Paraméterek!$E$4,$D12="",CK12="X"),"",RANK(AE12,AE$12:AE$112,1)) ->  | DW12: =+IF(OR(AF$6=Paraméterek!$E$4,$D12="",CL12="X"),"",RANK(AF12,AF$12:AF$112,1)) ->  | DX12: =+IF(OR(AG$6=Paraméterek!$E$4,$D12="",CM12="X"),"",RANK(AG12,AG$12:AG$112,1)) ->  | EL12: =+IF(OR($D12="",AR$8>$F$6),"",SUM($V12:W12)) -> 541 | EM12: =+IF(OR($D12="",EM$8>$F$6),"",IF($F12=EM$4,SUM($V12:W12),"")) ->  | EN12: =+IF(OR($D12="",EN$8>$F$6),"",IF(AND($F12=EN$4,$E12=EN$3),SUM($V12:W12),"")) ->  | EO12: =+IF(OR($D12="",AU$8>$F$6),"",SUM($V12:X12)) -> 542 | EP12: =+IF(OR($D12="",EP$8>$F$6),"",IF($F12=EP$4,SUM($V12:X12),"")) ->  | EQ12: =+IF(OR($D12="",EQ$8>$F$6),"",IF(AND($F12=EQ$4,$E12=EQ$3),SUM($V12:X12),"")) ->  | ER12: =+IF(OR($D12="",AX$8>$F$6),"",SUM($V12:Y12)) -> 558 | ES12: =+IF(OR($D12="",ES$8>$F$6),"",IF($F12=ES$4,SUM($V12:Y12),"")) ->  | ET12: =+IF(OR($D12="",ET$8>$F$6),"",IF(AND($F12=ET$4,$E12=ET$3),SUM($V12:Y12),"")) ->  | EU12: =+IF(OR($D12="",BA$8>$F$6),"",SUM($V12:Z12)) -> 564 | EV12: =+IF(OR($D12="",EV$8>$F$6),"",IF($F12=EV$4,SUM($V12:Z12),"")) ->  | EW12: =+IF(OR($D12="",EW$8>$F$6),"",IF(AND($F12=EW$4,$E12=EW$3),SUM($V12:Z12),"")) ->  | EX12: =+IF(OR($D12="",BD$8>$F$6),"",SUM($V12:AA12)) -> 782 | EY12: =+IF(OR($D12="",EY$8>$F$6),"",IF($F12=EY$4,SUM($V12:AA12),"")) ->  | EZ12: =+IF(OR($D12="",EZ$8>$F$6),"",IF(AND($F12=EZ$4,$E12=EZ$3),SUM($V12:AA12),"")) ->  | FA12: =+IF(OR($D12="",FA$8>$F$6),"",IF($F12=FA$4,SUM($V12:AB12),"")) ->  | FB12: =+IF(OR($D12="",FB$8>$F$6),"",IF(AND($F12=FB$4,$E12=FB$3),SUM($V12:AB12),"")) ->  | FC12: =+IF(OR($D12="",FC$8>$F$6),"",IF($F12=FC$4,SUM($V12:AC12),"")) ->  | FD12: =+IF(OR($D12="",FD$8>$F$6),"",IF(AND($F12=FD$4,$E12=FD$3),SUM($V12:AC12),"")) ->  | FE12: =+IF(OR($D12="",FE$8>$F$6),"",IF($F12=FE$4,SUM($V12:AD12),"")) ->  | FF12: =+IF(OR($D12="",FF$8>$F$6),"",IF(AND($F12=FF$4,$E12=FF$3),SUM($V12:AD12),"")) ->  | FG12: =+IF(OR($D12="",FG$8>$F$6),"",IF($F12=FG$4,SUM($V12:AE12),"")) ->  | FH12: =+IF(OR($D12="",FH$8>$F$6),"",IF(AND($F12=FH$4,$E12=FH$3),SUM($V12:AE12),"")) ->  | FI12: =+IF(OR($D12="",FI$8>$F$6),"",IF($F12=FI$4,SUM($V12:AF12),"")) ->  | FJ12: =+IF(OR($D12="",FJ$8>$F$6),"",IF(AND($F12=FJ$4,$E12=FJ$3),SUM($V12:AF12),"")) ->  | FK12: =+IF(OR($D12="",BQ$8>$F$6),"",SUM($V12:AG12)) ->  | FL12: =+IF(OR($D12="",FL$8>$F$6),"",IF($F12=FL$4,SUM($V12:AG12),"")) ->  | FM12: =+IF(OR($D12="",FM$8>$F$6),"",IF(AND($F12=FM$4,$E12=FM$3),SUM($V12:AG12),"")) ->  | FO12: =+IF(AND(FO$8>$F$6,FO$8<Competition!$D$16+1),IF($BW12<AR$10,"elérhető","nem"),"-") -> - | FP12: =+IF(AND(FP$8>$F$6,FP$8<Competition!$D$16+1,$F12=FP$4),IF($BW12<AS$10,"elérhető","nem"),"-") -> - | FQ12: =+IF(AND(FQ$8>$F$6,FQ$8<Competition!$D$16+1,$F12=FQ$4,$E12=FQ$3),IF($BW12<AT$10,"elérhető","nem"),"-") -> - | FR12: =+IF(AND(FR$8>$F$6,FR$8<Competition!$D$16+1),IF($BW12<AU$10,"elérhető","nem"),"-") -> - | FS12: =+IF(AND(FS$8>$F$6,FS$8<Competition!$D$16+1,$F12=FS$4),IF($BW12<AV$10,"elérhető","nem"),"-") -> - | FT12: =+IF(AND(FT$8>$F$6,FT$8<Competition!$D$16+1,$F12=FT$4,$E12=FT$3),IF($BW12<AW$10,"elérhető","nem"),"-") -> - | FU12: =+IF(AND(FU$8>$F$6,FU$8<Competition!$D$16+1),IF($BW12<AX$10,"elérhető","nem"),"-") -> - | FV12: =+IF(AND(FV$8>$F$6,FV$8<Competition!$D$16+1,$F12=FV$4),IF($BW12<AY$10,"elérhető","nem"),"-") -> - | FW12: =+IF(AND(FW$8>$F$6,FW$8<Competition!$D$16+1,$F12=FW$4,$E12=FW$3),IF($BW12<AZ$10,"elérhető","nem"),"-") -> - | FX12: =+IF(AND(FX$8>$F$6,FX$8<Competition!$D$16+1),IF($BW12<BA$10,"elérhető","nem"),"-") -> - | FY12: =+IF(AND(FY$8>$F$6,FY$8<Competition!$D$16+1,$F12=FY$4),IF($BW12<BB$10,"elérhető","nem"),"-") -> - | FZ12: =+IF(AND(FZ$8>$F$6,FZ$8<Competition!$D$16+1,$F12=FZ$4,$E12=FZ$3),IF($BW12<BC$10,"elérhető","nem"),"-") -> - | GA12: =+IF(AND(GA$8>$F$6,GA$8<Competition!$D$16+1),IF($BW12<BD$10,"elérhető","nem"),"-") -> - | GB12: =+IF(AND(GB$8>$F$6,GB$8<Competition!$D$16+1,$F12=GB$4),IF($BW12<BE$10,"elérhető","nem"),"-") -> - | GC12: =+IF(AND(GC$8>$F$6,GC$8<Competition!$D$16+1,$F12=GC$4,$E12=GC$3),IF($BW12<BF$10,"elérhető","nem"),"-") -> - | GD12: =+IF(AND(GD$8>$F$6,GD$8<Competition!$D$16+1,$F12=GD$4),IF($BW12<BG$10,"elérhető","nem"),"-") -> - | GE12: =+IF(AND(GE$8>$F$6,GE$8<Competition!$D$16+1,$F12=GE$4,$E12=GE$3),IF($BW12<BH$10,"elérhető","nem"),"-") -> - | GF12: =+IF(AND(GF$8>$F$6,GF$8<Competition!$D$16+1,$F12=GF$4),IF($BW12<BI$10,"elérhető","nem"),"-") -> - | GG12: =+IF(AND(GG$8>$F$6,GG$8<Competition!$D$16+1,$F12=GG$4,$E12=GG$3),IF($BW12<BJ$10,"elérhető","nem"),"-") -> - | GH12: =+IF(AND(GH$8>$F$6,GH$8<Competition!$D$16+1,$F12=GH$4),IF($BW12<BK$10,"elérhető","nem"),"-") -> - | GI12: =+IF(AND(GI$8>$F$6,GI$8<Competition!$D$16+1,$F12=GI$4,$E12=GI$3),IF($BW12<BL$10,"elérhető","nem"),"-") -> - | GJ12: =+IF(AND(GJ$8>$F$6,GJ$8<Competition!$D$16+1,$F12=GJ$4),IF($BW12<BM$10,"elérhető","nem"),"-") -> - | GK12: =+IF(AND(GK$8>$F$6,GK$8<Competition!$D$16+1,$F12=GK$4,$E12=GK$3),IF($BW12<BN$10,"elérhető","nem"),"-") -> - | GL12: =+IF(AND(GL$8>$F$6,GL$8<Competition!$D$16+1,$F12=GL$4),IF($BW12<BO$10,"elérhető","nem"),"-") -> - | GM12: =+IF(AND(GM$8>$F$6,GM$8<Competition!$D$16+1,$F12=GM$4,$E12=GM$3),IF($BW12<BP$10,"elérhető","nem"),"-") -> - | GN12: =+IF(AND(GN$8>$F$6,GN$8<Competition!$D$16+1),IF($BW12<BQ$10,"elérhető","nem"),"-") -> - | GO12: =+IF(AND(GO$8>$F$6,GO$8<Competition!$D$16+1,$F12=GO$4),IF($BW12<BR$10,"elérhető","nem"),"-") -> - | GP12: =+IF(AND(GP$8>$F$6,GP$8<Competition!$D$16+1,$F12=GP$4,$E12=GP$3),IF($BW12<BS$10,"elérhető","nem"),"-") -> - | GR12: =+IF(OR(GW12<11,GX12<1,GY12<11,GZ12<11,HA12<11,HB12<11,HC12<11,HD12<11,HE12<11),1,0) -> 0 | GS12: =+IF(OR(SUM(HT12:HW12)=4,SUM(HU12:HX12)=4,SUM(HV12:HY12)=4,SUM(HW12:HZ12)=4,SUM(HX12:IA12)=4,SUM(HY12:IB12)=4,SUM(HZ12:IC12)=4,SUM(IA12:ID12)=4,SUM(IB12:IE12)=4),1,0) -> 0 | GT12: =+IF(OR(GW12<101,GX12<101,GY12<101,GZ12<101,HA12<101,HB12<101,HC12<101,HD12<101,HE12<101),1,0) -> 0 | GU12: =+IF(OR(SUM(HG12:HJ12)=4,SUM(HH12:HK12)=4,SUM(HI12:HL12)=4,SUM(HJ12:HM12)=4,SUM(HK12:HN12)=4,SUM(HL12:HO12)=4,SUM(HM12:HP12)=4,SUM(HN12:HQ12)=4,SUM(HO12:HR12)=4),1,0) -> 0 | GW12: =+IF($D12="","",IF(GW$6=1,SUM(V12:Y12),1000)) -> 558 | GX12: =+IF($D12="","",IF(GX$6=1,SUM(W12:Z12),1000)) -> 523 | GY12: =+IF($D12="","",IF(GY$6=1,SUM(X12:AA12),1000)) -> 241 | GZ12: =+IF($D12="","",IF(GZ$6=1,SUM(Y12:AB12),1000)) -> 242 | HA12: =+IF($D12="","",IF(HA$6=1,SUM(Z12:AC12),1000)) -> 228 | HB12: =+IF($D12="","",IF(HB$6=1,SUM(AA12:AD12),1000)) -> 1000 | HC12: =+IF($D12="","",IF(HC$6=1,SUM(AB12:AE12),1000)) -> 1000 | HD12: =+IF($D12="","",IF(HD$6=1,SUM(AC12:AF12),1000)) -> 1000 | HE12: =+IF($D12="","",IF(HE$6=1,SUM(AD12:AG12),1000)) -> 1000 | HG12: =+HG$6*IF(V12<101,1) -> 1 | HH12: =+HH$6*IF(W12<101,1) -> 0 | HI12: =+HI$6*IF(X12<101,1) -> 1 | HJ12: =+HJ$6*IF(Y12<101,1) -> 1 | HK12: =+HK$6*IF(Z12<101,1) -> 1 | HL12: =+HL$6*IF(AA12<101,1) -> 0 | HM12: =+HM$6*IF(AB12<101,1) -> 1 | HN12: =+HN$6*IF(AC12<101,1) -> 1 | HO12: =+HO$6*IF(AD12<101,1) -> 0 | HP12: =+HP$6*IF(AE12<101,1) -> 0 | HQ12: =+HQ$6*IF(AF12<101,1) -> 0 | HR12: =+HR$6*IF(AG12<101,1) -> 0 | HT12: =+HG$6*IF(V12<11,1) -> 0 | HU12: =+HH$6*IF(W12<11,1) -> 0 | HV12: =+HI$6*IF(X12<11,1) -> 1 | HW12: =+HJ$6*IF(Y12<11,1) -> 0 | HX12: =+HK$6*IF(Z12<11,1) -> 1 | HY12: =+HL$6*IF(AA12<11,1) -> 0 | HZ12: =+HM$6*IF(AB12<11,1) -> 1 | IA12: =+HN$6*IF(AC12<11,1) -> 1 | IB12: =+HO$6*IF(AD12<11,1) -> 0 | IC12: =+HP$6*IF(AE12<11,1) -> 0 | ID12: =+HQ$6*IF(AF12<11,1) -> 0 | IE12: =+HR$6*IF(AG12<11,1) -> 0
A13: X | C13: 2 | D13: =+IF(OR(ISERROR(VLOOKUP($C13,Pilots!$B:$U,MATCH(Results!D$1,Pilots!$B$1:$U$1,0),0)),VLOOKUP($C13,Pilots!$B:$U,MATCH(Results!D$1,Pilots!$B$1:$U$1,0),0)=0),"",VLOOKUP($C13,Pilots!$B:$U,MATCH(Results!D$1,Pilots!$B$1:$U$1,0),0)) -> Goran Milojković | E13: =+IF(OR(ISERROR(VLOOKUP($C13,Pilots!$B:$U,MATCH(Results!E$1,Pilots!$B$1:$U$1,0),0)),VLOOKUP($C13,Pilots!$B:$U,MATCH(Results!E$1,Pilots!$B$1:$U$1,0),0)=0),"",VLOOKUP($C13,Pilots!$B:$U,MATCH(Results!E$1,Pilots!$B$1:$U$1,0),0)) -> M | F13: =+IF(OR(ISERROR(VLOOKUP($C13,Pilots!$B:$U,MATCH(Results!F$1,Pilots!$B$1:$U$1,0),0)),VLOOKUP($C13,Pilots!$B:$U,MATCH(Results!F$1,Pilots!$B$1:$U$1,0),0)=0),"",VLOOKUP($C13,Pilots!$B:$U,MATCH(Results!F$1,Pilots!$B$1:$U$1,0),0)) -> SRB | G13: =+IF(OR(ISERROR(VLOOKUP($C13,Pilots!$B:$U,MATCH(Results!G$1,Pilots!$B$1:$U$1,0),0)),VLOOKUP($C13,Pilots!$B:$U,MATCH(Results!G$1,Pilots!$B$1:$U$1,0),0)=0),"",VLOOKUP($C13,Pilots!$B:$U,MATCH(Results!G$1,Pilots!$B$1:$U$1,0),0)) -> Ivan Sarić | I13: =+IF(ISERROR(VLOOKUP($C13,Rounds!$A:$Z,MATCH(Results!I$1,Rounds!$1:$1,0),0)),"",IF(VLOOKUP($C13,Rounds!$A:$Z,MATCH(Results!I$1,Rounds!$1:$1,0),0)="","",VLOOKUP($C13,Rounds!$A:$Z,MATCH(Results!I$1,Rounds!$1:$1,0),0))) -> 333 | J13: =+IF(ISERROR(VLOOKUP($C13,Rounds!$A:$Z,MATCH(Results!J$1,Rounds!$1:$1,0),0)),"",IF(VLOOKUP($C13,Rounds!$A:$Z,MATCH(Results!J$1,Rounds!$1:$1,0),0)="","",VLOOKUP($C13,Rounds!$A:$Z,MATCH(Results!J$1,Rounds!$1:$1,0),0))) -> 338 | K13: =+IF(ISERROR(VLOOKUP($C13,Rounds!$A:$Z,MATCH(Results!K$1,Rounds!$1:$1,0),0)),"",IF(VLOOKUP($C13,Rounds!$A:$Z,MATCH(Results!K$1,Rounds!$1:$1,0),0)="","",VLOOKUP($C13,Rounds!$A:$Z,MATCH(Results!K$1,Rounds!$1:$1,0),0))) -> 500 | L13: =+IF(ISERROR(VLOOKUP($C13,Rounds!$A:$Z,MATCH(Results!L$1,Rounds!$1:$1,0),0)),"",IF(VLOOKUP($C13,Rounds!$A:$Z,MATCH(Results!L$1,Rounds!$1:$1,0),0)="","",VLOOKUP($C13,Rounds!$A:$Z,MATCH(Results!L$1,Rounds!$1:$1,0),0))) -> 500 | M13: =+IF(ISERROR(VLOOKUP($C13,Rounds!$A:$Z,MATCH(Results!M$1,Rounds!$1:$1,0),0)),"",IF(VLOOKUP($C13,Rounds!$A:$Z,MATCH(Results!M$1,Rounds!$1:$1,0),0)="","",VLOOKUP($C13,Rounds!$A:$Z,MATCH(Results!M$1,Rounds!$1:$1,0),0))) -> 13 | N13: =+IF(ISERROR(VLOOKUP($C13,Rounds!$A:$Z,MATCH(Results!N$1,Rounds!$1:$1,0),0)),"",IF(VLOOKUP($C13,Rounds!$A:$Z,MATCH(Results!N$1,Rounds!$1:$1,0),0)="","",VLOOKUP($C13,Rounds!$A:$Z,MATCH(Results!N$1,Rounds!$1:$1,0),0))) -> 97 | O13: =+IF(ISERROR(VLOOKUP($C13,Rounds!$A:$Z,MATCH(Results!O$1,Rounds!$1:$1,0),0)),"",IF(VLOOKUP($C13,Rounds!$A:$Z,MATCH(Results!O$1,Rounds!$1:$1,0),0)="","",VLOOKUP($C13,Rounds!$A:$Z,MATCH(Results!O$1,Rounds!$1:$1,0),0))) -> 101 | P13: =+IF(ISERROR(VLOOKUP($C13,Rounds!$A:$Z,MATCH(Results!P$1,Rounds!$1:$1,0),0)),"",IF(VLOOKUP($C13,Rounds!$A:$Z,MATCH(Results!P$1,Rounds!$1:$1,0),0)="","",VLOOKUP($C13,Rounds!$A:$Z,MATCH(Results!P$1,Rounds!$1:$1,0),0))) -> 137 | Q13: =+IF(ISERROR(VLOOKUP($C13,Rounds!$A:$Z,MATCH(Results!Q$1,Rounds!$1:$1,0),0)),"",IF(VLOOKUP($C13,Rounds!$A:$Z,MATCH(Results!Q$1,Rounds!$1:$1,0),0)="","",VLOOKUP($C13,Rounds!$A:$Z,MATCH(Results!Q$1,Rounds!$1:$1,0),0))) ->  | R13: =+IF(ISERROR(VLOOKUP($C13,Rounds!$A:$Z,MATCH(Results!R$1,Rounds!$1:$1,0),0)),"",IF(VLOOKUP($C13,Rounds!$A:$Z,MATCH(Results!R$1,Rounds!$1:$1,0),0)="","",VLOOKUP($C13,Rounds!$A:$Z,MATCH(Results!R$1,Rounds!$1:$1,0),0))) ->  | S13: =+IF(ISERROR(VLOOKUP($C13,Rounds!$A:$Z,MATCH(Results!S$1,Rounds!$1:$1,0),0)),"",IF(VLOOKUP($C13,Rounds!$A:$Z,MATCH(Results!S$1,Rounds!$1:$1,0),0)="","",VLOOKUP($C13,Rounds!$A:$Z,MATCH(Results!S$1,Rounds!$1:$1,0),0))) ->  | T13: =+IF(ISERROR(VLOOKUP($C13,Rounds!$A:$Z,MATCH(Results!T$1,Rounds!$1:$1,0),0)),"",IF(VLOOKUP($C13,Rounds!$A:$Z,MATCH(Results!T$1,Rounds!$1:$1,0),0)="","",VLOOKUP($C13,Rounds!$A:$Z,MATCH(Results!T$1,Rounds!$1:$1,0),0))) ->  | V13: =+IF(OR($D13="",ISBLANK($D13)),"",IF(V$8>$F$6,0,IF(OR(ISBLANK(I13),I13="DNF",I13="DSQ",I13>Competition!$D$18),Competition!$D$18,I13))) -> 333 | W13: =+IF(OR($D13="",ISBLANK($D13)),"",IF(W$8>$F$6,0,IF(OR(ISBLANK(J13),J13="DNF",J13="DSQ",J13>Competition!$D$18),Competition!$D$18,J13))) -> 338 | X13: =+IF(OR($D13="",ISBLANK($D13)),"",IF(X$8>$F$6,0,IF(OR(ISBLANK(K13),K13="DNF",K13="DSQ",K13>Competition!$D$18),Competition!$D$18,K13))) -> 500 | Y13: =+IF(OR($D13="",ISBLANK($D13)),"",IF(Y$8>$F$6,0,IF(OR(ISBLANK(L13),L13="DNF",L13="DSQ",L13>Competition!$D$18),Competition!$D$18,L13))) -> 500 | Z13: =+IF(OR($D13="",ISBLANK($D13)),"",IF(Z$8>$F$6,0,IF(OR(ISBLANK(M13),M13="DNF",M13="DSQ",M13>Competition!$D$18),Competition!$D$18,M13))) -> 13 | AA13: =+IF(OR($D13="",ISBLANK($D13)),"",IF(AA$8>$F$6,0,IF(OR(ISBLANK(N13),N13="DNF",N13="DSQ",N13>Competition!$D$18),Competition!$D$18,N13))) -> 97 | AB13: =+IF(OR($D13="",ISBLANK($D13)),"",IF(AB$8>$F$6,0,IF(OR(ISBLANK(O13),O13="DNF",O13="DSQ",O13>Competition!$D$18),Competition!$D$18,O13))) -> 101 | AC13: =+IF(OR($D13="",ISBLANK($D13)),"",IF(AC$8>$F$6,0,IF(OR(ISBLANK(P13),P13="DNF",P13="DSQ",P13>Competition!$D$18),Competition!$D$18,P13))) -> 137 | AD13: =+IF(OR($D13="",ISBLANK($D13)),"",IF(AD$8>$F$6,0,IF(OR(ISBLANK(Q13),Q13="DNF",Q13="DSQ",Q13>Competition!$D$18),Competition!$D$18,Q13))) -> 0 | AE13: =+IF(OR($D13="",ISBLANK($D13)),"",IF(AE$8>$F$6,0,IF(OR(ISBLANK(R13),R13="DNF",R13="DSQ",R13>Competition!$D$18),Competition!$D$18,R13))) -> 0 | AF13: =+IF(OR($D13="",ISBLANK($D13)),"",IF(AF$8>$F$6,0,IF(OR(ISBLANK(S13),S13="DNF",S13="DSQ",S13>Competition!$D$18),Competition!$D$18,S13))) -> 0 | AG13: =+IF(OR($D13="",ISBLANK($D13)),"",IF(AG$8>$F$6,0,IF(OR(ISBLANK(T13),T13="DNF",T13="DSQ",T13>Competition!$D$18),Competition!$D$18,T13))) -> 0 | AI13: =+IF(Competition!$D$20=Paraméterek!$C$4,0,IF($F$6<Competition!$D$21,0,MAX($V13:$AG13))) -> 500 | AK13: 1519 | AL13: =+IF(E13=Paraméterek!$D$4,Results!AK13,"") ->  | AN13: =+IF(ISERROR(HLOOKUP(1,$GR13:$GU$113,ROW($GR$113)-ROW()+1,0)),"-",HLOOKUP(1,$GR13:$GU$113,ROW($GR$113)-ROW()+1,0)) -> - | AP13: - | AQ13: =+IF(ISERROR(HLOOKUP("X",$AR13:$BS$113,ROW($FO$113)-ROW()+1,0)),"-",HLOOKUP("X",$AR13:$BS$113,ROW($FO$113)-ROW()+1,0)) -> - | BU13: =+IF(ISERROR(HLOOKUP("elérhető",$FO13:$GP$113,ROW($FO$113)-ROW()+1,0)),"-",HLOOKUP("elérhető",$FO13:$GP$113,ROW($FO$113)-ROW()+1,0)) -> - | BW13: 2019 | BY13: 4 | BZ13: - | CB13: =IF($D13="","",IF(AND(CB$8<($F$6+1),OR(I13="",ISBLANK(I13))),IF(CB$8=1,IF($AI13=0,"X",IF(V13=$AI13,1,"X")),IF($AI13=0,"X",IF(SUM(CA13:$CB13)>0,"X",IF(V13=$AI13,1,"X")))),IF(CB$8=1,IF($AI13=0,0,IF(V13=$AI13,1,0)),IF($AI13=0,0,IF(SUM(CA13:$CB13)>0,0,IF(V13=$AI13,1,0)))))) -> 0 | CC13: =IF($D13="","",IF(AND(CC$8<($F$6+1),OR(J13="",ISBLANK(J13))),IF(CC$8=1,IF($AI13=0,"X",IF(W13=$AI13,1,"X")),IF($AI13=0,"X",IF(SUM(CB13:$CB13)>0,"X",IF(W13=$AI13,1,"X")))),IF(CC$8=1,IF($AI13=0,0,IF(W13=$AI13,1,0)),IF($AI13=0,0,IF(SUM(CB13:$CB13)>0,0,IF(W13=$AI13,1,0)))))) -> 0 | CD13: =IF($D13="","",IF(AND(CD$8<($F$6+1),OR(K13="",ISBLANK(K13))),IF(CD$8=1,IF($AI13=0,"X",IF(X13=$AI13,1,"X")),IF($AI13=0,"X",IF(SUM($CB13:CC13)>0,"X",IF(X13=$AI13,1,"X")))),IF(CD$8=1,IF($AI13=0,0,IF(X13=$AI13,1,0)),IF($AI13=0,0,IF(SUM($CB13:CC13)>0,0,IF(X13=$AI13,1,0)))))) -> 1 | CE13: =IF($D13="","",IF(AND(CE$8<($F$6+1),OR(L13="",ISBLANK(L13))),IF(CE$8=1,IF($AI13=0,"X",IF(Y13=$AI13,1,"X")),IF($AI13=0,"X",IF(SUM($CB13:CD13)>0,"X",IF(Y13=$AI13,1,"X")))),IF(CE$8=1,IF($AI13=0,0,IF(Y13=$AI13,1,0)),IF($AI13=0,0,IF(SUM($CB13:CD13)>0,0,IF(Y13=$AI13,1,0)))))) -> 0 | CF13: =IF($D13="","",IF(AND(CF$8<($F$6+1),OR(M13="",ISBLANK(M13))),IF(CF$8=1,IF($AI13=0,"X",IF(Z13=$AI13,1,"X")),IF($AI13=0,"X",IF(SUM($CB13:CE13)>0,"X",IF(Z13=$AI13,1,"X")))),IF(CF$8=1,IF($AI13=0,0,IF(Z13=$AI13,1,0)),IF($AI13=0,0,IF(SUM($CB13:CE13)>0,0,IF(Z13=$AI13,1,0)))))) -> 0 | CG13: =IF($D13="","",IF(AND(CG$8<($F$6+1),OR(N13="",ISBLANK(N13))),IF(CG$8=1,IF($AI13=0,"X",IF(AA13=$AI13,1,"X")),IF($AI13=0,"X",IF(SUM($CB13:CF13)>0,"X",IF(AA13=$AI13,1,"X")))),IF(CG$8=1,IF($AI13=0,0,IF(AA13=$AI13,1,0)),IF($AI13=0,0,IF(SUM($CB13:CF13)>0,0,IF(AA13=$AI13,1,0)))))) -> 0 | CH13: =IF($D13="","",IF(AND(CH$8<($F$6+1),OR(O13="",ISBLANK(O13))),IF(CH$8=1,IF($AI13=0,"X",IF(AB13=$AI13,1,"X")),IF($AI13=0,"X",IF(SUM($CB13:CG13)>0,"X",IF(AB13=$AI13,1,"X")))),IF(CH$8=1,IF($AI13=0,0,IF(AB13=$AI13,1,0)),IF($AI13=0,0,IF(SUM($CB13:CG13)>0,0,IF(AB13=$AI13,1,0)))))) -> 0 | CI13: =IF($D13="","",IF(AND(CI$8<($F$6+1),OR(P13="",ISBLANK(P13))),IF(CI$8=1,IF($AI13=0,"X",IF(AC13=$AI13,1,"X")),IF($AI13=0,"X",IF(SUM($CB13:CH13)>0,"X",IF(AC13=$AI13,1,"X")))),IF(CI$8=1,IF($AI13=0,0,IF(AC13=$AI13,1,0)),IF($AI13=0,0,IF(SUM($CB13:CH13)>0,0,IF(AC13=$AI13,1,0)))))) -> 0 | CJ13: =IF($D13="","",IF(AND(CJ$8<($F$6+1),OR(Q13="",ISBLANK(Q13))),IF(CJ$8=1,IF($AI13=0,"X",IF(AD13=$AI13,1,"X")),IF($AI13=0,"X",IF(SUM($CB13:CI13)>0,"X",IF(AD13=$AI13,1,"X")))),IF(CJ$8=1,IF($AI13=0,0,IF(AD13=$AI13,1,0)),IF($AI13=0,0,IF(SUM($CB13:CI13)>0,0,IF(AD13=$AI13,1,0)))))) -> 0 | CK13: =IF($D13="","",IF(AND(CK$8<($F$6+1),OR(R13="",ISBLANK(R13))),IF(CK$8=1,IF($AI13=0,"X",IF(AE13=$AI13,1,"X")),IF($AI13=0,"X",IF(SUM($CB13:CJ13)>0,"X",IF(AE13=$AI13,1,"X")))),IF(CK$8=1,IF($AI13=0,0,IF(AE13=$AI13,1,0)),IF($AI13=0,0,IF(SUM($CB13:CJ13)>0,0,IF(AE13=$AI13,1,0)))))) -> 0 | CL13: =IF($D13="","",IF(AND(CL$8<($F$6+1),OR(S13="",ISBLANK(S13))),IF(CL$8=1,IF($AI13=0,"X",IF(AF13=$AI13,1,"X")),IF($AI13=0,"X",IF(SUM($CB13:CK13)>0,"X",IF(AF13=$AI13,1,"X")))),IF(CL$8=1,IF($AI13=0,0,IF(AF13=$AI13,1,0)),IF($AI13=0,0,IF(SUM($CB13:CK13)>0,0,IF(AF13=$AI13,1,0)))))) -> 0 | CM13: =IF($D13="","",IF(AND(CM$8<($F$6+1),OR(T13="",ISBLANK(T13))),IF(CM$8=1,IF($AI13=0,"X",IF(AG13=$AI13,1,"X")),IF($AI13=0,"X",IF(SUM($CB13:CL13)>0,"X",IF(AG13=$AI13,1,"X")))),IF(CM$8=1,IF($AI13=0,0,IF(AG13=$AI13,1,0)),IF($AI13=0,0,IF(SUM($CB13:CL13)>0,0,IF(AG13=$AI13,1,0)))))) -> 0 | CO13: =+IF(ISERROR(VLOOKUP($C13,Pilots!$B:$AG,MATCH(Results!CU$6,Pilots!$B$1:$AG$1,0),0)),"",VLOOKUP($C13,Pilots!$B:$AG,MATCH(Results!CU$6,Pilots!$B$1:$AG$1,0),0)) -> X | CQ13: 1519 | CT13: =+IF($CQ13="","-",RANK($CQ13,$CQ$12:$CQ$112,1)) -> 4 | CU13: - | CW13: =+IF(ISERROR(VLOOKUP($C13,Pilots!$B:$AG,MATCH(Results!DC$6,Pilots!$B$1:$AG$1,0),0)),"",VLOOKUP($C13,Pilots!$B:$AG,MATCH(Results!DC$6,Pilots!$B$1:$AG$1,0),0)) -> 0 | DB13: - | DC13: - | DE13: =+IF(ISERROR(VLOOKUP($C13,Pilots!$B:$AG,MATCH(Results!DK$6,Pilots!$B$1:$AG$1,0),0)),"",VLOOKUP($C13,Pilots!$B:$AG,MATCH(Results!DK$6,Pilots!$B$1:$AG$1,0),0)) -> 0 | DJ13: =+IF($DG13="","-",RANK($DG13,$DG$12:$DG$112,1)) -> - | DK13: =+IF($DH13="","-",RANK($DH13,$DH$11:$DH$111,1)) -> - | DM13: =+IF(OR(V$6=Paraméterek!$E$4,$D13="",CB13="X"),"",RANK(V13,V$12:V$112,1)) -> 7 | DN13: =+IF(OR(W$6=Paraméterek!$E$4,$D13="",CC13="X"),"",RANK(W13,W$12:W$112,1)) -> 7 | DO13: =+IF(OR(X$6=Paraméterek!$E$4,$D13="",CD13="X"),"",RANK(X13,X$12:X$112,1)) -> 9 | DP13: =+IF(OR(Y$6=Paraméterek!$E$4,$D13="",CE13="X"),"",RANK(Y13,Y$12:Y$112,1)) -> 10 | DQ13: =+IF(OR(Z$6=Paraméterek!$E$4,$D13="",CF13="X"),"",RANK(Z13,Z$12:Z$112,1)) -> 4 | DR13: =+IF(OR(AA$6=Paraméterek!$E$4,$D13="",CG13="X"),"",RANK(AA13,AA$12:AA$112,1)) -> 5 | DS13: =+IF(OR(AB$6=Paraméterek!$E$4,$D13="",CH13="X"),"",RANK(AB13,AB$12:AB$112,1)) -> 4 | DT13: =+IF(OR(AC$6=Paraméterek!$E$4,$D13="",CI13="X"),"",RANK(AC13,AC$12:AC$112,1)) -> 4 | DU13: =+IF(OR(AD$6=Paraméterek!$E$4,$D13="",CJ13="X"),"",RANK(AD13,AD$12:AD$112,1)) ->  | DV13: =+IF(OR(AE$6=Paraméterek!$E$4,$D13="",CK13="X"),"",RANK(AE13,AE$12:AE$112,1)) ->  | DW13: =+IF(OR(AF$6=Paraméterek!$E$4,$D13="",CL13="X"),"",RANK(AF13,AF$12:AF$112,1)) ->  | DX13: =+IF(OR(AG$6=Paraméterek!$E$4,$D13="",CM13="X"),"",RANK(AG13,AG$12:AG$112,1)) ->  | EL13: =+IF(OR($D13="",AR$8>$F$6),"",SUM($V13:W13)) -> 671 | EM13: =+IF(OR($D13="",EM$8>$F$6),"",IF($F13=EM$4,SUM($V13:W13),"")) ->  | EN13: =+IF(OR($D13="",EN$8>$F$6),"",IF(AND($F13=EN$4,$E13=EN$3),SUM($V13:W13),"")) ->  | EO13: =+IF(OR($D13="",AU$8>$F$6),"",SUM($V13:X13)) -> 1171 | EP13: =+IF(OR($D13="",EP$8>$F$6),"",IF($F13=EP$4,SUM($V13:X13),"")) ->  | EQ13: =+IF(OR($D13="",EQ$8>$F$6),"",IF(AND($F13=EQ$4,$E13=EQ$3),SUM($V13:X13),"")) ->  | ER13: =+IF(OR($D13="",AX$8>$F$6),"",SUM($V13:Y13)) -> 1671 | ES13: =+IF(OR($D13="",ES$8>$F$6),"",IF($F13=ES$4,SUM($V13:Y13),"")) ->  | ET13: =+IF(OR($D13="",ET$8>$F$6),"",IF(AND($F13=ET$4,$E13=ET$3),SUM($V13:Y13),"")) ->  | EU13: =+IF(OR($D13="",BA$8>$F$6),"",SUM($V13:Z13)) -> 1684 | EV13: =+IF(OR($D13="",EV$8>$F$6),"",IF($F13=EV$4,SUM($V13:Z13),"")) ->  | EW13: =+IF(OR($D13="",EW$8>$F$6),"",IF(AND($F13=EW$4,$E13=EW$3),SUM($V13:Z13),"")) ->  | EX13: =+IF(OR($D13="",BD$8>$F$6),"",SUM($V13:AA13)) -> 1781 | EY13: =+IF(OR($D13="",EY$8>$F$6),"",IF($F13=EY$4,SUM($V13:AA13),"")) ->  | EZ13: =+IF(OR($D13="",EZ$8>$F$6),"",IF(AND($F13=EZ$4,$E13=EZ$3),SUM($V13:AA13),"")) ->  | FA13: =+IF(OR($D13="",FA$8>$F$6),"",IF($F13=FA$4,SUM($V13:AB13),"")) ->  | FB13: =+IF(OR($D13="",FB$8>$F$6),"",IF(AND($F13=FB$4,$E13=FB$3),SUM($V13:AB13),"")) ->  | FC13: =+IF(OR($D13="",FC$8>$F$6),"",IF($F13=FC$4,SUM($V13:AC13),"")) ->  | FD13: =+IF(OR($D13="",FD$8>$F$6),"",IF(AND($F13=FD$4,$E13=FD$3),SUM($V13:AC13),"")) ->  | FE13: =+IF(OR($D13="",FE$8>$F$6),"",IF($F13=FE$4,SUM($V13:AD13),"")) ->  | FF13: =+IF(OR($D13="",FF$8>$F$6),"",IF(AND($F13=FF$4,$E13=FF$3),SUM($V13:AD13),"")) ->  | FG13: =+IF(OR($D13="",FG$8>$F$6),"",IF($F13=FG$4,SUM($V13:AE13),"")) ->  | FH13: =+IF(OR($D13="",FH$8>$F$6),"",IF(AND($F13=FH$4,$E13=FH$3),SUM($V13:AE13),"")) ->  | FI13: =+IF(OR($D13="",FI$8>$F$6),"",IF($F13=FI$4,SUM($V13:AF13),"")) ->  | FJ13: =+IF(OR($D13="",FJ$8>$F$6),"",IF(AND($F13=FJ$4,$E13=FJ$3),SUM($V13:AF13),"")) ->  | FK13: =+IF(OR($D13="",BQ$8>$F$6),"",SUM($V13:AG13)) ->  | FL13: =+IF(OR($D13="",FL$8>$F$6),"",IF($F13=FL$4,SUM($V13:AG13),"")) ->  | FM13: =+IF(OR($D13="",FM$8>$F$6),"",IF(AND($F13=FM$4,$E13=FM$3),SUM($V13:AG13),"")) ->  | FO13: =+IF(AND(FO$8>$F$6,FO$8<Competition!$D$16+1),IF($BW13<AR$10,"elérhető","nem"),"-") -> - | FP13: =+IF(AND(FP$8>$F$6,FP$8<Competition!$D$16+1,$F13=FP$4),IF($BW13<AS$10,"elérhető","nem"),"-") -> - | FQ13: =+IF(AND(FQ$8>$F$6,FQ$8<Competition!$D$16+1,$F13=FQ$4,$E13=FQ$3),IF($BW13<AT$10,"elérhető","nem"),"-") -> - | FR13: =+IF(AND(FR$8>$F$6,FR$8<Competition!$D$16+1),IF($BW13<AU$10,"elérhető","nem"),"-") -> - | FS13: =+IF(AND(FS$8>$F$6,FS$8<Competition!$D$16+1,$F13=FS$4),IF($BW13<AV$10,"elérhető","nem"),"-") -> - | FT13: =+IF(AND(FT$8>$F$6,FT$8<Competition!$D$16+1,$F13=FT$4,$E13=FT$3),IF($BW13<AW$10,"elérhető","nem"),"-") -> - | FU13: =+IF(AND(FU$8>$F$6,FU$8<Competition!$D$16+1),IF($BW13<AX$10,"elérhető","nem"),"-") -> - | FV13: =+IF(AND(FV$8>$F$6,FV$8<Competition!$D$16+1,$F13=FV$4),IF($BW13<AY$10,"elérhető","nem"),"-") -> - | FW13: =+IF(AND(FW$8>$F$6,FW$8<Competition!$D$16+1,$F13=FW$4,$E13=FW$3),IF($BW13<AZ$10,"elérhető","nem"),"-") -> - | FX13: =+IF(AND(FX$8>$F$6,FX$8<Competition!$D$16+1),IF($BW13<BA$10,"elérhető","nem"),"-") -> - | FY13: =+IF(AND(FY$8>$F$6,FY$8<Competition!$D$16+1,$F13=FY$4),IF($BW13<BB$10,"elérhető","nem"),"-") -> - | FZ13: =+IF(AND(FZ$8>$F$6,FZ$8<Competition!$D$16+1,$F13=FZ$4,$E13=FZ$3),IF($BW13<BC$10,"elérhető","nem"),"-") -> - | GA13: =+IF(AND(GA$8>$F$6,GA$8<Competition!$D$16+1),IF($BW13<BD$10,"elérhető","nem"),"-") -> - | GB13: =+IF(AND(GB$8>$F$6,GB$8<Competition!$D$16+1,$F13=GB$4),IF($BW13<BE$10,"elérhető","nem"),"-") -> - | GC13: =+IF(AND(GC$8>$F$6,GC$8<Competition!$D$16+1,$F13=GC$4,$E13=GC$3),IF($BW13<BF$10,"elérhető","nem"),"-") -> - | GD13: =+IF(AND(GD$8>$F$6,GD$8<Competition!$D$16+1,$F13=GD$4),IF($BW13<BG$10,"elérhető","nem"),"-") -> - | GE13: =+IF(AND(GE$8>$F$6,GE$8<Competition!$D$16+1,$F13=GE$4,$E13=GE$3),IF($BW13<BH$10,"elérhető","nem"),"-") -> - | GF13: =+IF(AND(GF$8>$F$6,GF$8<Competition!$D$16+1,$F13=GF$4),IF($BW13<BI$10,"elérhető","nem"),"-") -> - | GG13: =+IF(AND(GG$8>$F$6,GG$8<Competition!$D$16+1,$F13=GG$4,$E13=GG$3),IF($BW13<BJ$10,"elérhető","nem"),"-") -> - | GH13: =+IF(AND(GH$8>$F$6,GH$8<Competition!$D$16+1,$F13=GH$4),IF($BW13<BK$10,"elérhető","nem"),"-") -> - | GI13: =+IF(AND(GI$8>$F$6,GI$8<Competition!$D$16+1,$F13=GI$4,$E13=GI$3),IF($BW13<BL$10,"elérhető","nem"),"-") -> - | GJ13: =+IF(AND(GJ$8>$F$6,GJ$8<Competition!$D$16+1,$F13=GJ$4),IF($BW13<BM$10,"elérhető","nem"),"-") -> - | GK13: =+IF(AND(GK$8>$F$6,GK$8<Competition!$D$16+1,$F13=GK$4,$E13=GK$3),IF($BW13<BN$10,"elérhető","nem"),"-") -> - | GL13: =+IF(AND(GL$8>$F$6,GL$8<Competition!$D$16+1,$F13=GL$4),IF($BW13<BO$10,"elérhető","nem"),"-") -> - | GM13: =+IF(AND(GM$8>$F$6,GM$8<Competition!$D$16+1,$F13=GM$4,$E13=GM$3),IF($BW13<BP$10,"elérhető","nem"),"-") -> - | GN13: =+IF(AND(GN$8>$F$6,GN$8<Competition!$D$16+1),IF($BW13<BQ$10,"elérhető","nem"),"-") -> - | GO13: =+IF(AND(GO$8>$F$6,GO$8<Competition!$D$16+1,$F13=GO$4),IF($BW13<BR$10,"elérhető","nem"),"-") -> - | GP13: =+IF(AND(GP$8>$F$6,GP$8<Competition!$D$16+1,$F13=GP$4,$E13=GP$3),IF($BW13<BS$10,"elérhető","nem"),"-") -> - | GR13: =+IF(OR(GW13<11,GX13<1,GY13<11,GZ13<11,HA13<11,HB13<11,HC13<11,HD13<11,HE13<11),1,0) -> 0 | GS13: =+IF(OR(SUM(HT13:HW13)=4,SUM(HU13:HX13)=4,SUM(HV13:HY13)=4,SUM(HW13:HZ13)=4,SUM(HX13:IA13)=4,SUM(HY13:IB13)=4,SUM(HZ13:IC13)=4,SUM(IA13:ID13)=4,SUM(IB13:IE13)=4),1,0) -> 0 | GT13: =+IF(OR(GW13<101,GX13<101,GY13<101,GZ13<101,HA13<101,HB13<101,HC13<101,HD13<101,HE13<101),1,0) -> 0 | GU13: =+IF(OR(SUM(HG13:HJ13)=4,SUM(HH13:HK13)=4,SUM(HI13:HL13)=4,SUM(HJ13:HM13)=4,SUM(HK13:HN13)=4,SUM(HL13:HO13)=4,SUM(HM13:HP13)=4,SUM(HN13:HQ13)=4,SUM(HO13:HR13)=4),1,0) -> 0 | GW13: 1671 | GX13: 1351 | GY13: 1110 | GZ13: 711 | HA13: 348 | HB13: 1000 | HC13: 1000 | HD13: 1000 | HE13: 1000 | HG13: 0 | HH13: 0 | HI13: 0 | HJ13: 0 | HK13: 1 | HL13: 1 | HM13: 0 | HN13: 0 | HO13: 0 | HP13: 0 | HQ13: 0 | HR13: 0 | HT13: 0 | HU13: 0 | HV13: 0 | HW13: 0 | HX13: 0 | HY13: 0 | HZ13: 0 | IA13: 0 | IB13: 0 | IC13: 0 | ID13: 0 | IE13: 0
A14: X | C14: 3 | D14: =+IF(OR(ISERROR(VLOOKUP($C14,Pilots!$B:$U,MATCH(Results!D$1,Pilots!$B$1:$U$1,0),0)),VLOOKUP($C14,Pilots!$B:$U,MATCH(Results!D$1,Pilots!$B$1:$U$1,0),0)=0),"",VLOOKUP($C14,Pilots!$B:$U,MATCH(Results!D$1,Pilots!$B$1:$U$1,0),0)) -> Jurica Katalinić | E14: =+IF(OR(ISERROR(VLOOKUP($C14,Pilots!$B:$U,MATCH(Results!E$1,Pilots!$B$1:$U$1,0),0)),VLOOKUP($C14,Pilots!$B:$U,MATCH(Results!E$1,Pilots!$B$1:$U$1,0),0)=0),"",VLOOKUP($C14,Pilots!$B:$U,MATCH(Results!E$1,Pilots!$B$1:$U$1,0),0)) -> M | F14: =+IF(OR(ISERROR(VLOOKUP($C14,Pilots!$B:$U,MATCH(Results!F$1,Pilots!$B$1:$U$1,0),0)),VLOOKUP($C14,Pilots!$B:$U,MATCH(Results!F$1,Pilots!$B$1:$U$1,0),0)=0),"",VLOOKUP($C14,Pilots!$B:$U,MATCH(Results!F$1,Pilots!$B$1:$U$1,0),0)) -> SRB | G14: =+IF(OR(ISERROR(VLOOKUP($C14,Pilots!$B:$U,MATCH(Results!G$1,Pilots!$B$1:$U$1,0),0)),VLOOKUP($C14,Pilots!$B:$U,MATCH(Results!G$1,Pilots!$B$1:$U$1,0),0)=0),"",VLOOKUP($C14,Pilots!$B:$U,MATCH(Results!G$1,Pilots!$B$1:$U$1,0),0)) -> Ivan Sarić | I14: =+IF(ISERROR(VLOOKUP($C14,Rounds!$A:$Z,MATCH(Results!I$1,Rounds!$1:$1,0),0)),"",IF(VLOOKUP($C14,Rounds!$A:$Z,MATCH(Results!I$1,Rounds!$1:$1,0),0)="","",VLOOKUP($C14,Rounds!$A:$Z,MATCH(Results!I$1,Rounds!$1:$1,0),0))) -> 500 | J14: =+IF(ISERROR(VLOOKUP($C14,Rounds!$A:$Z,MATCH(Results!J$1,Rounds!$1:$1,0),0)),"",IF(VLOOKUP($C14,Rounds!$A:$Z,MATCH(Results!J$1,Rounds!$1:$1,0),0)="","",VLOOKUP($C14,Rounds!$A:$Z,MATCH(Results!J$1,Rounds!$1:$1,0),0))) -> 150 | K14: =+IF(ISERROR(VLOOKUP($C14,Rounds!$A:$Z,MATCH(Results!K$1,Rounds!$1:$1,0),0)),"",IF(VLOOKUP($C14,Rounds!$A:$Z,MATCH(Results!K$1,Rounds!$1:$1,0),0)="","",VLOOKUP($C14,Rounds!$A:$Z,MATCH(Results!K$1,Rounds!$1:$1,0),0))) -> 500 | L14: =+IF(ISERROR(VLOOKUP($C14,Rounds!$A:$Z,MATCH(Results!L$1,Rounds!$1:$1,0),0)),"",IF(VLOOKUP($C14,Rounds!$A:$Z,MATCH(Results!L$1,Rounds!$1:$1,0),0)="","",VLOOKUP($C14,Rounds!$A:$Z,MATCH(Results!L$1,Rounds!$1:$1,0),0))) -> 123 | M14: =+IF(ISERROR(VLOOKUP($C14,Rounds!$A:$Z,MATCH(Results!M$1,Rounds!$1:$1,0),0)),"",IF(VLOOKUP($C14,Rounds!$A:$Z,MATCH(Results!M$1,Rounds!$1:$1,0),0)="","",VLOOKUP($C14,Rounds!$A:$Z,MATCH(Results!M$1,Rounds!$1:$1,0),0))) -> 500 | N14: =+IF(ISERROR(VLOOKUP($C14,Rounds!$A:$Z,MATCH(Results!N$1,Rounds!$1:$1,0),0)),"",IF(VLOOKUP($C14,Rounds!$A:$Z,MATCH(Results!N$1,Rounds!$1:$1,0),0)="","",VLOOKUP($C14,Rounds!$A:$Z,MATCH(Results!N$1,Rounds!$1:$1,0),0))) ->  | O14: =+IF(ISERROR(VLOOKUP($C14,Rounds!$A:$Z,MATCH(Results!O$1,Rounds!$1:$1,0),0)),"",IF(VLOOKUP($C14,Rounds!$A:$Z,MATCH(Results!O$1,Rounds!$1:$1,0),0)="","",VLOOKUP($C14,Rounds!$A:$Z,MATCH(Results!O$1,Rounds!$1:$1,0),0))) ->  | P14: =+IF(ISERROR(VLOOKUP($C14,Rounds!$A:$Z,MATCH(Results!P$1,Rounds!$1:$1,0),0)),"",IF(VLOOKUP($C14,Rounds!$A:$Z,MATCH(Results!P$1,Rounds!$1:$1,0),0)="","",VLOOKUP($C14,Rounds!$A:$Z,MATCH(Results!P$1,Rounds!$1:$1,0),0))) ->  | Q14: =+IF(ISERROR(VLOOKUP($C14,Rounds!$A:$Z,MATCH(Results!Q$1,Rounds!$1:$1,0),0)),"",IF(VLOOKUP($C14,Rounds!$A:$Z,MATCH(Results!Q$1,Rounds!$1:$1,0),0)="","",VLOOKUP($C14,Rounds!$A:$Z,MATCH(Results!Q$1,Rounds!$1:$1,0),0))) ->  | R14: =+IF(ISERROR(VLOOKUP($C14,Rounds!$A:$Z,MATCH(Results!R$1,Rounds!$1:$1,0),0)),"",IF(VLOOKUP($C14,Rounds!$A:$Z,MATCH(Results!R$1,Rounds!$1:$1,0),0)="","",VLOOKUP($C14,Rounds!$A:$Z,MATCH(Results!R$1,Rounds!$1:$1,0),0))) ->  | S14: =+IF(ISERROR(VLOOKUP($C14,Rounds!$A:$Z,MATCH(Results!S$1,Rounds!$1:$1,0),0)),"",IF(VLOOKUP($C14,Rounds!$A:$Z,MATCH(Results!S$1,Rounds!$1:$1,0),0)="","",VLOOKUP($C14,Rounds!$A:$Z,MATCH(Results!S$1,Rounds!$1:$1,0),0))) ->  | T14: =+IF(ISERROR(VLOOKUP($C14,Rounds!$A:$Z,MATCH(Results!T$1,Rounds!$1:$1,0),0)),"",IF(VLOOKUP($C14,Rounds!$A:$Z,MATCH(Results!T$1,Rounds!$1:$1,0),0)="","",VLOOKUP($C14,Rounds!$A:$Z,MATCH(Results!T$1,Rounds!$1:$1,0),0))) ->  | V14: =+IF(OR($D14="",ISBLANK($D14)),"",IF(V$8>$F$6,0,IF(OR(ISBLANK(I14),I14="DNF",I14="DSQ",I14>Competition!$D$18),Competition!$D$18,I14))) -> 500 | W14: =+IF(OR($D14="",ISBLANK($D14)),"",IF(W$8>$F$6,0,IF(OR(ISBLANK(J14),J14="DNF",J14="DSQ",J14>Competition!$D$18),Competition!$D$18,J14))) -> 150 | X14: =+IF(OR($D14="",ISBLANK($D14)),"",IF(X$8>$F$6,0,IF(OR(ISBLANK(K14),K14="DNF",K14="DSQ",K14>Competition!$D$18),Competition!$D$18,K14))) -> 500 | Y14: =+IF(OR($D14="",ISBLANK($D14)),"",IF(Y$8>$F$6,0,IF(OR(ISBLANK(L14),L14="DNF",L14="DSQ",L14>Competition!$D$18),Competition!$D$18,L14))) -> 123 | Z14: =+IF(OR($D14="",ISBLANK($D14)),"",IF(Z$8>$F$6,0,IF(OR(ISBLANK(M14),M14="DNF",M14="DSQ",M14>Competition!$D$18),Competition!$D$18,M14))) -> 500 | AA14: =+IF(OR($D14="",ISBLANK($D14)),"",IF(AA$8>$F$6,0,IF(OR(ISBLANK(N14),N14="DNF",N14="DSQ",N14>Competition!$D$18),Competition!$D$18,N14))) -> 500 | AB14: =+IF(OR($D14="",ISBLANK($D14)),"",IF(AB$8>$F$6,0,IF(OR(ISBLANK(O14),O14="DNF",O14="DSQ",O14>Competition!$D$18),Competition!$D$18,O14))) -> 500 | AC14: =+IF(OR($D14="",ISBLANK($D14)),"",IF(AC$8>$F$6,0,IF(OR(ISBLANK(P14),P14="DNF",P14="DSQ",P14>Competition!$D$18),Competition!$D$18,P14))) -> 500 | AD14: =+IF(OR($D14="",ISBLANK($D14)),"",IF(AD$8>$F$6,0,IF(OR(ISBLANK(Q14),Q14="DNF",Q14="DSQ",Q14>Competition!$D$18),Competition!$D$18,Q14))) -> 0 | AE14: =+IF(OR($D14="",ISBLANK($D14)),"",IF(AE$8>$F$6,0,IF(OR(ISBLANK(R14),R14="DNF",R14="DSQ",R14>Competition!$D$18),Competition!$D$18,R14))) -> 0 | AF14: =+IF(OR($D14="",ISBLANK($D14)),"",IF(AF$8>$F$6,0,IF(OR(ISBLANK(S14),S14="DNF",S14="DSQ",S14>Competition!$D$18),Competition!$D$18,S14))) -> 0 | AG14: =+IF(OR($D14="",ISBLANK($D14)),"",IF(AG$8>$F$6,0,IF(OR(ISBLANK(T14),T14="DNF",T14="DSQ",T14>Competition!$D$18),Competition!$D$18,T14))) -> 0 | AI14: =+IF(Competition!$D$20=Paraméterek!$C$4,0,IF($F$6<Competition!$D$21,0,MAX($V14:$AG14))) -> 500 | AK14: 2773 | AL14: =+IF(E14=Paraméterek!$D$4,Results!AK14,"") ->  | AN14: =+IF(ISERROR(HLOOKUP(1,$GR14:$GU$113,ROW($GR$113)-ROW()+1,0)),"-",HLOOKUP(1,$GR14:$GU$113,ROW($GR$113)-ROW()+1,0)) -> - | AP14: - | AQ14: =+IF(ISERROR(HLOOKUP("X",$AR14:$BS$113,ROW($FO$113)-ROW()+1,0)),"-",HLOOKUP("X",$AR14:$BS$113,ROW($FO$113)-ROW()+1,0)) -> - | BU14: =+IF(ISERROR(HLOOKUP("elérhető",$FO14:$GP$113,ROW($FO$113)-ROW()+1,0)),"-",HLOOKUP("elérhető",$FO14:$GP$113,ROW($FO$113)-ROW()+1,0)) -> - | BW14: 3273 | BY14: 12 | BZ14: - | CB14: =IF($D14="","",IF(AND(CB$8<($F$6+1),OR(I14="",ISBLANK(I14))),IF(CB$8=1,IF($AI14=0,"X",IF(V14=$AI14,1,"X")),IF($AI14=0,"X",IF(SUM(CA14:$CB14)>0,"X",IF(V14=$AI14,1,"X")))),IF(CB$8=1,IF($AI14=0,0,IF(V14=$AI14,1,0)),IF($AI14=0,0,IF(SUM(CA14:$CB14)>0,0,IF(V14=$AI14,1,0)))))) -> 1 | CC14: =IF($D14="","",IF(AND(CC$8<($F$6+1),OR(J14="",ISBLANK(J14))),IF(CC$8=1,IF($AI14=0,"X",IF(W14=$AI14,1,"X")),IF($AI14=0,"X",IF(SUM(CB14:$CB14)>0,"X",IF(W14=$AI14,1,"X")))),IF(CC$8=1,IF($AI14=0,0,IF(W14=$AI14,1,0)),IF($AI14=0,0,IF(SUM(CB14:$CB14)>0,0,IF(W14=$AI14,1,0)))))) -> 0 | CD14: =IF($D14="","",IF(AND(CD$8<($F$6+1),OR(K14="",ISBLANK(K14))),IF(CD$8=1,IF($AI14=0,"X",IF(X14=$AI14,1,"X")),IF($AI14=0,"X",IF(SUM($CB14:CC14)>0,"X",IF(X14=$AI14,1,"X")))),IF(CD$8=1,IF($AI14=0,0,IF(X14=$AI14,1,0)),IF($AI14=0,0,IF(SUM($CB14:CC14)>0,0,IF(X14=$AI14,1,0)))))) -> 0 | CE14: =IF($D14="","",IF(AND(CE$8<($F$6+1),OR(L14="",ISBLANK(L14))),IF(CE$8=1,IF($AI14=0,"X",IF(Y14=$AI14,1,"X")),IF($AI14=0,"X",IF(SUM($CB14:CD14)>0,"X",IF(Y14=$AI14,1,"X")))),IF(CE$8=1,IF($AI14=0,0,IF(Y14=$AI14,1,0)),IF($AI14=0,0,IF(SUM($CB14:CD14)>0,0,IF(Y14=$AI14,1,0)))))) -> 0 | CF14: =IF($D14="","",IF(AND(CF$8<($F$6+1),OR(M14="",ISBLANK(M14))),IF(CF$8=1,IF($AI14=0,"X",IF(Z14=$AI14,1,"X")),IF($AI14=0,"X",IF(SUM($CB14:CE14)>0,"X",IF(Z14=$AI14,1,"X")))),IF(CF$8=1,IF($AI14=0,0,IF(Z14=$AI14,1,0)),IF($AI14=0,0,IF(SUM($CB14:CE14)>0,0,IF(Z14=$AI14,1,0)))))) -> 0 | CG14: =IF($D14="","",IF(AND(CG$8<($F$6+1),OR(N14="",ISBLANK(N14))),IF(CG$8=1,IF($AI14=0,"X",IF(AA14=$AI14,1,"X")),IF($AI14=0,"X",IF(SUM($CB14:CF14)>0,"X",IF(AA14=$AI14,1,"X")))),IF(CG$8=1,IF($AI14=0,0,IF(AA14=$AI14,1,0)),IF($AI14=0,0,IF(SUM($CB14:CF14)>0,0,IF(AA14=$AI14,1,0)))))) -> X | CH14: =IF($D14="","",IF(AND(CH$8<($F$6+1),OR(O14="",ISBLANK(O14))),IF(CH$8=1,IF($AI14=0,"X",IF(AB14=$AI14,1,"X")),IF($AI14=0,"X",IF(SUM($CB14:CG14)>0,"X",IF(AB14=$AI14,1,"X")))),IF(CH$8=1,IF($AI14=0,0,IF(AB14=$AI14,1,0)),IF($AI14=0,0,IF(SUM($CB14:CG14)>0,0,IF(AB14=$AI14,1,0)))))) -> X | CI14: =IF($D14="","",IF(AND(CI$8<($F$6+1),OR(P14="",ISBLANK(P14))),IF(CI$8=1,IF($AI14=0,"X",IF(AC14=$AI14,1,"X")),IF($AI14=0,"X",IF(SUM($CB14:CH14)>0,"X",IF(AC14=$AI14,1,"X")))),IF(CI$8=1,IF($AI14=0,0,IF(AC14=$AI14,1,0)),IF($AI14=0,0,IF(SUM($CB14:CH14)>0,0,IF(AC14=$AI14,1,0)))))) -> X | CJ14: =IF($D14="","",IF(AND(CJ$8<($F$6+1),OR(Q14="",ISBLANK(Q14))),IF(CJ$8=1,IF($AI14=0,"X",IF(AD14=$AI14,1,"X")),IF($AI14=0,"X",IF(SUM($CB14:CI14)>0,"X",IF(AD14=$AI14,1,"X")))),IF(CJ$8=1,IF($AI14=0,0,IF(AD14=$AI14,1,0)),IF($AI14=0,0,IF(SUM($CB14:CI14)>0,0,IF(AD14=$AI14,1,0)))))) -> 0 | CK14: =IF($D14="","",IF(AND(CK$8<($F$6+1),OR(R14="",ISBLANK(R14))),IF(CK$8=1,IF($AI14=0,"X",IF(AE14=$AI14,1,"X")),IF($AI14=0,"X",IF(SUM($CB14:CJ14)>0,"X",IF(AE14=$AI14,1,"X")))),IF(CK$8=1,IF($AI14=0,0,IF(AE14=$AI14,1,0)),IF($AI14=0,0,IF(SUM($CB14:CJ14)>0,0,IF(AE14=$AI14,1,0)))))) -> 0 | CL14: =IF($D14="","",IF(AND(CL$8<($F$6+1),OR(S14="",ISBLANK(S14))),IF(CL$8=1,IF($AI14=0,"X",IF(AF14=$AI14,1,"X")),IF($AI14=0,"X",IF(SUM($CB14:CK14)>0,"X",IF(AF14=$AI14,1,"X")))),IF(CL$8=1,IF($AI14=0,0,IF(AF14=$AI14,1,0)),IF($AI14=0,0,IF(SUM($CB14:CK14)>0,0,IF(AF14=$AI14,1,0)))))) -> 0 | CM14: =IF($D14="","",IF(AND(CM$8<($F$6+1),OR(T14="",ISBLANK(T14))),IF(CM$8=1,IF($AI14=0,"X",IF(AG14=$AI14,1,"X")),IF($AI14=0,"X",IF(SUM($CB14:CL14)>0,"X",IF(AG14=$AI14,1,"X")))),IF(CM$8=1,IF($AI14=0,0,IF(AG14=$AI14,1,0)),IF($AI14=0,0,IF(SUM($CB14:CL14)>0,0,IF(AG14=$AI14,1,0)))))) -> 0 | CO14: =+IF(ISERROR(VLOOKUP($C14,Pilots!$B:$AG,MATCH(Results!CU$6,Pilots!$B$1:$AG$1,0),0)),"",VLOOKUP($C14,Pilots!$B:$AG,MATCH(Results!CU$6,Pilots!$B$1:$AG$1,0),0)) -> 0 | CT14: - | CU14: - | CW14: =+IF(ISERROR(VLOOKUP($C14,Pilots!$B:$AG,MATCH(Results!DC$6,Pilots!$B$1:$AG$1,0),0)),"",VLOOKUP($C14,Pilots!$B:$AG,MATCH(Results!DC$6,Pilots!$B$1:$AG$1,0),0)) -> 0 | DB14: - | DC14: - | DE14: =+IF(ISERROR(VLOOKUP($C14,Pilots!$B:$AG,MATCH(Results!DK$6,Pilots!$B$1:$AG$1,0),0)),"",VLOOKUP($C14,Pilots!$B:$AG,MATCH(Results!DK$6,Pilots!$B$1:$AG$1,0),0)) -> 0 | DJ14: - | DK14: - | DM14: =+IF(OR(V$6=Paraméterek!$E$4,$D14="",CB14="X"),"",RANK(V14,V$12:V$112,1)) -> 9 | DN14: =+IF(OR(W$6=Paraméterek!$E$4,$D14="",CC14="X"),"",RANK(W14,W$12:W$112,1)) -> 5 | DO14: =+IF(OR(X$6=Paraméterek!$E$4,$D14="",CD14="X"),"",RANK(X14,X$12:X$112,1)) -> 9 | DP14: =+IF(OR(Y$6=Paraméterek!$E$4,$D14="",CE14="X"),"",RANK(Y14,Y$12:Y$112,1)) -> 7 | DQ14: =+IF(OR(Z$6=Paraméterek!$E$4,$D14="",CF14="X"),"",RANK(Z14,Z$12:Z$112,1)) -> 11 | DR14: =+IF(OR(AA$6=Paraméterek!$E$4,$D14="",CG14="X"),"",RANK(AA14,AA$12:AA$112,1)) ->  | DS14: =+IF(OR(AB$6=Paraméterek!$E$4,$D14="",CH14="X"),"",RANK(AB14,AB$12:AB$112,1)) ->  | DT14: =+IF(OR(AC$6=Paraméterek!$E$4,$D14="",CI14="X"),"",RANK(AC14,AC$12:AC$112,1)) ->  | DU14: =+IF(OR(AD$6=Paraméterek!$E$4,$D14="",CJ14="X"),"",RANK(AD14,AD$12:AD$112,1)) ->  | DV14: =+IF(OR(AE$6=Paraméterek!$E$4,$D14="",CK14="X"),"",RANK(AE14,AE$12:AE$112,1)) ->  | DW14: =+IF(OR(AF$6=Paraméterek!$E$4,$D14="",CL14="X"),"",RANK(AF14,AF$12:AF$112,1)) ->  | DX14: =+IF(OR(AG$6=Paraméterek!$E$4,$D14="",CM14="X"),"",RANK(AG14,AG$12:AG$112,1)) ->  | EL14: =+IF(OR($D14="",AR$8>$F$6),"",SUM($V14:W14)) -> 650 | EM14: =+IF(OR($D14="",EM$8>$F$6),"",IF($F14=EM$4,SUM($V14:W14),"")) ->  | EN14: =+IF(OR($D14="",EN$8>$F$6),"",IF(AND($F14=EN$4,$E14=EN$3),SUM($V14:W14),"")) ->  | EO14: =+IF(OR($D14="",AU$8>$F$6),"",SUM($V14:X14)) -> 1150 | EP14: =+IF(OR($D14="",EP$8>$F$6),"",IF($F14=EP$4,SUM($V14:X14),"")) ->  | EQ14: =+IF(OR($D14="",EQ$8>$F$6),"",IF(AND($F14=EQ$4,$E14=EQ$3),SUM($V14:X14),"")) ->  | ER14: =+IF(OR($D14="",AX$8>$F$6),"",SUM($V14:Y14)) -> 1273 | ES14: =+IF(OR($D14="",ES$8>$F$6),"",IF($F14=ES$4,SUM($V14:Y14),"")) ->  | ET14: =+IF(OR($D14="",ET$8>$F$6),"",IF(AND($F14=ET$4,$E14=ET$3),SUM($V14:Y14),"")) ->  | EU14: =+IF(OR($D14="",BA$8>$F$6),"",SUM($V14:Z14)) -> 1773 | EV14: =+IF(OR($D14="",EV$8>$F$6),"",IF($F14=EV$4,SUM($V14:Z14),"")) ->  | EW14: =+IF(OR($D14="",EW$8>$F$6),"",IF(AND($F14=EW$4,$E14=EW$3),SUM($V14:Z14),"")) ->  | EX14: =+IF(OR($D14="",BD$8>$F$6),"",SUM($V14:AA14)) -> 2273 | EY14: =+IF(OR($D14="",EY$8>$F$6),"",IF($F14=EY$4,SUM($V14:AA14),"")) ->  | EZ14: =+IF(OR($D14="",EZ$8>$F$6),"",IF(AND($F14=EZ$4,$E14=EZ$3),SUM($V14:AA14),"")) ->  | FA14: =+IF(OR($D14="",FA$8>$F$6),"",IF($F14=FA$4,SUM($V14:AB14),"")) ->  | FB14: =+IF(OR($D14="",FB$8>$F$6),"",IF(AND($F14=FB$4,$E14=FB$3),SUM($V14:AB14),"")) ->  | FC14: =+IF(OR($D14="",FC$8>$F$6),"",IF($F14=FC$4,SUM($V14:AC14),"")) ->  | FD14: =+IF(OR($D14="",FD$8>$F$6),"",IF(AND($F14=FD$4,$E14=FD$3),SUM($V14:AC14),"")) ->  | FE14: =+IF(OR($D14="",FE$8>$F$6),"",IF($F14=FE$4,SUM($V14:AD14),"")) ->  | FF14: =+IF(OR($D14="",FF$8>$F$6),"",IF(AND($F14=FF$4,$E14=FF$3),SUM($V14:AD14),"")) ->  | FG14: =+IF(OR($D14="",FG$8>$F$6),"",IF($F14=FG$4,SUM($V14:AE14),"")) ->  | FH14: =+IF(OR($D14="",FH$8>$F$6),"",IF(AND($F14=FH$4,$E14=FH$3),SUM($V14:AE14),"")) ->  | FI14: =+IF(OR($D14="",FI$8>$F$6),"",IF($F14=FI$4,SUM($V14:AF14),"")) ->  | FJ14: =+IF(OR($D14="",FJ$8>$F$6),"",IF(AND($F14=FJ$4,$E14=FJ$3),SUM($V14:AF14),"")) ->  | FK14: =+IF(OR($D14="",BQ$8>$F$6),"",SUM($V14:AG14)) ->  | FL14: =+IF(OR($D14="",FL$8>$F$6),"",IF($F14=FL$4,SUM($V14:AG14),"")) ->  | FM14: =+IF(OR($D14="",FM$8>$F$6),"",IF(AND($F14=FM$4,$E14=FM$3),SUM($V14:AG14),"")) ->  | FO14: =+IF(AND(FO$8>$F$6,FO$8<Competition!$D$16+1),IF($BW14<AR$10,"elérhető","nem"),"-") -> - | FP14: =+IF(AND(FP$8>$F$6,FP$8<Competition!$D$16+1,$F14=FP$4),IF($BW14<AS$10,"elérhető","nem"),"-") -> - | FQ14: =+IF(AND(FQ$8>$F$6,FQ$8<Competition!$D$16+1,$F14=FQ$4,$E14=FQ$3),IF($BW14<AT$10,"elérhető","nem"),"-") -> - | FR14: =+IF(AND(FR$8>$F$6,FR$8<Competition!$D$16+1),IF($BW14<AU$10,"elérhető","nem"),"-") -> - | FS14: =+IF(AND(FS$8>$F$6,FS$8<Competition!$D$16+1,$F14=FS$4),IF($BW14<AV$10,"elérhető","nem"),"-") -> - | FT14: =+IF(AND(FT$8>$F$6,FT$8<Competition!$D$16+1,$F14=FT$4,$E14=FT$3),IF($BW14<AW$10,"elérhető","nem"),"-") -> - | FU14: =+IF(AND(FU$8>$F$6,FU$8<Competition!$D$16+1),IF($BW14<AX$10,"elérhető","nem"),"-") -> - | FV14: =+IF(AND(FV$8>$F$6,FV$8<Competition!$D$16+1,$F14=FV$4),IF($BW14<AY$10,"elérhető","nem"),"-") -> - | FW14: =+IF(AND(FW$8>$F$6,FW$8<Competition!$D$16+1,$F14=FW$4,$E14=FW$3),IF($BW14<AZ$10,"elérhető","nem"),"-") -> - | FX14: =+IF(AND(FX$8>$F$6,FX$8<Competition!$D$16+1),IF($BW14<BA$10,"elérhető","nem"),"-") -> - | FY14: =+IF(AND(FY$8>$F$6,FY$8<Competition!$D$16+1,$F14=FY$4),IF($BW14<BB$10,"elérhető","nem"),"-") -> - | FZ14: =+IF(AND(FZ$8>$F$6,FZ$8<Competition!$D$16+1,$F14=FZ$4,$E14=FZ$3),IF($BW14<BC$10,"elérhető","nem"),"-") -> - | GA14: =+IF(AND(GA$8>$F$6,GA$8<Competition!$D$16+1),IF($BW14<BD$10,"elérhető","nem"),"-") -> - | GB14: =+IF(AND(GB$8>$F$6,GB$8<Competition!$D$16+1,$F14=GB$4),IF($BW14<BE$10,"elérhető","nem"),"-") -> - | GC14: =+IF(AND(GC$8>$F$6,GC$8<Competition!$D$16+1,$F14=GC$4,$E14=GC$3),IF($BW14<BF$10,"elérhető","nem"),"-") -> - | GD14: =+IF(AND(GD$8>$F$6,GD$8<Competition!$D$16+1,$F14=GD$4),IF($BW14<BG$10,"elérhető","nem"),"-") -> - | GE14: =+IF(AND(GE$8>$F$6,GE$8<Competition!$D$16+1,$F14=GE$4,$E14=GE$3),IF($BW14<BH$10,"elérhető","nem"),"-") -> - | GF14: =+IF(AND(GF$8>$F$6,GF$8<Competition!$D$16+1,$F14=GF$4),IF($BW14<BI$10,"elérhető","nem"),"-") -> - | GG14: =+IF(AND(GG$8>$F$6,GG$8<Competition!$D$16+1,$F14=GG$4,$E14=GG$3),IF($BW14<BJ$10,"elérhető","nem"),"-") -> - | GH14: =+IF(AND(GH$8>$F$6,GH$8<Competition!$D$16+1,$F14=GH$4),IF($BW14<BK$10,"elérhető","nem"),"-") -> - | GI14: =+IF(AND(GI$8>$F$6,GI$8<Competition!$D$16+1,$F14=GI$4,$E14=GI$3),IF($BW14<BL$10,"elérhető","nem"),"-") -> - | GJ14: =+IF(AND(GJ$8>$F$6,GJ$8<Competition!$D$16+1,$F14=GJ$4),IF($BW14<BM$10,"elérhető","nem"),"-") -> - | GK14: =+IF(AND(GK$8>$F$6,GK$8<Competition!$D$16+1,$F14=GK$4,$E14=GK$3),IF($BW14<BN$10,"elérhető","nem"),"-") -> - | GL14: =+IF(AND(GL$8>$F$6,GL$8<Competition!$D$16+1,$F14=GL$4),IF($BW14<BO$10,"elérhető","nem"),"-") -> - | GM14: =+IF(AND(GM$8>$F$6,GM$8<Competition!$D$16+1,$F14=GM$4,$E14=GM$3),IF($BW14<BP$10,"elérhető","nem"),"-") -> - | GN14: =+IF(AND(GN$8>$F$6,GN$8<Competition!$D$16+1),IF($BW14<BQ$10,"elérhető","nem"),"-") -> - | GO14: =+IF(AND(GO$8>$F$6,GO$8<Competition!$D$16+1,$F14=GO$4),IF($BW14<BR$10,"elérhető","nem"),"-") -> - | GP14: =+IF(AND(GP$8>$F$6,GP$8<Competition!$D$16+1,$F14=GP$4,$E14=GP$3),IF($BW14<BS$10,"elérhető","nem"),"-") -> - | GR14: =+IF(OR(GW14<11,GX14<1,GY14<11,GZ14<11,HA14<11,HB14<11,HC14<11,HD14<11,HE14<11),1,0) -> 0 | GS14: 0 | GT14: =+IF(OR(GW14<101,GX14<101,GY14<101,GZ14<101,HA14<101,HB14<101,HC14<101,HD14<101,HE14<101),1,0) -> 0 | GU14: 0 | GW14: 1273 | GX14: 1273 | GY14: 1623 | GZ14: 1623 | HA14: 2000 | HB14: 1000 | HC14: 1000 | HD14: 1000 | HE14: 1000 | HG14: 0 | HH14: 0 | HI14: 0 | HJ14: 0 | HK14: 0 | HL14: 0 | HM14: 0 | HN14: 0 | HO14: 0 | HP14: 0 | HQ14: 0 | HR14: 0 | HT14: 0 | HU14: 0 | HV14: 0 | HW14: 0 | HX14: 0 | HY14: 0 | HZ14: 0 | IA14: 0 | IB14: 0 | IC14: 0 | ID14: 0 | IE14: 0
A15: X | C15: 4 | D15: =+IF(OR(ISERROR(VLOOKUP($C15,Pilots!$B:$U,MATCH(Results!D$1,Pilots!$B$1:$U$1,0),0)),VLOOKUP($C15,Pilots!$B:$U,MATCH(Results!D$1,Pilots!$B$1:$U$1,0),0)=0),"",VLOOKUP($C15,Pilots!$B:$U,MATCH(Results!D$1,Pilots!$B$1:$U$1,0),0)) -> István Gyarmati-Szabó | E15: =+IF(OR(ISERROR(VLOOKUP($C15,Pilots!$B:$U,MATCH(Results!E$1,Pilots!$B$1:$U$1,0),0)),VLOOKUP($C15,Pilots!$B:$U,MATCH(Results!E$1,Pilots!$B$1:$U$1,0),0)=0),"",VLOOKUP($C15,Pilots!$B:$U,MATCH(Results!E$1,Pilots!$B$1:$U$1,0),0)) -> M | F15: =+IF(OR(ISERROR(VLOOKUP($C15,Pilots!$B:$U,MATCH(Results!F$1,Pilots!$B$1:$U$1,0),0)),VLOOKUP($C15,Pilots!$B:$U,MATCH(Results!F$1,Pilots!$B$1:$U$1,0),0)=0),"",VLOOKUP($C15,Pilots!$B:$U,MATCH(Results!F$1,Pilots!$B$1:$U$1,0),0)) -> HUN | G15: =+IF(OR(ISERROR(VLOOKUP($C15,Pilots!$B:$U,MATCH(Results!G$1,Pilots!$B$1:$U$1,0),0)),VLOOKUP($C15,Pilots!$B:$U,MATCH(Results!G$1,Pilots!$B$1:$U$1,0),0)=0),"",VLOOKUP($C15,Pilots!$B:$U,MATCH(Results!G$1,Pilots!$B$1:$U$1,0),0)) -> Delta | I15: =+IF(ISERROR(VLOOKUP($C15,Rounds!$A:$Z,MATCH(Results!I$1,Rounds!$1:$1,0),0)),"",IF(VLOOKUP($C15,Rounds!$A:$Z,MATCH(Results!I$1,Rounds!$1:$1,0),0)="","",VLOOKUP($C15,Rounds!$A:$Z,MATCH(Results!I$1,Rounds!$1:$1,0),0))) -> 385 | J15: =+IF(ISERROR(VLOOKUP($C15,Rounds!$A:$Z,MATCH(Results!J$1,Rounds!$1:$1,0),0)),"",IF(VLOOKUP($C15,Rounds!$A:$Z,MATCH(Results!J$1,Rounds!$1:$1,0),0)="","",VLOOKUP($C15,Rounds!$A:$Z,MATCH(Results!J$1,Rounds!$1:$1,0),0))) -> 500 | K15: =+IF(ISERROR(VLOOKUP($C15,Rounds!$A:$Z,MATCH(Results!K$1,Rounds!$1:$1,0),0)),"",IF(VLOOKUP($C15,Rounds!$A:$Z,MATCH(Results!K$1,Rounds!$1:$1,0),0)="","",VLOOKUP($C15,Rounds!$A:$Z,MATCH(Results!K$1,Rounds!$1:$1,0),0))) -> 236 | L15: =+IF(ISERROR(VLOOKUP($C15,Rounds!$A:$Z,MATCH(Results!L$1,Rounds!$1:$1,0),0)),"",IF(VLOOKUP($C15,Rounds!$A:$Z,MATCH(Results!L$1,Rounds!$1:$1,0),0)="","",VLOOKUP($C15,Rounds!$A:$Z,MATCH(Results!L$1,Rounds!$1:$1,0),0))) -> 500 | M15: =+IF(ISERROR(VLOOKUP($C15,Rounds!$A:$Z,MATCH(Results!M$1,Rounds!$1:$1,0),0)),"",IF(VLOOKUP($C15,Rounds!$A:$Z,MATCH(Results!M$1,Rounds!$1:$1,0),0)="","",VLOOKUP($C15,Rounds!$A:$Z,MATCH(Results!M$1,Rounds!$1:$1,0),0))) -> 500 | N15: =+IF(ISERROR(VLOOKUP($C15,Rounds!$A:$Z,MATCH(Results!N$1,Rounds!$1:$1,0),0)),"",IF(VLOOKUP($C15,Rounds!$A:$Z,MATCH(Results!N$1,Rounds!$1:$1,0),0)="","",VLOOKUP($C15,Rounds!$A:$Z,MATCH(Results!N$1,Rounds!$1:$1,0),0))) -> 193 | O15: =+IF(ISERROR(VLOOKUP($C15,Rounds!$A:$Z,MATCH(Results!O$1,Rounds!$1:$1,0),0)),"",IF(VLOOKUP($C15,Rounds!$A:$Z,MATCH(Results!O$1,Rounds!$1:$1,0),0)="","",VLOOKUP($C15,Rounds!$A:$Z,MATCH(Results!O$1,Rounds!$1:$1,0),0))) -> 248 | P15: =+IF(ISERROR(VLOOKUP($C15,Rounds!$A:$Z,MATCH(Results!P$1,Rounds!$1:$1,0),0)),"",IF(VLOOKUP($C15,Rounds!$A:$Z,MATCH(Results!P$1,Rounds!$1:$1,0),0)="","",VLOOKUP($C15,Rounds!$A:$Z,MATCH(Results!P$1,Rounds!$1:$1,0),0))) -> 500 | Q15: =+IF(ISERROR(VLOOKUP($C15,Rounds!$A:$Z,MATCH(Results!Q$1,Rounds!$1:$1,0),0)),"",IF(VLOOKUP($C15,Rounds!$A:$Z,MATCH(Results!Q$1,Rounds!$1:$1,0),0)="","",VLOOKUP($C15,Rounds!$A:$Z,MATCH(Results!Q$1,Rounds!$1:$1,0),0))) ->  | R15: =+IF(ISERROR(VLOOKUP($C15,Rounds!$A:$Z,MATCH(Results!R$1,Rounds!$1:$1,0),0)),"",IF(VLOOKUP($C15,Rounds!$A:$Z,MATCH(Results!R$1,Rounds!$1:$1,0),0)="","",VLOOKUP($C15,Rounds!$A:$Z,MATCH(Results!R$1,Rounds!$1:$1,0),0))) ->  | S15: =+IF(ISERROR(VLOOKUP($C15,Rounds!$A:$Z,MATCH(Results!S$1,Rounds!$1:$1,0),0)),"",IF(VLOOKUP($C15,Rounds!$A:$Z,MATCH(Results!S$1,Rounds!$1:$1,0),0)="","",VLOOKUP($C15,Rounds!$A:$Z,MATCH(Results!S$1,Rounds!$1:$1,0),0))) ->  | T15: =+IF(ISERROR(VLOOKUP($C15,Rounds!$A:$Z,MATCH(Results!T$1,Rounds!$1:$1,0),0)),"",IF(VLOOKUP($C15,Rounds!$A:$Z,MATCH(Results!T$1,Rounds!$1:$1,0),0)="","",VLOOKUP($C15,Rounds!$A:$Z,MATCH(Results!T$1,Rounds!$1:$1,0),0))) ->  | V15: =+IF(OR($D15="",ISBLANK($D15)),"",IF(V$8>$F$6,0,IF(OR(ISBLANK(I15),I15="DNF",I15="DSQ",I15>Competition!$D$18),Competition!$D$18,I15))) -> 385 | W15: =+IF(OR($D15="",ISBLANK($D15)),"",IF(W$8>$F$6,0,IF(OR(ISBLANK(J15),J15="DNF",J15="DSQ",J15>Competition!$D$18),Competition!$D$18,J15))) -> 500 | X15: =+IF(OR($D15="",ISBLANK($D15)),"",IF(X$8>$F$6,0,IF(OR(ISBLANK(K15),K15="DNF",K15="DSQ",K15>Competition!$D$18),Competition!$D$18,K15))) -> 236 | Y15: =+IF(OR($D15="",ISBLANK($D15)),"",IF(Y$8>$F$6,0,IF(OR(ISBLANK(L15),L15="DNF",L15="DSQ",L15>Competition!$D$18),Competition!$D$18,L15))) -> 500 | Z15: =+IF(OR($D15="",ISBLANK($D15)),"",IF(Z$8>$F$6,0,IF(OR(ISBLANK(M15),M15="DNF",M15="DSQ",M15>Competition!$D$18),Competition!$D$18,M15))) -> 500 | AA15: =+IF(OR($D15="",ISBLANK($D15)),"",IF(AA$8>$F$6,0,IF(OR(ISBLANK(N15),N15="DNF",N15="DSQ",N15>Competition!$D$18),Competition!$D$18,N15))) -> 193 | AB15: =+IF(OR($D15="",ISBLANK($D15)),"",IF(AB$8>$F$6,0,IF(OR(ISBLANK(O15),O15="DNF",O15="DSQ",O15>Competition!$D$18),Competition!$D$18,O15))) -> 248 | AC15: =+IF(OR($D15="",ISBLANK($D15)),"",IF(AC$8>$F$6,0,IF(OR(ISBLANK(P15),P15="DNF",P15="DSQ",P15>Competition!$D$18),Competition!$D$18,P15))) -> 500 | AD15: =+IF(OR($D15="",ISBLANK($D15)),"",IF(AD$8>$F$6,0,IF(OR(ISBLANK(Q15),Q15="DNF",Q15="DSQ",Q15>Competition!$D$18),Competition!$D$18,Q15))) -> 0 | AE15: =+IF(OR($D15="",ISBLANK($D15)),"",IF(AE$8>$F$6,0,IF(OR(ISBLANK(R15),R15="DNF",R15="DSQ",R15>Competition!$D$18),Competition!$D$18,R15))) -> 0 | AF15: =+IF(OR($D15="",ISBLANK($D15)),"",IF(AF$8>$F$6,0,IF(OR(ISBLANK(S15),S15="DNF",S15="DSQ",S15>Competition!$D$18),Competition!$D$18,S15))) -> 0 | AG15: =+IF(OR($D15="",ISBLANK($D15)),"",IF(AG$8>$F$6,0,IF(OR(ISBLANK(T15),T15="DNF",T15="DSQ",T15>Competition!$D$18),Competition!$D$18,T15))) -> 0 | AI15: =+IF(Competition!$D$20=Paraméterek!$C$4,0,IF($F$6<Competition!$D$21,0,MAX($V15:$AG15))) -> 500 | AK15: 2562 | AL15: =+IF(E15=Paraméterek!$D$4,Results!AK15,"") ->  | AN15: =+IF(ISERROR(HLOOKUP(1,$GR15:$GU$113,ROW($GR$113)-ROW()+1,0)),"-",HLOOKUP(1,$GR15:$GU$113,ROW($GR$113)-ROW()+1,0)) -> - | AP15: - | AQ15: =+IF(ISERROR(HLOOKUP("X",$AR15:$BS$113,ROW($FO$113)-ROW()+1,0)),"-",HLOOKUP("X",$AR15:$BS$113,ROW($FO$113)-ROW()+1,0)) -> - | BU15: =+IF(ISERROR(HLOOKUP("elérhető",$FO15:$GP$113,ROW($FO$113)-ROW()+1,0)),"-",HLOOKUP("elérhető",$FO15:$GP$113,ROW($FO$113)-ROW()+1,0)) -> - | BW15: 3062 | BY15: 11 | BZ15: - | CB15: =IF($D15="","",IF(AND(CB$8<($F$6+1),OR(I15="",ISBLANK(I15))),IF(CB$8=1,IF($AI15=0,"X",IF(V15=$AI15,1,"X")),IF($AI15=0,"X",IF(SUM(CA15:$CB15)>0,"X",IF(V15=$AI15,1,"X")))),IF(CB$8=1,IF($AI15=0,0,IF(V15=$AI15,1,0)),IF($AI15=0,0,IF(SUM(CA15:$CB15)>0,0,IF(V15=$AI15,1,0)))))) -> 0 | CC15: =IF($D15="","",IF(AND(CC$8<($F$6+1),OR(J15="",ISBLANK(J15))),IF(CC$8=1,IF($AI15=0,"X",IF(W15=$AI15,1,"X")),IF($AI15=0,"X",IF(SUM(CB15:$CB15)>0,"X",IF(W15=$AI15,1,"X")))),IF(CC$8=1,IF($AI15=0,0,IF(W15=$AI15,1,0)),IF($AI15=0,0,IF(SUM(CB15:$CB15)>0,0,IF(W15=$AI15,1,0)))))) -> 1 | CD15: =IF($D15="","",IF(AND(CD$8<($F$6+1),OR(K15="",ISBLANK(K15))),IF(CD$8=1,IF($AI15=0,"X",IF(X15=$AI15,1,"X")),IF($AI15=0,"X",IF(SUM($CB15:CC15)>0,"X",IF(X15=$AI15,1,"X")))),IF(CD$8=1,IF($AI15=0,0,IF(X15=$AI15,1,0)),IF($AI15=0,0,IF(SUM($CB15:CC15)>0,0,IF(X15=$AI15,1,0)))))) -> 0 | CE15: =IF($D15="","",IF(AND(CE$8<($F$6+1),OR(L15="",ISBLANK(L15))),IF(CE$8=1,IF($AI15=0,"X",IF(Y15=$AI15,1,"X")),IF($AI15=0,"X",IF(SUM($CB15:CD15)>0,"X",IF(Y15=$AI15,1,"X")))),IF(CE$8=1,IF($AI15=0,0,IF(Y15=$AI15,1,0)),IF($AI15=0,0,IF(SUM($CB15:CD15)>0,0,IF(Y15=$AI15,1,0)))))) -> 0 | CF15: =IF($D15="","",IF(AND(CF$8<($F$6+1),OR(M15="",ISBLANK(M15))),IF(CF$8=1,IF($AI15=0,"X",IF(Z15=$AI15,1,"X")),IF($AI15=0,"X",IF(SUM($CB15:CE15)>0,"X",IF(Z15=$AI15,1,"X")))),IF(CF$8=1,IF($AI15=0,0,IF(Z15=$AI15,1,0)),IF($AI15=0,0,IF(SUM($CB15:CE15)>0,0,IF(Z15=$AI15,1,0)))))) -> 0 | CG15: =IF($D15="","",IF(AND(CG$8<($F$6+1),OR(N15="",ISBLANK(N15))),IF(CG$8=1,IF($AI15=0,"X",IF(AA15=$AI15,1,"X")),IF($AI15=0,"X",IF(SUM($CB15:CF15)>0,"X",IF(AA15=$AI15,1,"X")))),IF(CG$8=1,IF($AI15=0,0,IF(AA15=$AI15,1,0)),IF($AI15=0,0,IF(SUM($CB15:CF15)>0,0,IF(AA15=$AI15,1,0)))))) -> 0 | CH15: =IF($D15="","",IF(AND(CH$8<($F$6+1),OR(O15="",ISBLANK(O15))),IF(CH$8=1,IF($AI15=0,"X",IF(AB15=$AI15,1,"X")),IF($AI15=0,"X",IF(SUM($CB15:CG15)>0,"X",IF(AB15=$AI15,1,"X")))),IF(CH$8=1,IF($AI15=0,0,IF(AB15=$AI15,1,0)),IF($AI15=0,0,IF(SUM($CB15:CG15)>0,0,IF(AB15=$AI15,1,0)))))) -> 0 | CI15: =IF($D15="","",IF(AND(CI$8<($F$6+1),OR(P15="",ISBLANK(P15))),IF(CI$8=1,IF($AI15=0,"X",IF(AC15=$AI15,1,"X")),IF($AI15=0,"X",IF(SUM($CB15:CH15)>0,"X",IF(AC15=$AI15,1,"X")))),IF(CI$8=1,IF($AI15=0,0,IF(AC15=$AI15,1,0)),IF($AI15=0,0,IF(SUM($CB15:CH15)>0,0,IF(AC15=$AI15,1,0)))))) -> 0 | CJ15: =IF($D15="","",IF(AND(CJ$8<($F$6+1),OR(Q15="",ISBLANK(Q15))),IF(CJ$8=1,IF($AI15=0,"X",IF(AD15=$AI15,1,"X")),IF($AI15=0,"X",IF(SUM($CB15:CI15)>0,"X",IF(AD15=$AI15,1,"X")))),IF(CJ$8=1,IF($AI15=0,0,IF(AD15=$AI15,1,0)),IF($AI15=0,0,IF(SUM($CB15:CI15)>0,0,IF(AD15=$AI15,1,0)))))) -> 0 | CK15: =IF($D15="","",IF(AND(CK$8<($F$6+1),OR(R15="",ISBLANK(R15))),IF(CK$8=1,IF($AI15=0,"X",IF(AE15=$AI15,1,"X")),IF($AI15=0,"X",IF(SUM($CB15:CJ15)>0,"X",IF(AE15=$AI15,1,"X")))),IF(CK$8=1,IF($AI15=0,0,IF(AE15=$AI15,1,0)),IF($AI15=0,0,IF(SUM($CB15:CJ15)>0,0,IF(AE15=$AI15,1,0)))))) -> 0 | CL15: =IF($D15="","",IF(AND(CL$8<($F$6+1),OR(S15="",ISBLANK(S15))),IF(CL$8=1,IF($AI15=0,"X",IF(AF15=$AI15,1,"X")),IF($AI15=0,"X",IF(SUM($CB15:CK15)>0,"X",IF(AF15=$AI15,1,"X")))),IF(CL$8=1,IF($AI15=0,0,IF(AF15=$AI15,1,0)),IF($AI15=0,0,IF(SUM($CB15:CK15)>0,0,IF(AF15=$AI15,1,0)))))) -> 0 | CM15: =IF($D15="","",IF(AND(CM$8<($F$6+1),OR(T15="",ISBLANK(T15))),IF(CM$8=1,IF($AI15=0,"X",IF(AG15=$AI15,1,"X")),IF($AI15=0,"X",IF(SUM($CB15:CL15)>0,"X",IF(AG15=$AI15,1,"X")))),IF(CM$8=1,IF($AI15=0,0,IF(AG15=$AI15,1,0)),IF($AI15=0,0,IF(SUM($CB15:CL15)>0,0,IF(AG15=$AI15,1,0)))))) -> 0 | CO15: =+IF(ISERROR(VLOOKUP($C15,Pilots!$B:$AG,MATCH(Results!CU$6,Pilots!$B$1:$AG$1,0),0)),"",VLOOKUP($C15,Pilots!$B:$AG,MATCH(Results!CU$6,Pilots!$B$1:$AG$1,0),0)) -> X | CQ15: 2562 | CT15: 9 | CU15: - | CW15: =+IF(ISERROR(VLOOKUP($C15,Pilots!$B:$AG,MATCH(Results!DC$6,Pilots!$B$1:$AG$1,0),0)),"",VLOOKUP($C15,Pilots!$B:$AG,MATCH(Results!DC$6,Pilots!$B$1:$AG$1,0),0)) -> 0 | DB15: - | DC15: - | DE15: =+IF(ISERROR(VLOOKUP($C15,Pilots!$B:$AG,MATCH(Results!DK$6,Pilots!$B$1:$AG$1,0),0)),"",VLOOKUP($C15,Pilots!$B:$AG,MATCH(Results!DK$6,Pilots!$B$1:$AG$1,0),0)) -> 0 | DJ15: - | DK15: - | DM15: =+IF(OR(V$6=Paraméterek!$E$4,$D15="",CB15="X"),"",RANK(V15,V$12:V$112,1)) -> 8 | DN15: =+IF(OR(W$6=Paraméterek!$E$4,$D15="",CC15="X"),"",RANK(W15,W$12:W$112,1)) -> 10 | DO15: =+IF(OR(X$6=Paraméterek!$E$4,$D15="",CD15="X"),"",RANK(X15,X$12:X$112,1)) -> 5 | DP15: =+IF(OR(Y$6=Paraméterek!$E$4,$D15="",CE15="X"),"",RANK(Y15,Y$12:Y$112,1)) -> 10 | DQ15: =+IF(OR(Z$6=Paraméterek!$E$4,$D15="",CF15="X"),"",RANK(Z15,Z$12:Z$112,1)) -> 11 | DR15: =+IF(OR(AA$6=Paraméterek!$E$4,$D15="",CG15="X"),"",RANK(AA15,AA$12:AA$112,1)) -> 7 | DS15: =+IF(OR(AB$6=Paraméterek!$E$4,$D15="",CH15="X"),"",RANK(AB15,AB$12:AB$112,1)) -> 6 | DT15: =+IF(OR(AC$6=Paraméterek!$E$4,$D15="",CI15="X"),"",RANK(AC15,AC$12:AC$112,1)) -> 6 | DU15: =+IF(OR(AD$6=Paraméterek!$E$4,$D15="",CJ15="X"),"",RANK(AD15,AD$12:AD$112,1)) ->  | DV15: =+IF(OR(AE$6=Paraméterek!$E$4,$D15="",CK15="X"),"",RANK(AE15,AE$12:AE$112,1)) ->  | DW15: =+IF(OR(AF$6=Paraméterek!$E$4,$D15="",CL15="X"),"",RANK(AF15,AF$12:AF$112,1)) ->  | DX15: =+IF(OR(AG$6=Paraméterek!$E$4,$D15="",CM15="X"),"",RANK(AG15,AG$12:AG$112,1)) ->  | EL15: =+IF(OR($D15="",AR$8>$F$6),"",SUM($V15:W15)) -> 885 | EM15: =+IF(OR($D15="",EM$8>$F$6),"",IF($F15=EM$4,SUM($V15:W15),"")) -> 885 | EN15: =+IF(OR($D15="",EN$8>$F$6),"",IF(AND($F15=EN$4,$E15=EN$3),SUM($V15:W15),"")) ->  | EO15: =+IF(OR($D15="",AU$8>$F$6),"",SUM($V15:X15)) -> 1121 | EP15: =+IF(OR($D15="",EP$8>$F$6),"",IF($F15=EP$4,SUM($V15:X15),"")) -> 1121 | EQ15: =+IF(OR($D15="",EQ$8>$F$6),"",IF(AND($F15=EQ$4,$E15=EQ$3),SUM($V15:X15),"")) ->  | ER15: =+IF(OR($D15="",AX$8>$F$6),"",SUM($V15:Y15)) -> 1621 | ES15: =+IF(OR($D15="",ES$8>$F$6),"",IF($F15=ES$4,SUM($V15:Y15),"")) -> 1621 | ET15: =+IF(OR($D15="",ET$8>$F$6),"",IF(AND($F15=ET$4,$E15=ET$3),SUM($V15:Y15),"")) ->  | EU15: =+IF(OR($D15="",BA$8>$F$6),"",SUM($V15:Z15)) -> 2121 | EV15: =+IF(OR($D15="",EV$8>$F$6),"",IF($F15=EV$4,SUM($V15:Z15),"")) -> 2121 | EW15: =+IF(OR($D15="",EW$8>$F$6),"",IF(AND($F15=EW$4,$E15=EW$3),SUM($V15:Z15),"")) ->  | EX15: =+IF(OR($D15="",BD$8>$F$6),"",SUM($V15:AA15)) -> 2314 | EY15: =+IF(OR($D15="",EY$8>$F$6),"",IF($F15=EY$4,SUM($V15:AA15),"")) -> 2314 | EZ15: =+IF(OR($D15="",EZ$8>$F$6),"",IF(AND($F15=EZ$4,$E15=EZ$3),SUM($V15:AA15),"")) ->  | FA15: =+IF(OR($D15="",FA$8>$F$6),"",IF($F15=FA$4,SUM($V15:AB15),"")) -> 2562 | FB15: =+IF(OR($D15="",FB$8>$F$6),"",IF(AND($F15=FB$4,$E15=FB$3),SUM($V15:AB15),"")) ->  | FC15: =+IF(OR($D15="",FC$8>$F$6),"",IF($F15=FC$4,SUM($V15:AC15),"")) -> 3062 | FD15: =+IF(OR($D15="",FD$8>$F$6),"",IF(AND($F15=FD$4,$E15=FD$3),SUM($V15:AC15),"")) ->  | FE15: =+IF(OR($D15="",FE$8>$F$6),"",IF($F15=FE$4,SUM($V15:AD15),"")) ->  | FF15: =+IF(OR($D15="",FF$8>$F$6),"",IF(AND($F15=FF$4,$E15=FF$3),SUM($V15:AD15),"")) ->  | FG15: =+IF(OR($D15="",FG$8>$F$6),"",IF($F15=FG$4,SUM($V15:AE15),"")) ->  | FH15: =+IF(OR($D15="",FH$8>$F$6),"",IF(AND($F15=FH$4,$E15=FH$3),SUM($V15:AE15),"")) ->  | FI15: =+IF(OR($D15="",FI$8>$F$6),"",IF($F15=FI$4,SUM($V15:AF15),"")) ->  | FJ15: =+IF(OR($D15="",FJ$8>$F$6),"",IF(AND($F15=FJ$4,$E15=FJ$3),SUM($V15:AF15),"")) ->  | FK15: =+IF(OR($D15="",BQ$8>$F$6),"",SUM($V15:AG15)) ->  | FL15: =+IF(OR($D15="",FL$8>$F$6),"",IF($F15=FL$4,SUM($V15:AG15),"")) ->  | FM15: =+IF(OR($D15="",FM$8>$F$6),"",IF(AND($F15=FM$4,$E15=FM$3),SUM($V15:AG15),"")) ->  | FO15: =+IF(AND(FO$8>$F$6,FO$8<Competition!$D$16+1),IF($BW15<AR$10,"elérhető","nem"),"-") -> - | FP15: =+IF(AND(FP$8>$F$6,FP$8<Competition!$D$16+1,$F15=FP$4),IF($BW15<AS$10,"elérhető","nem"),"-") -> - | FQ15: =+IF(AND(FQ$8>$F$6,FQ$8<Competition!$D$16+1,$F15=FQ$4,$E15=FQ$3),IF($BW15<AT$10,"elérhető","nem"),"-") -> - | FR15: =+IF(AND(FR$8>$F$6,FR$8<Competition!$D$16+1),IF($BW15<AU$10,"elérhető","nem"),"-") -> - | FS15: =+IF(AND(FS$8>$F$6,FS$8<Competition!$D$16+1,$F15=FS$4),IF($BW15<AV$10,"elérhető","nem"),"-") -> - | FT15: =+IF(AND(FT$8>$F$6,FT$8<Competition!$D$16+1,$F15=FT$4,$E15=FT$3),IF($BW15<AW$10,"elérhető","nem"),"-") -> - | FU15: =+IF(AND(FU$8>$F$6,FU$8<Competition!$D$16+1),IF($BW15<AX$10,"elérhető","nem"),"-") -> - | FV15: =+IF(AND(FV$8>$F$6,FV$8<Competition!$D$16+1,$F15=FV$4),IF($BW15<AY$10,"elérhető","nem"),"-") -> - | FW15: =+IF(AND(FW$8>$F$6,FW$8<Competition!$D$16+1,$F15=FW$4,$E15=FW$3),IF($BW15<AZ$10,"elérhető","nem"),"-") -> - | FX15: =+IF(AND(FX$8>$F$6,FX$8<Competition!$D$16+1),IF($BW15<BA$10,"elérhető","nem"),"-") -> - | FY15: =+IF(AND(FY$8>$F$6,FY$8<Competition!$D$16+1,$F15=FY$4),IF($BW15<BB$10,"elérhető","nem"),"-") -> - | FZ15: =+IF(AND(FZ$8>$F$6,FZ$8<Competition!$D$16+1,$F15=FZ$4,$E15=FZ$3),IF($BW15<BC$10,"elérhető","nem"),"-") -> - | GA15: =+IF(AND(GA$8>$F$6,GA$8<Competition!$D$16+1),IF($BW15<BD$10,"elérhető","nem"),"-") -> - | GB15: =+IF(AND(GB$8>$F$6,GB$8<Competition!$D$16+1,$F15=GB$4),IF($BW15<BE$10,"elérhető","nem"),"-") -> - | GC15: =+IF(AND(GC$8>$F$6,GC$8<Competition!$D$16+1,$F15=GC$4,$E15=GC$3),IF($BW15<BF$10,"elérhető","nem"),"-") -> - | GD15: =+IF(AND(GD$8>$F$6,GD$8<Competition!$D$16+1,$F15=GD$4),IF($BW15<BG$10,"elérhető","nem"),"-") -> - | GE15: =+IF(AND(GE$8>$F$6,GE$8<Competition!$D$16+1,$F15=GE$4,$E15=GE$3),IF($BW15<BH$10,"elérhető","nem"),"-") -> - | GF15: =+IF(AND(GF$8>$F$6,GF$8<Competition!$D$16+1,$F15=GF$4),IF($BW15<BI$10,"elérhető","nem"),"-") -> - | GG15: =+IF(AND(GG$8>$F$6,GG$8<Competition!$D$16+1,$F15=GG$4,$E15=GG$3),IF($BW15<BJ$10,"elérhető","nem"),"-") -> - | GH15: =+IF(AND(GH$8>$F$6,GH$8<Competition!$D$16+1,$F15=GH$4),IF($BW15<BK$10,"elérhető","nem"),"-") -> - | GI15: =+IF(AND(GI$8>$F$6,GI$8<Competition!$D$16+1,$F15=GI$4,$E15=GI$3),IF($BW15<BL$10,"elérhető","nem"),"-") -> - | GJ15: =+IF(AND(GJ$8>$F$6,GJ$8<Competition!$D$16+1,$F15=GJ$4),IF($BW15<BM$10,"elérhető","nem"),"-") -> - | GK15: =+IF(AND(GK$8>$F$6,GK$8<Competition!$D$16+1,$F15=GK$4,$E15=GK$3),IF($BW15<BN$10,"elérhető","nem"),"-") -> - | GL15: =+IF(AND(GL$8>$F$6,GL$8<Competition!$D$16+1,$F15=GL$4),IF($BW15<BO$10,"elérhető","nem"),"-") -> - | GM15: =+IF(AND(GM$8>$F$6,GM$8<Competition!$D$16+1,$F15=GM$4,$E15=GM$3),IF($BW15<BP$10,"elérhető","nem"),"-") -> - | GN15: =+IF(AND(GN$8>$F$6,GN$8<Competition!$D$16+1),IF($BW15<BQ$10,"elérhető","nem"),"-") -> - | GO15: =+IF(AND(GO$8>$F$6,GO$8<Competition!$D$16+1,$F15=GO$4),IF($BW15<BR$10,"elérhető","nem"),"-") -> - | GP15: =+IF(AND(GP$8>$F$6,GP$8<Competition!$D$16+1,$F15=GP$4,$E15=GP$3),IF($BW15<BS$10,"elérhető","nem"),"-") -> - | GR15: 0 | GS15: 0 | GT15: 0 | GU15: 0 | GW15: 1621 | GX15: 1736 | GY15: 1429 | GZ15: 1441 | HA15: 1441 | HB15: 1000 | HC15: 1000 | HD15: 1000 | HE15: 1000 | HG15: 0 | HH15: 0 | HI15: 0 | HJ15: 0 | HK15: 0 | HL15: 0 | HM15: 0 | HN15: 0 | HO15: 0 | HP15: 0 | HQ15: 0 | HR15: 0 | HT15: 0 | HU15: 0 | HV15: 0 | HW15: 0 | HX15: 0 | HY15: 0 | HZ15: 0 | IA15: 0 | IB15: 0 | IC15: 0 | ID15: 0 | IE15: 0
A16: X | C16: 5 | D16: =+IF(OR(ISERROR(VLOOKUP($C16,Pilots!$B:$U,MATCH(Results!D$1,Pilots!$B$1:$U$1,0),0)),VLOOKUP($C16,Pilots!$B:$U,MATCH(Results!D$1,Pilots!$B$1:$U$1,0),0)=0),"",VLOOKUP($C16,Pilots!$B:$U,MATCH(Results!D$1,Pilots!$B$1:$U$1,0),0)) -> Dániel Hartmann | E16: =+IF(OR(ISERROR(VLOOKUP($C16,Pilots!$B:$U,MATCH(Results!E$1,Pilots!$B$1:$U$1,0),0)),VLOOKUP($C16,Pilots!$B:$U,MATCH(Results!E$1,Pilots!$B$1:$U$1,0),0)=0),"",VLOOKUP($C16,Pilots!$B:$U,MATCH(Results!E$1,Pilots!$B$1:$U$1,0),0)) -> M | F16: =+IF(OR(ISERROR(VLOOKUP($C16,Pilots!$B:$U,MATCH(Results!F$1,Pilots!$B$1:$U$1,0),0)),VLOOKUP($C16,Pilots!$B:$U,MATCH(Results!F$1,Pilots!$B$1:$U$1,0),0)=0),"",VLOOKUP($C16,Pilots!$B:$U,MATCH(Results!F$1,Pilots!$B$1:$U$1,0),0)) -> HUN | G16: =+IF(OR(ISERROR(VLOOKUP($C16,Pilots!$B:$U,MATCH(Results!G$1,Pilots!$B$1:$U$1,0),0)),VLOOKUP($C16,Pilots!$B:$U,MATCH(Results!G$1,Pilots!$B$1:$U$1,0),0)=0),"",VLOOKUP($C16,Pilots!$B:$U,MATCH(Results!G$1,Pilots!$B$1:$U$1,0),0)) -> Felhőút SE | I16: =+IF(ISERROR(VLOOKUP($C16,Rounds!$A:$Z,MATCH(Results!I$1,Rounds!$1:$1,0),0)),"",IF(VLOOKUP($C16,Rounds!$A:$Z,MATCH(Results!I$1,Rounds!$1:$1,0),0)="","",VLOOKUP($C16,Rounds!$A:$Z,MATCH(Results!I$1,Rounds!$1:$1,0),0))) -> 500 | J16: =+IF(ISERROR(VLOOKUP($C16,Rounds!$A:$Z,MATCH(Results!J$1,Rounds!$1:$1,0),0)),"",IF(VLOOKUP($C16,Rounds!$A:$Z,MATCH(Results!J$1,Rounds!$1:$1,0),0)="","",VLOOKUP($C16,Rounds!$A:$Z,MATCH(Results!J$1,Rounds!$1:$1,0),0))) -> 31 | K16: =+IF(ISERROR(VLOOKUP($C16,Rounds!$A:$Z,MATCH(Results!K$1,Rounds!$1:$1,0),0)),"",IF(VLOOKUP($C16,Rounds!$A:$Z,MATCH(Results!K$1,Rounds!$1:$1,0),0)="","",VLOOKUP($C16,Rounds!$A:$Z,MATCH(Results!K$1,Rounds!$1:$1,0),0))) -> 500 | L16: =+IF(ISERROR(VLOOKUP($C16,Rounds!$A:$Z,MATCH(Results!L$1,Rounds!$1:$1,0),0)),"",IF(VLOOKUP($C16,Rounds!$A:$Z,MATCH(Results!L$1,Rounds!$1:$1,0),0)="","",VLOOKUP($C16,Rounds!$A:$Z,MATCH(Results!L$1,Rounds!$1:$1,0),0))) -> 500 | M16: =+IF(ISERROR(VLOOKUP($C16,Rounds!$A:$Z,MATCH(Results!M$1,Rounds!$1:$1,0),0)),"",IF(VLOOKUP($C16,Rounds!$A:$Z,MATCH(Results!M$1,Rounds!$1:$1,0),0)="","",VLOOKUP($C16,Rounds!$A:$Z,MATCH(Results!M$1,Rounds!$1:$1,0),0))) -> 137 | N16: =+IF(ISERROR(VLOOKUP($C16,Rounds!$A:$Z,MATCH(Results!N$1,Rounds!$1:$1,0),0)),"",IF(VLOOKUP($C16,Rounds!$A:$Z,MATCH(Results!N$1,Rounds!$1:$1,0),0)="","",VLOOKUP($C16,Rounds!$A:$Z,MATCH(Results!N$1,Rounds!$1:$1,0),0))) -> 217 | O16: =+IF(ISERROR(VLOOKUP($C16,Rounds!$A:$Z,MATCH(Results!O$1,Rounds!$1:$1,0),0)),"",IF(VLOOKUP($C16,Rounds!$A:$Z,MATCH(Results!O$1,Rounds!$1:$1,0),0)="","",VLOOKUP($C16,Rounds!$A:$Z,MATCH(Results!O$1,Rounds!$1:$1,0),0))) -> 500 | P16: =+IF(ISERROR(VLOOKUP($C16,Rounds!$A:$Z,MATCH(Results!P$1,Rounds!$1:$1,0),0)),"",IF(VLOOKUP($C16,Rounds!$A:$Z,MATCH(Results!P$1,Rounds!$1:$1,0),0)="","",VLOOKUP($C16,Rounds!$A:$Z,MATCH(Results!P$1,Rounds!$1:$1,0),0))) -> 500 | Q16: =+IF(ISERROR(VLOOKUP($C16,Rounds!$A:$Z,MATCH(Results!Q$1,Rounds!$1:$1,0),0)),"",IF(VLOOKUP($C16,Rounds!$A:$Z,MATCH(Results!Q$1,Rounds!$1:$1,0),0)="","",VLOOKUP($C16,Rounds!$A:$Z,MATCH(Results!Q$1,Rounds!$1:$1,0),0))) ->  | R16: =+IF(ISERROR(VLOOKUP($C16,Rounds!$A:$Z,MATCH(Results!R$1,Rounds!$1:$1,0),0)),"",IF(VLOOKUP($C16,Rounds!$A:$Z,MATCH(Results!R$1,Rounds!$1:$1,0),0)="","",VLOOKUP($C16,Rounds!$A:$Z,MATCH(Results!R$1,Rounds!$1:$1,0),0))) ->  | S16: =+IF(ISERROR(VLOOKUP($C16,Rounds!$A:$Z,MATCH(Results!S$1,Rounds!$1:$1,0),0)),"",IF(VLOOKUP($C16,Rounds!$A:$Z,MATCH(Results!S$1,Rounds!$1:$1,0),0)="","",VLOOKUP($C16,Rounds!$A:$Z,MATCH(Results!S$1,Rounds!$1:$1,0),0))) ->  | T16: =+IF(ISERROR(VLOOKUP($C16,Rounds!$A:$Z,MATCH(Results!T$1,Rounds!$1:$1,0),0)),"",IF(VLOOKUP($C16,Rounds!$A:$Z,MATCH(Results!T$1,Rounds!$1:$1,0),0)="","",VLOOKUP($C16,Rounds!$A:$Z,MATCH(Results!T$1,Rounds!$1:$1,0),0))) ->  | V16: =+IF(OR($D16="",ISBLANK($D16)),"",IF(V$8>$F$6,0,IF(OR(ISBLANK(I16),I16="DNF",I16="DSQ",I16>Competition!$D$18),Competition!$D$18,I16))) -> 500 | W16: =+IF(OR($D16="",ISBLANK($D16)),"",IF(W$8>$F$6,0,IF(OR(ISBLANK(J16),J16="DNF",J16="DSQ",J16>Competition!$D$18),Competition!$D$18,J16))) -> 31 | X16: =+IF(OR($D16="",ISBLANK($D16)),"",IF(X$8>$F$6,0,IF(OR(ISBLANK(K16),K16="DNF",K16="DSQ",K16>Competition!$D$18),Competition!$D$18,K16))) -> 500 | Y16: =+IF(OR($D16="",ISBLANK($D16)),"",IF(Y$8>$F$6,0,IF(OR(ISBLANK(L16),L16="DNF",L16="DSQ",L16>Competition!$D$18),Competition!$D$18,L16))) -> 500 | Z16: =+IF(OR($D16="",ISBLANK($D16)),"",IF(Z$8>$F$6,0,IF(OR(ISBLANK(M16),M16="DNF",M16="DSQ",M16>Competition!$D$18),Competition!$D$18,M16))) -> 137 | AA16: =+IF(OR($D16="",ISBLANK($D16)),"",IF(AA$8>$F$6,0,IF(OR(ISBLANK(N16),N16="DNF",N16="DSQ",N16>Competition!$D$18),Competition!$D$18,N16))) -> 217 | AB16: =+IF(OR($D16="",ISBLANK($D16)),"",IF(AB$8>$F$6,0,IF(OR(ISBLANK(O16),O16="DNF",O16="DSQ",O16>Competition!$D$18),Competition!$D$18,O16))) -> 500 | AC16: =+IF(OR($D16="",ISBLANK($D16)),"",IF(AC$8>$F$6,0,IF(OR(ISBLANK(P16),P16="DNF",P16="DSQ",P16>Competition!$D$18),Competition!$D$18,P16))) -> 500 | AD16: =+IF(OR($D16="",ISBLANK($D16)),"",IF(AD$8>$F$6,0,IF(OR(ISBLANK(Q16),Q16="DNF",Q16="DSQ",Q16>Competition!$D$18),Competition!$D$18,Q16))) -> 0 | AE16: =+IF(OR($D16="",ISBLANK($D16)),"",IF(AE$8>$F$6,0,IF(OR(ISBLANK(R16),R16="DNF",R16="DSQ",R16>Competition!$D$18),Competition!$D$18,R16))) -> 0 | AF16: =+IF(OR($D16="",ISBLANK($D16)),"",IF(AF$8>$F$6,0,IF(OR(ISBLANK(S16),S16="DNF",S16="DSQ",S16>Competition!$D$18),Competition!$D$18,S16))) -> 0 | AG16: =+IF(OR($D16="",ISBLANK($D16)),"",IF(AG$8>$F$6,0,IF(OR(ISBLANK(T16),T16="DNF",T16="DSQ",T16>Competition!$D$18),Competition!$D$18,T16))) -> 0 | AI16: =+IF(Competition!$D$20=Paraméterek!$C$4,0,IF($F$6<Competition!$D$21,0,MAX($V16:$AG16))) -> 500 | AK16: 2385 | AL16: =+IF(E16=Paraméterek!$D$4,Results!AK16,"") ->  | AN16: =+IF(ISERROR(HLOOKUP(1,$GR16:$GU$113,ROW($GR$113)-ROW()+1,0)),"-",HLOOKUP(1,$GR16:$GU$113,ROW($GR$113)-ROW()+1,0)) -> - | AP16: - | AQ16: =+IF(ISERROR(HLOOKUP("X",$AR16:$BS$113,ROW($FO$113)-ROW()+1,0)),"-",HLOOKUP("X",$AR16:$BS$113,ROW($FO$113)-ROW()+1,0)) -> - | BU16: =+IF(ISERROR(HLOOKUP("elérhető",$FO16:$GP$113,ROW($FO$113)-ROW()+1,0)),"-",HLOOKUP("elérhető",$FO16:$GP$113,ROW($FO$113)-ROW()+1,0)) -> - | BW16: 2885 | BY16: 10 | BZ16: - | CB16: =IF($D16="","",IF(AND(CB$8<($F$6+1),OR(I16="",ISBLANK(I16))),IF(CB$8=1,IF($AI16=0,"X",IF(V16=$AI16,1,"X")),IF($AI16=0,"X",IF(SUM(CA16:$CB16)>0,"X",IF(V16=$AI16,1,"X")))),IF(CB$8=1,IF($AI16=0,0,IF(V16=$AI16,1,0)),IF($AI16=0,0,IF(SUM(CA16:$CB16)>0,0,IF(V16=$AI16,1,0)))))) -> 1 | CC16: =IF($D16="","",IF(AND(CC$8<($F$6+1),OR(J16="",ISBLANK(J16))),IF(CC$8=1,IF($AI16=0,"X",IF(W16=$AI16,1,"X")),IF($AI16=0,"X",IF(SUM(CB16:$CB16)>0,"X",IF(W16=$AI16,1,"X")))),IF(CC$8=1,IF($AI16=0,0,IF(W16=$AI16,1,0)),IF($AI16=0,0,IF(SUM(CB16:$CB16)>0,0,IF(W16=$AI16,1,0)))))) -> 0 | CD16: =IF($D16="","",IF(AND(CD$8<($F$6+1),OR(K16="",ISBLANK(K16))),IF(CD$8=1,IF($AI16=0,"X",IF(X16=$AI16,1,"X")),IF($AI16=0,"X",IF(SUM($CB16:CC16)>0,"X",IF(X16=$AI16,1,"X")))),IF(CD$8=1,IF($AI16=0,0,IF(X16=$AI16,1,0)),IF($AI16=0,0,IF(SUM($CB16:CC16)>0,0,IF(X16=$AI16,1,0)))))) -> 0 | CE16: =IF($D16="","",IF(AND(CE$8<($F$6+1),OR(L16="",ISBLANK(L16))),IF(CE$8=1,IF($AI16=0,"X",IF(Y16=$AI16,1,"X")),IF($AI16=0,"X",IF(SUM($CB16:CD16)>0,"X",IF(Y16=$AI16,1,"X")))),IF(CE$8=1,IF($AI16=0,0,IF(Y16=$AI16,1,0)),IF($AI16=0,0,IF(SUM($CB16:CD16)>0,0,IF(Y16=$AI16,1,0)))))) -> 0 | CF16: =IF($D16="","",IF(AND(CF$8<($F$6+1),OR(M16="",ISBLANK(M16))),IF(CF$8=1,IF($AI16=0,"X",IF(Z16=$AI16,1,"X")),IF($AI16=0,"X",IF(SUM($CB16:CE16)>0,"X",IF(Z16=$AI16,1,"X")))),IF(CF$8=1,IF($AI16=0,0,IF(Z16=$AI16,1,0)),IF($AI16=0,0,IF(SUM($CB16:CE16)>0,0,IF(Z16=$AI16,1,0)))))) -> 0 | CG16: =IF($D16="","",IF(AND(CG$8<($F$6+1),OR(N16="",ISBLANK(N16))),IF(CG$8=1,IF($AI16=0,"X",IF(AA16=$AI16,1,"X")),IF($AI16=0,"X",IF(SUM($CB16:CF16)>0,"X",IF(AA16=$AI16,1,"X")))),IF(CG$8=1,IF($AI16=0,0,IF(AA16=$AI16,1,0)),IF($AI16=0,0,IF(SUM($CB16:CF16)>0,0,IF(AA16=$AI16,1,0)))))) -> 0 | CH16: =IF($D16="","",IF(AND(CH$8<($F$6+1),OR(O16="",ISBLANK(O16))),IF(CH$8=1,IF($AI16=0,"X",IF(AB16=$AI16,1,"X")),IF($AI16=0,"X",IF(SUM($CB16:CG16)>0,"X",IF(AB16=$AI16,1,"X")))),IF(CH$8=1,IF($AI16=0,0,IF(AB16=$AI16,1,0)),IF($AI16=0,0,IF(SUM($CB16:CG16)>0,0,IF(AB16=$AI16,1,0)))))) -> 0 | CI16: =IF($D16="","",IF(AND(CI$8<($F$6+1),OR(P16="",ISBLANK(P16))),IF(CI$8=1,IF($AI16=0,"X",IF(AC16=$AI16,1,"X")),IF($AI16=0,"X",IF(SUM($CB16:CH16)>0,"X",IF(AC16=$AI16,1,"X")))),IF(CI$8=1,IF($AI16=0,0,IF(AC16=$AI16,1,0)),IF($AI16=0,0,IF(SUM($CB16:CH16)>0,0,IF(AC16=$AI16,1,0)))))) -> 0 | CJ16: =IF($D16="","",IF(AND(CJ$8<($F$6+1),OR(Q16="",ISBLANK(Q16))),IF(CJ$8=1,IF($AI16=0,"X",IF(AD16=$AI16,1,"X")),IF($AI16=0,"X",IF(SUM($CB16:CI16)>0,"X",IF(AD16=$AI16,1,"X")))),IF(CJ$8=1,IF($AI16=0,0,IF(AD16=$AI16,1,0)),IF($AI16=0,0,IF(SUM($CB16:CI16)>0,0,IF(AD16=$AI16,1,0)))))) -> 0 | CK16: =IF($D16="","",IF(AND(CK$8<($F$6+1),OR(R16="",ISBLANK(R16))),IF(CK$8=1,IF($AI16=0,"X",IF(AE16=$AI16,1,"X")),IF($AI16=0,"X",IF(SUM($CB16:CJ16)>0,"X",IF(AE16=$AI16,1,"X")))),IF(CK$8=1,IF($AI16=0,0,IF(AE16=$AI16,1,0)),IF($AI16=0,0,IF(SUM($CB16:CJ16)>0,0,IF(AE16=$AI16,1,0)))))) -> 0 | CL16: =IF($D16="","",IF(AND(CL$8<($F$6+1),OR(S16="",ISBLANK(S16))),IF(CL$8=1,IF($AI16=0,"X",IF(AF16=$AI16,1,"X")),IF($AI16=0,"X",IF(SUM($CB16:CK16)>0,"X",IF(AF16=$AI16,1,"X")))),IF(CL$8=1,IF($AI16=0,0,IF(AF16=$AI16,1,0)),IF($AI16=0,0,IF(SUM($CB16:CK16)>0,0,IF(AF16=$AI16,1,0)))))) -> 0 | CM16: =IF($D16="","",IF(AND(CM$8<($F$6+1),OR(T16="",ISBLANK(T16))),IF(CM$8=1,IF($AI16=0,"X",IF(AG16=$AI16,1,"X")),IF($AI16=0,"X",IF(SUM($CB16:CL16)>0,"X",IF(AG16=$AI16,1,"X")))),IF(CM$8=1,IF($AI16=0,0,IF(AG16=$AI16,1,0)),IF($AI16=0,0,IF(SUM($CB16:CL16)>0,0,IF(AG16=$AI16,1,0)))))) -> 0 | CO16: =+IF(ISERROR(VLOOKUP($C16,Pilots!$B:$AG,MATCH(Results!CU$6,Pilots!$B$1:$AG$1,0),0)),"",VLOOKUP($C16,Pilots!$B:$AG,MATCH(Results!CU$6,Pilots!$B$1:$AG$1,0),0)) -> X | CQ16: 2385 | CT16: 8 | CU16: - | CW16: =+IF(ISERROR(VLOOKUP($C16,Pilots!$B:$AG,MATCH(Results!DC$6,Pilots!$B$1:$AG$1,0),0)),"",VLOOKUP($C16,Pilots!$B:$AG,MATCH(Results!DC$6,Pilots!$B$1:$AG$1,0),0)) -> 0 | DB16: - | DC16: - | DE16: =+IF(ISERROR(VLOOKUP($C16,Pilots!$B:$AG,MATCH(Results!DK$6,Pilots!$B$1:$AG$1,0),0)),"",VLOOKUP($C16,Pilots!$B:$AG,MATCH(Results!DK$6,Pilots!$B$1:$AG$1,0),0)) -> 0 | DJ16: - | DK16: - | DM16: =+IF(OR(V$6=Paraméterek!$E$4,$D16="",CB16="X"),"",RANK(V16,V$12:V$112,1)) -> 9 | DN16: =+IF(OR(W$6=Paraméterek!$E$4,$D16="",CC16="X"),"",RANK(W16,W$12:W$112,1)) -> 4 | DO16: =+IF(OR(X$6=Paraméterek!$E$4,$D16="",CD16="X"),"",RANK(X16,X$12:X$112,1)) -> 9 | DP16: =+IF(OR(Y$6=Paraméterek!$E$4,$D16="",CE16="X"),"",RANK(Y16,Y$12:Y$112,1)) -> 10 | DQ16: =+IF(OR(Z$6=Paraméterek!$E$4,$D16="",CF16="X"),"",RANK(Z16,Z$12:Z$112,1)) -> 6 | DR16: =+IF(OR(AA$6=Paraméterek!$E$4,$D16="",CG16="X"),"",RANK(AA16,AA$12:AA$112,1)) -> 8 | DS16: =+IF(OR(AB$6=Paraméterek!$E$4,$D16="",CH16="X"),"",RANK(AB16,AB$12:AB$112,1)) -> 8 | DT16: =+IF(OR(AC$6=Paraméterek!$E$4,$D16="",CI16="X"),"",RANK(AC16,AC$12:AC$112,1)) -> 6 | DU16: =+IF(OR(AD$6=Paraméterek!$E$4,$D16="",CJ16="X"),"",RANK(AD16,AD$12:AD$112,1)) ->  | DV16: =+IF(OR(AE$6=Paraméterek!$E$4,$D16="",CK16="X"),"",RANK(AE16,AE$12:AE$112,1)) ->  | DW16: =+IF(OR(AF$6=Paraméterek!$E$4,$D16="",CL16="X"),"",RANK(AF16,AF$12:AF$112,1)) ->  | DX16: =+IF(OR(AG$6=Paraméterek!$E$4,$D16="",CM16="X"),"",RANK(AG16,AG$12:AG$112,1)) ->  | EL16: =+IF(OR($D16="",AR$8>$F$6),"",SUM($V16:W16)) -> 531 | EM16: =+IF(OR($D16="",EM$8>$F$6),"",IF($F16=EM$4,SUM($V16:W16),"")) -> 531 | EN16: =+IF(OR($D16="",EN$8>$F$6),"",IF(AND($F16=EN$4,$E16=EN$3),SUM($V16:W16),"")) ->  | EO16: =+IF(OR($D16="",AU$8>$F$6),"",SUM($V16:X16)) -> 1031 | EP16: =+IF(OR($D16="",EP$8>$F$6),"",IF($F16=EP$4,SUM($V16:X16),"")) -> 1031 | EQ16: =+IF(OR($D16="",EQ$8>$F$6),"",IF(AND($F16=EQ$4,$E16=EQ$3),SUM($V16:X16),"")) ->  | ER16: =+IF(OR($D16="",AX$8>$F$6),"",SUM($V16:Y16)) -> 1531 | ES16: =+IF(OR($D16="",ES$8>$F$6),"",IF($F16=ES$4,SUM($V16:Y16),"")) -> 1531 | ET16: =+IF(OR($D16="",ET$8>$F$6),"",IF(AND($F16=ET$4,$E16=ET$3),SUM($V16:Y16),"")) ->  | EU16: =+IF(OR($D16="",BA$8>$F$6),"",SUM($V16:Z16)) -> 1668 | EV16: =+IF(OR($D16="",EV$8>$F$6),"",IF($F16=EV$4,SUM($V16:Z16),"")) -> 1668 | EW16: =+IF(OR($D16="",EW$8>$F$6),"",IF(AND($F16=EW$4,$E16=EW$3),SUM($V16:Z16),"")) ->  | EX16: =+IF(OR($D16="",BD$8>$F$6),"",SUM($V16:AA16)) -> 1885 | EY16: =+IF(OR($D16="",EY$8>$F$6),"",IF($F16=EY$4,SUM($V16:AA16),"")) -> 1885 | EZ16: =+IF(OR($D16="",EZ$8>$F$6),"",IF(AND($F16=EZ$4,$E16=EZ$3),SUM($V16:AA16),"")) ->  | FA16: =+IF(OR($D16="",FA$8>$F$6),"",IF($F16=FA$4,SUM($V16:AB16),"")) -> 2385 | FB16: =+IF(OR($D16="",FB$8>$F$6),"",IF(AND($F16=FB$4,$E16=FB$3),SUM($V16:AB16),"")) ->  | FC16: =+IF(OR($D16="",FC$8>$F$6),"",IF($F16=FC$4,SUM($V16:AC16),"")) -> 2885 | FD16: =+IF(OR($D16="",FD$8>$F$6),"",IF(AND($F16=FD$4,$E16=FD$3),SUM($V16:AC16),"")) ->  | FE16: =+IF(OR($D16="",FE$8>$F$6),"",IF($F16=FE$4,SUM($V16:AD16),"")) ->  | FF16: =+IF(OR($D16="",FF$8>$F$6),"",IF(AND($F16=FF$4,$E16=FF$3),SUM($V16:AD16),"")) ->  | FG16: =+IF(OR($D16="",FG$8>$F$6),"",IF($F16=FG$4,SUM($V16:AE16),"")) ->  | FH16: =+IF(OR($D16="",FH$8>$F$6),"",IF(AND($F16=FH$4,$E16=FH$3),SUM($V16:AE16),"")) ->  | FI16: =+IF(OR($D16="",FI$8>$F$6),"",IF($F16=FI$4,SUM($V16:AF16),"")) ->  | FJ16: =+IF(OR($D16="",FJ$8>$F$6),"",IF(AND($F16=FJ$4,$E16=FJ$3),SUM($V16:AF16),"")) ->  | FK16: =+IF(OR($D16="",BQ$8>$F$6),"",SUM($V16:AG16)) ->  | FL16: =+IF(OR($D16="",FL$8>$F$6),"",IF($F16=FL$4,SUM($V16:AG16),"")) ->  | FM16: =+IF(OR($D16="",FM$8>$F$6),"",IF(AND($F16=FM$4,$E16=FM$3),SUM($V16:AG16),"")) ->  | FO16: =+IF(AND(FO$8>$F$6,FO$8<Competition!$D$16+1),IF($BW16<AR$10,"elérhető","nem"),"-") -> - | FP16: =+IF(AND(FP$8>$F$6,FP$8<Competition!$D$16+1,$F16=FP$4),IF($BW16<AS$10,"elérhető","nem"),"-") -> - | FQ16: =+IF(AND(FQ$8>$F$6,FQ$8<Competition!$D$16+1,$F16=FQ$4,$E16=FQ$3),IF($BW16<AT$10,"elérhető","nem"),"-") -> - | FR16: =+IF(AND(FR$8>$F$6,FR$8<Competition!$D$16+1),IF($BW16<AU$10,"elérhető","nem"),"-") -> - | FS16: =+IF(AND(FS$8>$F$6,FS$8<Competition!$D$16+1,$F16=FS$4),IF($BW16<AV$10,"elérhető","nem"),"-") -> - | FT16: =+IF(AND(FT$8>$F$6,FT$8<Competition!$D$16+1,$F16=FT$4,$E16=FT$3),IF($BW16<AW$10,"elérhető","nem"),"-") -> - | FU16: =+IF(AND(FU$8>$F$6,FU$8<Competition!$D$16+1),IF($BW16<AX$10,"elérhető","nem"),"-") -> - | FV16: =+IF(AND(FV$8>$F$6,FV$8<Competition!$D$16+1,$F16=FV$4),IF($BW16<AY$10,"elérhető","nem"),"-") -> - | FW16: =+IF(AND(FW$8>$F$6,FW$8<Competition!$D$16+1,$F16=FW$4,$E16=FW$3),IF($BW16<AZ$10,"elérhető","nem"),"-") -> - | FX16: =+IF(AND(FX$8>$F$6,FX$8<Competition!$D$16+1),IF($BW16<BA$10,"elérhető","nem"),"-") -> - | FY16: =+IF(AND(FY$8>$F$6,FY$8<Competition!$D$16+1,$F16=FY$4),IF($BW16<BB$10,"elérhető","nem"),"-") -> - | FZ16: =+IF(AND(FZ$8>$F$6,FZ$8<Competition!$D$16+1,$F16=FZ$4,$E16=FZ$3),IF($BW16<BC$10,"elérhető","nem"),"-") -> - | GA16: =+IF(AND(GA$8>$F$6,GA$8<Competition!$D$16+1),IF($BW16<BD$10,"elérhető","nem"),"-") -> - | GB16: =+IF(AND(GB$8>$F$6,GB$8<Competition!$D$16+1,$F16=GB$4),IF($BW16<BE$10,"elérhető","nem"),"-") -> - | GC16: =+IF(AND(GC$8>$F$6,GC$8<Competition!$D$16+1,$F16=GC$4,$E16=GC$3),IF($BW16<BF$10,"elérhető","nem"),"-") -> - | GD16: =+IF(AND(GD$8>$F$6,GD$8<Competition!$D$16+1,$F16=GD$4),IF($BW16<BG$10,"elérhető","nem"),"-") -> - | GE16: =+IF(AND(GE$8>$F$6,GE$8<Competition!$D$16+1,$F16=GE$4,$E16=GE$3),IF($BW16<BH$10,"elérhető","nem"),"-") -> - | GF16: =+IF(AND(GF$8>$F$6,GF$8<Competition!$D$16+1,$F16=GF$4),IF($BW16<BI$10,"elérhető","nem"),"-") -> - | GG16: =+IF(AND(GG$8>$F$6,GG$8<Competition!$D$16+1,$F16=GG$4,$E16=GG$3),IF($BW16<BJ$10,"elérhető","nem"),"-") -> - | GH16: =+IF(AND(GH$8>$F$6,GH$8<Competition!$D$16+1,$F16=GH$4),IF($BW16<BK$10,"elérhető","nem"),"-") -> - | GI16: =+IF(AND(GI$8>$F$6,GI$8<Competition!$D$16+1,$F16=GI$4,$E16=GI$3),IF($BW16<BL$10,"elérhető","nem"),"-") -> - | GJ16: =+IF(AND(GJ$8>$F$6,GJ$8<Competition!$D$16+1,$F16=GJ$4),IF($BW16<BM$10,"elérhető","nem"),"-") -> - | GK16: =+IF(AND(GK$8>$F$6,GK$8<Competition!$D$16+1,$F16=GK$4,$E16=GK$3),IF($BW16<BN$10,"elérhető","nem"),"-") -> - | GL16: =+IF(AND(GL$8>$F$6,GL$8<Competition!$D$16+1,$F16=GL$4),IF($BW16<BO$10,"elérhető","nem"),"-") -> - | GM16: =+IF(AND(GM$8>$F$6,GM$8<Competition!$D$16+1,$F16=GM$4,$E16=GM$3),IF($BW16<BP$10,"elérhető","nem"),"-") -> - | GN16: =+IF(AND(GN$8>$F$6,GN$8<Competition!$D$16+1),IF($BW16<BQ$10,"elérhető","nem"),"-") -> - | GO16: =+IF(AND(GO$8>$F$6,GO$8<Competition!$D$16+1,$F16=GO$4),IF($BW16<BR$10,"elérhető","nem"),"-") -> - | GP16: =+IF(AND(GP$8>$F$6,GP$8<Competition!$D$16+1,$F16=GP$4,$E16=GP$3),IF($BW16<BS$10,"elérhető","nem"),"-") -> - | GR16: 0 | GS16: 0 | GT16: 0 | GU16: 0 | GW16: 1531 | GX16: 1168 | GY16: 1354 | GZ16: 1354 | HA16: 1354 | HB16: 1000 | HC16: 1000 | HD16: 1000 | HE16: 1000 | HG16: 0 | HH16: 1 | HI16: 0 | HJ16: 0 | HK16: 0 | HL16: 0 | HM16: 0 | HN16: 0 | HO16: 0 | HP16: 0 | HQ16: 0 | HR16: 0 | HT16: 0 | HU16: 0 | HV16: 0 | HW16: 0 | HX16: 0 | HY16: 0 | HZ16: 0 | IA16: 0 | IB16: 0 | IC16: 0 | ID16: 0 | IE16: 0
A17: X | C17: 6 | D17: =+IF(OR(ISERROR(VLOOKUP($C17,Pilots!$B:$U,MATCH(Results!D$1,Pilots!$B$1:$U$1,0),0)),VLOOKUP($C17,Pilots!$B:$U,MATCH(Results!D$1,Pilots!$B$1:$U$1,0),0)=0),"",VLOOKUP($C17,Pilots!$B:$U,MATCH(Results!D$1,Pilots!$B$1:$U$1,0),0)) -> Miljan Zeković | E17: =+IF(OR(ISERROR(VLOOKUP($C17,Pilots!$B:$U,MATCH(Results!E$1,Pilots!$B$1:$U$1,0),0)),VLOOKUP($C17,Pilots!$B:$U,MATCH(Results!E$1,Pilots!$B$1:$U$1,0),0)=0),"",VLOOKUP($C17,Pilots!$B:$U,MATCH(Results!E$1,Pilots!$B$1:$U$1,0),0)) -> M | F17: =+IF(OR(ISERROR(VLOOKUP($C17,Pilots!$B:$U,MATCH(Results!F$1,Pilots!$B$1:$U$1,0),0)),VLOOKUP($C17,Pilots!$B:$U,MATCH(Results!F$1,Pilots!$B$1:$U$1,0),0)=0),"",VLOOKUP($C17,Pilots!$B:$U,MATCH(Results!F$1,Pilots!$B$1:$U$1,0),0)) -> SRB | G17: =+IF(OR(ISERROR(VLOOKUP($C17,Pilots!$B:$U,MATCH(Results!G$1,Pilots!$B$1:$U$1,0),0)),VLOOKUP($C17,Pilots!$B:$U,MATCH(Results!G$1,Pilots!$B$1:$U$1,0),0)=0),"",VLOOKUP($C17,Pilots!$B:$U,MATCH(Results!G$1,Pilots!$B$1:$U$1,0),0)) -> Ivan Sarić | I17: =+IF(ISERROR(VLOOKUP($C17,Rounds!$A:$Z,MATCH(Results!I$1,Rounds!$1:$1,0),0)),"",IF(VLOOKUP($C17,Rounds!$A:$Z,MATCH(Results!I$1,Rounds!$1:$1,0),0)="","",VLOOKUP($C17,Rounds!$A:$Z,MATCH(Results!I$1,Rounds!$1:$1,0),0))) -> 500 | J17: =+IF(ISERROR(VLOOKUP($C17,Rounds!$A:$Z,MATCH(Results!J$1,Rounds!$1:$1,0),0)),"",IF(VLOOKUP($C17,Rounds!$A:$Z,MATCH(Results!J$1,Rounds!$1:$1,0),0)="","",VLOOKUP($C17,Rounds!$A:$Z,MATCH(Results!J$1,Rounds!$1:$1,0),0))) -> 500 | K17: =+IF(ISERROR(VLOOKUP($C17,Rounds!$A:$Z,MATCH(Results!K$1,Rounds!$1:$1,0),0)),"",IF(VLOOKUP($C17,Rounds!$A:$Z,MATCH(Results!K$1,Rounds!$1:$1,0),0)="","",VLOOKUP($C17,Rounds!$A:$Z,MATCH(Results!K$1,Rounds!$1:$1,0),0))) -> 500 | L17: =+IF(ISERROR(VLOOKUP($C17,Rounds!$A:$Z,MATCH(Results!L$1,Rounds!$1:$1,0),0)),"",IF(VLOOKUP($C17,Rounds!$A:$Z,MATCH(Results!L$1,Rounds!$1:$1,0),0)="","",VLOOKUP($C17,Rounds!$A:$Z,MATCH(Results!L$1,Rounds!$1:$1,0),0))) -> 500 | M17: =+IF(ISERROR(VLOOKUP($C17,Rounds!$A:$Z,MATCH(Results!M$1,Rounds!$1:$1,0),0)),"",IF(VLOOKUP($C17,Rounds!$A:$Z,MATCH(Results!M$1,Rounds!$1:$1,0),0)="","",VLOOKUP($C17,Rounds!$A:$Z,MATCH(Results!M$1,Rounds!$1:$1,0),0))) -> 46 | N17: =+IF(ISERROR(VLOOKUP($C17,Rounds!$A:$Z,MATCH(Results!N$1,Rounds!$1:$1,0),0)),"",IF(VLOOKUP($C17,Rounds!$A:$Z,MATCH(Results!N$1,Rounds!$1:$1,0),0)="","",VLOOKUP($C17,Rounds!$A:$Z,MATCH(Results!N$1,Rounds!$1:$1,0),0))) ->  | O17: =+IF(ISERROR(VLOOKUP($C17,Rounds!$A:$Z,MATCH(Results!O$1,Rounds!$1:$1,0),0)),"",IF(VLOOKUP($C17,Rounds!$A:$Z,MATCH(Results!O$1,Rounds!$1:$1,0),0)="","",VLOOKUP($C17,Rounds!$A:$Z,MATCH(Results!O$1,Rounds!$1:$1,0),0))) ->  | P17: =+IF(ISERROR(VLOOKUP($C17,Rounds!$A:$Z,MATCH(Results!P$1,Rounds!$1:$1,0),0)),"",IF(VLOOKUP($C17,Rounds!$A:$Z,MATCH(Results!P$1,Rounds!$1:$1,0),0)="","",VLOOKUP($C17,Rounds!$A:$Z,MATCH(Results!P$1,Rounds!$1:$1,0),0))) ->  | Q17: =+IF(ISERROR(VLOOKUP($C17,Rounds!$A:$Z,MATCH(Results!Q$1,Rounds!$1:$1,0),0)),"",IF(VLOOKUP($C17,Rounds!$A:$Z,MATCH(Results!Q$1,Rounds!$1:$1,0),0)="","",VLOOKUP($C17,Rounds!$A:$Z,MATCH(Results!Q$1,Rounds!$1:$1,0),0))) ->  | R17: =+IF(ISERROR(VLOOKUP($C17,Rounds!$A:$Z,MATCH(Results!R$1,Rounds!$1:$1,0),0)),"",IF(VLOOKUP($C17,Rounds!$A:$Z,MATCH(Results!R$1,Rounds!$1:$1,0),0)="","",VLOOKUP($C17,Rounds!$A:$Z,MATCH(Results!R$1,Rounds!$1:$1,0),0))) ->  | S17: =+IF(ISERROR(VLOOKUP($C17,Rounds!$A:$Z,MATCH(Results!S$1,Rounds!$1:$1,0),0)),"",IF(VLOOKUP($C17,Rounds!$A:$Z,MATCH(Results!S$1,Rounds!$1:$1,0),0)="","",VLOOKUP($C17,Rounds!$A:$Z,MATCH(Results!S$1,Rounds!$1:$1,0),0))) ->  | T17: =+IF(ISERROR(VLOOKUP($C17,Rounds!$A:$Z,MATCH(Results!T$1,Rounds!$1:$1,0),0)),"",IF(VLOOKUP($C17,Rounds!$A:$Z,MATCH(Results!T$1,Rounds!$1:$1,0),0)="","",VLOOKUP($C17,Rounds!$A:$Z,MATCH(Results!T$1,Rounds!$1:$1,0),0))) ->  | V17: =+IF(OR($D17="",ISBLANK($D17)),"",IF(V$8>$F$6,0,IF(OR(ISBLANK(I17),I17="DNF",I17="DSQ",I17>Competition!$D$18),Competition!$D$18,I17))) -> 500 | W17: =+IF(OR($D17="",ISBLANK($D17)),"",IF(W$8>$F$6,0,IF(OR(ISBLANK(J17),J17="DNF",J17="DSQ",J17>Competition!$D$18),Competition!$D$18,J17))) -> 500 | X17: =+IF(OR($D17="",ISBLANK($D17)),"",IF(X$8>$F$6,0,IF(OR(ISBLANK(K17),K17="DNF",K17="DSQ",K17>Competition!$D$18),Competition!$D$18,K17))) -> 500 | Y17: =+IF(OR($D17="",ISBLANK($D17)),"",IF(Y$8>$F$6,0,IF(OR(ISBLANK(L17),L17="DNF",L17="DSQ",L17>Competition!$D$18),Competition!$D$18,L17))) -> 500 | Z17: =+IF(OR($D17="",ISBLANK($D17)),"",IF(Z$8>$F$6,0,IF(OR(ISBLANK(M17),M17="DNF",M17="DSQ",M17>Competition!$D$18),Competition!$D$18,M17))) -> 46 | AA17: =+IF(OR($D17="",ISBLANK($D17)),"",IF(AA$8>$F$6,0,IF(OR(ISBLANK(N17),N17="DNF",N17="DSQ",N17>Competition!$D$18),Competition!$D$18,N17))) -> 500 | AB17: =+IF(OR($D17="",ISBLANK($D17)),"",IF(AB$8>$F$6,0,IF(OR(ISBLANK(O17),O17="DNF",O17="DSQ",O17>Competition!$D$18),Competition!$D$18,O17))) -> 500 | AC17: =+IF(OR($D17="",ISBLANK($D17)),"",IF(AC$8>$F$6,0,IF(OR(ISBLANK(P17),P17="DNF",P17="DSQ",P17>Competition!$D$18),Competition!$D$18,P17))) -> 500 | AD17: =+IF(OR($D17="",ISBLANK($D17)),"",IF(AD$8>$F$6,0,IF(OR(ISBLANK(Q17),Q17="DNF",Q17="DSQ",Q17>Competition!$D$18),Competition!$D$18,Q17))) -> 0 | AE17: =+IF(OR($D17="",ISBLANK($D17)),"",IF(AE$8>$F$6,0,IF(OR(ISBLANK(R17),R17="DNF",R17="DSQ",R17>Competition!$D$18),Competition!$D$18,R17))) -> 0 | AF17: =+IF(OR($D17="",ISBLANK($D17)),"",IF(AF$8>$F$6,0,IF(OR(ISBLANK(S17),S17="DNF",S17="DSQ",S17>Competition!$D$18),Competition!$D$18,S17))) -> 0 | AG17: =+IF(OR($D17="",ISBLANK($D17)),"",IF(AG$8>$F$6,0,IF(OR(ISBLANK(T17),T17="DNF",T17="DSQ",T17>Competition!$D$18),Competition!$D$18,T17))) -> 0 | AI17: =+IF(Competition!$D$20=Paraméterek!$C$4,0,IF($F$6<Competition!$D$21,0,MAX($V17:$AG17))) -> 500 | AK17: 3046 | AL17: =+IF(E17=Paraméterek!$D$4,Results!AK17,"") ->  | AN17: =+IF(ISERROR(HLOOKUP(1,$GR17:$GU$113,ROW($GR$113)-ROW()+1,0)),"-",HLOOKUP(1,$GR17:$GU$113,ROW($GR$113)-ROW()+1,0)) -> - | AP17: - | AQ17: =+IF(ISERROR(HLOOKUP("X",$AR17:$BS$113,ROW($FO$113)-ROW()+1,0)),"-",HLOOKUP("X",$AR17:$BS$113,ROW($FO$113)-ROW()+1,0)) -> - | BU17: =+IF(ISERROR(HLOOKUP("elérhető",$FO17:$GP$113,ROW($FO$113)-ROW()+1,0)),"-",HLOOKUP("elérhető",$FO17:$GP$113,ROW($FO$113)-ROW()+1,0)) -> - | BW17: 3546 | BY17: 13 | BZ17: - | CB17: =IF($D17="","",IF(AND(CB$8<($F$6+1),OR(I17="",ISBLANK(I17))),IF(CB$8=1,IF($AI17=0,"X",IF(V17=$AI17,1,"X")),IF($AI17=0,"X",IF(SUM(CA17:$CB17)>0,"X",IF(V17=$AI17,1,"X")))),IF(CB$8=1,IF($AI17=0,0,IF(V17=$AI17,1,0)),IF($AI17=0,0,IF(SUM(CA17:$CB17)>0,0,IF(V17=$AI17,1,0)))))) -> 1 | CC17: =IF($D17="","",IF(AND(CC$8<($F$6+1),OR(J17="",ISBLANK(J17))),IF(CC$8=1,IF($AI17=0,"X",IF(W17=$AI17,1,"X")),IF($AI17=0,"X",IF(SUM(CB17:$CB17)>0,"X",IF(W17=$AI17,1,"X")))),IF(CC$8=1,IF($AI17=0,0,IF(W17=$AI17,1,0)),IF($AI17=0,0,IF(SUM(CB17:$CB17)>0,0,IF(W17=$AI17,1,0)))))) -> 0 | CD17: =IF($D17="","",IF(AND(CD$8<($F$6+1),OR(K17="",ISBLANK(K17))),IF(CD$8=1,IF($AI17=0,"X",IF(X17=$AI17,1,"X")),IF($AI17=0,"X",IF(SUM($CB17:CC17)>0,"X",IF(X17=$AI17,1,"X")))),IF(CD$8=1,IF($AI17=0,0,IF(X17=$AI17,1,0)),IF($AI17=0,0,IF(SUM($CB17:CC17)>0,0,IF(X17=$AI17,1,0)))))) -> 0 | CE17: =IF($D17="","",IF(AND(CE$8<($F$6+1),OR(L17="",ISBLANK(L17))),IF(CE$8=1,IF($AI17=0,"X",IF(Y17=$AI17,1,"X")),IF($AI17=0,"X",IF(SUM($CB17:CD17)>0,"X",IF(Y17=$AI17,1,"X")))),IF(CE$8=1,IF($AI17=0,0,IF(Y17=$AI17,1,0)),IF($AI17=0,0,IF(SUM($CB17:CD17)>0,0,IF(Y17=$AI17,1,0)))))) -> 0 | CF17: =IF($D17="","",IF(AND(CF$8<($F$6+1),OR(M17="",ISBLANK(M17))),IF(CF$8=1,IF($AI17=0,"X",IF(Z17=$AI17,1,"X")),IF($AI17=0,"X",IF(SUM($CB17:CE17)>0,"X",IF(Z17=$AI17,1,"X")))),IF(CF$8=1,IF($AI17=0,0,IF(Z17=$AI17,1,0)),IF($AI17=0,0,IF(SUM($CB17:CE17)>0,0,IF(Z17=$AI17,1,0)))))) -> 0 | CG17: =IF($D17="","",IF(AND(CG$8<($F$6+1),OR(N17="",ISBLANK(N17))),IF(CG$8=1,IF($AI17=0,"X",IF(AA17=$AI17,1,"X")),IF($AI17=0,"X",IF(SUM($CB17:CF17)>0,"X",IF(AA17=$AI17,1,"X")))),IF(CG$8=1,IF($AI17=0,0,IF(AA17=$AI17,1,0)),IF($AI17=0,0,IF(SUM($CB17:CF17)>0,0,IF(AA17=$AI17,1,0)))))) -> X | CH17: =IF($D17="","",IF(AND(CH$8<($F$6+1),OR(O17="",ISBLANK(O17))),IF(CH$8=1,IF($AI17=0,"X",IF(AB17=$AI17,1,"X")),IF($AI17=0,"X",IF(SUM($CB17:CG17)>0,"X",IF(AB17=$AI17,1,"X")))),IF(CH$8=1,IF($AI17=0,0,IF(AB17=$AI17,1,0)),IF($AI17=0,0,IF(SUM($CB17:CG17)>0,0,IF(AB17=$AI17,1,0)))))) -> X | CI17: =IF($D17="","",IF(AND(CI$8<($F$6+1),OR(P17="",ISBLANK(P17))),IF(CI$8=1,IF($AI17=0,"X",IF(AC17=$AI17,1,"X")),IF($AI17=0,"X",IF(SUM($CB17:CH17)>0,"X",IF(AC17=$AI17,1,"X")))),IF(CI$8=1,IF($AI17=0,0,IF(AC17=$AI17,1,0)),IF($AI17=0,0,IF(SUM($CB17:CH17)>0,0,IF(AC17=$AI17,1,0)))))) -> X | CJ17: =IF($D17="","",IF(AND(CJ$8<($F$6+1),OR(Q17="",ISBLANK(Q17))),IF(CJ$8=1,IF($AI17=0,"X",IF(AD17=$AI17,1,"X")),IF($AI17=0,"X",IF(SUM($CB17:CI17)>0,"X",IF(AD17=$AI17,1,"X")))),IF(CJ$8=1,IF($AI17=0,0,IF(AD17=$AI17,1,0)),IF($AI17=0,0,IF(SUM($CB17:CI17)>0,0,IF(AD17=$AI17,1,0)))))) -> 0 | CK17: =IF($D17="","",IF(AND(CK$8<($F$6+1),OR(R17="",ISBLANK(R17))),IF(CK$8=1,IF($AI17=0,"X",IF(AE17=$AI17,1,"X")),IF($AI17=0,"X",IF(SUM($CB17:CJ17)>0,"X",IF(AE17=$AI17,1,"X")))),IF(CK$8=1,IF($AI17=0,0,IF(AE17=$AI17,1,0)),IF($AI17=0,0,IF(SUM($CB17:CJ17)>0,0,IF(AE17=$AI17,1,0)))))) -> 0 | CL17: =IF($D17="","",IF(AND(CL$8<($F$6+1),OR(S17="",ISBLANK(S17))),IF(CL$8=1,IF($AI17=0,"X",IF(AF17=$AI17,1,"X")),IF($AI17=0,"X",IF(SUM($CB17:CK17)>0,"X",IF(AF17=$AI17,1,"X")))),IF(CL$8=1,IF($AI17=0,0,IF(AF17=$AI17,1,0)),IF($AI17=0,0,IF(SUM($CB17:CK17)>0,0,IF(AF17=$AI17,1,0)))))) -> 0 | CM17: =IF($D17="","",IF(AND(CM$8<($F$6+1),OR(T17="",ISBLANK(T17))),IF(CM$8=1,IF($AI17=0,"X",IF(AG17=$AI17,1,"X")),IF($AI17=0,"X",IF(SUM($CB17:CL17)>0,"X",IF(AG17=$AI17,1,"X")))),IF(CM$8=1,IF($AI17=0,0,IF(AG17=$AI17,1,0)),IF($AI17=0,0,IF(SUM($CB17:CL17)>0,0,IF(AG17=$AI17,1,0)))))) -> 0 | CO17: =+IF(ISERROR(VLOOKUP($C17,Pilots!$B:$AG,MATCH(Results!CU$6,Pilots!$B$1:$AG$1,0),0)),"",VLOOKUP($C17,Pilots!$B:$AG,MATCH(Results!CU$6,Pilots!$B$1:$AG$1,0),0)) -> X | CQ17: 3046 | CT17: 10 | CU17: - | CW17: =+IF(ISERROR(VLOOKUP($C17,Pilots!$B:$AG,MATCH(Results!DC$6,Pilots!$B$1:$AG$1,0),0)),"",VLOOKUP($C17,Pilots!$B:$AG,MATCH(Results!DC$6,Pilots!$B$1:$AG$1,0),0)) -> 0 | DB17: - | DC17: - | DE17: =+IF(ISERROR(VLOOKUP($C17,Pilots!$B:$AG,MATCH(Results!DK$6,Pilots!$B$1:$AG$1,0),0)),"",VLOOKUP($C17,Pilots!$B:$AG,MATCH(Results!DK$6,Pilots!$B$1:$AG$1,0),0)) -> 0 | DJ17: - | DK17: - | DM17: =+IF(OR(V$6=Paraméterek!$E$4,$D17="",CB17="X"),"",RANK(V17,V$12:V$112,1)) -> 9 | DN17: =+IF(OR(W$6=Paraméterek!$E$4,$D17="",CC17="X"),"",RANK(W17,W$12:W$112,1)) -> 10 | DO17: =+IF(OR(X$6=Paraméterek!$E$4,$D17="",CD17="X"),"",RANK(X17,X$12:X$112,1)) -> 9 | DP17: =+IF(OR(Y$6=Paraméterek!$E$4,$D17="",CE17="X"),"",RANK(Y17,Y$12:Y$112,1)) -> 10 | DQ17: =+IF(OR(Z$6=Paraméterek!$E$4,$D17="",CF17="X"),"",RANK(Z17,Z$12:Z$112,1)) -> 5 | DR17: =+IF(OR(AA$6=Paraméterek!$E$4,$D17="",CG17="X"),"",RANK(AA17,AA$12:AA$112,1)) ->  | DS17: =+IF(OR(AB$6=Paraméterek!$E$4,$D17="",CH17="X"),"",RANK(AB17,AB$12:AB$112,1)) ->  | DT17: =+IF(OR(AC$6=Paraméterek!$E$4,$D17="",CI17="X"),"",RANK(AC17,AC$12:AC$112,1)) ->  | DU17: =+IF(OR(AD$6=Paraméterek!$E$4,$D17="",CJ17="X"),"",RANK(AD17,AD$12:AD$112,1)) ->  | DV17: =+IF(OR(AE$6=Paraméterek!$E$4,$D17="",CK17="X"),"",RANK(AE17,AE$12:AE$112,1)) ->  | DW17: =+IF(OR(AF$6=Paraméterek!$E$4,$D17="",CL17="X"),"",RANK(AF17,AF$12:AF$112,1)) ->  | DX17: =+IF(OR(AG$6=Paraméterek!$E$4,$D17="",CM17="X"),"",RANK(AG17,AG$12:AG$112,1)) ->  | EL17: =+IF(OR($D17="",AR$8>$F$6),"",SUM($V17:W17)) -> 1000 | EM17: =+IF(OR($D17="",EM$8>$F$6),"",IF($F17=EM$4,SUM($V17:W17),"")) ->  | EN17: =+IF(OR($D17="",EN$8>$F$6),"",IF(AND($F17=EN$4,$E17=EN$3),SUM($V17:W17),"")) ->  | EO17: =+IF(OR($D17="",AU$8>$F$6),"",SUM($V17:X17)) -> 1500 | EP17: =+IF(OR($D17="",EP$8>$F$6),"",IF($F17=EP$4,SUM($V17:X17),"")) ->  | EQ17: =+IF(OR($D17="",EQ$8>$F$6),"",IF(AND($F17=EQ$4,$E17=EQ$3),SUM($V17:X17),"")) ->  | ER17: =+IF(OR($D17="",AX$8>$F$6),"",SUM($V17:Y17)) -> 2000 | ES17: =+IF(OR($D17="",ES$8>$F$6),"",IF($F17=ES$4,SUM($V17:Y17),"")) ->  | ET17: =+IF(OR($D17="",ET$8>$F$6),"",IF(AND($F17=ET$4,$E17=ET$3),SUM($V17:Y17),"")) ->  | EU17: =+IF(OR($D17="",BA$8>$F$6),"",SUM($V17:Z17)) -> 2046 | EV17: =+IF(OR($D17="",EV$8>$F$6),"",IF($F17=EV$4,SUM($V17:Z17),"")) ->  | EW17: =+IF(OR($D17="",EW$8>$F$6),"",IF(AND($F17=EW$4,$E17=EW$3),SUM($V17:Z17),"")) ->  | EX17: =+IF(OR($D17="",BD$8>$F$6),"",SUM($V17:AA17)) -> 2546 | EY17: =+IF(OR($D17="",EY$8>$F$6),"",IF($F17=EY$4,SUM($V17:AA17),"")) ->  | EZ17: =+IF(OR($D17="",EZ$8>$F$6),"",IF(AND($F17=EZ$4,$E17=EZ$3),SUM($V17:AA17),"")) ->  | FA17: =+IF(OR($D17="",FA$8>$F$6),"",IF($F17=FA$4,SUM($V17:AB17),"")) ->  | FB17: =+IF(OR($D17="",FB$8>$F$6),"",IF(AND($F17=FB$4,$E17=FB$3),SUM($V17:AB17),"")) ->  | FC17: =+IF(OR($D17="",FC$8>$F$6),"",IF($F17=FC$4,SUM($V17:AC17),"")) ->  | FD17: =+IF(OR($D17="",FD$8>$F$6),"",IF(AND($F17=FD$4,$E17=FD$3),SUM($V17:AC17),"")) ->  | FE17: =+IF(OR($D17="",FE$8>$F$6),"",IF($F17=FE$4,SUM($V17:AD17),"")) ->  | FF17: =+IF(OR($D17="",FF$8>$F$6),"",IF(AND($F17=FF$4,$E17=FF$3),SUM($V17:AD17),"")) ->  | FG17: =+IF(OR($D17="",FG$8>$F$6),"",IF($F17=FG$4,SUM($V17:AE17),"")) ->  | FH17: =+IF(OR($D17="",FH$8>$F$6),"",IF(AND($F17=FH$4,$E17=FH$3),SUM($V17:AE17),"")) ->  | FI17: =+IF(OR($D17="",FI$8>$F$6),"",IF($F17=FI$4,SUM($V17:AF17),"")) ->  | FJ17: =+IF(OR($D17="",FJ$8>$F$6),"",IF(AND($F17=FJ$4,$E17=FJ$3),SUM($V17:AF17),"")) ->  | FK17: =+IF(OR($D17="",BQ$8>$F$6),"",SUM($V17:AG17)) ->  | FL17: =+IF(OR($D17="",FL$8>$F$6),"",IF($F17=FL$4,SUM($V17:AG17),"")) ->  | FM17: =+IF(OR($D17="",FM$8>$F$6),"",IF(AND($F17=FM$4,$E17=FM$3),SUM($V17:AG17),"")) ->  | FO17: =+IF(AND(FO$8>$F$6,FO$8<Competition!$D$16+1),IF($BW17<AR$10,"elérhető","nem"),"-") -> - | FP17: =+IF(AND(FP$8>$F$6,FP$8<Competition!$D$16+1,$F17=FP$4),IF($BW17<AS$10,"elérhető","nem"),"-") -> - | FQ17: =+IF(AND(FQ$8>$F$6,FQ$8<Competition!$D$16+1,$F17=FQ$4,$E17=FQ$3),IF($BW17<AT$10,"elérhető","nem"),"-") -> - | FR17: =+IF(AND(FR$8>$F$6,FR$8<Competition!$D$16+1),IF($BW17<AU$10,"elérhető","nem"),"-") -> - | FS17: =+IF(AND(FS$8>$F$6,FS$8<Competition!$D$16+1,$F17=FS$4),IF($BW17<AV$10,"elérhető","nem"),"-") -> - | FT17: =+IF(AND(FT$8>$F$6,FT$8<Competition!$D$16+1,$F17=FT$4,$E17=FT$3),IF($BW17<AW$10,"elérhető","nem"),"-") -> - | FU17: =+IF(AND(FU$8>$F$6,FU$8<Competition!$D$16+1),IF($BW17<AX$10,"elérhető","nem"),"-") -> - | FV17: =+IF(AND(FV$8>$F$6,FV$8<Competition!$D$16+1,$F17=FV$4),IF($BW17<AY$10,"elérhető","nem"),"-") -> - | FW17: =+IF(AND(FW$8>$F$6,FW$8<Competition!$D$16+1,$F17=FW$4,$E17=FW$3),IF($BW17<AZ$10,"elérhető","nem"),"-") -> - | FX17: =+IF(AND(FX$8>$F$6,FX$8<Competition!$D$16+1),IF($BW17<BA$10,"elérhető","nem"),"-") -> - | FY17: =+IF(AND(FY$8>$F$6,FY$8<Competition!$D$16+1,$F17=FY$4),IF($BW17<BB$10,"elérhető","nem"),"-") -> - | FZ17: =+IF(AND(FZ$8>$F$6,FZ$8<Competition!$D$16+1,$F17=FZ$4,$E17=FZ$3),IF($BW17<BC$10,"elérhető","nem"),"-") -> - | GA17: =+IF(AND(GA$8>$F$6,GA$8<Competition!$D$16+1),IF($BW17<BD$10,"elérhető","nem"),"-") -> - | GB17: =+IF(AND(GB$8>$F$6,GB$8<Competition!$D$16+1,$F17=GB$4),IF($BW17<BE$10,"elérhető","nem"),"-") -> - | GC17: =+IF(AND(GC$8>$F$6,GC$8<Competition!$D$16+1,$F17=GC$4,$E17=GC$3),IF($BW17<BF$10,"elérhető","nem"),"-") -> - | GD17: =+IF(AND(GD$8>$F$6,GD$8<Competition!$D$16+1,$F17=GD$4),IF($BW17<BG$10,"elérhető","nem"),"-") -> - | GE17: =+IF(AND(GE$8>$F$6,GE$8<Competition!$D$16+1,$F17=GE$4,$E17=GE$3),IF($BW17<BH$10,"elérhető","nem"),"-") -> - | GF17: =+IF(AND(GF$8>$F$6,GF$8<Competition!$D$16+1,$F17=GF$4),IF($BW17<BI$10,"elérhető","nem"),"-") -> - | GG17: =+IF(AND(GG$8>$F$6,GG$8<Competition!$D$16+1,$F17=GG$4,$E17=GG$3),IF($BW17<BJ$10,"elérhető","nem"),"-") -> - | GH17: =+IF(AND(GH$8>$F$6,GH$8<Competition!$D$16+1,$F17=GH$4),IF($BW17<BK$10,"elérhető","nem"),"-") -> - | GI17: =+IF(AND(GI$8>$F$6,GI$8<Competition!$D$16+1,$F17=GI$4,$E17=GI$3),IF($BW17<BL$10,"elérhető","nem"),"-") -> - | GJ17: =+IF(AND(GJ$8>$F$6,GJ$8<Competition!$D$16+1,$F17=GJ$4),IF($BW17<BM$10,"elérhető","nem"),"-") -> - | GK17: =+IF(AND(GK$8>$F$6,GK$8<Competition!$D$16+1,$F17=GK$4,$E17=GK$3),IF($BW17<BN$10,"elérhető","nem"),"-") -> - | GL17: =+IF(AND(GL$8>$F$6,GL$8<Competition!$D$16+1,$F17=GL$4),IF($BW17<BO$10,"elérhető","nem"),"-") -> - | GM17: =+IF(AND(GM$8>$F$6,GM$8<Competition!$D$16+1,$F17=GM$4,$E17=GM$3),IF($BW17<BP$10,"elérhető","nem"),"-") -> - | GN17: =+IF(AND(GN$8>$F$6,GN$8<Competition!$D$16+1),IF($BW17<BQ$10,"elérhető","nem"),"-") -> - | GO17: =+IF(AND(GO$8>$F$6,GO$8<Competition!$D$16+1,$F17=GO$4),IF($BW17<BR$10,"elérhető","nem"),"-") -> - | GP17: =+IF(AND(GP$8>$F$6,GP$8<Competition!$D$16+1,$F17=GP$4,$E17=GP$3),IF($BW17<BS$10,"elérhető","nem"),"-") -> - | GR17: 0 | GS17: 0 | GT17: 0 | GU17: 0 | GW17: 2000 | GX17: 1546 | GY17: 1546 | GZ17: 1546 | HA17: 1546 | HB17: 1000 | HC17: 1000 | HD17: 1000 | HE17: 1000 | HG17: 0 | HH17: 0 | HI17: 0 | HJ17: 0 | HK17: 1 | HL17: 0 | HM17: 0 | HN17: 0 | HO17: 0 | HP17: 0 | HQ17: 0 | HR17: 0 | HT17: 0 | HU17: 0 | HV17: 0 | HW17: 0 | HX17: 0 | HY17: 0 | HZ17: 0 | IA17: 0 | IB17: 0 | IC17: 0 | ID17: 0 | IE17: 0
A18: X | C18: 7 | D18: =+IF(OR(ISERROR(VLOOKUP($C18,Pilots!$B:$U,MATCH(Results!D$1,Pilots!$B$1:$U$1,0),0)),VLOOKUP($C18,Pilots!$B:$U,MATCH(Results!D$1,Pilots!$B$1:$U$1,0),0)=0),"",VLOOKUP($C18,Pilots!$B:$U,MATCH(Results!D$1,Pilots!$B$1:$U$1,0),0)) -> Dejan Valek | E18: =+IF(OR(ISERROR(VLOOKUP($C18,Pilots!$B:$U,MATCH(Results!E$1,Pilots!$B$1:$U$1,0),0)),VLOOKUP($C18,Pilots!$B:$U,MATCH(Results!E$1,Pilots!$B$1:$U$1,0),0)=0),"",VLOOKUP($C18,Pilots!$B:$U,MATCH(Results!E$1,Pilots!$B$1:$U$1,0),0)) -> M | F18: =+IF(OR(ISERROR(VLOOKUP($C18,Pilots!$B:$U,MATCH(Results!F$1,Pilots!$B$1:$U$1,0),0)),VLOOKUP($C18,Pilots!$B:$U,MATCH(Results!F$1,Pilots!$B$1:$U$1,0),0)=0),"",VLOOKUP($C18,Pilots!$B:$U,MATCH(Results!F$1,Pilots!$B$1:$U$1,0),0)) -> SRB | G18: =+IF(OR(ISERROR(VLOOKUP($C18,Pilots!$B:$U,MATCH(Results!G$1,Pilots!$B$1:$U$1,0),0)),VLOOKUP($C18,Pilots!$B:$U,MATCH(Results!G$1,Pilots!$B$1:$U$1,0),0)=0),"",VLOOKUP($C18,Pilots!$B:$U,MATCH(Results!G$1,Pilots!$B$1:$U$1,0),0)) -> Delta | I18: =+IF(ISERROR(VLOOKUP($C18,Rounds!$A:$Z,MATCH(Results!I$1,Rounds!$1:$1,0),0)),"",IF(VLOOKUP($C18,Rounds!$A:$Z,MATCH(Results!I$1,Rounds!$1:$1,0),0)="","",VLOOKUP($C18,Rounds!$A:$Z,MATCH(Results!I$1,Rounds!$1:$1,0),0))) -> 65 | J18: =+IF(ISERROR(VLOOKUP($C18,Rounds!$A:$Z,MATCH(Results!J$1,Rounds!$1:$1,0),0)),"",IF(VLOOKUP($C18,Rounds!$A:$Z,MATCH(Results!J$1,Rounds!$1:$1,0),0)="","",VLOOKUP($C18,Rounds!$A:$Z,MATCH(Results!J$1,Rounds!$1:$1,0),0))) -> 3 | K18: =+IF(ISERROR(VLOOKUP($C18,Rounds!$A:$Z,MATCH(Results!K$1,Rounds!$1:$1,0),0)),"",IF(VLOOKUP($C18,Rounds!$A:$Z,MATCH(Results!K$1,Rounds!$1:$1,0),0)="","",VLOOKUP($C18,Rounds!$A:$Z,MATCH(Results!K$1,Rounds!$1:$1,0),0))) -> 1 | L18: =+IF(ISERROR(VLOOKUP($C18,Rounds!$A:$Z,MATCH(Results!L$1,Rounds!$1:$1,0),0)),"",IF(VLOOKUP($C18,Rounds!$A:$Z,MATCH(Results!L$1,Rounds!$1:$1,0),0)="","",VLOOKUP($C18,Rounds!$A:$Z,MATCH(Results!L$1,Rounds!$1:$1,0),0))) -> 95 | M18: =+IF(ISERROR(VLOOKUP($C18,Rounds!$A:$Z,MATCH(Results!M$1,Rounds!$1:$1,0),0)),"",IF(VLOOKUP($C18,Rounds!$A:$Z,MATCH(Results!M$1,Rounds!$1:$1,0),0)="","",VLOOKUP($C18,Rounds!$A:$Z,MATCH(Results!M$1,Rounds!$1:$1,0),0))) -> 4 | N18: =+IF(ISERROR(VLOOKUP($C18,Rounds!$A:$Z,MATCH(Results!N$1,Rounds!$1:$1,0),0)),"",IF(VLOOKUP($C18,Rounds!$A:$Z,MATCH(Results!N$1,Rounds!$1:$1,0),0)="","",VLOOKUP($C18,Rounds!$A:$Z,MATCH(Results!N$1,Rounds!$1:$1,0),0))) -> 0 | O18: =+IF(ISERROR(VLOOKUP($C18,Rounds!$A:$Z,MATCH(Results!O$1,Rounds!$1:$1,0),0)),"",IF(VLOOKUP($C18,Rounds!$A:$Z,MATCH(Results!O$1,Rounds!$1:$1,0),0)="","",VLOOKUP($C18,Rounds!$A:$Z,MATCH(Results!O$1,Rounds!$1:$1,0),0))) -> 18 | P18: =+IF(ISERROR(VLOOKUP($C18,Rounds!$A:$Z,MATCH(Results!P$1,Rounds!$1:$1,0),0)),"",IF(VLOOKUP($C18,Rounds!$A:$Z,MATCH(Results!P$1,Rounds!$1:$1,0),0)="","",VLOOKUP($C18,Rounds!$A:$Z,MATCH(Results!P$1,Rounds!$1:$1,0),0))) -> 1 | Q18: =+IF(ISERROR(VLOOKUP($C18,Rounds!$A:$Z,MATCH(Results!Q$1,Rounds!$1:$1,0),0)),"",IF(VLOOKUP($C18,Rounds!$A:$Z,MATCH(Results!Q$1,Rounds!$1:$1,0),0)="","",VLOOKUP($C18,Rounds!$A:$Z,MATCH(Results!Q$1,Rounds!$1:$1,0),0))) ->  | R18: =+IF(ISERROR(VLOOKUP($C18,Rounds!$A:$Z,MATCH(Results!R$1,Rounds!$1:$1,0),0)),"",IF(VLOOKUP($C18,Rounds!$A:$Z,MATCH(Results!R$1,Rounds!$1:$1,0),0)="","",VLOOKUP($C18,Rounds!$A:$Z,MATCH(Results!R$1,Rounds!$1:$1,0),0))) ->  | S18: =+IF(ISERROR(VLOOKUP($C18,Rounds!$A:$Z,MATCH(Results!S$1,Rounds!$1:$1,0),0)),"",IF(VLOOKUP($C18,Rounds!$A:$Z,MATCH(Results!S$1,Rounds!$1:$1,0),0)="","",VLOOKUP($C18,Rounds!$A:$Z,MATCH(Results!S$1,Rounds!$1:$1,0),0))) ->  | T18: =+IF(ISERROR(VLOOKUP($C18,Rounds!$A:$Z,MATCH(Results!T$1,Rounds!$1:$1,0),0)),"",IF(VLOOKUP($C18,Rounds!$A:$Z,MATCH(Results!T$1,Rounds!$1:$1,0),0)="","",VLOOKUP($C18,Rounds!$A:$Z,MATCH(Results!T$1,Rounds!$1:$1,0),0))) ->  | V18: =+IF(OR($D18="",ISBLANK($D18)),"",IF(V$8>$F$6,0,IF(OR(ISBLANK(I18),I18="DNF",I18="DSQ",I18>Competition!$D$18),Competition!$D$18,I18))) -> 65 | W18: =+IF(OR($D18="",ISBLANK($D18)),"",IF(W$8>$F$6,0,IF(OR(ISBLANK(J18),J18="DNF",J18="DSQ",J18>Competition!$D$18),Competition!$D$18,J18))) -> 3 | X18: =+IF(OR($D18="",ISBLANK($D18)),"",IF(X$8>$F$6,0,IF(OR(ISBLANK(K18),K18="DNF",K18="DSQ",K18>Competition!$D$18),Competition!$D$18,K18))) -> 1 | Y18: =+IF(OR($D18="",ISBLANK($D18)),"",IF(Y$8>$F$6,0,IF(OR(ISBLANK(L18),L18="DNF",L18="DSQ",L18>Competition!$D$18),Competition!$D$18,L18))) -> 95 | Z18: =+IF(OR($D18="",ISBLANK($D18)),"",IF(Z$8>$F$6,0,IF(OR(ISBLANK(M18),M18="DNF",M18="DSQ",M18>Competition!$D$18),Competition!$D$18,M18))) -> 4 | AA18: =+IF(OR($D18="",ISBLANK($D18)),"",IF(AA$8>$F$6,0,IF(OR(ISBLANK(N18),N18="DNF",N18="DSQ",N18>Competition!$D$18),Competition!$D$18,N18))) -> 0 | AB18: =+IF(OR($D18="",ISBLANK($D18)),"",IF(AB$8>$F$6,0,IF(OR(ISBLANK(O18),O18="DNF",O18="DSQ",O18>Competition!$D$18),Competition!$D$18,O18))) -> 18 | AC18: =+IF(OR($D18="",ISBLANK($D18)),"",IF(AC$8>$F$6,0,IF(OR(ISBLANK(P18),P18="DNF",P18="DSQ",P18>Competition!$D$18),Competition!$D$18,P18))) -> 1 | AD18: =+IF(OR($D18="",ISBLANK($D18)),"",IF(AD$8>$F$6,0,IF(OR(ISBLANK(Q18),Q18="DNF",Q18="DSQ",Q18>Competition!$D$18),Competition!$D$18,Q18))) -> 0 | AE18: =+IF(OR($D18="",ISBLANK($D18)),"",IF(AE$8>$F$6,0,IF(OR(ISBLANK(R18),R18="DNF",R18="DSQ",R18>Competition!$D$18),Competition!$D$18,R18))) -> 0 | AF18: =+IF(OR($D18="",ISBLANK($D18)),"",IF(AF$8>$F$6,0,IF(OR(ISBLANK(S18),S18="DNF",S18="DSQ",S18>Competition!$D$18),Competition!$D$18,S18))) -> 0 | AG18: =+IF(OR($D18="",ISBLANK($D18)),"",IF(AG$8>$F$6,0,IF(OR(ISBLANK(T18),T18="DNF",T18="DSQ",T18>Competition!$D$18),Competition!$D$18,T18))) -> 0 | AI18: =+IF(Competition!$D$20=Paraméterek!$C$4,0,IF($F$6<Competition!$D$21,0,MAX($V18:$AG18))) -> 95 | AK18: 92 | AL18: =+IF(E18=Paraméterek!$D$4,Results!AK18,"") ->  | AN18: =+IF(ISERROR(HLOOKUP(1,$GR18:$GU$113,ROW($GR$113)-ROW()+1,0)),"-",HLOOKUP(1,$GR18:$GU$113,ROW($GR$113)-ROW()+1,0)) -> FAI Silver | AP18: - | AQ18: =+IF(ISERROR(HLOOKUP("X",$AR18:$BS$113,ROW($FO$113)-ROW()+1,0)),"-",HLOOKUP("X",$AR18:$BS$113,ROW($FO$113)-ROW()+1,0)) -> - | BU18: =+IF(ISERROR(HLOOKUP("elérhető",$FO18:$GP$113,ROW($FO$113)-ROW()+1,0)),"-",HLOOKUP("elérhető",$FO18:$GP$113,ROW($FO$113)-ROW()+1,0)) -> - | BW18: 187 | BY18: 2 | BZ18: - | CB18: =IF($D18="","",IF(AND(CB$8<($F$6+1),OR(I18="",ISBLANK(I18))),IF(CB$8=1,IF($AI18=0,"X",IF(V18=$AI18,1,"X")),IF($AI18=0,"X",IF(SUM(CA18:$CB18)>0,"X",IF(V18=$AI18,1,"X")))),IF(CB$8=1,IF($AI18=0,0,IF(V18=$AI18,1,0)),IF($AI18=0,0,IF(SUM(CA18:$CB18)>0,0,IF(V18=$AI18,1,0)))))) -> 0 | CC18: =IF($D18="","",IF(AND(CC$8<($F$6+1),OR(J18="",ISBLANK(J18))),IF(CC$8=1,IF($AI18=0,"X",IF(W18=$AI18,1,"X")),IF($AI18=0,"X",IF(SUM(CB18:$CB18)>0,"X",IF(W18=$AI18,1,"X")))),IF(CC$8=1,IF($AI18=0,0,IF(W18=$AI18,1,0)),IF($AI18=0,0,IF(SUM(CB18:$CB18)>0,0,IF(W18=$AI18,1,0)))))) -> 0 | CD18: =IF($D18="","",IF(AND(CD$8<($F$6+1),OR(K18="",ISBLANK(K18))),IF(CD$8=1,IF($AI18=0,"X",IF(X18=$AI18,1,"X")),IF($AI18=0,"X",IF(SUM($CB18:CC18)>0,"X",IF(X18=$AI18,1,"X")))),IF(CD$8=1,IF($AI18=0,0,IF(X18=$AI18,1,0)),IF($AI18=0,0,IF(SUM($CB18:CC18)>0,0,IF(X18=$AI18,1,0)))))) -> 0 | CE18: =IF($D18="","",IF(AND(CE$8<($F$6+1),OR(L18="",ISBLANK(L18))),IF(CE$8=1,IF($AI18=0,"X",IF(Y18=$AI18,1,"X")),IF($AI18=0,"X",IF(SUM($CB18:CD18)>0,"X",IF(Y18=$AI18,1,"X")))),IF(CE$8=1,IF($AI18=0,0,IF(Y18=$AI18,1,0)),IF($AI18=0,0,IF(SUM($CB18:CD18)>0,0,IF(Y18=$AI18,1,0)))))) -> 1 | CF18: =IF($D18="","",IF(AND(CF$8<($F$6+1),OR(M18="",ISBLANK(M18))),IF(CF$8=1,IF($AI18=0,"X",IF(Z18=$AI18,1,"X")),IF($AI18=0,"X",IF(SUM($CB18:CE18)>0,"X",IF(Z18=$AI18,1,"X")))),IF(CF$8=1,IF($AI18=0,0,IF(Z18=$AI18,1,0)),IF($AI18=0,0,IF(SUM($CB18:CE18)>0,0,IF(Z18=$AI18,1,0)))))) -> 0 | CG18: =IF($D18="","",IF(AND(CG$8<($F$6+1),OR(N18="",ISBLANK(N18))),IF(CG$8=1,IF($AI18=0,"X",IF(AA18=$AI18,1,"X")),IF($AI18=0,"X",IF(SUM($CB18:CF18)>0,"X",IF(AA18=$AI18,1,"X")))),IF(CG$8=1,IF($AI18=0,0,IF(AA18=$AI18,1,0)),IF($AI18=0,0,IF(SUM($CB18:CF18)>0,0,IF(AA18=$AI18,1,0)))))) -> 0 | CH18: =IF($D18="","",IF(AND(CH$8<($F$6+1),OR(O18="",ISBLANK(O18))),IF(CH$8=1,IF($AI18=0,"X",IF(AB18=$AI18,1,"X")),IF($AI18=0,"X",IF(SUM($CB18:CG18)>0,"X",IF(AB18=$AI18,1,"X")))),IF(CH$8=1,IF($AI18=0,0,IF(AB18=$AI18,1,0)),IF($AI18=0,0,IF(SUM($CB18:CG18)>0,0,IF(AB18=$AI18,1,0)))))) -> 0 | CI18: =IF($D18="","",IF(AND(CI$8<($F$6+1),OR(P18="",ISBLANK(P18))),IF(CI$8=1,IF($AI18=0,"X",IF(AC18=$AI18,1,"X")),IF($AI18=0,"X",IF(SUM($CB18:CH18)>0,"X",IF(AC18=$AI18,1,"X")))),IF(CI$8=1,IF($AI18=0,0,IF(AC18=$AI18,1,0)),IF($AI18=0,0,IF(SUM($CB18:CH18)>0,0,IF(AC18=$AI18,1,0)))))) -> 0 | CJ18: =IF($D18="","",IF(AND(CJ$8<($F$6+1),OR(Q18="",ISBLANK(Q18))),IF(CJ$8=1,IF($AI18=0,"X",IF(AD18=$AI18,1,"X")),IF($AI18=0,"X",IF(SUM($CB18:CI18)>0,"X",IF(AD18=$AI18,1,"X")))),IF(CJ$8=1,IF($AI18=0,0,IF(AD18=$AI18,1,0)),IF($AI18=0,0,IF(SUM($CB18:CI18)>0,0,IF(AD18=$AI18,1,0)))))) -> 0 | CK18: =IF($D18="","",IF(AND(CK$8<($F$6+1),OR(R18="",ISBLANK(R18))),IF(CK$8=1,IF($AI18=0,"X",IF(AE18=$AI18,1,"X")),IF($AI18=0,"X",IF(SUM($CB18:CJ18)>0,"X",IF(AE18=$AI18,1,"X")))),IF(CK$8=1,IF($AI18=0,0,IF(AE18=$AI18,1,0)),IF($AI18=0,0,IF(SUM($CB18:CJ18)>0,0,IF(AE18=$AI18,1,0)))))) -> 0 | CL18: =IF($D18="","",IF(AND(CL$8<($F$6+1),OR(S18="",ISBLANK(S18))),IF(CL$8=1,IF($AI18=0,"X",IF(AF18=$AI18,1,"X")),IF($AI18=0,"X",IF(SUM($CB18:CK18)>0,"X",IF(AF18=$AI18,1,"X")))),IF(CL$8=1,IF($AI18=0,0,IF(AF18=$AI18,1,0)),IF($AI18=0,0,IF(SUM($CB18:CK18)>0,0,IF(AF18=$AI18,1,0)))))) -> 0 | CM18: =IF($D18="","",IF(AND(CM$8<($F$6+1),OR(T18="",ISBLANK(T18))),IF(CM$8=1,IF($AI18=0,"X",IF(AG18=$AI18,1,"X")),IF($AI18=0,"X",IF(SUM($CB18:CL18)>0,"X",IF(AG18=$AI18,1,"X")))),IF(CM$8=1,IF($AI18=0,0,IF(AG18=$AI18,1,0)),IF($AI18=0,0,IF(SUM($CB18:CL18)>0,0,IF(AG18=$AI18,1,0)))))) -> 0 | CO18: =+IF(ISERROR(VLOOKUP($C18,Pilots!$B:$AG,MATCH(Results!CU$6,Pilots!$B$1:$AG$1,0),0)),"",VLOOKUP($C18,Pilots!$B:$AG,MATCH(Results!CU$6,Pilots!$B$1:$AG$1,0),0)) -> X | CQ18: 92 | CT18: 2 | CU18: - | CW18: =+IF(ISERROR(VLOOKUP($C18,Pilots!$B:$AG,MATCH(Results!DC$6,Pilots!$B$1:$AG$1,0),0)),"",VLOOKUP($C18,Pilots!$B:$AG,MATCH(Results!DC$6,Pilots!$B$1:$AG$1,0),0)) -> 0 | DB18: - | DC18: - | DE18: =+IF(ISERROR(VLOOKUP($C18,Pilots!$B:$AG,MATCH(Results!DK$6,Pilots!$B$1:$AG$1,0),0)),"",VLOOKUP($C18,Pilots!$B:$AG,MATCH(Results!DK$6,Pilots!$B$1:$AG$1,0),0)) -> 0 | DJ18: - | DK18: - | DM18: =+IF(OR(V$6=Paraméterek!$E$4,$D18="",CB18="X"),"",RANK(V18,V$12:V$112,1)) -> 3 | DN18: =+IF(OR(W$6=Paraméterek!$E$4,$D18="",CC18="X"),"",RANK(W18,W$12:W$112,1)) -> 2 | DO18: =+IF(OR(X$6=Paraméterek!$E$4,$D18="",CD18="X"),"",RANK(X18,X$12:X$112,1)) -> 1 | DP18: =+IF(OR(Y$6=Paraméterek!$E$4,$D18="",CE18="X"),"",RANK(Y18,Y$12:Y$112,1)) -> 6 | DQ18: =+IF(OR(Z$6=Paraméterek!$E$4,$D18="",CF18="X"),"",RANK(Z18,Z$12:Z$112,1)) -> 2 | DR18: =+IF(OR(AA$6=Paraméterek!$E$4,$D18="",CG18="X"),"",RANK(AA18,AA$12:AA$112,1)) -> 1 | DS18: =+IF(OR(AB$6=Paraméterek!$E$4,$D18="",CH18="X"),"",RANK(AB18,AB$12:AB$112,1)) -> 3 | DT18: =+IF(OR(AC$6=Paraméterek!$E$4,$D18="",CI18="X"),"",RANK(AC18,AC$12:AC$112,1)) -> 1 | DU18: =+IF(OR(AD$6=Paraméterek!$E$4,$D18="",CJ18="X"),"",RANK(AD18,AD$12:AD$112,1)) ->  | DV18: =+IF(OR(AE$6=Paraméterek!$E$4,$D18="",CK18="X"),"",RANK(AE18,AE$12:AE$112,1)) ->  | DW18: =+IF(OR(AF$6=Paraméterek!$E$4,$D18="",CL18="X"),"",RANK(AF18,AF$12:AF$112,1)) ->  | DX18: =+IF(OR(AG$6=Paraméterek!$E$4,$D18="",CM18="X"),"",RANK(AG18,AG$12:AG$112,1)) ->  | EL18: =+IF(OR($D18="",AR$8>$F$6),"",SUM($V18:W18)) -> 68 | EM18: =+IF(OR($D18="",EM$8>$F$6),"",IF($F18=EM$4,SUM($V18:W18),"")) ->  | EN18: =+IF(OR($D18="",EN$8>$F$6),"",IF(AND($F18=EN$4,$E18=EN$3),SUM($V18:W18),"")) ->  | EO18: =+IF(OR($D18="",AU$8>$F$6),"",SUM($V18:X18)) -> 69 | EP18: =+IF(OR($D18="",EP$8>$F$6),"",IF($F18=EP$4,SUM($V18:X18),"")) ->  | EQ18: =+IF(OR($D18="",EQ$8>$F$6),"",IF(AND($F18=EQ$4,$E18=EQ$3),SUM($V18:X18),"")) ->  | ER18: =+IF(OR($D18="",AX$8>$F$6),"",SUM($V18:Y18)) -> 164 | ES18: =+IF(OR($D18="",ES$8>$F$6),"",IF($F18=ES$4,SUM($V18:Y18),"")) ->  | ET18: =+IF(OR($D18="",ET$8>$F$6),"",IF(AND($F18=ET$4,$E18=ET$3),SUM($V18:Y18),"")) ->  | EU18: =+IF(OR($D18="",BA$8>$F$6),"",SUM($V18:Z18)) -> 168 | EV18: =+IF(OR($D18="",EV$8>$F$6),"",IF($F18=EV$4,SUM($V18:Z18),"")) ->  | EW18: =+IF(OR($D18="",EW$8>$F$6),"",IF(AND($F18=EW$4,$E18=EW$3),SUM($V18:Z18),"")) ->  | EX18: =+IF(OR($D18="",BD$8>$F$6),"",SUM($V18:AA18)) -> 168 | EY18: =+IF(OR($D18="",EY$8>$F$6),"",IF($F18=EY$4,SUM($V18:AA18),"")) ->  | EZ18: =+IF(OR($D18="",EZ$8>$F$6),"",IF(AND($F18=EZ$4,$E18=EZ$3),SUM($V18:AA18),"")) ->  | FA18: =+IF(OR($D18="",FA$8>$F$6),"",IF($F18=FA$4,SUM($V18:AB18),"")) ->  | FB18: =+IF(OR($D18="",FB$8>$F$6),"",IF(AND($F18=FB$4,$E18=FB$3),SUM($V18:AB18),"")) ->  | FC18: =+IF(OR($D18="",FC$8>$F$6),"",IF($F18=FC$4,SUM($V18:AC18),"")) ->  | FD18: =+IF(OR($D18="",FD$8>$F$6),"",IF(AND($F18=FD$4,$E18=FD$3),SUM($V18:AC18),"")) ->  | FE18: =+IF(OR($D18="",FE$8>$F$6),"",IF($F18=FE$4,SUM($V18:AD18),"")) ->  | FF18: =+IF(OR($D18="",FF$8>$F$6),"",IF(AND($F18=FF$4,$E18=FF$3),SUM($V18:AD18),"")) ->  | FG18: =+IF(OR($D18="",FG$8>$F$6),"",IF($F18=FG$4,SUM($V18:AE18),"")) ->  | FH18: =+IF(OR($D18="",FH$8>$F$6),"",IF(AND($F18=FH$4,$E18=FH$3),SUM($V18:AE18),"")) ->  | FI18: =+IF(OR($D18="",FI$8>$F$6),"",IF($F18=FI$4,SUM($V18:AF18),"")) ->  | FJ18: =+IF(OR($D18="",FJ$8>$F$6),"",IF(AND($F18=FJ$4,$E18=FJ$3),SUM($V18:AF18),"")) ->  | FK18: =+IF(OR($D18="",BQ$8>$F$6),"",SUM($V18:AG18)) ->  | FL18: =+IF(OR($D18="",FL$8>$F$6),"",IF($F18=FL$4,SUM($V18:AG18),"")) ->  | FM18: =+IF(OR($D18="",FM$8>$F$6),"",IF(AND($F18=FM$4,$E18=FM$3),SUM($V18:AG18),"")) ->  | FO18: =+IF(AND(FO$8>$F$6,FO$8<Competition!$D$16+1),IF($BW18<AR$10,"elérhető","nem"),"-") -> - | FP18: =+IF(AND(FP$8>$F$6,FP$8<Competition!$D$16+1,$F18=FP$4),IF($BW18<AS$10,"elérhető","nem"),"-") -> - | FQ18: =+IF(AND(FQ$8>$F$6,FQ$8<Competition!$D$16+1,$F18=FQ$4,$E18=FQ$3),IF($BW18<AT$10,"elérhető","nem"),"-") -> - | FR18: =+IF(AND(FR$8>$F$6,FR$8<Competition!$D$16+1),IF($BW18<AU$10,"elérhető","nem"),"-") -> - | FS18: =+IF(AND(FS$8>$F$6,FS$8<Competition!$D$16+1,$F18=FS$4),IF($BW18<AV$10,"elérhető","nem"),"-") -> - | FT18: =+IF(AND(FT$8>$F$6,FT$8<Competition!$D$16+1,$F18=FT$4,$E18=FT$3),IF($BW18<AW$10,"elérhető","nem"),"-") -> - | FU18: =+IF(AND(FU$8>$F$6,FU$8<Competition!$D$16+1),IF($BW18<AX$10,"elérhető","nem"),"-") -> - | FV18: =+IF(AND(FV$8>$F$6,FV$8<Competition!$D$16+1,$F18=FV$4),IF($BW18<AY$10,"elérhető","nem"),"-") -> - | FW18: =+IF(AND(FW$8>$F$6,FW$8<Competition!$D$16+1,$F18=FW$4,$E18=FW$3),IF($BW18<AZ$10,"elérhető","nem"),"-") -> - | FX18: =+IF(AND(FX$8>$F$6,FX$8<Competition!$D$16+1),IF($BW18<BA$10,"elérhető","nem"),"-") -> - | FY18: =+IF(AND(FY$8>$F$6,FY$8<Competition!$D$16+1,$F18=FY$4),IF($BW18<BB$10,"elérhető","nem"),"-") -> - | FZ18: =+IF(AND(FZ$8>$F$6,FZ$8<Competition!$D$16+1,$F18=FZ$4,$E18=FZ$3),IF($BW18<BC$10,"elérhető","nem"),"-") -> - | GA18: =+IF(AND(GA$8>$F$6,GA$8<Competition!$D$16+1),IF($BW18<BD$10,"elérhető","nem"),"-") -> - | GB18: =+IF(AND(GB$8>$F$6,GB$8<Competition!$D$16+1,$F18=GB$4),IF($BW18<BE$10,"elérhető","nem"),"-") -> - | GC18: =+IF(AND(GC$8>$F$6,GC$8<Competition!$D$16+1,$F18=GC$4,$E18=GC$3),IF($BW18<BF$10,"elérhető","nem"),"-") -> - | GD18: =+IF(AND(GD$8>$F$6,GD$8<Competition!$D$16+1,$F18=GD$4),IF($BW18<BG$10,"elérhető","nem"),"-") -> - | GE18: =+IF(AND(GE$8>$F$6,GE$8<Competition!$D$16+1,$F18=GE$4,$E18=GE$3),IF($BW18<BH$10,"elérhető","nem"),"-") -> - | GF18: =+IF(AND(GF$8>$F$6,GF$8<Competition!$D$16+1,$F18=GF$4),IF($BW18<BI$10,"elérhető","nem"),"-") -> - | GG18: =+IF(AND(GG$8>$F$6,GG$8<Competition!$D$16+1,$F18=GG$4,$E18=GG$3),IF($BW18<BJ$10,"elérhető","nem"),"-") -> - | GH18: =+IF(AND(GH$8>$F$6,GH$8<Competition!$D$16+1,$F18=GH$4),IF($BW18<BK$10,"elérhető","nem"),"-") -> - | GI18: =+IF(AND(GI$8>$F$6,GI$8<Competition!$D$16+1,$F18=GI$4,$E18=GI$3),IF($BW18<BL$10,"elérhető","nem"),"-") -> - | GJ18: =+IF(AND(GJ$8>$F$6,GJ$8<Competition!$D$16+1,$F18=GJ$4),IF($BW18<BM$10,"elérhető","nem"),"-") -> - | GK18: =+IF(AND(GK$8>$F$6,GK$8<Competition!$D$16+1,$F18=GK$4,$E18=GK$3),IF($BW18<BN$10,"elérhető","nem"),"-") -> - | GL18: =+IF(AND(GL$8>$F$6,GL$8<Competition!$D$16+1,$F18=GL$4),IF($BW18<BO$10,"elérhető","nem"),"-") -> - | GM18: =+IF(AND(GM$8>$F$6,GM$8<Competition!$D$16+1,$F18=GM$4,$E18=GM$3),IF($BW18<BP$10,"elérhető","nem"),"-") -> - | GN18: =+IF(AND(GN$8>$F$6,GN$8<Competition!$D$16+1),IF($BW18<BQ$10,"elérhető","nem"),"-") -> - | GO18: =+IF(AND(GO$8>$F$6,GO$8<Competition!$D$16+1,$F18=GO$4),IF($BW18<BR$10,"elérhető","nem"),"-") -> - | GP18: =+IF(AND(GP$8>$F$6,GP$8<Competition!$D$16+1,$F18=GP$4,$E18=GP$3),IF($BW18<BS$10,"elérhető","nem"),"-") -> - | GR18: 0 | GS18: 0 | GT18: 1 | GU18: 1 | GW18: 164 | GX18: 103 | GY18: 100 | GZ18: 117 | HA18: 23 | HB18: 1000 | HC18: 1000 | HD18: 1000 | HE18: 1000 | HG18: 1 | HH18: 1 | HI18: 1 | HJ18: 1 | HK18: 1 | HL18: 1 | HM18: 1 | HN18: 1 | HO18: 0 | HP18: 0 | HQ18: 0 | HR18: 0 | HT18: 0 | HU18: 1 | HV18: 1 | HW18: 0 | HX18: 1 | HY18: 1 | HZ18: 0 | IA18: 1 | IB18: 0 | IC18: 0 | ID18: 0 | IE18: 0
